Workbook

Sheet Riskk (hidden)
A1: linda | B1: UPSW | H1: =COUNT(H3:H20) -> 0 | I1: FALSE
B2: Userid | H2: Main/sub | I2: Caption | J2: On Action | K2: NewGroup | M2: 6 mths b4 | N2: 2015-03-31 | P2: Company | Q2: TA
A3: 3 | B3: UserLevel | S3: TACP
A4: 2006-05-09T11:19:39 | B4: LoginTime | S4: TADF
B5: LogoutTime | S5: TAEURO
S6: TAGAAF
S7: TAGTF
S8: TASTIA
S9: TAACCI
S10: TAAUII
S11: TAAUSI
A25: =(SUMIF(#REF!,"=CSHMYR",#REF!)+SUM(#REF!))/1000000 -> 

Sheet AEQESG_Distribution (hidden)
C2: ASEAN 5 ESG OPPORTUNITY FUND
C4: FUND FACTSHEET | R4: =ValueDate -> 2018-12-31
C5: For Sophisticated Investor use only. Not for distribution to retail investor.
C6: Fund Category | I6: FUND OBJECTIVE
C7: Growth and Value
C9: Target Investor
C10: Sophisticated Investors
C12: Base Currency | I12: FUND STRATEGY
C13: US Dollar (US$)
C15: Launch Date
C16: 2016-12-16
C18: Inception Date
C19: 2017-01-31
C22: NAV per Unit | I22: FUND PERFORMANCE (since inception)
C23: ="RM " & SUMIFS(A5ESG_Internal!AV:AV,A5ESG_Internal!AU:AU,ValueDate) -> RM 0
C26: Minimum Initial Investment Sum
C27: US$ 80,000 | RM 300,000
C30: Minimum Additional Investment
C31: US$ 40,000 | RM 150,000
C33: Distribution Policy
C34: Incidental
I36: Source: VCAP Asset Managers
C37: Fees & Charges
C38: Ann Management Fee | G38: 0.0065 | I38: TOP HOLDINGS (% of Total) | Q38: SECTOR ALLOCATION
C39: Ann Trustee Fee | G39: 0.0005 | I39: Company Name | L39: Country | N39: Weight (%)
C40: Performance Fees 10% Excess of GAV | I40: =IF(A5ESG_Internal!X43="","",A5ESG_Internal!X43) -> BTSGROUP-NVDR | L40: =IF(A5ESG_Internal!Z43="","",A5ESG_Internal!Z43) -> Thailand | N40: =IF(A5ESG_Internal!AA43="","",A5ESG_Internal!AA43) -> 0.1451125953
I41: =IF(A5ESG_Internal!X44="","",A5ESG_Internal!X44) -> TENAGA | L41: =IF(A5ESG_Internal!Z44="","",A5ESG_Internal!Z44) -> Malaysia | N41: =IF(A5ESG_Internal!AA44="","",A5ESG_Internal!AA44) -> 0.1197107381
I42: =IF(A5ESG_Internal!X45="","",A5ESG_Internal!X45) -> DBS GROUP HLDGS | L42: =IF(A5ESG_Internal!Z45="","",A5ESG_Internal!Z45) -> Singapore | N42: =IF(A5ESG_Internal!AA45="","",A5ESG_Internal!AA45) -> 0.1053313887
I43: =IF(A5ESG_Internal!X46="","",A5ESG_Internal!X46) -> AIRPORTHAINVDR | L43: =IF(A5ESG_Internal!Z46="","",A5ESG_Internal!Z46) -> Thailand | N43: =IF(A5ESG_Internal!AA46="","",A5ESG_Internal!AA46) -> 0.09433850384
C44: For more information, Kindly contact us at : | I44: =IF(A5ESG_Internal!X47="","",A5ESG_Internal!X47) -> KASIKORNNVDR | L44: =IF(A5ESG_Internal!Z47="","",A5ESG_Internal!Z47) -> Thailand | N44: =IF(A5ESG_Internal!AA47="","",A5ESG_Internal!AA47) -> 0.08958213957
I45: =IF(A5ESG_Internal!X48="","",A5ESG_Internal!X48) -> SIAMCOMMBANKNVDR | L45: =IF(A5ESG_Internal!Z48="","",A5ESG_Internal!Z48) -> Thailand | N45: =IF(A5ESG_Internal!AA48="","",A5ESG_Internal!AA48) -> 0.07715622647
I46: =IF(A5ESG_Internal!X49="","",A5ESG_Internal!X49) -> CENTPATTANA-NVDR | L46: =IF(A5ESG_Internal!Z49="","",A5ESG_Internal!Z49) -> Thailand | N46: =IF(A5ESG_Internal!AA49="","",A5ESG_Internal!AA49) -> 0.07589489199
C47: VCAP Asset Managers Sdn. Bhd. | I47: =IF(A5ESG_Internal!X50="","",A5ESG_Internal!X50) -> PTTEPNVDR | L47: =IF(A5ESG_Internal!Z50="","",A5ESG_Internal!Z50) -> Thailand | N47: =IF(A5ESG_Internal!AA50="","",A5ESG_Internal!AA50) -> 0.07446173751
C48: Level 8, Block B, HP Towers | I48: =IF(A5ESG_Internal!X51="","",A5ESG_Internal!X51) -> PTTNVDR | L48: =IF(A5ESG_Internal!Z51="","",A5ESG_Internal!Z51) -> Thailand | N48: =IF(A5ESG_Internal!AA51="","",A5ESG_Internal!AA51) -> 0.07041609103
C49: No. 12, Jalan Gelenggang | I49: =IF(A5ESG_Internal!X52="","",A5ESG_Internal!X52) -> VALEINDO | L49: =IF(A5ESG_Internal!Z52="","",A5ESG_Internal!Z52) -> Indonesia | N49: =IF(A5ESG_Internal!AA52="","",A5ESG_Internal!AA52) -> 0.06068723687
C50: Bukit Damansara, 50490 KL | I50: Total | N50: =SUM(N40:O49) -> 0.9126915494
C51: Tel: +603 2788 5100 | I51: ="(Based on the Market Value as at "& TEXT(ValueDate,"dd mmm yyyy") &")" -> (Based on the Market Value as at 31 Dec 2018) | Q51: ="(Based on the Market Value as at "& TEXT(ValueDate,"dd mmm yyyy") &")" -> (Based on the Market Value as at 31 Dec 2018)
C52: Fax: +603 2788 5169 | I52: Source: VCAP Asset Managers | Q52: Source: VCAP Asset Managers
C53: E-mail: invest@vcam.com.my
G54: ASEAN 5 ESG OPPORTUNITY FUND | S54: =ValueDate -> 2018-12-31
G55: For Sophisticated Investor use only. Not for distribution to retail investor.
C57: COUNTRY ALLOCATION | L57: CUMULATIVE PERFORMANCE | S57: ANNUALISED
L58: Time Frame | P58: AEQESG | S58: Time Frame | U58: AEQESG
L59: 1 Month | P59: =IFERROR(A5ESG_Internal!$AC$22/A5ESG_Internal!$AD$22-1,"N.A") -> 0.008851081788 | S59: Inception | U59: =A5ESG_Internal!AJ30 -> N.A
L60: 3 Month | P60: =IFERROR(A5ESG_Internal!$AC$22/A5ESG_Internal!$AE$22-1,"N.A") -> -0.1015532637 | S60: 3 Years | U60: =A5ESG_Internal!AI30 -> N.A
L61: 6 Month | P61: =IFERROR(A5ESG_Internal!$AC$22/A5ESG_Internal!$AF$22-1,"N.A") -> -0.04884113838 | S61: 5 Years | U61: =A5ESG_Internal!AK30 -> N.A
L62: YTD | P62: =IFERROR(A5ESG_Internal!$AC$22/A5ESG_Internal!$AG$22-1,"N.A") -> -0.04884113838
L63: 1 Year | P63: =IFERROR(A5ESG_Internal!$AC$22/A5ESG_Internal!$AH$22-1,"N.A") -> -0.152078786
L64: 3 Years | P64: =IFERROR(A5ESG_Internal!$AC$22/A5ESG_Internal!$AI$22-1,"N.A") -> N.A
L65: Inception | P65: =IFERROR(A5ESG_Internal!$AC$22/A5ESG_Internal!$AJ$22-1,"N.A") -> N.A
C68: ="(Based on the Market Value as at "& TEXT(ValueDate,"dd mmm yyyy") &")" -> (Based on the Market Value as at 31 Dec 2018) | L68: ="(Based on the Market Value as at "& TEXT(ValueDate,"dd mmm yyyy") &")" -> (Based on the Market Value as at 31 Dec 2018)
C69: Source: VCAP Asset Managers | L69: Source: VCAP Asset Managers
C70: MANAGER'S COMMENTARY
C91: ABOUT THE REFERENCE BENCHMARK
C102: DISCLAIMER

Sheet MEQESG_Distribution (2) (hidden)
C2: MALAYSIAN ESG OPPORTUNITY FUND
C4: FUND FACTSHEET | T4: =ValueDate -> 2018-12-31
C5: For Sophisticated Investor use only. Not for distribution to retail investor.
C6: Fund Category / Fund Type | L6: FUND OBJECTIVE
C7: ESG Equity / Growth
C9: Target Investor
C10: Sophisticated Investors
C12: Currency | L12: FUND STRATEGY
C13: Ringgit Malaysia (RM)
C15: Launch Date
C16: 2015-07-06
C18: Asset Under Management
C19: =MEQESG_Internal!B11 -> 215361230.6
C21: NAV per Unit
C22: =VLOOKUP(ValueDate,MEQESG_Internal!AL:AM,2,1) -> 0.9491
C24: Minimum Initial Investment | L24: FUND PERFORMANCE (since inception)
C25: 250000
C27: Minimum Additional Investment
C28: 100000
C30: Distribution Policy
C31: Incidental
C38: Fees & Charges
C39: Ann Management Fee | H39: 0.0045 | L39: Note : MEQESG - Malaysian ESG Opportunity Fund, F4GBM - FTSE4Good Bursa Malaysia Index
C40: Ann Trustee Fee | H40: 0.000475 | L40: Source: VCAP Asset Managers, Deutsche Trustee
L41: TOP HOLDINGS (% of TOTAL) | S41: SECTOR ALLOCATION
L42: =MEQESG_Internal!Y43 -> Tenaga Nasional Bhd | P42: =MEQESG_Internal!Z43 -> 0.1510564644
L43: =MEQESG_Internal!Y44 -> My E.G. Services Berhad | P43: =MEQESG_Internal!Z44 -> 0.1069072278
L44: =MEQESG_Internal!Y45 -> Malaysia Airports Holdings Bhd | P44: =MEQESG_Internal!Z45 -> 0.09096561272
C45: For information on the Fund, kindly contact us at : | L45: =MEQESG_Internal!Y46 -> Telekom Malaysia Berhad | P45: =MEQESG_Internal!Z46 -> 0.08471781565
L46: =MEQESG_Internal!Y47 -> YTL Corporation Berhad | P46: =MEQESG_Internal!Z47 -> 0.0820379509
L47: =MEQESG_Internal!Y48 -> Sime Darby Property Bhd | P47: =MEQESG_Internal!Z48 -> 0.08069833615
C48: VCAP Asset Managers Sdn. Bhd. | L48: =MEQESG_Internal!Y49 -> Malayan Banking Berhad | P48: =MEQESG_Internal!Z49 -> 0.07263639184
C49: Level 8, Block B, HP Towers | L49: =MEQESG_Internal!Y50 -> Astro Malaysia Holdings Bhd | P49: =MEQESG_Internal!Z50 -> 0.06381225894
C50: No. 12, Jalan Gelenggang | L50: =MEQESG_Internal!Y51 -> UEM Sunrise Bhd | P50: =MEQESG_Internal!Z51 -> 0.05417263049
C51: Bukit Damansara, 50490 KL | L51: =MEQESG_Internal!Y52 -> Public Bank Berhad | P51: =MEQESG_Internal!Z52 -> 0.05182574163
C52: Tel: +603 2788 5100 | L52: Total | P52: =SUM(P42:Q51) -> 0.8388304305
C53: Fax: +603 2788 5169 | L53: ="(Based on the Market Value as at "&TEXT(ValueDate,"dd MMM yyyy")&")" -> (Based on the Market Value as at 31 Dec 2018) | T53: ="(Based on the Market Value as at "&TEXT(ValueDate,"dd MMM yyyy")&")" -> (Based on the Market Value as at 31 Dec 2018)
C54: E-mail: invest@vcam.com.my | L54: Source: VCAP Asset Managers | T54: Source: VCAP Asset Managers
C56: MALAYSIAN ESG OPPORTUNITY FUND | T56: =+T4 -> 2018-12-31
C57: For Sophisticated Investor use only. Not for distribution to retail investor.
C59: CUMULATIVE PERFORMANCE | L59: 1 MONTH | N59: 3 MONTHS | P59: 6 MONTHS | R59: YTD | T59: 1 YEAR | V59: 3 YEARS | X59: INCEPTION
C60: Malaysian ESG Opportunity Fund | L60: =IFERROR(IF(MEQESG_Internal!AC34=1,X60,MEQESG_Internal!$AC$36/MEQESG_Internal!$AD$36-1),"N.A.") -> -0.01258843113 | N60: =IFERROR(IF(MEQESG_Internal!AC34=3,X60,MEQESG_Internal!AC$36/MEQESG_Internal!$AE$36-1),"N.A.") -> -0.1496729428 | P60: =IFERROR(IF(MEQESG_Internal!AC34=6,X60,MEQESG_Internal!$AC$36/MEQESG_Internal!$AF$36-1),"N.A.") -> -0.1005009474 | R60: =IFERROR(MEQESG_Internal!$AC$36/MEQESG_Internal!$AG$36-1,"N.A.") -> -0.2440380303 | T60: =IFERROR(IF(MEQESG_Internal!AC34=12,X60,MEQESG_Internal!$AC$36/MEQESG_Internal!$AH$36-1),"N.A.") -> -0.2440380303 | V60: =IFERROR(MEQESG_Internal!$AC$36/MEQESG_Internal!$AI$36-1,"N.A.") -> -0.03720876365 | X60: =IFERROR(MEQESG_Internal!$AC$36/MEQESG_Internal!$AJ$36-1,"N.A.") -> 0.0204624314
C61: FTSE 4 Good Bursa Malaysia | L61: =IF(L60="N.A.","N.A.",IFERROR(IF(MEQESG_Internal!AC34=1,X61,MEQESG_Internal!$AC$37/MEQESG_Internal!$AD$37-1),"N.A.")) -> -0.009588101893 | N61: =IF(N60="N.A.","N.A.",IFERROR(IF(MEQESG_Internal!AC34=3,X61,MEQESG_Internal!AC$37/MEQESG_Internal!$AE$37-1),"N.A.")) -> -0.06983932003 | P61: =IF(P60="N.A.","N.A.",IFERROR(IF(MEQESG_Internal!AC34=6,X61,MEQESG_Internal!$AC$37/MEQESG_Internal!$AF$37-1),"N.A.")) -> -0.003269500234 | R61: =IF(R60="N.A.","N.A.",IFERROR(MEQESG_Internal!$AC$37/MEQESG_Internal!$AG$37-1,"N.A.")) -> -0.07595410081 | T61: =IF(T60="N.A.","N.A.",IFERROR(IF(MEQESG_Internal!AC34=12,X61,MEQESG_Internal!$AC$37/MEQESG_Internal!$AH$37-1),"N.A.")) -> -0.07595410081 | V61: =IF(V60="N.A.","N.A.",IFERROR(IF(MEQESG_Internal!AC34=36,X60,MEQESG_Internal!$AC$37/MEQESG_Internal!$AI$37-1),"N.A.")) -> 0.006204657244 | X61: =IF(X60="N.A.","N.A.",IFERROR(MEQESG_Internal!$AC$37/MEQESG_Internal!$AJ$37-1,"N.A.")) -> 0.1057385447
C63: ANNUALISED PERFORMANCE | L63: 2 YEARS | N63: 3 YEARS | P63: 5 YEARS | R63: INCEPTION
C64: Malaysian ESG Opportunity Fund | L64: =MEQESG_Internal!AH41 -> 0.05602595925 | N64: =MEQESG_Internal!AI41 -> 0.05240719301 | P64: =MEQESG_Internal!AK41 -> N.A. | R64: =MEQESG_Internal!AJ41 -> 0.005946161434
C65: FTSE 4 Good Bursa Malaysia | L65: =MEQESG_Internal!AH42 -> 0.03144995446 | N65: =MEQESG_Internal!AI42 -> 0.08635122072 | P65: =MEQESG_Internal!AK42 -> N.A. | R65: =MEQESG_Internal!AJ42 -> 0.0298555801
C68: FUND MANAGER COMMENTARY
C94: ABOUT THE REFERENCE BENCHMARK
C101: DISCLAIMER

Sheet InIndex (hidden)
D1: =B1&A1 -> 
A2: ValueDate | B2: qIndexBenchmark | C2: Indices | D2: IndexValueDate
A3: 41639 | B3: FBMKLCI | C3: 1866.96 | D3: FBMKLCI41639
A4: 41639 | B4: FBMT100 | C4: 12589.38 | D4: FBMT10041639
A5: 41740 | B5: FBMKLCI | C5: 1852.66 | D5: FBMKLCI41740
A6: 41740 | B6: FBMT100 | C6: 12499.55 | D6: FBMT10041740
A7: 41740 | B7: MBIIGC | C7: 1201.262 | D7: MBIIGC41740
A8: 41988 | B8: FBMKLCI | C8: 1697.31 | D8: FBMKLCI41988
A9: 41988 | B9: FBMT100 | C9: 11356.62 | D9: FBMT10041988
A10: 41988 | B10: MBIIGC | C10: 1233.454 | D10: MBIIGC41988
A11: 41995 | B11: FBMKLCI | C11: 1744.05 | D11: FBMKLCI41995
A12: 41995 | B12: FBMT100 | C12: 11727.72 | D12: FBMT10041995
A13: 41995 | B13: MBIIGC | C13: 1233.948 | D13: MBIIGC41995
A14: 42124 | B14: CONSTRUCTN | C14: 306.25 | D14: CONSTRUCTN42124
A15: 42124 | B15: CONSUMER | C15: 599.8 | D15: CONSUMER42124
A16: 42124 | B16: F4GBM | C16: 999.5 | D16: F4GBM42124
A17: 42124 | B17: FA40 | C17: 10731.44 | D17: FA4042124
A18: 42124 | B18: FBM70 | C18: 13615.7 | D18: FBM7042124
A19: 42124 | B19: FBMACE | C19: 6988.01 | D19: FBMACE42124
A20: 42124 | B20: FBMAPMYR | C20: 17948.42 | D20: FBMAPMYR42124
A21: 42124 | B21: FBMAPUSD | C21: 14515.46 | D21: FBMAPUSD42124
A22: 42124 | B22: FBMEMAS | C22: 12539.04 | D22: FBMEMAS42124
A23: 42124 | B23: FBMFLG | C23: 15774.53 | D23: FBMFLG42124
A24: 42124 | B24: FBMHIJRAH | C24: 15018.51 | D24: FBMHIJRAH42124
A25: 42124 | B25: FBMKLCI | C25: 1818.27 | D25: FBMKLCI42124
A26: 42124 | B26: FBMPALMOIL | C26: 16469.56 | D26: FBMPALMOIL42124
A27: 42124 | B27: FBMSCAP | C27: 16522.27 | D27: FBMSCAP42124
A28: 42124 | B28: FBMSHA | C28: 13073.91 | D28: FBMSHA42124
A29: 42124 | B29: FBMT100 | C29: 12220.51 | D29: FBMT10042124
A30: 42124 | B30: FINANCE | C30: 16113.78 | D30: FINANCE42124
A31: 42124 | B31: IND-PROD | C31: 137.4 | D31: IND-PROD42124
A32: 42124 | B32: INDUSTRIAL | C32: 3363.5 | D32: INDUSTRIAL42124
A33: 42124 | B33: MGSALL | C33: 3023.57 | D33: MGSALL42124
A34: 42124 | B34: MINING | C34: 559.29 | D34: MINING42124
A35: 42124 | B35: PLANTATION | C35: 7595.52 | D35: PLANTATION42124
A36: 42124 | B36: PROPERTIES | C36: 1322.97 | D36: PROPERTIES42124
A37: 42124 | B37: TECHNOLOGY | C37: 22.15 | D37: TECHNOLOGY42124
A38: 42124 | B38: TRAD/SERV | C38: 242.73 | D38: TRAD/SERV42124
A39: 42124 | B39: TRBPAM | C39: 143.842 | D39: TRBPAM42124
A40: 42191 | B40: CONSTRUCTN | C40: 280.81 | D40: CONSTRUCTN42191
A41: 42191 | B41: CONSUMER | C41: 583.47 | D41: CONSUMER42191
A42: 42191 | B42: F4GBM | C42: 938.08 | D42: F4GBM42191
A43: 42191 | B43: FA40 | C43: 9997.37 | D43: FA4042191
A44: 42191 | B44: FBM70 | C44: 12769.6 | D44: FBM7042191
A45: 42191 | B45: FBMACE | C45: 6175.12 | D45: FBMACE42191
A46: 42191 | B46: FBMAPMYR | C46: 18172.56 | D46: FBMAPMYR42191
A47: 42191 | B47: FBMAPUSD | C47: 13738.83 | D47: FBMAPUSD42191
A48: 42191 | B48: FBMEMAS | C48: 11831.96 | D48: FBMEMAS42191
A49: 42191 | B49: FBMFLG | C49: 15440.09 | D49: FBMFLG42191
A50: 42191 | B50: FBMHIJRAH | C50: 13919.18 | D50: FBMHIJRAH42191
A51: 42191 | B51: FBMKLCI | C51: 1717.05 | D51: FBMKLCI42191
A52: 42191 | B52: FBMPALMOIL | C52: 15779.4 | D52: FBMPALMOIL42191
A53: 42191 | B53: FBMSCAP | C53: 15759.14 | D53: FBMSCAP42191
A54: 42191 | B54: FBMSHA | C54: 12291.47 | D54: FBMSHA42191
A55: 42191 | B55: FBMT100 | C55: 11521.35 | D55: FBMT10042191
A56: 42191 | B56: FINANCE | C56: 15452.98 | D56: FINANCE42191
A57: 42191 | B57: IND-PROD | C57: 138.62 | D57: IND-PROD42191
A58: 42191 | B58: INDUSTRIAL | C58: 3157.54 | D58: INDUSTRIAL42191
A59: 42191 | B59: MGSALL | C59: 3032.97 | D59: MGSALL42191
A60: 42191 | B60: MINING | C60: 543.08 | D60: MINING42191
A61: 42191 | B61: PLANTATION | C61: 7420.24 | D61: PLANTATION42191
A62: 42191 | B62: PROPERTIES | C62: 1211.08 | D62: PROPERTIES42191
A63: 42191 | B63: TECHNOLOGY | C63: 21.75 | D63: TECHNOLOGY42191
A64: 42191 | B64: TRAD/SERV | C64: 225.58 | D64: TRAD/SERV42191
A65: 42191 | B65: TRBPAM | C65: 144.701 | D65: TRBPAM42191
A66: 42193 | B66: CONSTRUCTN | C66: 276.41 | D66: CONSTRUCTN42193
A67: 42193 | B67: CONSUMER | C67: 578.42 | D67: CONSUMER42193
A68: 42193 | B68: F4GBM | C68: 924.57 | D68: F4GBM42193
A69: 42193 | B69: FA40 | C69: 9878.31 | D69: FA4042193
A70: 42193 | B70: FBM70 | C70: 12448.54 | D70: FBM7042193
A71: 42193 | B71: FBMACE | C71: 5991.29 | D71: FBMACE42193
A72: 42193 | B72: FBMAPMYR | C72: 17829.81 | D72: FBMAPMYR42193
A73: 42193 | B73: FBMAPUSD | C73: 13479.09 | D73: FBMAPUSD42193
A74: 42193 | B74: FBMEMAS | C74: 11641.88 | D74: FBMEMAS42193
A75: 42193 | B75: FBMFLG | C75: 15071.16 | D75: FBMFLG42193
A76: 42193 | B76: FBMHIJRAH | C76: 13798.53 | D76: FBMHIJRAH42193
A77: 42193 | B77: FBMKLCI | C77: 1695.83 | D77: FBMKLCI42193
A78: 42193 | B78: FBMPALMOIL | C78: 15517.8 | D78: FBMPALMOIL42193
A79: 42193 | B79: FBMSCAP | C79: 15345.23 | D79: FBMSCAP42193
A80: 42193 | B80: FBMSHA | C80: 12120.09 | D80: FBMSHA42193
A81: 42193 | B81: FBMT100 | C81: 11345.02 | D81: FBMT10042193
A82: 42193 | B82: FINANCE | C82: 15191.73 | D82: FINANCE42193
A83: 42193 | B83: IND-PROD | C83: 135.39 | D83: IND-PROD42193
A84: 42193 | B84: INDUSTRIAL | C84: 3136.1 | D84: INDUSTRIAL42193
A85: 42193 | B85: MGSALL | C85: 3028.34 | D85: MGSALL42193
A86: 42193 | B86: MINING | C86: 539.03 | D86: MINING42193
A87: 42193 | B87: PLANTATION | C87: 7341.35 | D87: PLANTATION42193
A88: 42193 | B88: PROPERTIES | C88: 1185.26 | D88: PROPERTIES42193
A89: 42193 | B89: TECHNOLOGY | C89: 21.13 | D89: TECHNOLOGY42193
A90: 42193 | B90: TRAD/SERV | C90: 222.74 | D90: TRAD/SERV42193
A91: 42193 | B91: TRBPAM | C91: 144.436 | D91: TRBPAM42193
A92: 42308 | B92: CONSTRUCTN | C92: 272.66 | D92: CONSTRUCTN42308
A93: 42308 | B93: CONSUMER | C93: 581.41 | D93: CONSUMER42308
A94: 42308 | B94: F4GBM | C94: 906.1 | D94: F4GBM42308
A95: 42308 | B95: FA40 | C95: 8641.73 | D95: FA4042308
A96: 42308 | B96: FBM70 | C96: 12767.61 | D96: FBM7042308
A97: 42308 | B97: FBMACE | C97: 6214.05 | D97: FBMACE42308
A98: 42308 | B98: FBMAPMYR | C98: 18314.36 | D98: FBMAPMYR42308
A99: 42308 | B99: FBMAPUSD | C99: 12274.97 | D99: FBMAPUSD42308
A100: 42308 | B100: FBMEMAS | C100: 11573.9 | D100: FBMEMAS42308
A101: 42308 | B101: FBMFLG | C101: 15870.62 | D101: FBMFLG42308
A102: 42308 | B102: FBMHIJRAH | C102: 14082.52 | D102: FBMHIJRAH42308
A103: 42308 | B103: FBMKLCI | C103: 1665.71 | D103: FBMKLCI42308
A104: 42308 | B104: FBMPALMOIL | C104: 16432.17 | D104: FBMPALMOIL42308
A105: 42308 | B105: FBMSCAP | C105: 15683.96 | D105: FBMSCAP42308
A106: 42308 | B106: FBMSHA | C106: 12392.83 | D106: FBMSHA42308
A107: 42308 | B107: FBMT100 | C107: 11256.03 | D107: FBMT10042308
A108: 42308 | B108: FINANCE | C108: 14161.21 | D108: FINANCE42308
A109: 42308 | B109: IND-PROD | C109: 144.64 | D109: IND-PROD42308
A110: 42308 | B110: INDUSTRIAL | C110: 3306.65 | D110: INDUSTRIAL42308
A111: 42308 | B111: MINING | C111: 502.55 | D111: MINING42308
A112: 42308 | B112: PLANTATION | C112: 7540.21 | D112: PLANTATION42308
A113: 42308 | B113: PROPERTIES | C113: 1186.87 | D113: PROPERTIES42308
A114: 42308 | B114: TECHNOLOGY | C114: 22.93 | D114: TECHNOLOGY42308
A115: 42308 | B115: TRAD/SERV | C115: 226.07 | D115: TRAD/SERV42308
A116: 42369 | B116: CONSTRUCTN | C116: 276.24 | D116: CONSTRUCTN42369
A117: 42369 | B117: CONSUMER | C117: 589.21 | D117: CONSUMER42369
A118: 42369 | B118: F4GAS | C118: 17782.09633 | D118: F4GAS42369
A119: 42369 | B119: F4GBM | C119: 933.17 | D119: F4GBM42369
A120: 42369 | B120: FA40 | C120: 8417.18 | D120: FA4042369
A121: 42369 | B121: FBM70 | C121: 13135.15 | D121: FBM7042369
A122: 42369 | B122: FBMACE | C122: 6389.24 | D122: FBMACE42369
A123: 42369 | B123: FBMAPMYR | C123: 17593.1 | D123: FBMAPMYR42369
A124: 42369 | B124: FBMAPUSD | C124: 11797.05 | D124: FBMAPUSD42369
A125: 42369 | B125: FBMEMAS | C125: 11793.65 | D125: FBMEMAS42369
A126: 42369 | B126: FBMFLG | C126: 16579.58 | D126: FBMFLG42369
A127: 42369 | B127: FBMHIJRAH | C127: 14332.58 | D127: FBMHIJRAH42369
A128: 42369 | B128: FBMKLCI | C128: 1692.51 | D128: FBMKLCI42369
A129: 42369 | B129: FBMPALMOIL | C129: 16907.24 | D129: FBMPALMOIL42369
A130: 42369 | B130: FBMSCAP | C130: 15944.13 | D130: FBMSCAP42369
A131: 42369 | B131: FBMSHA | C131: 12800.65 | D131: FBMSHA42369
A132: 42369 | B132: FBMT100 | C132: 11470.57 | D132: FBMT10042369
A133: 42369 | B133: FINANCE | C133: 14159.21 | D133: FINANCE42369
A134: 42369 | B134: IND-PROD | C134: 155.64 | D134: IND-PROD42369
A135: 42369 | B135: INDUSTRIAL | C135: 3269.8 | D135: INDUSTRIAL42369
A136: 42369 | B136: MGSALL | C136: 3076.48 | D136: MGSALL42369
A137: 42369 | B137: MINING | C137: 502.55 | D137: MINING42369
A138: 42369 | B138: PLANTATION | C138: 7619.64 | D138: PLANTATION42369
A139: 42369 | B139: PROPERTIES | C139: 1187.63 | D139: PROPERTIES42369
A140: 42369 | B140: TECHNOLOGY | C140: 25.45 | D140: TECHNOLOGY42369
A141: 42369 | B141: TRAD/SERV | C141: 229.32 | D141: TRAD/SERV42369
A142: 42369 | B142: TRBPAM | C142: 145.895 | D142: TRBPAM42369
A143: 42669 | B143: CONSTRUCTN | C143: 290.43 | D143: CONSTRUCTN42669
A144: 42669 | B144: CONSUMER | C144: 601.93 | D144: CONSUMER42669
A145: 42669 | B145: F4GAS | C145: 19564.70849 | D145: F4GAS42669
A146: 42669 | B146: F4GBM | C146: 917.18 | D146: F4GBM42669
A147: 42669 | B147: FA40 | C147: 9243.31 | D147: FA4042669
A148: 42669 | B148: FBM70 | C148: 13759.86 | D148: FBM7042669
A149: 42669 | B149: FBMACE | C149: 5135.25 | D149: FBMACE42669
A150: 42669 | B150: FBMAPMYR | C150: 18855.89 | D150: FBMAPMYR42669
A151: 42669 | B151: FBMAPUSD | C151: 13038.94 | D151: FBMAPUSD42669
A152: 42669 | B152: FBMEMAS | C152: 11804.32 | D152: FBMEMAS42669
A153: 42669 | B153: FBMFLG | C153: 16240.54 | D153: FBMFLG42669
A154: 42669 | B154: FBMHIJRAH | C154: 13824 | D154: FBMHIJRAH42669
A155: 42669 | B155: FBMKLCI | C155: 1673.92 | D155: FBMKLCI42669
A156: 42669 | B156: FBMPALMOIL | C156: 17635.54 | D156: FBMPALMOIL42669
A157: 42669 | B157: FBMSCAP | C157: 15448.81 | D157: FBMSCAP42669
A158: 42669 | B158: FBMSHA | C158: 12407.23 | D158: FBMSHA42669
A159: 42669 | B159: FBMT100 | C159: 11505.28 | D159: FBMT10042669
A160: 42669 | B160: FINANCE | C160: 14540.64 | D160: FINANCE42669
A161: 42669 | B161: IND-PROD | C161: 147.29 | D161: IND-PROD42669
A162: 42669 | B162: INDUSTRIAL | C162: 3153.51 | D162: INDUSTRIAL42669
A163: 42669 | B163: KLIIR | C163: 3.27 | D163: KLIIR42669
A164: 42669 | B164: MINING | C164: 482.29 | D164: MINING42669
A165: 42669 | B165: PLANTATION | C165: 7957.33 | D165: PLANTATION42669
A166: 42669 | B166: PROPERTIES | C166: 1198.71 | D166: PROPERTIES42669
A167: 42669 | B167: TECHNOLOGY | C167: 22.96 | D167: TECHNOLOGY42669
A168: 42669 | B168: TRAD/SERV | C168: 225.56 | D168: TRAD/SERV42669
A169: 42669 | B169: TRBPAM | C169: 155.133 | D169: TRBPAM42669
A170: 42720 | B170: CONSTRUCTN | C170: 285.8 | D170: CONSTRUCTN42720
A171: 42720 | B171: CONSUMER | C171: 575.99 | D171: CONSUMER42720
A172: 42720 | B172: F4GAS | C172: 19753.2415 | D172: F4GAS42720
A173: 42720 | B173: F4GBM | C173: 892.4 | D173: F4GBM42720
A174: 42720 | B174: FA40 | C174: 8854.63 | D174: FA4042720
A175: 42720 | B175: FBM70 | C175: 13094.16 | D175: FBM7042720
A176: 42720 | B176: FBMACE | C176: 4750.71 | D176: FBMACE42720
A177: 42720 | B177: FBMAPMYR | C177: 19575.74 | D177: FBMAPMYR42720
A178: 42720 | B178: FBMAPUSD | C178: 12582.45 | D178: FBMAPUSD42720
A179: 42720 | B179: FBMEMAS | C179: 11452.5 | D179: FBMEMAS42720
A180: 42720 | B180: FBMFLG | C180: 15795.2 | D180: FBMFLG42720
A181: 42720 | B181: FBMHIJRAH | C181: 13414.1 | D181: FBMHIJRAH42720
A182: 42720 | B182: FBMKLCI | C182: 1637.79 | D182: FBMKLCI42720
A183: 42720 | B183: FBMPALMOIL | C183: 17092.21 | D183: FBMPALMOIL42720
A184: 42720 | B184: FBMSCAP | C184: 14589.5 | D184: FBMSCAP42720
A185: 42720 | B185: FBMSHA | C185: 11993.44 | D185: FBMSHA42720
A186: 42720 | B186: FBMT100 | C186: 11180.35 | D186: FBMT10042720
A187: 42720 | B187: FINANCE | C187: 14356.54 | D187: FINANCE42720
A188: 42720 | B188: IND-PROD | C188: 143.33 | D188: IND-PROD42720
A189: 42720 | B189: INDUSTRIAL | C189: 3084.15 | D189: INDUSTRIAL42720
A190: 42720 | B190: KLIIR | C190: 3.27 | D190: KLIIR42720
A191: 42720 | B191: MINING | C191: 482.29 | D191: MINING42720
A192: 42720 | B192: PLANTATION | C192: 7742.04 | D192: PLANTATION42720
A193: 42720 | B193: PROPERTIES | C193: 1128.77 | D193: PROPERTIES42720
A194: 42720 | B194: TECHNOLOGY | C194: 22 | D194: TECHNOLOGY42720
A195: 42720 | B195: TRAD/SERV | C195: 218.78 | D195: TRAD/SERV42720
A196: 42720 | B196: TRBPAM | C196: 152.362 | D196: TRBPAM42720
A197: 42735 | B197: CONSTRUCTN | C197: 284.52 | D197: CONSTRUCTN42735
A198: 42735 | B198: CONSUMER | C198: 576.75 | D198: CONSUMER42735
A199: 42735 | B199: F4GBM | C199: 895.3 | D199: F4GBM42735
A200: 42735 | B200: FA40 | C200: 8907.8 | D200: FA4042735
... 151 more rows

Sheet MEQESG_Internal (hidden)
U1: Setting | V1: =VLOOKUP(FundCode, InFund!$A:$E,5,0) -> MYR | AQ1: =IFERROR(AM1-1,0)*100 -> -100 | AR1: =IF(AN1=0,0,IFERROR(AN1/$AJ$23-1,0)*100) -> 0
U2: Fund Code | V2: MEQESG | AL2: qValDate | AM2: BuyPriceMYR | AN2: BuyPriceUSD | AO2: Indices | AP2: NAV | AQ2: MEQESG Movement | AR2: F4GBM Movement
B3: MALAYSIAN ESG OPPORTUNITY FUND | U3: UTFlag | V3: =VLOOKUP(FundCode,FundData,MATCH(U3,InFund!2:2,0),0) -> 1 | W3: Note: | X3: 1 = Yes; 0=No; | AL3: 2015-08-14 | AM3: 1 | AN3: 853.75 | AO3: 15000000 | AP3: 15001356.03 | AQ3: 0 | AR3: 0
B4: =ValueDate -> 2018-12-31 | M4: Asset Class - Wholesale Equity | U4: RollEOYFlag | V4: =VLOOKUP(FundCode,FundData,MATCH(U4,InFund!2:2,0),0) -> 1 | AL4: 2015-08-17 | AM4: 1 | AN4: 840.23 | AO4: 15500000 | AP4: 15505448.53 | AQ4: 0 | AR4: -1.583601757
U5: Amort.Flag | V5: 0 | W5: * IF Amort.Flag = 1 --> Exclude amortisation/accreation form Unrealised Gain n Loss | AL5: 2015-08-18 | AM5: 1 | AN5: 847.79 | AO5: 15500000 | AP5: 15506839.66 | AQ5: 0 | AR5: -0.6980966325
B6: FUND INFORMATION | U6: Clean MV | V6: 1 | W6: * IF Clean MV=1 - Accrued Interest add into Cash | AL6: 2015-08-19 | AM6: 1 | AN6: 849.17 | AO6: 15500000 | AP6: 15508230.97 | AQ6: 0 | AR6: -0.5364568082
AL7: 2015-08-20 | AM7: 1.0005 | AN7: 849.59 | AO7: 15500000 | AP7: 15507959.18 | AQ7: 0.05 | AR7: -0.4872620791
B8: ="Total Cost ("&$V$1&")" -> Total Cost (MYR) | G8: Asset Allocation | K8: Performance | L8: 1 month | M8: YTD | N8: 1 year | O8: 3 year | P8: Inception | U8: Accrued Interest | V8: =SUMIF(InHolding!A:A,FundCode,InHolding!P:P) -> 11895.35 | W8: Top Holding Denominator | X8: NAV | AL8: 2015-08-21 | AM8: 1.0016 | AN8: 849.13 | AO8: 15500000 | AP8: 15525533.8 | AQ8: 0.16 | AR8: -0.5411420205
B9: =SUMIF(InHolding!$A:$A,FundCode,InHolding!$L:$L)+$V$8*$V$6+$V$9 -> 230911080 | K9: Fund | L9: =IF(ISERROR($AC22/AD22-1),0,$AC22/AD22-1) -> -0.01258843113 | M9: =IF(ISERROR($AC22/AG22-1),0,$AC22/AG22-1) -> -0.1005009474 | N9: =IF(ISERROR($AC22/AH22-1),0,$AC22/AH22-1) -> -0.2440380303 | O9: =IF(ISERROR($AC22/AI22-1),0,$AC22/AI22-1) -> -0.03720876365 | P9: =IF(ISERROR($AC22/AJ22-1),0,$AC22/AJ22-1) -> 0.0204624314 | U9: Pre-Acq | V9: =SUMIF(InHolding!A:A,FundCode,InHolding!M:M) -> 0 | AL9: 2015-08-24 | AM9: 0.9973 | AN9: 827.27 | AO9: 15500000 | AP9: 15458016.36 | AQ9: -0.27 | AR9: -3.101610542
B10: ="Market Value ("&$V$1&")" -> Market Value (MYR) | K10: Benchmark* | L10: =IF(OR(ISERROR($AC23/AD23-1),ISERROR($AC22/AD22-1)),0,$AC23/AD23-1) -> -0.009588101893 | M10: =IF(OR(ISERROR($AC23/AG23-1),ISERROR($AC22/AG22-1)),0,$AC23/AG23-1) -> -0.003269500234 | N10: =IF(OR(ISERROR($AC23/AH23-1),ISERROR($AC22/AH22-1)),0,$AC23/AH23-1) -> -0.07595410081 | O10: =IF(OR(ISERROR($AC23/AI23-1),ISERROR($AC22/AI22-1)),0,$AC23/AI23-1) -> 0.006204657244 | P10: =IF(OR(ISERROR($AC23/AJ23-1),ISERROR($AC22/AJ22-1)),0,$AC23/AJ23-1) -> 0.09980673499 | T10: Adj. | U10: FinanceYrStart | V10: =VLOOKUP(FundCode,FundData,MATCH(U10,InFund!2:2,0),0) -> 2015-07-06 | AL10: 2015-08-25 | AM10: 0.9992 | AN10: 846.99 | AO10: 15500000 | AP10: 15487598.14 | AQ10: -0.08 | AR10: -0.7918008785
B11: =SUMIF(InHolding!$A:$A,FundCode,InHolding!$O:$O) -> 215361230.6 | K11: Excess Return | L11: =L9-L10 -> -0.003000329234 | M11: =M9-M10 -> -0.09723144718 | N11: -0.1680839295 | O11: =O9-O10 -> -0.0434134209 | P11: -0.07934430359 | T11: 2014 | U11: Income | V11: =EDATE(VLOOKUP(FundCode,FundData,MATCH("FinanceYrEnd",InFund!2:2,0),0),-12) -> 2018-06-30 | W11: =Main!D18 -> 2018-11-30 | X11: =ValueDate -> 2018-12-31 | AB11: Portfolio Analysis | AL11: 2015-08-26 | AM11: 1.0056 | AN11: 856.78 | AO11: 15500000 | AP11: 15587086.16 | AQ11: 0.56 | AR11: 0.3549048316
B12: ="Unrealised Gains / (Loss) ("&$V$1&")" -> Unrealised Gains / (Loss) (MYR) | K12: ="* Benchmark - " & VLOOKUP(FundCode,InFund!A:D,4,0) -> * Benchmark - FTSE4GOOD BM INDEX | U12: Capital Gains | V12: =-(SUMIFS(InTB!$H:$H,InTB!$G:$G,FundCode,InTB!$A:$A,V$11,InTB!$I:$I,"600")+(SUMIFS(InTB!$H:$H,InTB!$G:$G,FundCode,InTB!$A:$A,V$11,InTB!$I:$I,"610")+SUMIFS(InTB!$H:$H,InTB!$G:$G,FundCode,InTB!$A:$A,V$11,InTB!$I:$I,"620"))*(1-$V$5)) -> 1957203.82 | W12: =-(SUMIFS(InTB!$H:$H,InTB!$G:$G,FundCode,InTB!$A:$A,W$11,InTB!$I:$I,"600")+(SUMIFS(InTB!$H:$H,InTB!$G:$G,FundCode,InTB!$A:$A,W$11,InTB!$I:$I,"610")+SUMIFS(InTB!$H:$H,InTB!$G:$G,FundCode,InTB!$A:$A,W$11,InTB!$I:$I,"620"))*(1-$V$5)) -> -9658679.79 | X12: =-(SUMIFS(InTB!$H:$H,InTB!$G:$G,FundCode,InTB!$A:$A,X$11,InTB!$I:$I,"600")+(SUMIFS(InTB!$H:$H,InTB!$G:$G,FundCode,InTB!$A:$A,X$11,InTB!$I:$I,"610")+SUMIFS(InTB!$H:$H,InTB!$G:$G,FundCode,InTB!$A:$A,X$11,InTB!$I:$I,"620"))*(1-$V$5)) -> -30546949.69 | AB12: EQT | AC12: Equity | AD12: =SUMIFS(InHolding!U:U,InHolding!A:A,FundCode,InHolding!C:C,$AB12) -> 192057454.2 | AE12: =IF(AD12=0,NA(),AD12) -> 192057454.2 | AF12: =AD12/$AD$15 -> 0.8917921468 | AL12: 2015-08-27 | AM12: 1.0141 | AN12: 869.75 | AO12: 15500000 | AP12: 15718060.23 | AQ12: 1.41 | AR12: 1.874084919
B13: =B11-B9 -> -15549849.33 | U13: Dividend Income | V13: =-(SUMIFS(InTB!$H:$H,InTB!$G:$G,FundCode,InTB!$A:$A,V$11,InTB!$I:$I,"636")+SUMIFS(InTB!$H:$H,InTB!$G:$G,FundCode,InTB!$A:$A,V$11,InTB!$I:$I,"635"))-V16-V17 -> 7551842.07 | W13: =-(SUMIFS(InTB!$H:$H,InTB!$G:$G,FundCode,InTB!$A:$A,W$11,InTB!$I:$I,"636")+SUMIFS(InTB!$H:$H,InTB!$G:$G,FundCode,InTB!$A:$A,W$11,InTB!$I:$I,"635"))-W16-W17 -> 3631025.91 | X13: =-(SUMIFS(InTB!$H:$H,InTB!$G:$G,FundCode,InTB!$A:$A,X$11,InTB!$I:$I,"636")+SUMIFS(InTB!$H:$H,InTB!$G:$G,FundCode,InTB!$A:$A,X$11,InTB!$I:$I,"635"))-X16-X17 -> 3988888.41 | AB13: BND | AC13: FI | AD13: =SUMIFS(InHolding!U:U,InHolding!A:A,FundCode,InHolding!C:C,$AB13) -> 0 | AE13: =IF(AD13=0,NA(),AD13) ->  | AF13: =AD13/$AD$15 -> 0 | AL13: 2015-08-28 | AM13: 1.0168 | AN13: 877.22 | AO13: 15500000 | AP13: 15760032.89 | AQ13: 1.68 | AR13: 2.749048316
K14: Income | M14: ="1 month ("&$V$1&")" -> 1 month (MYR) | O14: ="YTD ("&$V$1&")" -> YTD (MYR) | U14: Interest Income | V14: =-(SUMIFS(InTB!$H:$H,InTB!$G:$G,FundCode,InTB!$A:$A,V$11,InTB!$J:$J,"6302")+SUMIFS(InTB!$H:$H,InTB!$G:$G,FundCode,InTB!$A:$A,V$11,InTB!$J:$J,"6392")+SUMIFS(InTB!$H:$H,InTB!$G:$G,FundCode,InTB!$A:$A,V$11,InTB!$J:$J,"9392")) -> 1324441.57 | W14: =-(SUMIFS(InTB!$H:$H,InTB!$G:$G,FundCode,InTB!$A:$A,W$11,InTB!$J:$J,"6302")+SUMIFS(InTB!$H:$H,InTB!$G:$G,FundCode,InTB!$A:$A,W$11,InTB!$J:$J,"6392")+SUMIFS(InTB!$H:$H,InTB!$G:$G,FundCode,InTB!$A:$A,W$11,InTB!$J:$J,"9392")) -> 597999.38 | X14: =-(SUMIFS(InTB!$H:$H,InTB!$G:$G,FundCode,InTB!$A:$A,X$11,InTB!$J:$J,"6302")+SUMIFS(InTB!$H:$H,InTB!$G:$G,FundCode,InTB!$A:$A,X$11,InTB!$J:$J,"6392")+SUMIFS(InTB!$H:$H,InTB!$G:$G,FundCode,InTB!$A:$A,X$11,InTB!$J:$J,"9392")) -> 654633.73 | AB14: CSH | AC14: Cash | AD14: =SUMIFS(InHolding!U:U,InHolding!A:A,FundCode,InHolding!C:C,$AB14) -> 23303776.42 | AE14: 23303776.42 | AF14: 0.1082078532 | AL14: 2015-08-31 | AM14: 1.0169 | AN14: 877.22 | AO14: 15500000 | AP14: 15762314.16 | AQ14: 1.69 | AR14: 2.749048316
B15: Equity | E15: Cash | K15: Capital Gains | M15: =$X12-$W12+IF(YEAR($V$11)=$T$11,$T12,0) -> -20888269.9 | O15: =$X12-$V12*(1-$V$4)+IF(YEAR($V$11)=$T$11,$T12,0) -> -30546949.69 | U15: Coupon Income | V15: =-(SUMIFS(InTB!$H:$H,InTB!$G:$G,FundCode,InTB!$A:$A,V$11,InTB!$J:$J,"6301")+SUMIFS(InTB!$H:$H,InTB!$G:$G,FundCode,InTB!$A:$A,V$11,InTB!$J:$J,"6391")+SUMIFS(InTB!$H:$H,InTB!$G:$G,FundCode,InTB!$A:$A,V$11,InTB!$J:$J,"9391")) -> 0 | W15: =-(SUMIFS(InTB!$H:$H,InTB!$G:$G,FundCode,InTB!$A:$A,W$11,InTB!$J:$J,"6301")+SUMIFS(InTB!$H:$H,InTB!$G:$G,FundCode,InTB!$A:$A,W$11,InTB!$J:$J,"6391")+SUMIFS(InTB!$H:$H,InTB!$G:$G,FundCode,InTB!$A:$A,W$11,InTB!$J:$J,"9391")) -> 0 | X15: =-(SUMIFS(InTB!$H:$H,InTB!$G:$G,FundCode,InTB!$A:$A,X$11,InTB!$J:$J,"6301")+SUMIFS(InTB!$H:$H,InTB!$G:$G,FundCode,InTB!$A:$A,X$11,InTB!$J:$J,"6391")+SUMIFS(InTB!$H:$H,InTB!$G:$G,FundCode,InTB!$A:$A,X$11,InTB!$J:$J,"9391")) -> 0 | AB15: Total | AD15: =AD12+AD13+AD14 -> 215361230.6 | AL15: 2015-09-01 | AM15: 1.0144 | AN15: 871.4 | AO15: 15500000 | AP15: 15722885.12 | AQ15: 1.44 | AR15: 2.067349927
B16: ="("&$V$1&")" -> (MYR) | E16: ="("&$V$1&")" -> (MYR) | K16: Dividend Income | M16: =$X13-$W13+IF(YEAR($V$11)=$T$11,$T13,0) -> 357862.5 | O16: =$X13-$V13*(1-$V$4)+IF(YEAR($V$11)=$T$11,$T13,0) -> 3988888.41 | U16: Other Income | V16: =-SUMIFS(InTB!$H:$H,InTB!$G:$G,FundCode,InTB!$A:$A,V$11,InTB!$D:$D,"636003",InTB!$E:$E,"PLR") -> 0 | W16: =-SUMIFS(InTB!$H:$H,InTB!$G:$G,FundCode,InTB!$A:$A,W$11,InTB!$D:$D,"636003",InTB!$E:$E,"PLR") -> 0 | X16: =-SUMIFS(InTB!$H:$H,InTB!$G:$G,FundCode,InTB!$A:$A,X$11,InTB!$D:$D,"636003",InTB!$E:$E,"PLR") -> 0 | AL16: 2015-09-02 | AM16: 1.0035 | AN16: 858.76 | AO16: 15500000 | AP16: 15554838.88 | AQ16: 0.35 | AR16: 0.5868228404
B17: =AD12 -> 192057454.2 | E17: =AD14 -> 23303776.42 | K17: Interest Income (Cash) | M17: =$X14-$W14+IF(YEAR($V$11)=$T$11,$T14,0) -> 56634.35 | O17: =$X14-$V14*(1-$V$4)+IF(YEAR($V$11)=$T$11,$T14,0) -> 654633.73 | U17: 799124 & 799130 | V17: =SUMIFS(InTB!$H:$H,InTB!$G:$G,FundCode,InTB!$A:$A,V$11,InTB!$D:$D,"799124")+SUMIFS(InTB!$H:$H,InTB!$G:$G,FundCode,InTB!$A:$A,V$11,InTB!$D:$D,"799130") -> 0 | W17: =SUMIFS(InTB!$H:$H,InTB!$G:$G,FundCode,InTB!$A:$A,W$11,InTB!$D:$D,"799124")+SUMIFS(InTB!$H:$H,InTB!$G:$G,FundCode,InTB!$A:$A,W$11,InTB!$D:$D,"799130") -> 0 | X17: =SUMIFS(InTB!$H:$H,InTB!$G:$G,FundCode,InTB!$A:$A,X$11,InTB!$D:$D,"799124")+SUMIFS(InTB!$H:$H,InTB!$G:$G,FundCode,InTB!$A:$A,X$11,InTB!$D:$D,"799130") -> 0 | AB17: Conversion Date: | AC17: 2015-01-16 | AL17: 2015-09-03 | AM17: 1.0078 | AN17: 866.64 | AO17: 15500000 | AP17: 15621674.83 | AQ17: 0.78 | AR17: 1.509809663
B18: No of Securities | K18: Total Income | M18: =SUM(M15:N17)+(X16-W16) -> -20473773.05 | O18: =SUM(O15:P17)+(X16-V16*(1-$V$4)) -> -25903427.55 | T18: Cash + AI | V18: =SUMIFS(InTB!$H:$H,InTB!$G:$G,FundCode,InTB!$A:$A,IF($V$10>V$11,$V$10,V$11),InTB!$K:$K,2)+SUMIFS(InTB!$H:$H,InTB!$G:$G,FundCode,InTB!$A:$A,IF($V$10>V$11,$V$10,V$11),InTB!$K:$K,3)+SUMIFS(InTB!$H:$H,InTB!$G:$G,FundCode,InTB!$A:$A,IF($V$10>V$11,$V$10,V$11),InTB!$K:$K,5)+SUMIFS(InTB!$H:$H,InTB!$G:$G,FundCode,InTB!$A:$A,IF($V$10>V$11,$V$10,V$11),InTB!$J:$J,1392)+SUMIFS(InTB!$H:$H,InTB!$G:$G,FundCode,InTB!$A:$A,IF($V$10>V$11,$V$10,V$11),InTB!$J:$J,1391) -> 9509079.53 | W18: =SUMIFS(InTB!$H:$H,InTB!$G:$G,FundCode,InTB!$A:$A,IF($V$10>W$11,$V$10,W$11),InTB!$K:$K,2)+SUMIFS(InTB!$H:$H,InTB!$G:$G,FundCode,InTB!$A:$A,IF($V$10>W$11,$V$10,W$11),InTB!$K:$K,3)+SUMIFS(InTB!$H:$H,InTB!$G:$G,FundCode,InTB!$A:$A,IF($V$10>W$11,$V$10,W$11),InTB!$K:$K,5)+SUMIFS(InTB!$H:$H,InTB!$G:$G,FundCode,InTB!$A:$A,IF($V$10>W$11,$V$10,W$11),InTB!$J:$J,1392)+SUMIFS(InTB!$H:$H,InTB!$G:$G,FundCode,InTB!$A:$A,IF($V$10>W$11,$V$10,W$11),InTB!$J:$J,1391) -> -14605544.93 | X18: =SUMIFS(InTB!$H:$H,InTB!$G:$G,FundCode,InTB!$A:$A,IF($V$10>X$11,$V$10,X$11),InTB!$K:$K,2)+SUMIFS(InTB!$H:$H,InTB!$G:$G,FundCode,InTB!$A:$A,IF($V$10>X$11,$V$10,X$11),InTB!$K:$K,3)+SUMIFS(InTB!$H:$H,InTB!$G:$G,FundCode,InTB!$A:$A,IF($V$10>X$11,$V$10,X$11),InTB!$K:$K,5)+SUMIFS(InTB!$H:$H,InTB!$G:$G,FundCode,InTB!$A:$A,IF($V$10>X$11,$V$10,X$11),InTB!$J:$J,1392)+SUMIFS(InTB!$H:$H,InTB!$G:$G,FundCode,InTB!$A:$A,IF($V$10>X$11,$V$10,X$11),InTB!$J:$J,1391) -> 1850776.42 | Y18: =SUM(X18,X23) -> 230911080 | AB18: Return | AC18: =ValueDate -> 2018-12-31 | AD18: =_1Month -> 2018-11-30 | AE18: =_3Month -> 2018-09-30 | AF18: =_6Month -> 2018-06-30 | AG18: =IF(EDATE(VLOOKUP(FundCode,FundData,MATCH("FinanceYrEnd",InFund!2:2,0),0),-12)<V10,V10,EDATE(VLOOKUP(FundCode,FundData,MATCH("FinanceYrEnd",InFund!2:2,0),0),-12)) -> 2018-06-30 | AH18: =_1Year -> 2017-12-31 | AI18: =_3Year -> 2015-12-31 | AJ18: 2015-08-14 | AK18: =_5Year -> 2013-12-31 | AL18: 2015-09-04 | AM18: 1.0027 | AN18: 858.76 | AO18: 15500000 | AP18: 15541279.5 | AQ18: 0.27 | AR18: 0.5868228404
B19: =COUNTIFS(InHolding!$A:$A,FundCode,InHolding!$C:$C,"EQT") -> 17 | K19: ROI (%) | M19: =(M18)/((X23+W23+W18+X18)/2) -> -0.08486234402 | O19: =(O18)/((X23+V23+V18+X18)/2) -> -0.1057395354 | U19: (Expenses) | V19: =V21 -> 2836018.77 | W19: =W21 -> 1244234.49 | X19: =X21 -> 1465566.06 | Y19: =SUM(V18,V23) -> 259036742.2 | AB19: FBMKLCI | AC19: =INDEX(InIndex!$C:$C,MATCH($AB19&AC$18,InIndex!$D:$D,0),0) -> 1690.58 | AD19: =INDEX(InIndex!$C:$C,MATCH($AB19&AD$18,InIndex!$D:$D,0),0) -> 1695.78 | AE19: =INDEX(InIndex!$C:$C,MATCH($AB19&AE$18,InIndex!$D:$D,0),0) -> 1793.15 | AF19: =INDEX(InIndex!$C:$C,MATCH($AB19&AF$18,InIndex!$D:$D,0),0) -> 1691.5 | AG19: =INDEX(InIndex!$C:$C,MATCH($AB19&AG$18,InIndex!$D:$D,0),0) -> 1691.5 | AH19: =INDEX(InIndex!$C:$C,MATCH($AB19&AH$18,InIndex!$D:$D,0),0) -> 1796.81 | AI19: =INDEX(InIndex!$C:$C,MATCH($AB19&AI$18,InIndex!$D:$D,0),0) -> 1692.51 | AJ19: =INDEX(InIndex!$C:$C,MATCH($AB19&AJ$18,InIndex!$D:$D,0),0) ->  | AK19: =INDEX(InIndex!$C:$C,MATCH($AB19&AK$18,InIndex!$D:$D,0),0) -> 1866.96 | AL19: 2015-09-07 | AM19: 1.0018 | AN19: 856.51 | AO19: 15500000 | AP19: 15527443.81 | AQ19: 0.18 | AR19: 0.3232796486
U20: 799 | V20: =SUMIFS(InTB!$H:$H,InTB!$G:$G,FundCode,InTB!$A:$A,V$11,InTB!$I:$I,$U20) -> 1376427.48 | W20: =SUMIFS(InTB!$H:$H,InTB!$G:$G,FundCode,InTB!$A:$A,W$11,InTB!$I:$I,$U20) -> 722552.91 | X20: =SUMIFS(InTB!$H:$H,InTB!$G:$G,FundCode,InTB!$A:$A,X$11,InTB!$I:$I,$U20) -> 851991.61 | AB20: FBMT100 | AC20: =INDEX(InIndex!$C:$C,MATCH($AB20&AC$18,InIndex!$D:$D,0),0) -> 11443.61 | AD20: =INDEX(InIndex!$C:$C,MATCH($AB20&AD$18,InIndex!$D:$D,0),0) -> 11598.51 | AE20: =INDEX(InIndex!$C:$C,MATCH($AB20&AE$18,InIndex!$D:$D,0),0) -> 12336.84 | AF20: =INDEX(InIndex!$C:$C,MATCH($AB20&AF$18,InIndex!$D:$D,0),0) -> 11757.93 | AG20: =INDEX(InIndex!$C:$C,MATCH($AB20&AG$18,InIndex!$D:$D,0),0) -> 11757.93 | AH20: =INDEX(InIndex!$C:$C,MATCH($AB20&AH$18,InIndex!$D:$D,0),0) -> 12614.2 | AI20: =INDEX(InIndex!$C:$C,MATCH($AB20&AI$18,InIndex!$D:$D,0),0) -> 11470.57 | AJ20: =INDEX(InIndex!$C:$C,MATCH($AB20&AJ$18,InIndex!$D:$D,0),0) ->  | AK20: =INDEX(InIndex!$C:$C,MATCH($AB20&AK$18,InIndex!$D:$D,0),0) -> 12589.38 | AL20: 2015-09-08 | AM20: 1.0063 | AN20: 861.6 | AO20: 15500000 | AP20: 15596998.32 | AQ20: 0.63 | AR20: 0.9194729136
B21: Top Holdings | J21: Sector Allocation | U21: 7 | V21: =SUMIFS(InTB!$H:$H,InTB!$G:$G,FundCode,InTB!$A:$A,V$11,InTB!$K:$K,$U21) -> 2836018.77 | W21: =SUMIFS(InTB!$H:$H,InTB!$G:$G,FundCode,InTB!$A:$A,W$11,InTB!$K:$K,$U21) -> 1244234.49 | X21: =SUMIFS(InTB!$H:$H,InTB!$G:$G,FundCode,InTB!$A:$A,X$11,InTB!$K:$K,$U21) -> 1465566.06 | AB21: Relative Performance | AC21: Internal & Distribution | AL21: 2015-09-09 | AM21: 1.0099 | AN21: 869.77 | AO21: 15500000 | AP21: 15653149.34 | AQ21: 0.99 | AR21: 1.876427526
C22: Largest Holdings | H22: Exposure (%) | U22: 299 | V22: =SUMIFS(InTB!$H:$H,InTB!$G:$G,FundCode,InTB!$A:$A,V$11,InTB!$I:$I,$U22) -> 1078910.72 | W22: =SUMIFS(InTB!$H:$H,InTB!$G:$G,FundCode,InTB!$A:$A,W$11,InTB!$I:$I,$U22) -> 0 | X22: =SUMIFS(InTB!$H:$H,InTB!$G:$G,FundCode,InTB!$A:$A,X$11,InTB!$I:$I,$U22) -> 357862.5 | AB22: =FundCode -> MEQESG | AC22: =INDEX(InTWRR!$C:$C,MATCH($AB22&AC$18,InTWRR!$D:$D,0),0) -> 1.020462431 | AD22: =INDEX(InTWRR!$C:$C,MATCH($AB22&AD$18,InTWRR!$D:$D,0),0) -> 1.033472225 | AE22: =INDEX(InTWRR!$C:$C,MATCH($AB22&AE$18,InTWRR!$D:$D,0),0) -> 1.200082277 | AF22: =INDEX(InTWRR!$C:$C,MATCH($AB22&AF$18,InTWRR!$D:$D,0),0) -> 1.134478606 | AG22: =INDEX(InTWRR!$C:$C,MATCH($AB22&AG$18,InTWRR!$D:$D,0),0) -> 1.134478606 | AH22: =INDEX(InTWRR!$C:$C,MATCH($AB22&AH$18,InTWRR!$D:$D,0),0) -> 1.349885936 | AI22: =INDEX(InTWRR!$C:$C,MATCH($AB22&AI$18,InTWRR!$D:$D,0),0) -> 1.0599 | AJ22: 1 | AK22: =INDEX(InTWRR!$C:$C,MATCH($AB22&AK$18,InTWRR!$D:$D,0),0) ->  | AL22: 2015-09-10 | AM22: 1.0108 | AN22: 873.24 | AO22: 15500000 | AP22: 15666930.37 | AQ22: 1.08 | AR22: 2.282869693
B23: 1 | C23: =IF(B23<=$B$19,X43,"") -> TENAGA | H23: =IF(C23="","",Z43*100*IF($X$8="NAV",$AD$12/$AD$15,1)) -> 13.47109687 | S23: 1 | U23: Cost | V23: =SUMIFS(InTB!$H:$H,InTB!$G:$G,FundCode,InTB!$A:$A,V$11,InTB!$I:$I,100) -> 249527662.6 | W23: =SUMIFS(InTB!$H:$H,InTB!$G:$G,FundCode,InTB!$A:$A,W$11,InTB!$I:$I,100) -> 266211729.5 | X23: =SUMIFS(InTB!$H:$H,InTB!$G:$G,FundCode,InTB!$A:$A,X$11,InTB!$I:$I,100) -> 229060303.6 | AB23: =VLOOKUP(FundCode,FundData,MATCH("qIndexBenchmark",InFund!$2:$2,0),0) -> F4GBM | AC23: =INDEX(InIndex!$C:$C,MATCH($AB23&AC$18,InIndex!$D:$D,0),0) -> 938.96 | AD23: =INDEX(InIndex!$C:$C,MATCH($AB23&AD$18,InIndex!$D:$D,0),0) -> 948.05 | AE23: =INDEX(InIndex!$C:$C,MATCH($AB23&AE$18,InIndex!$D:$D,0),0) -> 1009.46 | AF23: =INDEX(InIndex!$C:$C,MATCH($AB23&AF$18,InIndex!$D:$D,0),0) -> 942.04 | AG23: =INDEX(InIndex!$C:$C,MATCH($AB23&AG$18,InIndex!$D:$D,0),0) -> 942.04 | AH23: =INDEX(InIndex!$C:$C,MATCH($AB23&AH$18,InIndex!$D:$D,0),0) -> 1016.14 | AI23: =INDEX(InIndex!$C:$C,MATCH($AB23&AI$18,InIndex!$D:$D,0),0) -> 933.17 | AJ23: 853.75 | AK23: =INDEX(InIndex!$C:$C,MATCH($AB23&AK$18,InIndex!$D:$D,0),0) ->  | AL23: 2015-09-11 | AM23: 1.0128 | AN23: 871.65 | AO23: 15500000 | AP23: 15697716.35 | AQ23: 1.28 | AR23: 2.096632504
B24: 2 | C24: =IF(B24<=$B$19,X44,"") -> MYEG | H24: =IF(C24="","",Z44*100*IF($X$8="NAV",$AD$12/$AD$15,1)) -> 9.533902615 | S24: 2 | U24: 1000 | V24: =SUMIFS(InTB!$H:$H,InTB!$G:$G,FundCode,InTB!$A:$A,V$11,InTB!$J:$J,$U24) -> 227428662.6 | W24: =SUMIFS(InTB!$H:$H,InTB!$G:$G,FundCode,InTB!$A:$A,W$11,InTB!$J:$J,$U24) -> 237374729.5 | X24: =SUMIFS(InTB!$H:$H,InTB!$G:$G,FundCode,InTB!$A:$A,X$11,InTB!$J:$J,$U24) -> 207607303.6 | AD24: 1 month | AE24: 3 months | AF24: 6 months | AG24: YTD | AH24: 1 year | AI24: 3 year | AJ24: Inception | AK24: 5Year | AL24: 2015-09-14 | AM24: 1.0306 | AN24: 892.76 | AO24: 15500000 | AP24: 15974040.95 | AQ24: 3.06 | AR24: 4.569253294
B25: 3 | C25: AIRPORT | H25: 8.112241905 | S25: 3 | U25: 1001 | V25: =SUMIFS(InTB!$H:$H,InTB!$G:$G,FundCode,InTB!$A:$A,V$11,InTB!$J:$J,$U25) -> 0 | W25: =SUMIFS(InTB!$H:$H,InTB!$G:$G,FundCode,InTB!$A:$A,W$11,InTB!$J:$J,$U25) -> 0 | X25: =SUMIFS(InTB!$H:$H,InTB!$G:$G,FundCode,InTB!$A:$A,X$11,InTB!$J:$J,$U25) -> 0 | AL25: 2015-09-15 | AM25: 1.0367 | AN25: 900.17 | AO25: 15500000 | AP25: 16069083.6 | AQ25: 3.67 | AR25: 5.437188873
B26: 4 | C26: TM | H26: 7.555068269 | S26: 4 | U26: 1002 | V26: =SUMIFS(InTB!$H:$H,InTB!$G:$G,FundCode,InTB!$A:$A,V$11,InTB!$J:$J,$U26) -> 22099000 | W26: =SUMIFS(InTB!$H:$H,InTB!$G:$G,FundCode,InTB!$A:$A,W$11,InTB!$J:$J,$U26) -> 28837000 | X26: =SUMIFS(InTB!$H:$H,InTB!$G:$G,FundCode,InTB!$A:$A,X$11,InTB!$J:$J,$U26) -> 21453000 | AI26: =_3Year -> 2015-12-31 | AJ26: 2015-08-14 | AK26: =_5Year -> 2013-12-31 | AL26: 2015-09-17 | AM26: 1.0502 | AN26: 915.73 | AO26: 15500000 | AP26: 16278505.63 | AQ26: 5.02 | AR26: 7.259736457
B27: 5 | C27: YTL | H27: 7.316080036 | S27: 5 | U27: 1004 | V27: =SUMIFS(InTB!$H:$H,InTB!$G:$G,FundCode,InTB!$A:$A,V$11,InTB!$J:$J,$U27) -> 0 | W27: =SUMIFS(InTB!$H:$H,InTB!$G:$G,FundCode,InTB!$A:$A,W$11,InTB!$J:$J,$U27) -> 0 | X27: =SUMIFS(InTB!$H:$H,InTB!$G:$G,FundCode,InTB!$A:$A,X$11,InTB!$J:$J,$U27) -> 0 | AL27: 2015-09-18 | AM27: 1.0498 | AN27: 913.44 | AO27: 15500000 | AP27: 16271895.87 | AQ27: 4.98 | AR27: 6.991508053
B28: 6 | C28: SIMEPROP | H28: 7.196614244 | S28: 6 | U28: Other Cost | V28: =V23-V24-V25-V26-V27 -> 0 | W28: =W23-W24-W25-W26-W27 -> 0 | X28: =X23-X24-X25-X26-X27 -> 0 | AL28: 2015-09-21 | AM28: 1.0386 | AN28: 895.65 | AO28: 16214421.8 | AP28: 16840166.96 | AQ28: 3.86 | AR28: 4.907759883
B29: 7 | C29: MAYBANK | H29: 6.477656382 | S29: 7 | U29: Market Cap | V29: Data Value | W29: Percentage | AL29: 2015-09-22 | AM29: 1.0392 | AN29: 895.51 | AO29: 16214421.8 | AP29: 16850801.73 | AQ29: 3.92 | AR29: 4.89136164
B30: 8 | C30: ASTRO | H30: 5.69072714 | S30: 8 | U30: Large Cap | V30: =SUMIFS(InHolding!O:O,InHolding!X:X,$U30,InHolding!A:A,FundCode,InHolding!AB:AB,"EQT") -> 181220817.2 | W30: =IF(V30=0,#N/A,V30/$V$33) -> 0.9435760666 | AI30: =IFERROR(($AC$22/$AI$22)^(365/(ValueDate-$AI$26))-1,"N.A.") -> -0.01254862706 | AJ30: =IFERROR(($AC$22/$AJ$22)^(365/(ValueDate-$AJ$26))-1,"N.A.") -> 0.006004513444 | AK30: =IFERROR(($AC$22/$AK$22)^(365/(ValueDate-$AK$26))-1,"N.A.") -> N.A. | AL30: 2015-09-23 | AM30: 1.0307 | AN30: 884.83 | AO30: 16214421.8 | AP30: 16712646.81 | AQ30: 3.07 | AR30: 3.640409956
B31: 9 | C31: UEMS | H31: 4.831072644 | S31: 9 | U31: Mid Cap | V31: =SUMIFS(InHolding!O:O,InHolding!X:X,$U31,InHolding!A:A,FundCode,InHolding!AB:AB,"EQT") -> 3974487.5 | W31: =IF(V31=0,#N/A,V31/$V$33) -> 0.02069426316 | AL31: 2015-09-25 | AM31: 1.0331 | AN31: 886.93 | AO31: 16214421.8 | AP31: 16750794.81 | AQ31: 3.31 | AR31: 3.886383602
B32: 10 | C32: PBBANK | H32: 4.621778939 | S32: 10 | U32: Small Cap | V32: =SUMIFS(InHolding!O:O,InHolding!X:X,$U32,InHolding!A:A,FundCode,InHolding!AB:AB,"EQT") -> 6862149.5 | W32: =IF(V32=0,#N/A,V32/$V$33) -> 0.03572967021 | AI32: 3 year Annual | AJ32: Inception Annual | AK32: 5Year Annual | AL32: 2015-09-28 | AM32: 1.0293 | AN32: 884.79 | AO32: 16214421.8 | AP32: 16689552.54 | AQ32: 2.93 | AR32: 3.635724744
C33: Total | H33: =SUM(H23:H32) -> 74.80623904 | U33: Total | V33: =V30+V31+V32 -> 192057454.2 | AL33: 2015-09-29 | AM33: 1.0277 | AN33: 882.13 | AO33: 16214421.8 | AP33: 16663984.34 | AQ33: 2.77 | AR33: 3.324158126
AC34: =YEAR(AC35)*12+MONTH(AC35)-2015*12-8+1 -> 41 | AD34: =YEAR(AD35)*12+MONTH(AD35)-2015*12-8+1 -> 40 | AE34: 38 | AF34: 35 | AG34: 29 | AH34: =YEAR(AH35)*12+MONTH(AH35)-2015*12-8+1 -> 29 | AI34: 5 | AJ34: 1 | AK34: -19 | AL34: 2015-09-30 | AM34: 1.0335 | AN34: 887.8 | AO34: 16214421.8 | AP34: 16757465.25 | AQ34: 3.35 | AR34: 3.988286969
B35: Top Sales & Purchases (YTD) | J35: Fund Performance (since inception) (%) | AB35: Relative Performance | AC35: =ValueDate -> 2018-12-31 | AD35: =_1Month -> 2018-11-30 | AE35: =_3Month -> 2018-09-30 | AF35: =_6Month -> 2018-06-30 | AG35: =IF(YEAR(ValueDate)=2015,DATE(2015,8,19),IF(EDATE(VLOOKUP("KWAP",FundData,MATCH("FinanceYrEnd",InFund!2:2,0),0),-12)<V10,V10,EDATE(VLOOKUP("KWAP",FundData,MATCH("FinanceYrEnd",InFund!2:2,0),0),-12))) -> 2017-12-31 | AH35: =_1Year -> 2017-12-31 | AI35: =_3Year -> 2015-12-31 | AJ35: 2015-08-19 | AK35: =_5Year -> 2013-12-31 | AL35: 2015-10-01 | AM35: 1.0337 | AN35: 888.03 | AO35: 16698214.7 | AP35: 17260317.67 | AQ35: 3.37 | AR35: 4.01522694
C36: Top Purchases | G36: Top Sales | AB36: =FundCode -> MEQESG | AC36: =INDEX(InTWRR!$C:$C,MATCH($AB36&AC$35,InTWRR!$D:$D,0),0) -> 1.020462431 | AD36: =INDEX(InTWRR!$C:$C,MATCH($AB36&AD$35,InTWRR!$D:$D,0),0) -> 1.033472225 | AE36: =INDEX(InTWRR!$C:$C,MATCH($AB36&AE$35,InTWRR!$D:$D,0),0) -> 1.200082277 | AF36: =INDEX(InTWRR!$C:$C,MATCH($AB36&AF$35,InTWRR!$D:$D,0),0) -> 1.134478606 | AG36: =IF(AC34<=5,AJ36,INDEX(InTWRR!$C:$C,MATCH($AB36&AG$35,InTWRR!$D:$D,0),0)) -> 1.349885936 | AH36: =INDEX(InTWRR!$C:$C,MATCH($AB36&AH$35,InTWRR!$D:$D,0),0) -> 1.349885936 | AI36: =INDEX(InTWRR!$C:$C,MATCH($AB36&AI$35,InTWRR!$D:$D,0),0) -> 1.0599 | AJ36: 1 | AK36: =INDEX(InTWRR!$C:$C,MATCH($AB36&AK$35,InTWRR!$D:$D,0),0) ->  | AL36: 2015-10-02 | AM36: 1.0306 | AN36: 885.84 | AO36: 16698214.7 | AP36: 17209350.83 | AQ36: 3.06 | AR36: 3.758711567
B37: =IF(C37="","",$S37) -> 1 | C37: =IF(ISNA(MATCH("YP_"&FundCode&$S37,TopEqtPS!$H:$H,0)),"",INDEX(TopEqtPSData,MATCH("YP_"&FundCode&$S37,TopEqtPS!$H:$H,0)-1,3)) -> TENAGA | F37: =IF(G37="","",$S37) -> 1 | G37: =IF(ISNA(MATCH("Ys_"&FundCode&$S37,TopEqtPS!$H:$H,0)),"",INDEX(TopEqtPSData,MATCH("Ys_"&FundCode&$S37,TopEqtPS!$H:$H,0)-1,3)) -> CIMB | S37: 1 | AB37: =VLOOKUP(FundCode,FundData,MATCH("qIndexBenchmark",InFund!$2:$2,0),0) -> F4GBM | AC37: =INDEX(InIndex!$C:$C,MATCH($AB37&AC$35,InIndex!$D:$D,0),0) -> 938.96 | AD37: =INDEX(InIndex!$C:$C,MATCH($AB37&AD$35,InIndex!$D:$D,0),0) -> 948.05 | AE37: =INDEX(InIndex!$C:$C,MATCH($AB37&AE$35,InIndex!$D:$D,0),0) -> 1009.46 | AF37: =INDEX(InIndex!$C:$C,MATCH($AB37&AF$35,InIndex!$D:$D,0),0) -> 942.04 | AG37: =IF(AC34<=5,AJ37,INDEX(InIndex!$C:$C,MATCH($AB37&AG$35,InIndex!$D:$D,0),0)) -> 1016.14 | AH37: =INDEX(InIndex!$C:$C,MATCH($AB37&AH$35,InIndex!$D:$D,0),0) -> 1016.14 | AI37: =INDEX(InIndex!$C:$C,MATCH($AB37&AI$35,InIndex!$D:$D,0),0) -> 933.17 | AJ37: 849.17 | AK37: =INDEX(InIndex!$C:$C,MATCH($AB37&AK$35,InIndex!$D:$D,0),0) ->  | AL37: 2015-10-05 | AM37: 1.039 | AN37: 897.08 | AO37: 16698214.7 | AP37: 17349456.25 | AQ37: 3.9 | AR37: 5.075256223
B38: =IF(C38="","",$S38) -> 2 | C38: =IF(ISNA(MATCH("YP_"&FundCode&$S38,TopEqtPS!$H:$H,0)),"",INDEX(TopEqtPSData,MATCH("YP_"&FundCode&$S38,TopEqtPS!$H:$H,0)-1,3)) -> AIRPORT | F38: =IF(G38="","",$S38) -> 2 | G38: =IF(ISNA(MATCH("Ys_"&FundCode&$S38,TopEqtPS!$H:$H,0)),"",INDEX(TopEqtPSData,MATCH("Ys_"&FundCode&$S38,TopEqtPS!$H:$H,0)-1,3)) -> SIME | S38: 2 | U38: Sector | X38: Top Holding - EQT | AD38: 1 month | AE38: 3 months | AF38: 6 months | AG38: YTD | AH38: 1 year | AI38: 3 year | AJ38: Inception | AK38: 5Year | AL38: 2015-10-06 | AM38: 1.0492 | AN38: 905 | AO38: 16698214.7 | AP38: 17519813.16 | AQ38: 4.92 | AR38: 6.002928258
B39: 3 | C39: =IF(ISNA(MATCH("YP_"&FundCode&$S39,TopEqtPS!$H:$H,0)),"",INDEX(TopEqtPSData,MATCH("YP_"&FundCode&$S39,TopEqtPS!$H:$H,0)-1,3)) -> MYEG | F39: 3 | G39: =IF(ISNA(MATCH("Ys_"&FundCode&$S39,TopEqtPS!$H:$H,0)),"",INDEX(TopEqtPSData,MATCH("Ys_"&FundCode&$S39,TopEqtPS!$H:$H,0)-1,3)) -> MAYBANK | S39: 3 | U39: EQT | X39: qFundCode | Y39: MEQESG | AG39: =YEAR(AG40)*12+MONTH(AG40)-2015*12-8+1 -> 17 | AL39: 2015-10-07 | AM39: 1.0677 | AN39: 916.03 | AO39: 16698214.7 | AP39: 17828440.34 | AQ39: 6.77 | AR39: 7.294875549
B40: 4 | C40: =IF(ISNA(MATCH("YP_"&FundCode&$S40,TopEqtPS!$H:$H,0)),"",INDEX(TopEqtPSData,MATCH("YP_"&FundCode&$S40,TopEqtPS!$H:$H,0)-1,3)) -> ASTRO | F40: 4 | G40: =IF(ISNA(MATCH("Ys_"&FundCode&$S40,TopEqtPS!$H:$H,0)),"",INDEX(TopEqtPSData,MATCH("Ys_"&FundCode&$S40,TopEqtPS!$H:$H,0)-1,3)) -> MISC | S40: 4 | U40: qFundCode | V40: MEQESG | AG40: =_2Year -> 2016-12-31 | AH40: =_2Year -> 2016-12-31 | AI40: =_3Year -> 2015-12-31 | AJ40: 2015-08-19 | AK40: =_5Year -> 2013-12-31 | AL40: 2015-10-08 | AM40: 1.0718 | AN40: 915.86 | AO40: 16698214.7 | AP40: 17896889.59 | AQ40: 7.18 | AR40: 7.274963397
B41: 5 | C41: =IF(ISNA(MATCH("YP_"&FundCode&$S41,TopEqtPS!$H:$H,0)),"",INDEX(TopEqtPSData,MATCH("YP_"&FundCode&$S41,TopEqtPS!$H:$H,0)-1,3)) -> TM | F41: 5 | G41: =IF(ISNA(MATCH("Ys_"&FundCode&$S41,TopEqtPS!$H:$H,0)),"",INDEX(TopEqtPSData,MATCH("Ys_"&FundCode&$S41,TopEqtPS!$H:$H,0)-1,3)) -> YTL | S41: 5 | U41: qProductType | V41: (All) | X41: Sum of Perc_Eqt | AG41: =INDEX(InTWRR!$C:$C,MATCH($AB36&AG$40,InTWRR!$D:$D,0),0) -> 1.0976 | AH41: =IFERROR(($AG$41/$AJ$36)^(24/$AC$34)-1,"N.A.") -> 0.05602595925 | AI41: =IFERROR(($AI$36/$AJ$36)^(36/AC34)-1,"N.A.") -> 0.05240719301 | AJ41: =IFERROR(IF(AC34<=12,($AC$36/$AJ$36)-1,($AC$36/$AJ$36)^(12/AC34)-1),"N.A.") -> 0.005946161434 | AK41: =IFERROR(($AK$36/$AJ$36)^(60/AC34)-1,"N.A.") -> N.A. | AL41: 2015-10-09 | AM41: 1.0779 | AN41: 925.65 | AO41: 16698214.7 | AP41: 17999250.3 | AQ41: 7.79 | AR41: 8.421669107
B42: 6 | C42: =IF(ISNA(MATCH("YP_"&FundCode&$S42,TopEqtPS!$H:$H,0)),"",INDEX(TopEqtPSData,MATCH("YP_"&FundCode&$S42,TopEqtPS!$H:$H,0)-1,3)) -> FGV | F42: 6 | G42: =IF(ISNA(MATCH("Ys_"&FundCode&$S42,TopEqtPS!$H:$H,0)),"",INDEX(TopEqtPSData,MATCH("Ys_"&FundCode&$S42,TopEqtPS!$H:$H,0)-1,3)) -> TM | S42: 6 | X42: StockName | Y42: Description | Z42: Total | AG42: =INDEX(InIndex!$C:$C,MATCH($AB37&AG$40,InIndex!$D:$D,0),0) -> 895.3 | AH42: =IF(AH41="N.A.","N.A.",IFERROR(($AG$42/$AJ$37)^(24/$AC$34)-1,"N.A.")) -> 0.03144995446 | AI42: =IF(AI41="N.A.","N.A.",IFERROR(($AI$37/$AJ$37)^(36/AC34)-1,"N.A.")) -> 0.08635122072 | AJ42: =IF(AJ41="N.A.","N.A.",IFERROR(IF(AC34<=12,($AC$37/$AJ$37)-1,($AC$37/$AJ$37)^(12/AC34)-1),"N.A.")) -> 0.0298555801 | AK42: =IF(AK41="N.A.","N.A.",IFERROR(($AK$37/$AJ$37)^(60/AC34)-1,"N.A.")) -> N.A. | AL42: 2015-10-12 | AM42: 1.0765 | AN42: 929.73 | AO42: 16698214.7 | AP42: 17975508.83 | AQ42: 7.65 | AR42: 8.899560761
B43: 7 | C43: =IF(ISNA(MATCH("YP_"&FundCode&$S43,TopEqtPS!$H:$H,0)),"",INDEX(TopEqtPSData,MATCH("YP_"&FundCode&$S43,TopEqtPS!$H:$H,0)-1,3)) -> YTL | F43: 7 | G43: =IF(ISNA(MATCH("Ys_"&FundCode&$S43,TopEqtPS!$H:$H,0)),"",INDEX(TopEqtPSData,MATCH("Ys_"&FundCode&$S43,TopEqtPS!$H:$H,0)-1,3)) -> ASTRO | S43: 7 | U43: Row Labels | V43: Sum of MarketValueFC | X43: TENAGA | Y43: Tenaga Nasional Bhd | Z43: 0.1510564644 | AG43: 2 year | AH43: 2 year Annual | AI43: 3 year Annual | AJ43: Inception Annual | AK43: 5Year Annual | AL43: 2015-10-13 | AM43: 1.0789 | AN43: 929.81 | AO43: 16930448.79 | AP43: 18266364.91 | AQ43: 7.89 | AR43: 8.908931186
B44: 8 | C44: =IF(ISNA(MATCH("YP_"&FundCode&$S44,TopEqtPS!$H:$H,0)),"",INDEX(TopEqtPSData,MATCH("YP_"&FundCode&$S44,TopEqtPS!$H:$H,0)-1,3)) -> SUNWAY | F44: 8 | G44: =IF(ISNA(MATCH("Ys_"&FundCode&$S44,TopEqtPS!$H:$H,0)),"",INDEX(TopEqtPSData,MATCH("Ys_"&FundCode&$S44,TopEqtPS!$H:$H,0)-1,3)) -> MRCB | S44: 8 | U44: FINANCIALS | V44: 65095759.22 | X44: MYEG | Y44: My E.G. Services Berhad | Z44: 0.1069072278 | AL44: 2015-10-15 | AM44: 1.0808 | AN44: 931.42 | AO44: 16930448.79 | AP44: 18297941.37 | AQ44: 8.08 | AR44: 9.097510981
B45: 9 | C45: =IF(ISNA(MATCH("YP_"&FundCode&$S45,TopEqtPS!$H:$H,0)),"",INDEX(TopEqtPSData,MATCH("YP_"&FundCode&$S45,TopEqtPS!$H:$H,0)-1,3)) -> RHBBANK | F45: 9 | G45: =IF(ISNA(MATCH("Ys_"&FundCode&$S45,TopEqtPS!$H:$H,0)),"",INDEX(TopEqtPSData,MATCH("Ys_"&FundCode&$S45,TopEqtPS!$H:$H,0)-1,3)) -> FGV | S45: 9 | U45: UTILITIES | V45: 49595796 | X45: AIRPORT | Y45: Malaysia Airports Holdings Bhd | Z45: 0.09096561272 | AL45: 2015-10-16 | AM45: 1.0857 | AN45: 931.01 | AO45: 16930448.83 | AP45: 18381395.71 | AQ45: 8.57 | AR45: 9.049487555
B46: 10 | C46: =IF(ISNA(MATCH("YP_"&FundCode&$S46,TopEqtPS!$H:$H,0)),"",INDEX(TopEqtPSData,MATCH("YP_"&FundCode&$S46,TopEqtPS!$H:$H,0)-1,3)) -> CIMB | F46: 10 | G46: =IF(ISNA(MATCH("Ys_"&FundCode&$S46,TopEqtPS!$H:$H,0)),"",INDEX(TopEqtPSData,MATCH("Ys_"&FundCode&$S46,TopEqtPS!$H:$H,0)-1,3)) -> RHBBANK | S46: 10 | U46: INDUSTRIALS | V46: 41977441.5 | X46: TM | Y46: Telekom Malaysia Berhad | Z46: 0.08471781565 | AL46: 2015-10-19 | AM46: 1.085 | AN46: 933.05 | AO46: 16930448.83 | AP46: 18369119.96 | AQ46: 8.5 | AR46: 9.288433382
U47: CASH | V47: 23303776.42 | X47: YTL | Y47: YTL Corporation Berhad | Z47: 0.0820379509 | AL47: 2015-10-20 | AM47: 1.0744 | AN47: 929.06 | AO47: 16930448.83 | AP47: 18189943.29 | AQ47: 7.44 | AR47: 8.821083455
U48: TELCO | V48: 16270688 | X48: SIMEPROP | Y48: Sime Darby Property Bhd | Z48: 0.08069833615 | AL48: 2015-10-21 | AM48: 1.0768 | AN48: 928.99 | AO48: 16930448.83 | AP48: 18230766.09 | AQ48: 7.68 | AR48: 8.812884334
U49: CONSUMER SERVICES | V49: 12255620 | X49: MAYBANK | Y49: Malayan Banking Berhad | Z49: 0.07263639184 | AL49: 2015-10-22 | AM49: 1.0721 | AN49: 927.99 | AO49: 16930448.83 | AP49: 18150602.65 | AQ49: 7.21 | AR49: 8.695754026
U50: OIL & GAS | V50: 6862149.5 | X50: ASTRO | Y50: Astro Malaysia Holdings Bhd | Z50: 0.06381225894 | AL50: 2015-10-23 | AM50: 1.0747 | AN50: 930.97 | AO50: 16930448.83 | AP50: 18195942.86 | AQ50: 7.47 | AR50: 9.044802343
X51: UEMS | Y51: UEM Sunrise Bhd | Z51: 0.05417263049 | AL51: 2015-10-26 | AM51: 1.0711 | AN51: 926.44 | AO51: 16930448.83 | AP51: 18134961.81 | AQ51: 7.11 | AR51: 8.51420205
X52: PBBANK | Y52: Public Bank Berhad | Z52: 0.05182574163 | AL52: 2015-10-27 | AM52: 1.0653 | AN52: 921.06 | AO52: 16930448.83 | AP52: 18035893.63 | AQ52: 6.53 | AR52: 7.884040996
X53: SUNWAY | Y53: Sunway Bhd | Z53: 0.04294254047 | AL53: 2015-10-28 | AM53: 1.0627 | AN53: 915.91 | AO53: 16930448.83 | AP53: 17991602.7 | AQ53: 6.27 | AR53: 7.280819912
X54: CIMB | Y54: CIMB Group Holdings Bhd | Z54: 0.03666334769 | AL54: 2015-10-29 | AM54: 1.052 | AN54: 907.28 | AO54: 16930448.83 | AP54: 17810528.21 | AQ54: 5.2 | AR54: 6.269985359
X55: MHB | Y55: Msia M&H Eng Hldg Bhd | Z55: 0.03572967021 | AL55: 2015-10-30 | AM55: 1.0525 | AN55: 906.1 | AO55: 16930448.83 | AP55: 17819976.56 | AQ55: 5.25 | AR55: 6.131771596
X56: YTLPOWR | Y56: YTL Power International Berhad | Z56: 0.025139748 | AL56: 2015-10-31 | AM56: 1.0525 | AN56: 906.1 | AO56: 16930448.83 | AP56: 17819768.86 | AQ56: 5.25 | AR56: 6.131771596
X57: CMSB | Y57: Cahya Mata Sarawak Bhd | Z57: 0.009804357803 | AL57: 2015-11-02 | AM57: 1.0523 | AN57: 904.64 | AO57: 16930448.83 | AP57: 17815626.51 | AQ57: 5.23 | AR57: 5.960761347
AL58: 2015-11-03 | AM58: 1.0583 | AN58: 910.88 | AO58: 16930448.83 | AP58: 17917050.74 | AQ58: 5.83 | AR58: 6.691654466
AL59: 2015-11-04 | AM59: 1.0578 | AN59: 911.89 | AO59: 16930448.83 | AP59: 17908673.05 | AQ59: 5.78 | AR59: 6.809956076
AL60: 2015-11-05 | AM60: 1.0579 | AN60: 919.48 | AO60: 16930448.83 | AP60: 17910467.62 | AQ60: 5.79 | AR60: 7.69897511
AL61: 2015-11-06 | AM61: 1.0565 | AN61: 919.17 | AO61: 16930448.83 | AP61: 17887030.59 | AQ61: 5.65 | AR61: 7.662664714
AL62: 2015-11-09 | AM62: 1.0685 | AN62: 921.56 | AO62: 16930448.83 | AP62: 18090752.3 | AQ62: 6.85 | AR62: 7.942606149
AL63: 2015-11-11 | AM63: 1.052 | AN63: 911.64 | AO63: 16930448.83 | AP63: 17810829.62 | AQ63: 5.2 | AR63: 6.780673499
AL64: 2015-11-12 | AM64: 1.0488 | AN64: 912.98 | AO64: 16930448.83 | AP64: 17756951.94 | AQ64: 4.88 | AR64: 6.937628111
AL65: 2015-11-13 | AM65: 1.0446 | AN65: 910.38 | AO65: 16930448.83 | AP65: 17685517.43 | AQ65: 4.46 | AR65: 6.633089312
AL66: 2015-11-16 | AM66: 1.0464 | AN66: 909.85 | AO66: 16930448.83 | AP66: 17716291.69 | AQ66: 4.64 | AR66: 6.571010249
AL67: 42325 | AM67: 1.0483 | AN67: 912.71 | AO67: 16930448.83 | AP67: 17748957.32 | AQ67: 4.83 | AR67: 6.906002928
AL68: 42326 | AM68: 1.0451 | AN68: 909.26 | AO68: 16930448.83 | AP68: 17694026.16 | AQ68: 4.51 | AR68: 6.501903367
AL69: 42327 | AM69: 1.0449 | AN69: 911.32 | AO69: 16930448.83 | AP69: 17690713.72 | AQ69: 4.49 | AR69: 6.743191801
AL70: 42328 | AM70: 1.0525 | AN70: 914.77 | AO70: 16930448.83 | AP70: 17819572.98 | AQ70: 5.25 | AR70: 7.147291362
AL71: 42331 | AM71: 1.0559 | AN71: 921.36 | AO71: 16930448.83 | AP71: 17876429.92 | AQ71: 5.59 | AR71: 7.919180088
AL72: 42332 | AM72: 1.0581 | AN72: 925.72 | AO72: 16930448.83 | AP72: 17913887 | AQ72: 5.81 | AR72: 8.429868228
AL73: 42333 | AM73: 1.0628 | AN73: 927.98 | AO73: 16930448.83 | AP73: 17994346.98 | AQ73: 6.28 | AR73: 8.694582723
AL74: 42334 | AM74: 1.0652 | AN74: 927.36 | AO74: 16930448.83 | AP74: 18034940.44 | AQ74: 6.52 | AR74: 8.621961933
AL75: 42335 | AM75: 1.0633 | AN75: 924.53 | AO75: 16930448.83 | AP75: 18001506.93 | AQ75: 6.33 | AR75: 8.290483163
AL76: 42338 | AM76: 1.0459 | AN76: 915.39 | AO76: 16930448.83 | AP76: 17707093.89 | AQ76: 4.59 | AR76: 7.219912152
AL77: 42339 | AM77: 1.0575 | AN77: 922.26 | AO77: 16930448.83 | AP77: 17903424.07 | AQ77: 5.75 | AR77: 8.024597365
AL78: 42340 | AM78: 1.0553 | AN78: 922.2 | AO78: 16930448.83 | AP78: 17866922.87 | AQ78: 5.53 | AR78: 8.017569546
AL79: 42341 | AM79: 1.0521 | AN79: 920.75 | AO79: 16930448.83 | AP79: 17811748.12 | AQ79: 5.21 | AR79: 7.8477306
AL80: 42342 | AM80: 1.0532 | AN80: 920.6 | AO80: 16930448.83 | AP80: 17830549.76 | AQ80: 5.32 | AR80: 7.830161054
AL81: 42345 | AM81: 1.0564 | AN81: 922.61 | AO81: 16930448.83 | AP81: 17885165.73 | AQ81: 5.64 | AR81: 8.065592972
AL82: 42346 | AM82: 1.053 | AN82: 920.92 | AO82: 16930448.83 | AP82: 17827866.84 | AQ82: 5.3 | AR82: 7.867642753
AL83: 42347 | AM83: 1.0554 | AN83: 916.62 | AO83: 16930448.83 | AP83: 17869206.98 | AQ83: 5.54 | AR83: 7.36398243
AL84: 42348 | AM84: 1.0496 | AN84: 913.52 | AO84: 16930448.83 | AP84: 17769434.14 | AQ84: 4.96 | AR84: 7.000878477
AL85: 42349 | AM85: 1.0405 | AN85: 907.19 | AO85: 16930448.83 | AP85: 17616086.11 | AQ85: 4.05 | AR85: 6.259443631
AL86: 42352 | AM86: 1.0365 | AN86: 898.97 | AO86: 16930448.83 | AP86: 17548706.98 | AQ86: 3.65 | AR86: 5.296632504
AL87: 42353 | AM87: 1.0366 | AN87: 896.5 | AO87: 16930448.83 | AP87: 17550352.97 | AQ87: 3.66 | AR87: 5.007320644
AL88: 42354 | AM88: 1.0458 | AN88: 906.52 | AO88: 16930448.83 | AP88: 17706478.02 | AQ88: 4.58 | AR88: 6.180966325
AL89: 42355 | AM89: 1.0552 | AN89: 918.09 | AO89: 16930448.83 | AP89: 17864194.25 | AQ89: 5.52 | AR89: 7.536163982
AL90: 42356 | AM90: 1.0449 | AN90: 909.66 | AO90: 16930448.83 | AP90: 17690134.39 | AQ90: 4.49 | AR90: 6.54875549
AL91: 42359 | AM91: 1.0355 | AN91: 903.41 | AO91: 16930448.83 | AP91: 17532110.4 | AQ91: 3.55 | AR91: 5.816691069
AL92: 42360 | AM92: 1.0442 | AN92: 911.35 | AO92: 16930448.83 | AP92: 17678814.32 | AQ92: 4.42 | AR92: 6.74670571
AL93: 42361 | AM93: 1.0542 | AN93: 921.09 | AO93: 16930448.83 | AP93: 17847991.83 | AQ93: 5.42 | AR93: 7.887554905
AL94: 42366 | AM94: 1.0594 | AN94: 923.83 | AO94: 16930448.83 | AP94: 17935874.03 | AQ94: 5.94 | AR94: 8.208491947
AL95: 42367 | AM95: 1.0602 | AN95: 931.34 | AO95: 64126975.17 | AP95: 67989142.11 | AQ95: 6.02 | AR95: 9.088140556
AL96: 42368 | AM96: 1.0618 | AN96: 934.73 | AO96: 64126975.17 | AP96: 68087050.83 | AQ96: 6.18 | AR96: 9.485212299
AL97: 42369 | AM97: 1.0599 | AN97: 933.17 | AO97: 64126975.17 | AP97: 67966885.04 | AQ97: 5.99 | AR97: 9.302489019
AL98: 42373 | AM98: 1.0526 | AN98: 914.36 | AO98: 64126975.17 | AP98: 67498478.42 | AQ98: 5.26 | AR98: 7.099267936
AL99: 42374 | AM99: 1.057 | AN99: 921.1 | AO99: 64126975.17 | AP99: 67782879.39 | AQ99: 5.7 | AR99: 7.888726208
AL100: 42375 | AM100: 1.0576 | AN100: 921.3 | AO100: 111430664.9 | AP100: 117851867.8 | AQ100: 5.76 | AR100: 7.912152269
AL101: 42376 | AM101: 1.0543 | AN101: 915.81 | AO101: 111430664.9 | AP101: 117478668.8 | AQ101: 5.43 | AR101: 7.269106881
AL102: 42377 | AM102: 1.0546 | AN102: 916.1 | AO102: 111430664.9 | AP102: 117514167.3 | AQ102: 5.46 | AR102: 7.303074671
AL103: 42380 | AM103: 1.0468 | AN103: 904.23 | AO103: 111430664.9 | AP103: 116645545.4 | AQ103: 4.68 | AR103: 5.912737921
AL104: 42381 | AM104: 1.046 | AN104: 906.52 | AO104: 111430664.9 | AP104: 116552153.8 | AQ104: 4.6 | AR104: 6.180966325
AL105: 42382 | AM105: 1.0464 | AN105: 906.34 | AO105: 111430664.9 | AP105: 116604809.9 | AQ105: 4.64 | AR105: 6.15988287
AL106: 42383 | AM106: 1.044 | AN106: 901.58 | AO106: 111430664.9 | AP106: 116335440.1 | AQ106: 4.4 | AR106: 5.602342606
AL107: 42384 | AM107: 1.0423 | AN107: 899.62 | AO107: 159323385.2 | AP107: 166069245.4 | AQ107: 4.23 | AR107: 5.372767204
AL108: 42387 | AM108: 1.0389 | AN108: 896.35 | AO108: 159323385.2 | AP108: 165515022.9 | AQ108: 3.89 | AR108: 4.989751098
AL109: 42388 | AM109: 1.0426 | AN109: 899.2 | AO109: 159323385.2 | AP109: 166110170.8 | AQ109: 4.26 | AR109: 5.323572474
AL110: 42389 | AM110: 1.0384 | AN110: 894.08 | AO110: 159323385.2 | AP110: 165446788.2 | AQ110: 3.84 | AR110: 4.7238653
AL111: 42390 | AM111: 1.0288 | AN111: 884.11 | AO111: 159323385.2 | AP111: 163914657.8 | AQ111: 2.88 | AR111: 3.556076135
AL112: 42391 | AM112: 1.0389 | AN112: 896.16 | AO112: 207923696.2 | AP112: 216005853.8 | AQ112: 3.89 | AR112: 4.96749634
AL113: 42395 | AM113: 1.0373 | AN113: 894.84 | AO113: 207923696.2 | AP113: 215687576.9 | AQ113: 3.73 | AR113: 4.812884334
AL114: 42396 | AM114: 1.0393 | AN114: 897.34 | AO114: 207923696.2 | AP114: 216097825.7 | AQ114: 3.93 | AR114: 5.105710102
AL115: 42397 | AM115: 1.0421 | AN115: 893.81 | AO115: 207923696.2 | AP115: 216680182.4 | AQ115: 4.21 | AR115: 4.692240117
AL116: 42398 | AM116: 1.0555 | AN116: 906.26 | AO116: 207923696.2 | AP116: 219466078 | AQ116: 5.55 | AR116: 6.150512445
AL117: 42400 | AM117: 1.0556 | AN117: 906.26 | AO117: 207923696.2 | AP117: 219476542.4 | AQ117: 5.56 | AR117: 6.150512445
AL118: 42402 | AM118: 1.0502 | AN118: 903.08 | AO118: 207923696.2 | AP118: 218351701 | AQ118: 5.02 | AR118: 5.778038067
AL119: 42403 | AM119: 1.0424 | AN119: 892.34 | AO119: 207923696.2 | AP119: 216739844.9 | AQ119: 4.24 | AR119: 4.520058565
AL120: 42404 | AM120: 1.0537 | AN120: 903.75 | AO120: 207923696.2 | AP120: 219092381.2 | AQ120: 5.37 | AR120: 5.856515373
AL121: 42405 | AM121: 1.0558 | AN121: 904.59 | AO121: 207923696.2 | AP121: 219517963 | AQ121: 5.58 | AR121: 5.954904832
AL122: 42410 | AM122: 1.0487 | AN122: 898.08 | AO122: 207923696.2 | AP122: 218050417.2 | AQ122: 4.87 | AR122: 5.19238653
AL123: 42411 | AM123: 1.0481 | AN123: 897.27 | AO123: 207923696.2 | AP123: 217914463.3 | AQ123: 4.81 | AR123: 5.097510981
AL124: 42412 | AM124: 1.0499 | AN124: 898.04 | AO124: 207923696.2 | AP124: 218293817.2 | AQ124: 4.99 | AR124: 5.187701318
AL125: 42415 | AM125: 1.0536 | AN125: 901.52 | AO125: 207923696.2 | AP125: 219063225.9 | AQ125: 5.36 | AR125: 5.595314788
AL126: 42416 | AM126: 1.0607 | AN126: 908.22 | AO126: 207923696.2 | AP126: 220535871.8 | AQ126: 6.07 | AR126: 6.380087848
AL127: 42417 | AM127: 1.0602 | AN127: 909.01 | AO127: 207923696.2 | AP127: 220442392.3 | AQ127: 6.02 | AR127: 6.472620791
AL128: 42418 | AM128: 1.0694 | AN128: 914.65 | AO128: 207923696.2 | AP128: 222345408.7 | AQ128: 6.94 | AR128: 7.133235725
AL129: 42419 | AM129: 1.0687 | AN129: 914.25 | AO129: 207923696.2 | AP129: 222206358.8 | AQ129: 6.87 | AR129: 7.086383602
AL130: 42422 | AM130: 1.0684 | AN130: 913.87 | AO130: 207923696.2 | AP130: 222147918.9 | AQ130: 6.84 | AR130: 7.041874085
AL131: 42423 | AM131: 1.0688 | AN131: 915.12 | AO131: 207923696.2 | AP131: 222232352 | AQ131: 6.88 | AR131: 7.188286969
AL132: 42424 | AM132: 1.0648 | AN132: 909.03 | AO132: 207923696.2 | AP132: 221402657.2 | AQ132: 6.48 | AR132: 6.474963397
AL133: 42425 | AM133: 1.0615 | AN133: 905.83 | AO133: 207923696.2 | AP133: 220710839.9 | AQ133: 6.15 | AR133: 6.100146413
AL134: 42426 | AM134: 1.0656 | AN134: 905.9 | AO134: 207923696.2 | AP134: 221559550.1 | AQ134: 6.56 | AR134: 6.108345534
AL135: 42429 | AM135: 1.0649 | AN135: 904.16 | AO135: 207923696.2 | AP135: 221409681.8 | AQ135: 6.49 | AR135: 5.904538799
AL136: 42430 | AM136: 1.07 | AN136: 910.84 | AO136: 207923696.2 | AP136: 222480349.4 | AQ136: 7 | AR136: 6.686969253
AL137: 42431 | AM137: 1.082 | AN137: 921.48 | AO137: 207923696.2 | AP137: 224981462.8 | AQ137: 8.2 | AR137: 7.933235725
AL138: 42432 | AM138: 1.0789 | AN138: 919.66 | AO138: 207923696.2 | AP138: 224328461.5 | AQ138: 7.89 | AR138: 7.720058565
AL139: 42433 | AM139: 1.0823 | AN139: 922.73 | AO139: 207923696.2 | AP139: 225027110.3 | AQ139: 8.23 | AR139: 8.079648609
AL140: 42436 | AM140: 1.0769 | AN140: 920.5 | AO140: 207923696.2 | AP140: 223911795.7 | AQ140: 7.69 | AR140: 7.818448023
AL141: 42437 | AM141: 1.0697 | AN141: 915.81 | AO141: 207923696.2 | AP141: 222416096.3 | AQ141: 6.97 | AR141: 7.269106881
AL142: 42438 | AM142: 1.0697 | AN142: 913.12 | AO142: 207923696.2 | AP142: 222411998.1 | AQ142: 6.97 | AR142: 6.954026354
AL143: 42439 | AM143: 1.0743 | AN143: 917.05 | AO143: 207923696.2 | AP143: 223366757.8 | AQ143: 7.43 | AR143: 7.414348463
AL144: 42440 | AM144: 1.0761 | AN144: 918.21 | AO144: 207923696.2 | AP144: 223747736.8 | AQ144: 7.61 | AR144: 7.550219619
AL145: 42443 | AM145: 1.0778 | AN145: 919.44 | AO145: 207923696.2 | AP145: 224099237.2 | AQ145: 7.78 | AR145: 7.694289898
AL146: 42444 | AM146: 1.0761 | AN146: 915.6 | AO146: 207923696.2 | AP146: 223743682.6 | AQ146: 7.61 | AR146: 7.244509517
AL147: 42445 | AM147: 1.0777 | AN147: 917.35 | AO147: 207923696.2 | AP147: 224081718.4 | AQ147: 7.77 | AR147: 7.449487555
AL148: 42446 | AM148: 1.0822 | AN148: 922.22 | AO148: 207923696.2 | AP148: 225010266.7 | AQ148: 8.22 | AR148: 8.019912152
AL149: 42447 | AM149: 1.0866 | AN149: 927.4 | AO149: 207923696.2 | AP149: 225930604.8 | AQ149: 8.66 | AR149: 8.626647145
AL150: 42450 | AM150: 1.088 | AN150: 927.82 | AO150: 207923696.2 | AP150: 226210846.6 | AQ150: 8.8 | AR150: 8.675841874
AL151: 42451 | AM151: 1.0892 | AN151: 931.86 | AO151: 207923696.2 | AP151: 226479532.4 | AQ151: 8.92 | AR151: 9.149048316
AL152: 42452 | AM152: 1.0896 | AN152: 931.53 | AO152: 207923696.2 | AP152: 226548352.7 | AQ152: 8.96 | AR152: 9.110395315
AL153: 42453 | AM153: 1.0907 | AN153: 928.73 | AO153: 207923696.2 | AP153: 226784173.9 | AQ153: 9.07 | AR153: 8.782430454
AL154: 42454 | AM154: 1.0842 | AN154: 923.19 | AO154: 207923696.2 | AP154: 225421446.2 | AQ154: 8.42 | AR154: 8.133528551
AL155: 42457 | AM155: 1.0839 | AN155: 923.69 | AO155: 207923696.2 | AP155: 225370604.8 | AQ155: 8.39 | AR155: 8.192093704
AL156: 42458 | AM156: 1.0887 | AN156: 929.12 | AO156: 207923696.2 | AP156: 226367841 | AQ156: 8.87 | AR156: 8.828111274
AL157: 42459 | AM157: 1.0911 | AN157: 932.41 | AO157: 207923696.2 | AP157: 226872165.1 | AQ157: 9.11 | AR157: 9.213469985
AL158: 42460 | AM158: 1.0932 | AN158: 932.83 | AO158: 207923696.2 | AP158: 227303605.8 | AQ158: 9.32 | AR158: 9.262664714
AL159: 42461 | AM159: 1.0881 | AN159: 928.06 | AO159: 207923696.2 | AP159: 226231639.6 | AQ159: 8.81 | AR159: 8.703953148
AL160: 42464 | AM160: 1.093 | AN160: 934.28 | AO160: 207923696.2 | AP160: 227258760.2 | AQ160: 9.3 | AR160: 9.43250366
AL161: 42465 | AM161: 1.0911 | AN161: 932.89 | AO161: 207923696.2 | AP161: 226872321.5 | AQ161: 9.11 | AR161: 9.269692533
AL162: 42466 | AM162: 1.0897 | AN162: 933.13 | AO162: 207923696.2 | AP162: 226577224.4 | AQ162: 8.97 | AR162: 9.297803807
AL163: 42467 | AM163: 1.0949 | AN163: 939.64 | AO163: 207923696.2 | AP163: 227660562.5 | AQ163: 9.49 | AR163: 10.06032211
AL164: 42468 | AM164: 1.0914 | AN164: 935.81 | AO164: 207923696.2 | AP164: 226928534.5 | AQ164: 9.14 | AR164: 9.611713031
AL165: 42471 | AM165: 1.0922 | AN165: 934.71 | AO165: 207923696.2 | AP165: 227091114.6 | AQ165: 9.22 | AR165: 9.482869693
AL166: 42472 | AM166: 1.089 | AN166: 934.29 | AO166: 207923696.2 | AP166: 226435611.8 | AQ166: 8.9 | AR166: 9.433674963
AL167: 42473 | AM167: 1.0913 | AN167: 937.37 | AO167: 207923696.2 | AP167: 226914808.1 | AQ167: 9.13 | AR167: 9.79443631
AL168: 42474 | AM168: 1.0926 | AN168: 939.48 | AO168: 207923696.2 | AP168: 227184263.6 | AQ168: 9.26 | AR168: 10.04158126
AL169: 42475 | AM169: 1.0927 | AN169: 940.81 | AO169: 207923696.2 | AP169: 227198880.2 | AQ169: 9.27 | AR169: 10.19736457
AL170: 42478 | AM170: 1.0875 | AN170: 934.71 | AO170: 207923696.2 | AP170: 226126068.3 | AQ170: 8.75 | AR170: 9.482869693
AL171: 42479 | AM171: 1.0867 | AN171: 932.51 | AO171: 207923696.2 | AP171: 225942771.3 | AQ171: 8.67 | AR171: 9.225183016
AL172: 42480 | AM172: 1.0876 | AN172: 931.41 | AO172: 208153750.5 | AP172: 226397145.5 | AQ172: 8.76 | AR172: 9.096339678
AL173: 42481 | AM173: 1.0916 | AN173: 936.53 | AO173: 208153750.5 | AP173: 227217387.6 | AQ173: 9.16 | AR173: 9.696046852
AL174: 42482 | AM174: 1.0908 | AN174: 935.34 | AO174: 208153750.5 | AP174: 227060208 | AQ174: 9.08 | AR174: 9.556661786
AL175: 42485 | AM175: 1.0879 | AN175: 932.76 | AO175: 208153750.5 | AP175: 226452594.5 | AQ175: 8.79 | AR175: 9.254465593
AL176: 42486 | AM176: 1.08 | AN176: 921.23 | AO176: 212060359.6 | AP176: 229030773.1 | AQ176: 8 | AR176: 7.903953148
AL177: 42487 | AM177: 1.0811 | AN177: 922.17 | AO177: 212060359.6 | AP177: 229263961 | AQ177: 8.11 | AR177: 8.014055637
AL178: 42488 | AM178: 1.075 | AN178: 913.23 | AO178: 212060359.6 | AP178: 227974254.2 | AQ178: 7.5 | AR178: 6.966910688
AL179: 42489 | AM179: 1.0728 | AN179: 912.77 | AO179: 212060359.6 | AP179: 227508894.6 | AQ179: 7.28 | AR179: 6.913030747
AL180: 42490 | AM180: 1.0729 | AN180: 912.77 | AO180: 212060359.6 | AP180: 227511903.7 | AQ180: 7.29 | AR180: 6.913030747
AL181: 42493 | AM181: 1.0642 | AN181: 902.23 | AO181: 212060359.6 | AP181: 225673598.7 | AQ181: 6.42 | AR181: 5.678477306
AL182: 42494 | AM182: 1.0679 | AN182: 904.2 | AO182: 212060359.6 | AP182: 226450160.3 | AQ182: 6.79 | AR182: 5.909224012
AL183: 42495 | AM183: 1.0649 | AN183: 899.07 | AO183: 212060359.6 | AP183: 225816555.6 | AQ183: 6.49 | AR183: 5.308345534
AL184: 42496 | AM184: 1.0647 | AN184: 901.44 | AO184: 212060359.6 | AP184: 225785856.8 | AQ184: 6.47 | AR184: 5.585944363
AL185: 42499 | AM185: 1.0523 | AN185: 893.24 | AO185: 212060359.6 | AP185: 223145381.3 | AQ185: 5.23 | AR185: 4.625475842
AL186: 42500 | AM186: 1.0609 | AN186: 895.81 | AO186: 212060359.6 | AP186: 224978212.5 | AQ186: 6.09 | AR186: 4.926500732
AL187: 42501 | AM187: 1.0624 | AN187: 899.25 | AO187: 212060359.6 | AP187: 225291188.7 | AQ187: 6.24 | AR187: 5.32942899
AL188: 42502 | AM188: 1.0628 | AN188: 899.4 | AO188: 212060359.6 | AP188: 225377555.6 | AQ188: 6.28 | AR188: 5.346998536
AL189: 42503 | AM189: 1.0489 | AN189: 886.83 | AO189: 212060359.6 | AP189: 222423546.8 | AQ189: 4.89 | AR189: 3.874670571
AL190: 42506 | AM190: 1.0435 | AN190: 881.48 | AO190: 212155697.5 | AP190: 221379987.4 | AQ190: 4.35 | AR190: 3.248023426
AL191: 42507 | AM191: 1.0529 | AN191: 888.57 | AO191: 212155697.5 | AP191: 223388885.8 | AQ191: 5.29 | AR191: 4.078477306
AL192: 42508 | AM192: 1.056 | AN192: 891.16 | AO192: 212155697.5 | AP192: 224041940.7 | AQ192: 5.6 | AR192: 4.381844802
AL193: 42509 | AM193: 1.0556 | AN193: 890.15 | AO193: 212155697.5 | AP193: 223951676.5 | AQ193: 5.56 | AR193: 4.263543192
AL194: 42510 | AM194: 1.0536 | AN194: 889.07 | AO194: 212155697.5 | AP194: 223518826.2 | AQ194: 5.36 | AR194: 4.13704246
AL195: 42513 | AM195: 1.0566 | AN195: 891.57 | AO195: 212155697.5 | AP195: 224165355.1 | AQ195: 5.66 | AR195: 4.429868228
AL196: 42514 | AM196: 1.0537 | AN196: 887.18 | AO196: 212155697.5 | AP196: 223550397.8 | AQ196: 5.37 | AR196: 3.915666179
AL197: 42515 | AM197: 1.0565 | AN197: 889.5 | AO197: 212155697.5 | AP197: 224142334.8 | AQ197: 5.65 | AR197: 4.187408492
AL198: 42516 | AM198: 1.0583 | AN198: 889.56 | AO198: 212155697.5 | AP198: 224527449.1 | AQ198: 5.83 | AR198: 4.19443631
AL199: 42517 | AM199: 1.0616 | AN199: 891.12 | AO199: 212155697.5 | AP199: 225224189.6 | AQ199: 6.16 | AR199: 4.37715959
AL200: 42520 | AM200: 1.0592 | AN200: 887.55 | AO200: 212155697.5 | AP200: 224722370.6 | AQ200: 5.92 | AR200: 3.959004392
... 643 more rows

Sheet A5ESG_Internal (hidden)
U1: Setting | V1: =VLOOKUP(FundCode, InFund!$A:$E,5,0) -> USD | AQ1: =IF(AM1=0,0,IFERROR(AM1-1,0)*100) -> 0 | AR1: =IF(AN1=0,0,IFERROR(AN1-1,0)*100) -> 0 | AS1: =IF(AO1=0,0,IFERROR(AO1/A5ESGIncIndices-1,0)*100) -> 0
U2: Fund Code | V2: ASEAN5ESG | AL2: Date | AM2: BuyPriceMYR | AN2: BuyPriceUSD | AO2: Indices | AP2: NAV | AQ2: 0 | AR2: 0 | AS2: 0
B3: ASEAN 5 ESG OPPORTUNITY FUND | U3: UTFlag | V3: =VLOOKUP(FundCode,FundData,MATCH(U3,InFund!2:2,0),0) -> 1 | W3: Note: | X3: 1 = Yes; 0=No; | AL3: 42760 | AM3: 1 | AN3: 1 | AO3: 20660.65143 | AP3: 135226.5 | AQ3: 0 | AR3: 0 | AS3: 2166.714731 | AU3: Manual Input | AV3: NAV - MYR
B4: =ValueDate -> 2018-12-31 | M4: Asset Class - Wholesale Equity (ASEAN) | U4: RollEOYFlag | V4: =VLOOKUP(FundCode,FundData,MATCH(U4,InFund!2:2,0),0) -> 1 | AL4: 42761 | AM4: 1 | AN4: 1 | AO4: 20785.75492 | AP4: 293681.52 | AQ4: 0 | AR4: 0 | AS4: 2180.440045 | AU4: 42766 | AV4: 1 | AW4: 0
U5: Amort.Flag | V5: 0 | W5: * IF Amort.Flag = 1 --> Exclude amortisation/accreation form Unrealised Gain n Loss | AL5: 42762 | AM5: 1 | AN5: 1 | AO5: 20776.31541 | AP5: 361235.99 | AQ5: 0 | AR5: 0 | AS5: 2179.40442 | AU5: =IF(OR(A5ESGNAV!A2="",A5ESGNAV!A2>ValueDate),"",A5ESGNAV!A2) -> 42766 | AV5: =IF(OR(A5ESGNAV!B2="",A5ESGNAV!A2>ValueDate),"",A5ESGNAV!B2) -> 1.0002 | AW5: =IF(OR(A5ESGNAV!B2="",A5ESGNAV!A2>ValueDate),"",A5ESGNAV!B2-1) -> 0.0002
B6: FUND INFORMATION | U6: Clean MV | V6: 1 | W6: * IF Clean MV=1 - Accrued Interest add into Cash | AL6: 42766 | AM6: 1.000296 | AN6: 0 | AO6: 20605.62649 | AP6: 361484.68 | AQ6: 0.0296 | AR6: 0 | AS6: 2160.677853 | AU6: 42768 | AV6: 1.000454 | AW6: 0.000454
AL7: 42768 | AM7: 1.000445 | AN7: 0 | AO7: 20726.24977 | AP7: 361947.75 | AQ7: 0.0445 | AR7: 0 | AS7: 2173.911635 | AU7: 42769 | AV7: 1.000318 | AW7: 0.000318
B8: ="Total Cost ("&$V$1&")" -> Total Cost (USD) | G8: Asset Allocation | K8: Performance | L8: 1 month | M8: YTD | N8: 1 year | O8: 3 year | P8: Inception | U8: Accrued Interest | V8: =SUMIF(InHolding!A:A,FundCode,InHolding!P:P) -> 0 | AL8: 42769 | AM8: 1.000318 | AN8: 0 | AO8: 20835.94072 | AP8: 361493.18 | AQ8: 0.0318 | AR8: 0 | AS8: 2185.946013 | AU8: 42772 | AV8: 1.001723 | AW8: 0.001723
B9: =SUMIF(InHolding!$A:$A,FundCode,InHolding!$L:$L)+$V$8*$V$6+$V$9 -> 2477462.56 | K9: Fund | L9: =IFERROR($AC22/AD22-1,0) -> 0.008851081788 | M9: =IFERROR($AC22/AG22-1,0) -> -0.04884113838 | N9: =IFERROR($AC22/AH22-1,0) -> -0.152078786 | O9: =IFERROR($AC22/AI22-1,0) -> 0 | P9: =IFERROR($AC22/AJ22-1,0) -> 0 | U9: Pre-Acq | V9: =SUMIF(InHolding!A:A,FundCode,InHolding!M:M) -> 0 | W9: Currency (USD/MYR) | X9: =SUMIFS(InCurrency!E:E,InCurrency!D:D,VLOOKUP(FundCode,FundData,MATCH("FXSource",InFund!2:2,0),0),InCurrency!B:B,"USD",InCurrency!C:C,"MYR") -> 4.13 | AL9: 42772 | AM9: 1.001723 | AN9: 0 | AO9: 20982.58262 | AP9: 362123.16 | AQ9: 0.1723 | AR9: 0 | AS9: 2202.034342 | AU9: 42773 | AV9: 1.001645 | AW9: 0.001645
B10: ="Market Value ("&$V$1&")" -> Market Value (USD) | K10: Benchmark* | L10: =IF(L9=0,0,IFERROR($AC23/AD23-1,0)) -> 0 | M10: =IF(M9=0,0,IFERROR($AC23/AG23-1,0)) -> 0 | N10: =IF(N9=0,0,IFERROR($AC23/AH23-1,0)) -> 0 | O10: =IF(O9=0,0,IFERROR($AC23/AI23-1,0)) -> 0 | P10: =IF(P9=0,0,IFERROR($AC23/AJ23-1,0)) -> 0 | T10: Adj. | U10: FinanceYrStart | V10: =VLOOKUP(FundCode,FundData,MATCH(U10,InFund!2:2,0),0) -> 2016-12-16 | AL10: 42773 | AM10: 1.001645 | AN10: 0 | AO10: 20956.56412 | AP10: 361360.32 | AQ10: 0.1645 | AR10: 0 | AS10: 2199.179809 | AU10: 42774 | AV10: 1.001028 | AW10: 0.001028
B11: =SUMIF(InHolding!$A:$A,FundCode,InHolding!$O:$O) -> 2449185.39 | K11: Excess Return | L11: =L9-L10 -> 0.008851081788 | M11: =M9-M10 -> -0.04884113838 | N11: -0.152078786 | O11: 0 | P11: 0 | T11: 2014 | U11: Income | V11: =EDATE(VLOOKUP(FundCode,FundData,MATCH("FinanceYrEnd",InFund!2:2,0),0),-12) -> 2018-06-30 | W11: =Main!D18 -> 2018-11-30 | X11: =ValueDate -> 2018-12-31 | AB11: Portfolio Analysis | AL11: 42774 | AM11: 1.001028 | AN11: 0 | AO11: 20949.34524 | AP11: 360852.72 | AQ11: 0.1028 | AR11: 0 | AS11: 2198.387813 | AU11: 42776 | AV11: 1.006842 | AW11: 0.006842
B12: ="Unrealised Gains / (Loss) ("&$V$1&")" -> Unrealised Gains / (Loss) (USD) | K12: ="* Benchmark - " & VLOOKUP(FundCode,InFund!A:D,4,0) -> * Benchmark - FTSE4GOOD ASEAN5 INDEX | U12: Capital Gains | V12: =-(SUMIFS(InTB!$H:$H,InTB!$G:$G,FundCode,InTB!$A:$A,V$11,InTB!$I:$I,"600")+(SUMIFS(InTB!$H:$H,InTB!$G:$G,FundCode,InTB!$A:$A,V$11,InTB!$I:$I,"610")+SUMIFS(InTB!$H:$H,InTB!$G:$G,FundCode,InTB!$A:$A,V$11,InTB!$I:$I,"620"))*(1-$V$5)) -> -7941.64 | W12: =-(SUMIFS(InTB!$H:$H,InTB!$G:$G,FundCode,InTB!$A:$A,W$11,InTB!$I:$I,"600")+(SUMIFS(InTB!$H:$H,InTB!$G:$G,FundCode,InTB!$A:$A,W$11,InTB!$I:$I,"610")+SUMIFS(InTB!$H:$H,InTB!$G:$G,FundCode,InTB!$A:$A,W$11,InTB!$I:$I,"620"))*(1-$V$5)) -> -133040.84 | X12: =-(SUMIFS(InTB!$H:$H,InTB!$G:$G,FundCode,InTB!$A:$A,X$11,InTB!$I:$I,"600")+(SUMIFS(InTB!$H:$H,InTB!$G:$G,FundCode,InTB!$A:$A,X$11,InTB!$I:$I,"610")+SUMIFS(InTB!$H:$H,InTB!$G:$G,FundCode,InTB!$A:$A,X$11,InTB!$I:$I,"620"))*(1-$V$5)) -> -136848.08 | AB12: EQT | AC12: Equity | AD12: =SUMIFS(InHolding!U:U,InHolding!A:A,FundCode,InHolding!C:C,$AB12) -> 1980561.09 | AE12: =IF(AD12=0,NA(),AD12) -> 1980561.09 | AF12: =AD12/$AD$15 -> 0.8086611565 | AL12: 42776 | AM12: 1.006842 | AN12: 0 | AO12: 21001.99141 | AP12: 362580.56 | AQ12: 0.6842 | AR12: 0 | AS12: 2204.163713 | AU12: 42779 | AV12: 1.009907 | AW12: 0.009907
B13: =B11-B9 -> -28277.17 | U13: Dividend Income | V13: =-(SUMIFS(InTB!$H:$H,InTB!$G:$G,FundCode,InTB!$A:$A,V$11,InTB!$I:$I,"636")+SUMIFS(InTB!$H:$H,InTB!$G:$G,FundCode,InTB!$A:$A,V$11,InTB!$I:$I,"635"))-V16-V17 -> 79966.82 | W13: =-(SUMIFS(InTB!$H:$H,InTB!$G:$G,FundCode,InTB!$A:$A,W$11,InTB!$I:$I,"636")+SUMIFS(InTB!$H:$H,InTB!$G:$G,FundCode,InTB!$A:$A,W$11,InTB!$I:$I,"635"))-W16-W17 -> 26922.28 | X13: =-(SUMIFS(InTB!$H:$H,InTB!$G:$G,FundCode,InTB!$A:$A,X$11,InTB!$I:$I,"636")+SUMIFS(InTB!$H:$H,InTB!$G:$G,FundCode,InTB!$A:$A,X$11,InTB!$I:$I,"635"))-X16-X17 -> 29938.32 | AB13: BND | AC13: FI | AD13: =SUMIFS(InHolding!U:U,InHolding!A:A,FundCode,InHolding!C:C,$AB13) -> 0 | AE13: =IF(AD13=0,NA(),AD13) ->  | AF13: =AD13/$AD$15 -> 0 | AL13: 42779 | AM13: 1.009907 | AN13: 0 | AO13: 21141.10923 | AP13: 363317.36 | AQ13: 0.9907 | AR13: 0 | AS13: 2219.426562 | AU13: 42780 | AV13: 1.01031 | AW13: 0.01031
K14: Income | M14: ="1 month ("&$V$1&")" -> 1 month (USD) | O14: ="YTD ("&$V$1&")" -> YTD (USD) | U14: Interest Income | V14: =-(SUMIFS(InTB!$H:$H,InTB!$G:$G,FundCode,InTB!$A:$A,V$11,InTB!$J:$J,"6302")+SUMIFS(InTB!$H:$H,InTB!$G:$G,FundCode,InTB!$A:$A,V$11,InTB!$J:$J,"6392")+SUMIFS(InTB!$H:$H,InTB!$G:$G,FundCode,InTB!$A:$A,V$11,InTB!$J:$J,"9392")) -> 10339.76 | W14: =-(SUMIFS(InTB!$H:$H,InTB!$G:$G,FundCode,InTB!$A:$A,W$11,InTB!$J:$J,"6302")+SUMIFS(InTB!$H:$H,InTB!$G:$G,FundCode,InTB!$A:$A,W$11,InTB!$J:$J,"6392")+SUMIFS(InTB!$H:$H,InTB!$G:$G,FundCode,InTB!$A:$A,W$11,InTB!$J:$J,"9392")) -> 0 | X14: =-(SUMIFS(InTB!$H:$H,InTB!$G:$G,FundCode,InTB!$A:$A,X$11,InTB!$J:$J,"6302")+SUMIFS(InTB!$H:$H,InTB!$G:$G,FundCode,InTB!$A:$A,X$11,InTB!$J:$J,"6392")+SUMIFS(InTB!$H:$H,InTB!$G:$G,FundCode,InTB!$A:$A,X$11,InTB!$J:$J,"9392")) -> 0 | AB14: CSH | AC14: Cash | AD14: =SUMIFS(InHolding!U:U,InHolding!A:A,FundCode,InHolding!C:C,$AB14) -> 468624.3 | AE14: 468624.3 | AF14: 0.1913388435 | AL14: 42780 | AM14: 1.01031 | AN14: 0 | AO14: 21008.57714 | AP14: 363338.6 | AQ14: 1.031 | AR14: 0 | AS14: 2204.886244 | AU14: 42781 | AV14: 1.0083 | AW14: 0.0083
B15: Equity | E15: Cash | K15: Capital Gains | M15: =$X12-$W12+IF(YEAR($V$11)=$T$11,$T12,0) -> -3807.24 | O15: =$X12-$V12*(1-$V$4)+IF(YEAR($V$11)=$T$11,$T12,0) -> -136848.08 | U15: Coupon Income | V15: =-(SUMIFS(InTB!$H:$H,InTB!$G:$G,FundCode,InTB!$A:$A,V$11,InTB!$J:$J,"6301")+SUMIFS(InTB!$H:$H,InTB!$G:$G,FundCode,InTB!$A:$A,V$11,InTB!$J:$J,"6391")+SUMIFS(InTB!$H:$H,InTB!$G:$G,FundCode,InTB!$A:$A,V$11,InTB!$J:$J,"9391")) -> 0 | W15: =-(SUMIFS(InTB!$H:$H,InTB!$G:$G,FundCode,InTB!$A:$A,W$11,InTB!$J:$J,"6301")+SUMIFS(InTB!$H:$H,InTB!$G:$G,FundCode,InTB!$A:$A,W$11,InTB!$J:$J,"6391")+SUMIFS(InTB!$H:$H,InTB!$G:$G,FundCode,InTB!$A:$A,W$11,InTB!$J:$J,"9391")) -> 0 | X15: =-(SUMIFS(InTB!$H:$H,InTB!$G:$G,FundCode,InTB!$A:$A,X$11,InTB!$J:$J,"6301")+SUMIFS(InTB!$H:$H,InTB!$G:$G,FundCode,InTB!$A:$A,X$11,InTB!$J:$J,"6391")+SUMIFS(InTB!$H:$H,InTB!$G:$G,FundCode,InTB!$A:$A,X$11,InTB!$J:$J,"9391")) -> 0 | AB15: Total | AD15: =AD12+AD13+AD14 -> 2449185.39 | AL15: 42781 | AM15: 1.008364 | AN15: 0 | AO15: 21009.11229 | AP15: 362679.36 | AQ15: 0.8364 | AR15: 0 | AS15: 2204.944957 | AU15: 42782 | AV15: 1.0077 | AW15: 0.0077
B16: ="("&$V$1&")" -> (USD) | E16: ="("&$V$1&")" -> (USD) | K16: Dividend Income | M16: =$X13-$W13+IF(YEAR($V$11)=$T$11,$T13,0) -> 3016.04 | O16: =$X13-$V13*(1-$V$4)+IF(YEAR($V$11)=$T$11,$T13,0) -> 29938.32 | U16: Other Income | V16: =-SUMIFS(InTB!$H:$H,InTB!$G:$G,FundCode,InTB!$A:$A,V$11,InTB!$D:$D,"636003",InTB!$E:$E,"PLR") -> 0 | W16: =-SUMIFS(InTB!$H:$H,InTB!$G:$G,FundCode,InTB!$A:$A,W$11,InTB!$D:$D,"636003",InTB!$E:$E,"PLR") -> 0 | X16: =-SUMIFS(InTB!$H:$H,InTB!$G:$G,FundCode,InTB!$A:$A,X$11,InTB!$D:$D,"636003",InTB!$E:$E,"PLR") -> 0 | AL16: 42782 | AM16: 1.007706 | AN16: 0 | AO16: 21081.39935 | AP16: 362239.94 | AQ16: 0.7706 | AR16: 0 | AS16: 2212.875691 | AU16: 42783 | AV16: 1.0157 | AW16: 0.0157
B17: =AD12 -> 1980561.09 | E17: =AD14 -> 468624.3 | K17: Interest Income (Cash) | M17: =$X14-$W14+IF(YEAR($V$11)=$T$11,$T14,0) -> 0 | O17: =$X14-$V14*(1-$V$4)+IF(YEAR($V$11)=$T$11,$T14,0) -> 0 | U17: 799124 & 799130 | V17: =SUMIFS(InTB!$H:$H,InTB!$G:$G,FundCode,InTB!$A:$A,V$11,InTB!$D:$D,"799124")+SUMIFS(InTB!$H:$H,InTB!$G:$G,FundCode,InTB!$A:$A,V$11,InTB!$D:$D,"799130") -> 0 | W17: =SUMIFS(InTB!$H:$H,InTB!$G:$G,FundCode,InTB!$A:$A,W$11,InTB!$D:$D,"799124")+SUMIFS(InTB!$H:$H,InTB!$G:$G,FundCode,InTB!$A:$A,W$11,InTB!$D:$D,"799130") -> 0 | X17: =SUMIFS(InTB!$H:$H,InTB!$G:$G,FundCode,InTB!$A:$A,X$11,InTB!$D:$D,"799124")+SUMIFS(InTB!$H:$H,InTB!$G:$G,FundCode,InTB!$A:$A,X$11,InTB!$D:$D,"799130") -> 0 | AB17: Conversion Date: | AC17: 2015-01-16 | AL17: 42783 | AM17: 1.015767 | AN17: 0 | AO17: 21076.10466 | AP17: 365137.73 | AQ17: 1.5767 | AR17: 0 | AS17: 2212.294802 | AU17: 42786 | AV17: 1.0182 | AW17: 0.0182
B18: No of Securities | K18: Total Income | M18: =SUM(M15:N17)+(X16-W16) -> -791.2 | O18: =SUM(O15:P17)+(X16-V16*(1-$V$4)) -> -106909.76 | T18: Cash + AI | V18: =SUMIFS(InTB!$H:$H,InTB!$G:$G,FundCode,InTB!$A:$A,IF($V$10>V$11,$V$10,V$11),InTB!$K:$K,2)+SUMIFS(InTB!$H:$H,InTB!$G:$G,FundCode,InTB!$A:$A,IF($V$10>V$11,$V$10,V$11),InTB!$K:$K,3)+SUMIFS(InTB!$H:$H,InTB!$G:$G,FundCode,InTB!$A:$A,IF($V$10>V$11,$V$10,V$11),InTB!$K:$K,5)+SUMIFS(InTB!$H:$H,InTB!$G:$G,FundCode,InTB!$A:$A,IF($V$10>V$11,$V$10,V$11),InTB!$J:$J,1392)+SUMIFS(InTB!$H:$H,InTB!$G:$G,FundCode,InTB!$A:$A,IF($V$10>V$11,$V$10,V$11),InTB!$J:$J,1391) -> 143171.02 | W18: =SUMIFS(InTB!$H:$H,InTB!$G:$G,FundCode,InTB!$A:$A,IF($V$10>W$11,$V$10,W$11),InTB!$K:$K,2)+SUMIFS(InTB!$H:$H,InTB!$G:$G,FundCode,InTB!$A:$A,IF($V$10>W$11,$V$10,W$11),InTB!$K:$K,3)+SUMIFS(InTB!$H:$H,InTB!$G:$G,FundCode,InTB!$A:$A,IF($V$10>W$11,$V$10,W$11),InTB!$K:$K,5)+SUMIFS(InTB!$H:$H,InTB!$G:$G,FundCode,InTB!$A:$A,IF($V$10>W$11,$V$10,W$11),InTB!$J:$J,1392)+SUMIFS(InTB!$H:$H,InTB!$G:$G,FundCode,InTB!$A:$A,IF($V$10>W$11,$V$10,W$11),InTB!$J:$J,1391) -> 187123.57 | X18: =SUMIFS(InTB!$H:$H,InTB!$G:$G,FundCode,InTB!$A:$A,IF($V$10>X$11,$V$10,X$11),InTB!$K:$K,2)+SUMIFS(InTB!$H:$H,InTB!$G:$G,FundCode,InTB!$A:$A,IF($V$10>X$11,$V$10,X$11),InTB!$K:$K,3)+SUMIFS(InTB!$H:$H,InTB!$G:$G,FundCode,InTB!$A:$A,IF($V$10>X$11,$V$10,X$11),InTB!$K:$K,5)+SUMIFS(InTB!$H:$H,InTB!$G:$G,FundCode,InTB!$A:$A,IF($V$10>X$11,$V$10,X$11),InTB!$J:$J,1392)+SUMIFS(InTB!$H:$H,InTB!$G:$G,FundCode,InTB!$A:$A,IF($V$10>X$11,$V$10,X$11),InTB!$J:$J,1391) -> 468624.3 | Y18: =SUM(X18,X23) -> 2477462.56 | AB18: Return | AC18: =ValueDate -> 2018-12-31 | AD18: =_1Month -> 2018-11-30 | AE18: =_3Month -> 2018-09-30 | AF18: =_6Month -> 2018-06-30 | AG18: =IF(EDATE(VLOOKUP(FundCode,FundData,MATCH("FinanceYrEnd",InFund!2:2,0),0),-12)<V10,V10,EDATE(VLOOKUP(FundCode,FundData,MATCH("FinanceYrEnd",InFund!2:2,0),0),-12)) -> 2018-06-30 | AH18: =_1Year -> 2017-12-31 | AI18: =_3Year -> 2015-12-31 | AJ18: =DATE(2017,1,31) -> 2017-01-31 | AK18: =_5Year -> 2013-12-31 | AL18: 42786 | AM18: 1.017831 | AN18: 0 | AO18: 21100.40945 | AP18: 365468.51 | AQ18: 1.7831 | AR18: 0 | AS18: 2214.961321 | AU18: 42787 | AV18: 1.0166 | AW18: 0.0166
B19: =COUNTIFS(InHolding!$A:$A,FundCode,InHolding!$C:$C,"EQT") -> 12 | K19: ROI (%) | M19: =(M18)/((X23+W23+W18+X18)/2) -> -0.0003189582173 | O19: =(O18)/((X23+V23+V18+X18)/2) -> -0.04043947378 | U19: (Expenses) | V19: =V21 -> 109463.54 | W19: =W21 -> 25219.96 | X19: =X21 -> 32279.21 | Y19: =SUM(V18,V23) -> 2809933.64 | AB19: FBMKLCI | AC19: =INDEX(InIndex!$C:$C,MATCH($AB19&AC$18,InIndex!$D:$D,0),0) -> 1690.58 | AD19: =INDEX(InIndex!$C:$C,MATCH($AB19&AD$18,InIndex!$D:$D,0),0) -> 1695.78 | AE19: =INDEX(InIndex!$C:$C,MATCH($AB19&AE$18,InIndex!$D:$D,0),0) -> 1793.15 | AF19: =INDEX(InIndex!$C:$C,MATCH($AB19&AF$18,InIndex!$D:$D,0),0) -> 1691.5 | AG19: =INDEX(InIndex!$C:$C,MATCH($AB19&AG$18,InIndex!$D:$D,0),0) -> 1691.5 | AH19: =INDEX(InIndex!$C:$C,MATCH($AB19&AH$18,InIndex!$D:$D,0),0) -> 1796.81 | AI19: =INDEX(InIndex!$C:$C,MATCH($AB19&AI$18,InIndex!$D:$D,0),0) -> 1692.51 | AJ19: =INDEX(InIndex!$C:$C,MATCH($AB19&AJ$18,InIndex!$D:$D,0),0) ->  | AK19: =INDEX(InIndex!$C:$C,MATCH($AB19&AK$18,InIndex!$D:$D,0),0) -> 1866.96 | AL19: 42787 | AM19: 1.016696 | AN19: 0 | AO19: 21050.20469 | AP19: 365102.59 | AQ19: 1.6696 | AR19: 0 | AS19: 2209.453273 | AU19: 42788 | AV19: 1.0204 | AW19: 0.0204
U20: 799 | V20: =SUMIFS(InTB!$H:$H,InTB!$G:$G,FundCode,InTB!$A:$A,V$11,InTB!$I:$I,$U20) -> 21390.09 | W20: =SUMIFS(InTB!$H:$H,InTB!$G:$G,FundCode,InTB!$A:$A,W$11,InTB!$I:$I,$U20) -> 11729.89 | X20: =SUMIFS(InTB!$H:$H,InTB!$G:$G,FundCode,InTB!$A:$A,X$11,InTB!$I:$I,$U20) -> 16261.25 | Y20: =SUMIFS(InTB!$H:$H,InTB!$G:$G,FundCode,InTB!$A:$A,IF($V$10>V$11,$V$10,V$11),InTB!$K:$K,2)+SUMIFS(InTB!$H:$H,InTB!$G:$G,FundCode,InTB!$A:$A,IF($V$10>V$11,$V$10,V$11),InTB!$K:$K,3)+SUMIFS(InTB!$H:$H,InTB!$G:$G,FundCode,InTB!$A:$A,IF($V$10>V$11,$V$10,V$11),InTB!$K:$K,5) -> 143171.02 | AB20: FBMT100 | AC20: =INDEX(InIndex!$C:$C,MATCH($AB20&AC$18,InIndex!$D:$D,0),0) -> 11443.61 | AD20: =INDEX(InIndex!$C:$C,MATCH($AB20&AD$18,InIndex!$D:$D,0),0) -> 11598.51 | AE20: =INDEX(InIndex!$C:$C,MATCH($AB20&AE$18,InIndex!$D:$D,0),0) -> 12336.84 | AF20: =INDEX(InIndex!$C:$C,MATCH($AB20&AF$18,InIndex!$D:$D,0),0) -> 11757.93 | AG20: =INDEX(InIndex!$C:$C,MATCH($AB20&AG$18,InIndex!$D:$D,0),0) -> 11757.93 | AH20: =INDEX(InIndex!$C:$C,MATCH($AB20&AH$18,InIndex!$D:$D,0),0) -> 12614.2 | AI20: =INDEX(InIndex!$C:$C,MATCH($AB20&AI$18,InIndex!$D:$D,0),0) -> 11470.57 | AJ20: =INDEX(InIndex!$C:$C,MATCH($AB20&AJ$18,InIndex!$D:$D,0),0) ->  | AK20: =INDEX(InIndex!$C:$C,MATCH($AB20&AK$18,InIndex!$D:$D,0),0) -> 12589.38 | AL20: 42788 | AM20: 1.020405 | AN20: 0 | AO20: 21100.50436 | AP20: 366804.5 | AQ20: 2.0405 | AR20: 0 | AS20: 2214.971734 | AU20: 42789 | AV20: 1.0187 | AW20: 0.0187
B21: Top Holdings | J21: Country Allocation | U21: 7 | V21: =SUMIFS(InTB!$H:$H,InTB!$G:$G,FundCode,InTB!$A:$A,V$11,InTB!$K:$K,$U21) -> 109463.54 | W21: =SUMIFS(InTB!$H:$H,InTB!$G:$G,FundCode,InTB!$A:$A,W$11,InTB!$K:$K,$U21) -> 25219.96 | X21: =SUMIFS(InTB!$H:$H,InTB!$G:$G,FundCode,InTB!$A:$A,X$11,InTB!$K:$K,$U21) -> 32279.21 | AB21: Relative Performance | AL21: 42789 | AM21: 1.018719 | AN21: 0 | AO21: 21079.43763 | AP21: 366528.77 | AQ21: 1.8719 | AR21: 0 | AS21: 2212.660468 | AU21: 42790 | AV21: 1.0173 | AW21: 0.0173
C22: Largest Holdings | H22: Exposure (%) | U22: 299 | V22: =SUMIFS(InTB!$H:$H,InTB!$G:$G,FundCode,InTB!$A:$A,V$11,InTB!$I:$I,$U22) -> 1161.76 | W22: =SUMIFS(InTB!$H:$H,InTB!$G:$G,FundCode,InTB!$A:$A,W$11,InTB!$I:$I,$U22) -> 0 | X22: =SUMIFS(InTB!$H:$H,InTB!$G:$G,FundCode,InTB!$A:$A,X$11,InTB!$I:$I,$U22) -> 2748.12 | AB22: =FundCode -> ASEAN5ESG | AC22: =IF(COUNTIF($AU:$AU,AC$18)=1,INDEX($AV:$AV,MATCH(AC$18,$AU:$AU,0)),INDEX(InTWRR!$C:$C,MATCH($AB22&AC$18,InTWRR!$D:$D,0),0)) -> 1.018950684 | AD22: =IF(COUNTIF($AU:$AU,AD$18)=1,INDEX($AV:$AV,MATCH(AD$18,$AU:$AU,0)),INDEX(InTWRR!$C:$C,MATCH($AB22&AD$18,InTWRR!$D:$D,0),0)) -> 1.010010994 | AE22: =IF(COUNTIF($AU:$AU,AE$18)=1,INDEX($AV:$AV,MATCH(AE$18,$AU:$AU,0)),INDEX(InTWRR!$C:$C,MATCH($AB22&AE$18,InTWRR!$D:$D,0),0)) -> 1.134124754 | AF22: =IF(COUNTIF($AU:$AU,AF$18)=1,INDEX($AV:$AV,MATCH(AF$18,$AU:$AU,0)),INDEX(InTWRR!$C:$C,MATCH($AB22&AF$18,InTWRR!$D:$D,0),0)) -> 1.07127287 | AG22: =IF(COUNTIF($AU:$AU,AG$18)=1,INDEX($AV:$AV,MATCH(AG$18,$AU:$AU,0)),INDEX(InTWRR!$C:$C,MATCH($AB22&AG$18,InTWRR!$D:$D,0),0)) -> 1.07127287 | AH22: =IF(COUNTIF($AU:$AU,AH$18)=1,INDEX($AV:$AV,MATCH(AH$18,$AU:$AU,0)),INDEX(InTWRR!$C:$C,MATCH($AB22&AH$18,InTWRR!$D:$D,0),0)) -> 1.201704436 | AI22: =IF(COUNTIF($AU:$AU,AI$18)=1,INDEX($AV:$AV,MATCH(AI$18,$AU:$AU,0)),INDEX(InTWRR!$C:$C,MATCH($AB22&AI$18,InTWRR!$D:$D,0),0)) ->  | AJ22: =IF(COUNTIF($AU:$AU,AJ$18)=1,INDEX($AV:$AV,MATCH(AJ$18,$AU:$AU,0)),INDEX(InTWRR!$C:$C,MATCH($AB22&AJ$18,InTWRR!$D:$D,0),0)) ->  | AK22: =IF(COUNTIF($AU:$AU,AK$18)=1,INDEX($AV:$AV,MATCH(AK$18,$AU:$AU,0)),INDEX(InTWRR!$C:$C,MATCH($AB22&AK$18,InTWRR!$D:$D,0),0)) ->  | AL22: 42790 | AM22: 1.017302 | AN22: 0 | AO22: 21054.2089 | AP22: 366842.2 | AQ22: 1.7302 | AR22: 0 | AS22: 2209.892581 | AU22: 42794 | AV22: 1.0139 | AW22: 0.0139
B23: 1 | C23: =IF(B23<=$B$19,X43,"") -> BTSGROUP-NVDR | H23: =IF(C23="","",AA43*100) -> 14.51125953 | S23: 1 | U23: Cost | V23: =SUMIFS(InTB!$H:$H,InTB!$G:$G,FundCode,InTB!$A:$A,V$11,InTB!$I:$I,100) -> 2666762.62 | W23: =SUMIFS(InTB!$H:$H,InTB!$G:$G,FundCode,InTB!$A:$A,W$11,InTB!$I:$I,100) -> 2296565.25 | X23: =SUMIFS(InTB!$H:$H,InTB!$G:$G,FundCode,InTB!$A:$A,X$11,InTB!$I:$I,100) -> 2008838.26 | AB23: =VLOOKUP(FundCode,FundData,MATCH("qIndexBenchmark",InFund!$2:$2,0),0) -> F4GAS | AC23: =INDEX(InIndex!$C:$C,MATCH($AB23&AC$18,InIndex!$D:$D,0),0) ->  | AD23: =INDEX(InIndex!$C:$C,MATCH($AB23&AD$18,InIndex!$D:$D,0),0) ->  | AE23: =INDEX(InIndex!$C:$C,MATCH($AB23&AE$18,InIndex!$D:$D,0),0) ->  | AF23: =INDEX(InIndex!$C:$C,MATCH($AB23&AF$18,InIndex!$D:$D,0),0) ->  | AG23: =INDEX(InIndex!$C:$C,MATCH($AB23&AG$18,InIndex!$D:$D,0),0) ->  | AH23: =INDEX(InIndex!$C:$C,MATCH($AB23&AH$18,InIndex!$D:$D,0),0) ->  | AI23: =INDEX(InIndex!$C:$C,MATCH($AB23&AI$18,InIndex!$D:$D,0),0) -> 17782.09633 | AJ23: 911.48 | AK23: =INDEX(InIndex!$C:$C,MATCH($AB23&AK$18,InIndex!$D:$D,0),0) ->  | AL23: 42793 | AM23: 1.014036 | AN23: 0 | AO23: 21000.33222 | AP23: 365665.57 | AQ23: 1.4036 | AR23: 0 | AS23: 2203.98168
B24: 2 | C24: =IF(B24<=$B$19,X44,"") -> TENAGA | H24: =IF(C24="","",AA44*100) -> 11.97107381 | S24: 2 | U24: 1000 | V24: =SUMIFS(InTB!$H:$H,InTB!$G:$G,FundCode,InTB!$A:$A,V$11,InTB!$J:$J,$U24) -> 2666762.62 | W24: =SUMIFS(InTB!$H:$H,InTB!$G:$G,FundCode,InTB!$A:$A,W$11,InTB!$J:$J,$U24) -> 2296565.25 | X24: =SUMIFS(InTB!$H:$H,InTB!$G:$G,FundCode,InTB!$A:$A,X$11,InTB!$J:$J,$U24) -> 2008838.26 | AD24: 1 month | AE24: 3 month | AF24: 6 month | AG24: YTD | AH24: 1 year | AI24: 3 year | AJ24: Inception | AK24: 5Year | AL24: 42794 | AM24: 1.013923 | AN24: 0 | AO24: 20979.222 | AP24: 365542.86 | AQ24: 1.3923 | AR24: 0 | AS24: 2201.665643
B25: 3 | C25: DBS GROUP HLDGS | H25: 10.53313887 | S25: 3 | U25: 1001 | V25: =SUMIFS(InTB!$H:$H,InTB!$G:$G,FundCode,InTB!$A:$A,V$11,InTB!$J:$J,$U25) -> 0 | W25: =SUMIFS(InTB!$H:$H,InTB!$G:$G,FundCode,InTB!$A:$A,W$11,InTB!$J:$J,$U25) -> 0 | X25: =SUMIFS(InTB!$H:$H,InTB!$G:$G,FundCode,InTB!$A:$A,X$11,InTB!$J:$J,$U25) -> 0 | AL25: 42795 | AM25: 1.016841 | AN25: 0 | AO25: 21032.09095 | AP25: 365975.87 | AQ25: 1.6841 | AR25: 0 | AS25: 2207.465984
B26: 4 | C26: AIRPORTHAINVDR | H26: 9.433850384 | S26: 4 | U26: 1002 | V26: =SUMIFS(InTB!$H:$H,InTB!$G:$G,FundCode,InTB!$A:$A,V$11,InTB!$J:$J,$U26) -> 0 | W26: =SUMIFS(InTB!$H:$H,InTB!$G:$G,FundCode,InTB!$A:$A,W$11,InTB!$J:$J,$U26) -> 0 | X26: =SUMIFS(InTB!$H:$H,InTB!$G:$G,FundCode,InTB!$A:$A,X$11,InTB!$J:$J,$U26) -> 0 | AI26: =_3Year -> 2015-12-31 | AJ26: =DATE(2017,1,31) -> 2017-01-31 | AK26: =_5Year -> 2013-12-31 | AL26: 42796 | AM26: 1.020484 | AN26: 0 | AO26: 21116.80923 | AP26: 367162.89 | AQ26: 2.0484 | AR26: 0 | AS26: 2216.760569
B27: 5 | C27: KASIKORNNVDR | H27: 8.958213957 | S27: 5 | U27: 1004 | V27: =SUMIFS(InTB!$H:$H,InTB!$G:$G,FundCode,InTB!$A:$A,V$11,InTB!$J:$J,$U27) -> 0 | W27: =SUMIFS(InTB!$H:$H,InTB!$G:$G,FundCode,InTB!$A:$A,W$11,InTB!$J:$J,$U27) -> 0 | X27: =SUMIFS(InTB!$H:$H,InTB!$G:$G,FundCode,InTB!$A:$A,X$11,InTB!$J:$J,$U27) -> 0 | AL27: 42797 | AM27: 1.016788 | AN27: 0 | AO27: 21063.24579 | AP27: 365422.66 | AQ27: 1.6788 | AR27: 0 | AS27: 2210.884034
B28: 6 | C28: SIAMCOMMBANKNVDR | H28: 7.715622647 | S28: 6 | U28: Other Cost | V28: =V23-V24-V25-V26-V27 -> 0 | W28: =W23-W24-W25-W26-W27 -> 0 | X28: =X23-X24-X25-X26-X27 -> 0 | AL28: 42800 | AM28: 1.017929 | AN28: 0 | AO28: 21114.47363 | AP28: 366327.11 | AQ28: 1.7929 | AR28: 0 | AS28: 2216.504326
B29: 7 | C29: CENTPATTANA-NVDR | H29: 7.589489199 | S29: 7 | U29: Market Cap | V29: Data Value | W29: Percentage | AL29: 42801 | AM29: 1.02231 | AN29: 0 | AO29: 21129.13338 | AP29: 367984.83 | AQ29: 2.231 | AR29: 0 | AS29: 2218.112672
B30: 8 | C30: PTTEPNVDR | H30: 7.446173751 | S30: 8 | U30: Large Cap | V30: =SUMIFS(InHolding!O:O,InHolding!X:X,$U30,InHolding!A:A,FundCode,InHolding!AB:AB,"EQT") -> 312981.11 | W30: =IF(V30=0,#N/A,V30/$V$33) -> 0.1580264863 | AI30: =IFERROR((A5ESG_Internal!$AC$22/A5ESG_Internal!$AI$22)^(365/(ValueDate-$AI$26))-1,"N.A") -> N.A | AJ30: =IFERROR((A5ESG_Internal!$AC$22/A5ESG_Internal!$AJ$22)^(365/(ValueDate-$AJ$26))-1,"N.A") -> N.A | AK30: =IFERROR((A5ESG_Internal!$AC$22/A5ESG_Internal!$AK$22)^(365/(ValueDate-$AK$26))-1,"N.A") -> N.A | AL30: 42802 | AM30: 1.021859 | AN30: 0 | AO30: 21153.02179 | AP30: 367244.88 | AQ30: 2.1859 | AR30: 0 | AS30: 2220.733509
B31: 9 | C31: PTTNVDR | H31: 7.041609103 | S31: 9 | U31: Mid Cap | V31: =SUMIFS(InHolding!O:O,InHolding!X:X,$U31,InHolding!A:A,FundCode,InHolding!AB:AB,"EQT") -> 0 | W31: =IF(V31=0,#N/A,V31/$V$33) ->  | AL31: 42803 | AM31: 1.017611 | AN31: 0 | AO31: 21100.819 | AP31: 365143.41 | AQ31: 1.7611 | AR31: 0 | AS31: 2215.006254
B32: 10 | C32: VALEINDO | H32: 6.068723687 | S32: 10 | U32: Small Cap | V32: =SUMIFS(InHolding!O:O,InHolding!X:X,$U32,InHolding!A:A,FundCode,InHolding!AB:AB,"EQT") -> 1667579.98 | W32: =IF(V32=0,#N/A,V32/$V$33) -> 0.8419735137 | AI32: 3 year Annual | AJ32: Inception Annual | AK32: 5 Year Annual | AL32: 42804 | AM32: 1.016868 | AN32: 0 | AO32: 21082.91107 | AP32: 365698.1 | AQ32: 1.6868 | AR32: 0 | AS32: 2213.041545
C33: Total | H33: =SUM(H23:H32) -> 91.26915494 | U33: Total | V33: =V30+V31+V32 -> 1980561.09 | AL33: 42807 | AM33: 1.015602 | AN33: 0 | AO33: 21163.03671 | AP33: 365571.76 | AQ33: 1.5602 | AR33: 0 | AS33: 2221.832263
AL34: 42808 | AM34: 1.014789 | AN34: 0 | AO34: 21187.13521 | AP34: 365031.7 | AQ34: 1.4789 | AR34: 0 | AS34: 2224.47615
B35: Top Sales & Purchases (YTD) | J35: Sector Allocation | AL35: 42809 | AM35: 1.014239 | AN35: 0 | AO35: 21150.64922 | AP35: 364997.67 | AQ35: 1.4239 | AR35: 0 | AS35: 2220.473211
C36: Top Purchases | G36: Top Sales | AL36: 42810 | AM36: 1.021079 | AN36: 0 | AO36: 21443.99438 | AP36: 368370.61 | AQ36: 2.1079 | AR36: 0 | AS36: 2252.6566
B37: =IF(C37="","",$S37) -> 1 | C37: =IF(ISNA(MATCH("YP_"&FundCode&$S37,TopEqtPS!$H:$H,0)),"",INDEX(TopEqtPSData,MATCH("YP_"&FundCode&$S37,TopEqtPS!$H:$H,0)-1,3)) -> TENAGA | F37: =IF(G37="","",$S37) -> 1 | G37: =IF(ISNA(MATCH("Ys_"&FundCode&$S37,TopEqtPS!$H:$H,0)),"",INDEX(TopEqtPSData,MATCH("Ys_"&FundCode&$S37,TopEqtPS!$H:$H,0)-1,3)) -> ASTRO | S37: 1 | AB37: Country Allocation | AL37: 42811 | AM37: 1.026604 | AN37: 0 | AO37: 21615.92338 | AP37: 370448.29 | AQ37: 2.6604 | AR37: 0 | AS37: 2271.519219
B38: =IF(C38="","",$S38) -> 2 | C38: =IF(ISNA(MATCH("YP_"&FundCode&$S38,TopEqtPS!$H:$H,0)),"",INDEX(TopEqtPSData,MATCH("YP_"&FundCode&$S38,TopEqtPS!$H:$H,0)-1,3)) -> ASTRO | F38: =IF(G38="","",$S38) -> 2 | G38: =IF(ISNA(MATCH("Ys_"&FundCode&$S38,TopEqtPS!$H:$H,0)),"",INDEX(TopEqtPSData,MATCH("Ys_"&FundCode&$S38,TopEqtPS!$H:$H,0)-1,3)) -> THAIUNION-NVDR | S38: 2 | U38: Sector | X38: Top Holding - EQT | AB38: EQT | AL38: 42814 | AM38: 1.027184 | AN38: 0 | AO38: 21633.722 | AP38: 371410.57 | AQ38: 2.7184 | AR38: 0 | AS38: 2273.471936
B39: 3 | C39: =IF(ISNA(MATCH("YP_"&FundCode&$S39,TopEqtPS!$H:$H,0)),"",INDEX(TopEqtPSData,MATCH("YP_"&FundCode&$S39,TopEqtPS!$H:$H,0)-1,3)) -> KASIKORNNVDR | F39: 3 | G39: =IF(ISNA(MATCH("Ys_"&FundCode&$S39,TopEqtPS!$H:$H,0)),"",INDEX(TopEqtPSData,MATCH("Ys_"&FundCode&$S39,TopEqtPS!$H:$H,0)-1,3)) -> SIMEPROP | S39: 3 | U39: EQT | X39: qFundCode | Y39: ASEAN5ESG | AL39: 42815 | AM39: 1.032032 | AN39: 0 | AO39: 21680.61744 | AP39: 373332.26 | AQ39: 3.2032 | AR39: 0 | AS39: 2278.616913
B40: 4 | C40: =IF(ISNA(MATCH("YP_"&FundCode&$S40,TopEqtPS!$H:$H,0)),"",INDEX(TopEqtPSData,MATCH("YP_"&FundCode&$S40,TopEqtPS!$H:$H,0)-1,3)) -> AIRPORTHAINVDR | F40: 4 | G40: =IF(ISNA(MATCH("Ys_"&FundCode&$S40,TopEqtPS!$H:$H,0)),"",INDEX(TopEqtPSData,MATCH("Ys_"&FundCode&$S40,TopEqtPS!$H:$H,0)-1,3)) -> KEPPEL CORP LTD | S40: 4 | U40: qFundCode | V40: ASEAN5ESG | AB40: qFundCode | AC40: ASEAN5ESG | AL40: 42816 | AM40: 1.030348 | AN40: 0 | AO40: 21628.67399 | AP40: 372555.31 | AQ40: 3.0348 | AR40: 0 | AS40: 2272.91811
B41: 5 | C41: =IF(ISNA(MATCH("YP_"&FundCode&$S41,TopEqtPS!$H:$H,0)),"",INDEX(TopEqtPSData,MATCH("YP_"&FundCode&$S41,TopEqtPS!$H:$H,0)-1,3)) -> AIRPORT | F41: 5 | G41: =IF(ISNA(MATCH("Ys_"&FundCode&$S41,TopEqtPS!$H:$H,0)),"",INDEX(TopEqtPSData,MATCH("Ys_"&FundCode&$S41,TopEqtPS!$H:$H,0)-1,3)) -> BDOUNIBANK | S41: 5 | U41: qProductType | V41: (All) | X41: Sum of Perc_Eqt | AB41: qProductType | AC41: EQT | AL41: 42817 | AM41: 1.029406 | AN41: 0 | AO41: 21691.80258 | AP41: 372047.02 | AQ41: 2.9406 | AR41: 0 | AS41: 2279.844054
B42: 6 | C42: =IF(ISNA(MATCH("YP_"&FundCode&$S42,TopEqtPS!$H:$H,0)),"",INDEX(TopEqtPSData,MATCH("YP_"&FundCode&$S42,TopEqtPS!$H:$H,0)-1,3)) -> BDOUNIBANK | F42: 6 | G42: =IF(ISNA(MATCH("Ys_"&FundCode&$S42,TopEqtPS!$H:$H,0)),"",INDEX(TopEqtPSData,MATCH("Ys_"&FundCode&$S42,TopEqtPS!$H:$H,0)-1,3)) -> LANDHOUSESNVDR | S42: 6 | X42: StockName | Y42: Description | Z42: Country | AA42: Total | AL42: 42818 | AM42: 1.028768 | AN42: 0 | AO42: 21720.68591 | AP42: 372151.47 | AQ42: 2.8768 | AR42: 0 | AS42: 2283.012892
B43: 7 | C43: =IF(ISNA(MATCH("YP_"&FundCode&$S43,TopEqtPS!$H:$H,0)),"",INDEX(TopEqtPSData,MATCH("YP_"&FundCode&$S43,TopEqtPS!$H:$H,0)-1,3)) -> FGV | F43: 7 | G43: =IF(ISNA(MATCH("Ys_"&FundCode&$S43,TopEqtPS!$H:$H,0)),"",INDEX(TopEqtPSData,MATCH("Ys_"&FundCode&$S43,TopEqtPS!$H:$H,0)-1,3)) -> RHBBANK | S43: 7 | U43: Row Labels | V43: Sum of MarketValueFC | X43: BTSGROUP-NVDR | Y43: BTS Group Holdings Plc | Z43: Thailand | AA43: 0.1451125953 | AB43: Row Labels | AC43: Sum of MarketValueFC | AL43: 42821 | AM43: 1.026808 | AN43: 0 | AO43: 21632.14744 | AP43: 372623.08 | AQ43: 2.6808 | AR43: 0 | AS43: 2273.299188
B44: 8 | C44: =IF(ISNA(MATCH("YP_"&FundCode&$S44,TopEqtPS!$H:$H,0)),"",INDEX(TopEqtPSData,MATCH("YP_"&FundCode&$S44,TopEqtPS!$H:$H,0)-1,3)) -> VALEINDO | F44: 8 | G44: =IF(ISNA(MATCH("Ys_"&FundCode&$S44,TopEqtPS!$H:$H,0)),"",INDEX(TopEqtPSData,MATCH("Ys_"&FundCode&$S44,TopEqtPS!$H:$H,0)-1,3)) -> CITYDEV | S44: 8 | U44: FINANCIALS | V44: 689165.24 | X44: TENAGA | Y44: Tenaga Nasional Bhd | Z44: Malaysia | AA44: 0.1197107381 | AB44: Thailand | AC44: 1241736.91 | AL44: 42822 | AM44: 1.031071 | AN44: 0 | AO44: 21764.77803 | AP44: 373915.47 | AQ44: 3.1071 | AR44: 0 | AS44: 2287.850313
B45: 9 | C45: =IF(ISNA(MATCH("YP_"&FundCode&$S45,TopEqtPS!$H:$H,0)),"",INDEX(TopEqtPSData,MATCH("YP_"&FundCode&$S45,TopEqtPS!$H:$H,0)-1,3)) -> RHBBANK | F45: 9 | G45: =IF(ISNA(MATCH("Ys_"&FundCode&$S45,TopEqtPS!$H:$H,0)),"",INDEX(TopEqtPSData,MATCH("Ys_"&FundCode&$S45,TopEqtPS!$H:$H,0)-1,3)) -> PCHEM | S45: 9 | U45: CASH | V45: 468624.3 | X45: DBS GROUP HLDGS | Y45: DBS Group Holdings | Z45: Singapore | AA45: 0.1053313887 | AB45: Malaysia | AC45: 312981.11 | AL45: 42823 | AM45: 1.032032 | AN45: 0 | AO45: 21839.86462 | AP45: 373840.57 | AQ45: 3.2032 | AR45: 0 | AS45: 2296.088188
B46: 10 | C46: =IF(ISNA(MATCH("YP_"&FundCode&$S46,TopEqtPS!$H:$H,0)),"",INDEX(TopEqtPSData,MATCH("YP_"&FundCode&$S46,TopEqtPS!$H:$H,0)-1,3)) -> DBS GROUP HLDGS | F46: 10 | G46: =IF(ISNA(MATCH("Ys_"&FundCode&$S46,TopEqtPS!$H:$H,0)),"",INDEX(TopEqtPSData,MATCH("Ys_"&FundCode&$S46,TopEqtPS!$H:$H,0)-1,3)) -> UNITTRACTORS | S46: 10 | U46: INDUSTRIALS | V46: 359762.89 | X46: AIRPORTHAINVDR | Y46: AIRPORTS OF THAILAND | Z46: Thailand | AA46: 0.09433850384 | AB46: Indonesia | AC46: 217227.82 | AL46: 42824 | AM46: 1.031505 | AN46: 0 | AO46: 21860.7517 | AP46: 373480.25 | AQ46: 3.1505 | AR46: 0 | AS46: 2298.379745
U47: CONSUMER SERVICES | V47: 287404.36 | X47: KASIKORNNVDR | Y47: Kasikornbank (NVDR) | Z47: Thailand | AA47: 0.08958213957 | AB47: Singapore | AC47: 208615.25 | AL47: 42825 | AM47: 1.031063 | AN47: 0 | AO47: 21783.20053 | AP47: 1050966.71 | AQ47: 3.1063 | AR47: 0 | AS47: 2289.871476
U48: OIL & GAS | V48: 286939.39 | X48: SIAMCOMMBANKNVDR | Y48: Siam Commercial Bank (NVDR) | Z48: Thailand | AA48: 0.07715622647 | AL48: 42828 | AM48: 1.031023 | AN48: 0 | AO48: 21871.28771 | AP48: 1050216.5 | AQ48: 3.1023 | AR48: 0 | AS48: 2299.535668
U49: UTILITIES | V49: 237094.43 | X49: CENTPATTANA-NVDR | Y49: Central Pattana | Z49: Thailand | AA49: 0.07589489199 | AL49: 42829 | AM49: 1.031867 | AN49: 0 | AO49: 21959.76204 | AP49: 1050123.78 | AQ49: 3.1867 | AR49: 0 | AS49: 2309.242336
U50: BASIC MATERIALS | V50: 120194.78 | X50: PTTEPNVDR | Y50: PTT Exploration & Production | Z50: Thailand | AA50: 0.07446173751 | AL50: 42830 | AM50: 1.03501 | AN50: 0 | AO50: 22020.65208 | AP50: 1053441.37 | AQ50: 3.501 | AR50: 0 | AS50: 2315.922684
X51: PTTNVDR | Y51: PTT PCL | Z51: Thailand | AA51: 0.07041609103 | AL51: 42831 | AM51: 1.033683 | AN51: 0 | AO51: 22036.35282 | AP51: 1050787.64 | AQ51: 3.3683 | AR51: 0 | AS51: 2317.645239
X52: VALEINDO | Y52: Vale Indonesia | Z52: Indonesia | AA52: 0.06068723687 | AL52: 42832 | AM52: 1.035431 | AN52: 0 | AO52: 22028.40551 | AP52: 1052920.29 | AQ52: 3.5431 | AR52: 0 | AS52: 2316.773326
X53: UNITTRACTORS | Y53: United Tractors | Z53: Indonesia | AA53: 0.04899270237 | AL53: 42835 | AM53: 1.035203 | AN53: 0 | AO53: 22026.07203 | AP53: 1052808.86 | AQ53: 3.5203 | AR53: 0 | AS53: 2316.517316
X54: AIRPORT | Y54: Malaysia Airports Holdings Bhd | Z54: Malaysia | AA54: 0.03831574819 | AL54: 42836 | AM54: 1.034102 | AN54: 0 | AO54: 21997.89646 | AP54: 1052162.65 | AQ54: 3.4102 | AR54: 0 | AS54: 2313.426127
AL55: 42837 | AM55: 1.037915 | AN55: 0 | AO55: 22091.35217 | AP55: 1057472.27 | AQ55: 3.7915 | AR55: 0 | AS55: 2323.679309
AL56: 42838 | AM56: 1.03463 | AN56: 0 | AO56: 21948.33669 | AP56: 1057710.7 | AQ56: 3.463 | AR56: 0 | AS56: 2307.988841
AL57: 42839 | AM57: 1.032549 | AN57: 0 | AO57: 21902.44756 | AP57: 1055584.87 | AQ57: 3.2549 | AR57: 0 | AS57: 2302.954268
AL58: 42842 | AM58: 1.032715 | AN58: 0 | AO58: 21790.65593 | AP58: 1057434.05 | AQ58: 3.2715 | AR58: 0 | AS58: 2290.689421
AL59: 42843 | AM59: 1.033271 | AN59: 0 | AO59: 21809.7549 | AP59: 1056564.45 | AQ59: 3.3271 | AR59: 0 | AS59: 2292.784801
AL60: 42844 | AM60: 1.029535 | AN60: 0 | AO60: 21746.7194 | AP60: 1055254.13 | AQ60: 2.9535 | AR60: 0 | AS60: 2285.86907
AL61: 42845 | AM61: 1.028967 | AN61: 0 | AO61: 21720.45538 | AP61: 1055273.75 | AQ61: 2.8967 | AR61: 0 | AS61: 2282.9876
AL62: 42846 | AM62: 1.032334 | AN62: 0 | AO62: 21847.73468 | AP62: 1058243.3 | AQ62: 3.2334 | AR62: 0 | AS62: 2296.951626
AL63: 42850 | AM63: 1.033478 | AN63: 0 | AO63: 21825.37113 | AP63: 1101810.36 | AQ63: 3.3478 | AR63: 0 | AS63: 2294.498083
AL64: 42851 | AM64: 1.032275 | AN64: 0 | AO64: 21866.45989 | AP64: 1105358.1 | AQ64: 3.2275 | AR64: 0 | AS64: 2299.006
AL65: 42852 | AM65: 1.031251 | AN65: 0 | AO65: 21759.0723 | AP65: 1104515.52 | AQ65: 3.1251 | AR65: 0 | AS65: 2287.224327
AL66: 42853 | AM66: 1.030677 | AN66: 0 | AO66: 21715.28383 | AP66: 1105430.03 | AQ66: 3.0677 | AR66: 0 | AS66: 2282.420221
AL67: 42855 | AM67: 1.030682 | AN67: 0 | AP67: 1105432.71 | AQ67: 3.0682 | AR67: 0 | AS67: 0
AL68: 42857 | AM68: 1.033062 | AN68: 0 | AO68: 21719.76341 | AP68: 1111316.2 | AQ68: 3.3062 | AR68: 0 | AS68: 2282.911683
AL69: 42858 | AM69: 1.030749 | AN69: 0 | AO69: 21720.31147 | AP69: 1111138.88 | AQ69: 3.0749 | AR69: 0 | AS69: 2282.971812
AL70: 42859 | AM70: 1.029882 | AN70: 0 | AO70: 21806.35482 | AP70: 1107896.63 | AQ70: 2.9882 | AR70: 0 | AS70: 2292.411772
AL71: 42860 | AM71: 1.033169 | AN71: 0 | AO71: 21835.9813 | AP71: 1109122.57 | AQ71: 3.3169 | AR71: 0 | AS71: 2295.662143
AL72: 42863 | AM72: 1.035788 | AN72: 0 | AO72: 21925.58251 | AP72: 1111936.6 | AQ72: 3.5788 | AR72: 0 | AS72: 2305.492442
AL73: 42864 | AM73: 1.034123 | AN73: 0 | AO73: 21874.8343 | AP73: 1107590.66 | AQ73: 3.4123 | AR73: 0 | AS73: 2299.924771
AL74: 42866 | AM74: 1.037121 | AN74: 0 | AO74: 21849.99927 | AP74: 1110547.89 | AQ74: 3.7121 | AR74: 0 | AS74: 2297.200078
AL75: 42867 | AM75: 1.035427 | AN75: 0 | AO75: 21815.61911 | AP75: 2721249.23 | AQ75: 3.5427 | AR75: 0 | AS75: 2293.428173
AL76: 42870 | AM76: 1.035513 | AN76: 0 | AO76: 21865.62416 | AP76: 2730227.06 | AQ76: 3.5513 | AR76: 0 | AS76: 2298.914311
AL77: 42871 | AM77: 1.034895 | AN77: 0 | AO77: 21798.75653 | AP77: 2731756.99 | AQ77: 3.4895 | AR77: 0 | AS77: 2291.578151
AL78: 42872 | AM78: 1.031682 | AN78: 0 | AO78: 21747.1752 | AP78: 2722647.16 | AQ78: 3.1682 | AR78: 0 | AS78: 2285.919077
AL79: 42873 | AM79: 1.031972 | AN79: 0 | AO79: 21787.9323 | AP79: 2720267.07 | AQ79: 3.1972 | AR79: 0 | AS79: 2290.390606
AL80: 42874 | AM80: 1.032555 | AN80: 0 | AO80: 21956.22366 | AP80: 2726842.32 | AQ80: 3.2555 | AR80: 0 | AS80: 2308.854134
AL81: 42877 | AM81: 1.03426 | AN81: 0 | AO81: 21964.8132 | AP81: 2740866.52 | AQ81: 3.426 | AR81: 0 | AS81: 2309.796507
AL82: 42878 | AM82: 1.033694 | AN82: 0 | AO82: 21895.13689 | AP82: 2746389.6 | AQ82: 3.3694 | AR82: 0 | AS82: 2302.152202
AL83: 42879 | AM83: 1.034513 | AN83: 0 | AO83: 21870.71855 | AP83: 2749202.16 | AQ83: 3.4513 | AR83: 0 | AS83: 2299.473225
AL84: 42880 | AM84: 1.031288 | AN84: 0 | AO84: 21862.92577 | AP84: 2750894.13 | AQ84: 3.1288 | AR84: 0 | AS84: 2298.618266
AL85: 42881 | AM85: 1.03147 | AN85: 0 | AO85: 21912.3789 | AP85: 2756538.6 | AQ85: 3.147 | AR85: 0 | AS85: 2304.043852
AL86: 42884 | AM86: 1.031586 | AN86: 0 | AO86: 21901.69338 | AP86: 2852348.63 | AQ86: 3.1586 | AR86: 0 | AS86: 2302.871525
AL87: 42885 | AM87: 1.034409 | AN87: 0 | AO87: 21871.48858 | AP87: 2849065.17 | AQ87: 3.4409 | AR87: 0 | AS87: 2299.557706
AL88: 42886 | AM88: 1.03691 | AN88: 0 | AO88: 21963.3008 | AP88: 2857957.48 | AQ88: 3.691 | AR88: 0 | AS88: 2309.630579
AL89: 42887 | AM89: 1.037399 | AN89: 0 | AO89: 21939.50912 | AP89: 2853901.34 | AQ89: 3.7399 | AR89: 0 | AS89: 2307.020354
AL90: 42888 | AM90: 1.037298 | AN90: 0 | AO90: 22049.76104 | AP90: 2858551.1 | AQ90: 3.7298 | AR90: 0 | AS90: 2319.116277
AL91: 42891 | AM91: 1.037209 | AN91: 0 | AO91: 22099.46429 | AP91: 2869508.33 | AQ91: 3.7209 | AR91: 0 | AS91: 2324.569304
AL92: 42892 | AM92: 1.037181 | AN92: 0 | AO92: 22080.54917 | AP92: 2868150.33 | AQ92: 3.7181 | AR92: 0 | AS92: 2322.494094
AL93: 42893 | AM93: 1.037229 | AN93: 0 | AO93: 22051.41007 | AP93: 2872328.07 | AQ93: 3.7229 | AR93: 0 | AS93: 2319.297195
AL94: 42894 | AM94: 1.037258 | AN94: 0 | AO94: 21999.4126 | AP94: 2867024 | AQ94: 3.7258 | AR94: 0 | AS94: 2313.592465
AL95: 42895 | AM95: 1.036013 | AN95: 0 | AO95: 21972.95586 | AP95: 2865861.99 | AQ95: 3.6013 | AR95: 0 | AS95: 2310.689852
AL96: 42899 | AM96: 1.035705 | AN96: 0 | AO96: 22030.07769 | AP96: 2866759.2 | AQ96: 3.5705 | AR96: 0 | AS96: 2316.956783
AL97: 42900 | AM97: 1.038521 | AN97: 0 | AO97: 22159.57302 | AP97: 2877522.42 | AQ97: 3.8521 | AR97: 0 | AS97: 2331.163933
AL98: 42901 | AM98: 1.037394 | AN98: 0 | AO98: 22105.97387 | AP98: 2868074.21 | AQ98: 3.7394 | AR98: 0 | AS98: 2325.283481
AL99: 42902 | AM99: 1.034506 | AN99: 0 | AO99: 22097.85334 | AP99: 2854061.23 | AQ99: 3.4506 | AR99: 0 | AS99: 2324.392564
AL100: 42905 | AM100: 1.037612 | AN100: 0 | AO100: 22181.48955 | AP100: 2861961.08 | AQ100: 3.7612 | AR100: 0 | AS100: 2333.568433
AL101: 42906 | AM101: 1.035053 | AN101: 0 | AO101: 22278.08212 | AP101: 2850897.92 | AQ101: 3.5053 | AR101: 0 | AS101: 2344.165766
AL102: 42907 | AM102: 1.034935 | AN102: 0 | AO102: 22166.82389 | AP102: 2847116.64 | AQ102: 3.4935 | AR102: 0 | AS102: 2331.959438
AL103: 42908 | AM103: 1.033698 | AN103: 0 | AO103: 22158.46201 | AP103: 2842392.18 | AQ103: 3.3698 | AR103: 0 | AS103: 2331.042043
AL104: 42909 | AM104: 1.038069 | AN104: 0 | AO104: 22191.7068 | AP104: 2855201.52 | AQ104: 3.8069 | AR104: 0 | AS104: 2334.689384
AL105: 42914 | AM105: 1.038614 | AN105: 0 | AO105: 22220.18639 | AP105: 2850320.36 | AQ105: 3.8614 | AR105: 0 | AS105: 2337.813928
AL106: 42915 | AM106: 1.03884 | AN106: 0 | AO106: 22289.45406 | AP106: 2854659.54 | AQ106: 3.884 | AR106: 0 | AS106: 2345.4134
AL107: 42916 | AM107: 1.036214 | AN107: 0 | AO107: 22259.19336 | AP107: 2847973.65 | AQ107: 3.6214 | AR107: 0 | AS107: 2342.093448
AL108: 42919 | AM108: 1.044267 | AN108: 0 | AO108: 22405.73175 | AP108: 2863839.9 | AQ108: 4.4267 | AR108: 0 | AS108: 2358.170421
AL109: 42920 | AM109: 1.040087 | AN109: 0 | AO109: 22294.6722 | AP109: 2854695.74 | AQ109: 4.0087 | AR109: 0 | AS109: 2345.985891
AL110: 42921 | AM110: 1.039759 | AN110: 0 | AO110: 22312.97669 | AP110: 2854459.33 | AQ110: 3.9759 | AR110: 0 | AS110: 2347.994107
AL111: 42922 | AM111: 1.039805 | AN111: 0 | AO111: 22282.23332 | AP111: 2853260.12 | AQ111: 3.9805 | AR111: 0 | AS111: 2344.621201
AL112: 42923 | AM112: 1.035422 | AN112: 0 | AO112: 22236.81536 | AP112: 2841227.34 | AQ112: 3.5422 | AR112: 0 | AS112: 2339.63832
AL113: 42926 | AM113: 1.035567 | AN113: 0 | AO113: 22186.8768 | AP113: 2842958.03 | AQ113: 3.5567 | AR113: 0 | AS113: 2334.159477
AL114: 42927 | AM114: 1.038171 | AN114: 0 | AO114: 22148.59732 | AP114: 2849439.26 | AQ114: 3.8171 | AR114: 0 | AS114: 2329.959771
AL115: 42928 | AM115: 1.045325 | AN115: 0 | AO115: 22264.07305 | AP115: 2871749.65 | AQ115: 4.5325 | AR115: 0 | AS115: 2342.628807
AL116: 42929 | AM116: 1.043836 | AN116: 0 | AO116: 22344.76328 | AP116: 2868662.8 | AQ116: 4.3836 | AR116: 0 | AS116: 2351.481468
AL117: 42930 | AM117: 1.043867 | AN117: 0 | AO117: 22377.86275 | AP117: 2868407.46 | AQ117: 4.3867 | AR117: 0 | AS117: 2355.112866
AL118: 42933 | AM118: 1.046303 | AN118: 0 | AO118: 22435.07691 | AP118: 2878453.96 | AQ118: 4.6303 | AR118: 0 | AS118: 2361.389927
AL119: 42934 | AM119: 1.047301 | AN119: 0 | AO119: 22497.65727 | AP119: 2882542.22 | AQ119: 4.7301 | AR119: 0 | AS119: 2368.255724
AL120: 42935 | AM120: 1.04798 | AN120: 0 | AO120: 22525.91328 | AP120: 2884077.79 | AQ120: 4.798 | AR120: 0 | AS120: 2371.355738
AL121: 42936 | AM121: 1.048129 | AN121: 0 | AO121: 22462.33327 | AP121: 2880791.13 | AQ121: 4.8129 | AR121: 0 | AS121: 2364.380268
AL122: 42937 | AM122: 1.047082 | AN122: 0 | AO122: 22499.87973 | AP122: 2883289.31 | AQ122: 4.7082 | AR122: 0 | AS122: 2368.499553
AL123: 42940 | AM123: 1.04818 | AN123: 0 | AO123: 22571.1558 | AP123: 2890361.24 | AQ123: 4.818 | AR123: 0 | AS123: 2376.319371
AL124: 42941 | AM124: 1.049743 | AN124: 0 | AO124: 22671.41297 | AP124: 2891963.23 | AQ124: 4.9743 | AR124: 0 | AS124: 2387.318753
AL125: 42942 | AM125: 1.050844 | AN125: 0 | AO125: 22731.66325 | AP125: 2893308.17 | AQ125: 5.0844 | AR125: 0 | AS125: 2393.928912
AL126: 42943 | AM126: 1.050652 | AN126: 0 | AO126: 22781.78534 | AP126: 2897184.12 | AQ126: 5.0652 | AR126: 0 | AS126: 2399.427891
AL127: 42944 | AM127: 1.052261 | AN127: 0 | AO127: 22780.27735 | AP127: 2899243.74 | AQ127: 5.2261 | AR127: 0 | AS127: 2399.262447
AL128: 42947 | AM128: 1.053171 | AN128: 0 | AO128: 22736.46904 | AP128: 2901416.46 | AQ128: 5.3171 | AR128: 0 | AS128: 2394.456164
AL129: 42948 | AM129: 1.054387 | AN129: 0 | AO129: 22765.96157 | AP129: 2902054.77 | AQ129: 5.4387 | AR129: 0 | AS129: 2397.691839
AL130: 42949 | AM130: 1.0558 | AN130: 0 | AO130: 22833.38827 | AP130: 2905946.61 | AQ130: 5.58 | AR130: 0 | AS130: 2405.089335
AL131: 42950 | AM131: 1.051064 | AN131: 0 | AO131: 22732.50813 | AP131: 2896285.49 | AQ131: 5.1064 | AR131: 0 | AS131: 2394.021606
AL132: 42951 | AM132: 1.051945 | AN132: 0 | AO132: 22714.09014 | AP132: 2900067.52 | AQ132: 5.1945 | AR132: 0 | AS132: 2392.000937
AL133: 42954 | AM133: 1.050679 | AN133: 0 | AO133: 22680.86692 | AP133: 2893197.48 | AQ133: 5.0679 | AR133: 0 | AS133: 2388.355962
AL134: 42955 | AM134: 1.053448 | AN134: 0 | AO134: 22741.33488 | AP134: 2899462.47 | AQ134: 5.3448 | AR134: 0 | AS134: 2394.990003
AL135: 42956 | AM135: 1.053586 | AN135: 0 | AO135: 22783.70413 | AP135: 2897816.76 | AQ135: 5.3586 | AR135: 0 | AS135: 2399.638405
AL136: 42957 | AM136: 1.054186 | AN136: 0 | AO136: 22800.75667 | AP136: 2897439.54 | AQ136: 5.4186 | AR136: 0 | AS136: 2401.509267
AL137: 42958 | AM137: 1.046416 | AN137: 0 | AO137: 22654.16218 | AP137: 2873745.15 | AQ137: 4.6416 | AR137: 0 | AS137: 2385.42614
AL138: 42961 | AM138: 1.049935 | AN138: 0 | AO138: 22738.22573 | AP138: 2884406.53 | AQ138: 4.9935 | AR138: 0 | AS138: 2394.648893
AL139: 42962 | AM139: 1.05264 | AN139: 0 | AO139: 22750.73962 | AP139: 2890496.27 | AQ139: 5.264 | AR139: 0 | AS139: 2396.021813
AL140: 42963 | AM140: 1.050986 | AN140: 0 | AO140: 22761.59272 | AP140: 2884607.21 | AQ140: 5.0986 | AR140: 0 | AS140: 2397.212525
AL141: 42964 | AM141: 1.049947 | AN141: 0 | AO141: 22782.54592 | AP141: 2883104.04 | AQ141: 4.9947 | AR141: 0 | AS141: 2399.511335
AL142: 42965 | AM142: 1.050646 | AN142: 0 | AO142: 22730.41653 | AP142: 2889059.79 | AQ142: 5.0646 | AR142: 0 | AS142: 2393.792133
AL143: 42968 | AM143: 1.046763 | AN143: 0 | AO143: 22713.93642 | AP143: 2880062.46 | AQ143: 4.6763 | AR143: 0 | AS143: 2391.984072
AL144: 42969 | AM144: 1.048475 | AN144: 0 | AO144: 22754.73508 | AP144: 2889152.85 | AQ144: 4.8475 | AR144: 0 | AS144: 2396.460161
AL145: 42970 | AM145: 1.048136 | AN145: 0 | AO145: 22764.24149 | AP145: 2888888.43 | AQ145: 4.8136 | AR145: 0 | AS145: 2397.503126
AL146: 42971 | AM146: 1.052816 | AN146: 0 | AO146: 22775.58459 | AP146: 2901793.29 | AQ146: 5.2816 | AR146: 0 | AS146: 2398.747596
AL147: 42972 | AM147: 1.053404 | AN147: 0 | AO147: 22757.08245 | AP147: 2908172.92 | AQ147: 5.3404 | AR147: 0 | AS147: 2396.717695
AL148: 42975 | AM148: 1.056249 | AN148: 0 | AO148: 22837.55186 | AP148: 2919442.83 | AQ148: 5.6249 | AR148: 0 | AS148: 2405.546129
AL149: 42976 | AM149: 1.058816 | AN149: 0 | AO149: 22936.18348 | AP149: 2927224.14 | AQ149: 5.8816 | AR149: 0 | AS149: 2416.36717
AL150: 42977 | AM150: 1.06068 | AN150: 0 | AO150: 22993.85813 | AP150: 2929629.32 | AQ150: 6.068 | AR150: 0 | AS150: 2422.694752
AL151: 42978 | AM151: 1.060582 | AN151: 0 | AO151: 23003.62904 | AP151: 2929359.36 | AQ151: 6.0582 | AR151: 0 | AS151: 2423.766735
AL152: 42983 | AM152: 1.059881 | AN152: 0 | AO152: 22937.98704 | AP152: 2934639.77 | AQ152: 5.9881 | AR152: 0 | AS152: 2416.565041
AL153: 42984 | AM153: 1.058212 | AN153: 0 | AO153: 22740.97441 | AP153: 2944884.47 | AQ153: 5.8212 | AR153: 0 | AS153: 2394.950455
AL154: 42985 | AM154: 1.063092 | AN154: 0 | AO154: 22863.92889 | AP154: 2978856.26 | AQ154: 6.3092 | AR154: 0 | AS154: 2408.439998
AL155: 42986 | AM155: 1.062576 | AN155: 0 | AO155: 22908.36182 | AP155: 2988779.66 | AQ155: 6.2576 | AR155: 0 | AS155: 2413.314809
AL156: 42989 | AM156: 1.063749 | AN156: 0 | AO156: 22895.14895 | AP156: 2989217.77 | AQ156: 6.3749 | AR156: 0 | AS156: 2411.865203
AL157: 42990 | AM157: 1.064942 | AN157: 0 | AO157: 22965.47748 | AP157: 2985457.2 | AQ157: 6.4942 | AR157: 0 | AS157: 2419.581064
AL158: 42991 | AM158: 1.058034 | AN158: 0 | AO158: 22870.96512 | AP158: 2977416.39 | AQ158: 5.8034 | AR158: 0 | AS158: 2409.211954
AL159: 42992 | AM159: 1.057003 | AN159: 0 | AO159: 22968.85973 | AP159: 2964610.83 | AQ159: 5.7003 | AR159: 0 | AS159: 2419.952136
AL160: 42993 | AM160: 1.063714 | AN160: 0 | AO160: 22937.54183 | AP160: 2994834.74 | AQ160: 6.3714 | AR160: 0 | AS160: 2416.516197
AL161: 42996 | AM161: 1.063995 | AN161: 0 | AO161: 23071.29833 | AP161: 2996692.12 | AQ161: 6.3995 | AR161: 0 | AS161: 2431.190847
AL162: 42997 | AM162: 1.063225 | AN162: 0 | AO162: 23043.2868 | AP162: 2992031.76 | AQ162: 6.3225 | AR162: 0 | AS162: 2428.117655
AL163: 42998 | AM163: 1.065994 | AN163: 0 | AO163: 23007.34356 | AP163: 3002688.95 | AQ163: 6.5994 | AR163: 0 | AS163: 2424.174262
AL164: 42999 | AM164: 1.065746 | AN164: 0 | AO164: 22973.63476 | AP164: 2994835.19 | AQ164: 6.5746 | AR164: 0 | AS164: 2420.476013
AL165: 43003 | AM165: 1.059669 | AN165: 0 | AO165: 22973.20721 | AP165: 2973500.97 | AQ165: 5.9669 | AR165: 0 | AS165: 2420.429105
AL166: 43004 | AM166: 1.060354 | AN166: 0 | AO166: 22928.54472 | AP166: 2973309.61 | AQ166: 6.0354 | AR166: 0 | AS166: 2415.529109
AL167: 43005 | AM167: 1.060655 | AN167: 0 | AO167: 22968.17897 | AP167: 2963576.54 | AQ167: 6.0655 | AR167: 0 | AS167: 2419.877449
AL168: 43006 | AM168: 1.057162 | AN168: 0 | AO168: 22849.67262 | AP168: 2946828.89 | AQ168: 5.7162 | AR168: 0 | AS168: 2406.875918
AL169: 43007 | AM169: 1.061299 | AN169: 0 | AO169: 22927.64719 | AP169: 2964667.98 | AQ169: 6.1299 | AR169: 0 | AS169: 2415.430639
AL170: 43008 | AM170: 1.061282 | AN170: 0 | AP170: 2964625.76 | AQ170: 6.1282 | AR170: 0 | AS170: 0
AL171: 43010 | AM171: 1.063341 | AN171: 0 | AO171: 23083.81494 | AP171: 2962654.14 | AQ171: 6.3341 | AR171: 0 | AS171: 2432.564065
AL172: 43011 | AM172: 1.064922 | AN172: 0 | AO172: 23098.4091 | AP172: 2964265.51 | AQ172: 6.4922 | AR172: 0 | AS172: 2434.165215
AL173: 43012 | AM173: 1.06663 | AN173: 0 | AO173: 23086.5466 | AP173: 2976040.24 | AQ173: 6.663 | AR173: 0 | AS173: 2432.86376
AL174: 43013 | AM174: 1.062476 | AN174: 0 | AO174: 23076.68879 | AP174: 2963403.14 | AQ174: 6.2476 | AR174: 0 | AS174: 2431.782243
AL175: 43014 | AM175: 1.065282 | AN175: 0 | AO175: 23131.32098 | AP175: 2965268.09 | AQ175: 6.5282 | AR175: 0 | AS175: 2437.776032
AL176: 43017 | AM176: 1.06607 | AN176: 0 | AO176: 23125.73438 | AP176: 2971666.82 | AQ176: 6.607 | AR176: 0 | AS176: 2437.163117
AL177: 43018 | AM177: 1.070026 | AN177: 0 | AO177: 23197.70549 | AP177: 2991886.84 | AQ177: 7.0026 | AR177: 0 | AS177: 2445.059188
AL178: 43019 | AM178: 1.069091 | AN178: 0 | AO178: 23201.11555 | AP178: 2987143.96 | AQ178: 6.9091 | AR178: 0 | AS178: 2445.433312
AL179: 43020 | AM179: 1.08259 | AN179: 0 | AO179: 23306.51312 | AP179: 3024869.76 | AQ179: 8.259 | AR179: 0 | AS179: 2456.996656
AL180: 43021 | AM180: 1.083553 | AN180: 0 | AO180: 23333.45304 | AP180: 3027556.5 | AQ180: 8.3553 | AR180: 0 | AS180: 2459.95228
AL181: 43024 | AM181: 1.085095 | AN181: 0 | AO181: 23433.19369 | AP181: 3035100.15 | AQ181: 8.5095 | AR181: 0 | AS181: 2470.894994
AL182: 43025 | AM182: 1.083657 | AN182: 0 | AO182: 23419.27371 | AP182: 2975077.44 | AQ182: 8.3657 | AR182: 0 | AS182: 2469.367809
AL183: 43027 | AM183: 1.069846 | AN183: 0 | AO183: 23186.96009 | AP183: 2937163.78 | AQ183: 6.9846 | AR183: 0 | AS183: 2443.880292
AL184: 43028 | AM184: 1.064461 | AN184: 0 | AO184: 23202.4832 | AP184: 2920989.76 | AQ184: 6.4461 | AR184: 0 | AS184: 2445.583359
AL185: 43031 | AM185: 1.063346 | AN185: 0 | AO185: 23236.80161 | AP185: 2909674.08 | AQ185: 6.3346 | AR185: 0 | AS185: 2449.348489
AL186: 43032 | AM186: 1.061195 | AN186: 0 | AO186: 23145.34886 | AP186: 2906532.75 | AQ186: 6.1195 | AR186: 0 | AS186: 2439.315055
AL187: 43033 | AM187: 1.067184 | AN187: 0 | AO187: 23218.53662 | AP187: 2921547.26 | AQ187: 6.7184 | AR187: 0 | AS187: 2447.344607
AL188: 43034 | AM188: 1.062781 | AN188: 0 | AO188: 23205.06363 | AP188: 2910524.4 | AQ188: 6.2781 | AR188: 0 | AS188: 2445.866462
AL189: 43035 | AM189: 1.068276 | AN189: 0 | AO189: 23302.49137 | AP189: 2920398.23 | AQ189: 6.8276 | AR189: 0 | AS189: 2456.555423
AL190: 43038 | AM190: 1.073127 | AN190: 0 | AO190: 23379.83419 | AP190: 2936432.82 | AQ190: 7.3127 | AR190: 0 | AS190: 2465.040834
AL191: 43039 | AM191: 1.073167 | AN191: 0 | AO191: 23424.47622 | AP191: 2939323.63 | AQ191: 7.3167 | AR191: 0 | AS191: 2469.938586
AL192: 43040 | AM192: 1.078172 | AN192: 0 | AO192: 23450.1267 | AP192: 2954427.71 | AQ192: 7.8172 | AR192: 0 | AS192: 2472.752743
AL193: 43041 | AM193: 1.076784 | AN193: 0 | AO193: 23488.25489 | AP193: 2951312.3 | AQ193: 7.6784 | AR193: 0 | AS193: 2476.93585
AL194: 43042 | AM194: 1.078582 | AN194: 0 | AO194: 23499.23921 | AP194: 2952747.41 | AQ194: 7.8582 | AR194: 0 | AS194: 2478.140959
AL195: 43045 | AM195: 1.083328 | AN195: 0 | AO195: 23543.07565 | AP195: 2968554.14 | AQ195: 8.3328 | AR195: 0 | AS195: 2482.950328
AL196: 43046 | AM196: 1.085925 | AN196: 0 | AO196: 23603.21858 | AP196: 2976724.99 | AQ196: 8.5925 | AR196: 0 | AS196: 2489.54871
AL197: 43047 | AM197: 1.081831 | AN197: 0 | AO197: 23601.34276 | AP197: 2965852.83 | AQ197: 8.1831 | AR197: 0 | AS197: 2489.34291
AL198: 43048 | AM198: 1.075622 | AN198: 0 | AO198: 23420.76606 | AP198: 2964960.34 | AQ198: 7.5622 | AR198: 0 | AS198: 2469.531538
AL199: 43049 | AM199: 1.06822 | AN199: 0 | AO199: 23281.34724 | AP199: 2955089.69 | AQ199: 6.822 | AR199: 0 | AS199: 2454.235665
AL200: 43052 | AM200: 1.065697 | AN200: 0 | AO200: 23198.48421 | AP200: 2948114.04 | AQ200: 6.5697 | AR200: 0 | AS200: 2445.144623
... 281 more rows

Sheet InTB (hidden)
A1: =MATCH("TD",InFund!2:2,0) -> 11 | B1: =MATCH("TF",InFund!2:2,0) -> 12 | G1: =IF(ISNA(VLOOKUP(B1,TransferData,1,0)),B1,IF(VLOOKUP(B1,FundData,$A$1,0)<=ValueDate,VLOOKUP(B1,FundData,$B$1,0),B1)) -> 12 | H1: =IF(VLOOKUP(B1,FundData,$A$1,0)=A1,0,F1) ->  | I1: =LEFT(D1,3) ->  | J1: =LEFT(D1,4) ->  | K1: =LEFT(D1,1) -> 
A2: TBDate | B2: qFundCode | C2: GLCode | D2: ShortGL | E2: TBType | F2: ConsoAmt | G2: RelFund | H2: =IF(VLOOKUP(B2,FundData,$A$1,0)=A2,0,F2) -> ConsoAmt | I2: =LEFT(D2,3) -> Sho | J2: =LEFT(D2,4) -> Shor | K2: =LEFT(D2,1) -> S
A3: 2015-08-27 | B3: KHAZANAH | C3: 0-KHAZ-MYR-100010 | D3: 100010 | E3: BS | F3: 2287268667 | G3: 0 | H3: 2287268667 | I3: 100 | J3: 1000 | K3: 1
A4: 2015-08-27 | B4: KHAZANAH | C4: 0-KHAZ-MYR-100110 | D4: 100110 | E4: BS | F4: 167971500 | G4: 0 | H4: 167971500 | I4: 100 | J4: 1001 | K4: 1
A5: 2015-08-27 | B5: KHAZANAH | C5: 0-KHAZ-MYR-100140 | D5: 100140 | E5: BS | F5: 140317800 | G5: 0 | H5: 140317800 | I5: 100 | J5: 1001 | K5: 1
A6: 2015-08-27 | B6: KHAZANAH | C6: 0-KHAZ-MYR-100210 | D6: 100210 | E6: BS | F6: 244302000 | G6: 0 | H6: 244302000 | I6: 100 | J6: 1002 | K6: 1
A7: 2015-08-27 | B7: KHAZANAH | C7: 0-KHAZ-MYR-100460 | D7: 100460 | E7: BS | F7: 266973203.5 | G7: 0 | H7: 266973203.5 | I7: 100 | J7: 1004 | K7: 1
A8: 2015-08-27 | B8: KHAZANAH | C8: 0-KHAZ-MYR-110110 | D8: 110110 | E8: BS | F8: -18841.36 | G8: 0 | H8: -18841.36 | I8: 110 | J8: 1101 | K8: 1
A9: 2015-08-27 | B9: KHAZANAH | C9: 0-KHAZ-MYR-110140 | D9: 110140 | E9: BS | F9: -9429.9 | G9: 0 | H9: -9429.9 | I9: 110 | J9: 1101 | K9: 1
A10: 2015-08-27 | B10: KHAZANAH | C10: 0-KHAZ-MYR-130140 | D10: 130140 | E10: BS | F10: 56096.71 | G10: 0 | H10: 56096.71 | I10: 130 | J10: 1301 | K10: 1
A11: 2015-08-27 | B11: KHAZANAH | C11: 0-KHAZ-MYR-139110 | D11: 139110 | E11: BS | F11: 2256906.85 | G11: 0 | H11: 2256906.85 | I11: 139 | J11: 1391 | K11: 1
A12: 2015-08-27 | B12: KHAZANAH | C12: 0-KHAZ-MYR-139140 | D12: 139140 | E12: BS | F12: 1539376.82 | G12: 0 | H12: 1539376.82 | I12: 139 | J12: 1391 | K12: 1
A13: 2015-08-27 | B13: KHAZANAH | C13: 0-KHAZ-MYR-139210 | D13: 139210 | E13: BS | F13: 75612.49 | G13: 0 | H13: 75612.49 | I13: 139 | J13: 1392 | K13: 1
A14: 2015-08-27 | B14: KHAZANAH | C14: 0-KHAZ-MYR-189010 | D14: 189010 | E14: BS | F14: -376101500.9 | G14: 0 | H14: -376101500.9 | I14: 189 | J14: 1890 | K14: 1
A15: 2015-08-27 | B15: KHAZANAH | C15: 0-KHAZ-MYR-189110 | D15: 189110 | E15: BS | F15: -2619378.64 | G15: 0 | H15: -2619378.64 | I15: 189 | J15: 1891 | K15: 1
A16: 2015-08-27 | B16: KHAZANAH | C16: 0-KHAZ-MYR-189140 | D16: 189140 | E16: BS | F16: -9530170.1 | G16: 0 | H16: -9530170.1 | I16: 189 | J16: 1891 | K16: 1
A17: 2015-08-27 | B17: KHAZANAH | C17: 0-KHAZ-MYR-189460 | D17: 189460 | E17: BS | F17: -21258746.51 | G17: 0 | H17: -21258746.51 | I17: 189 | J17: 1894 | K17: 1
A18: 2015-08-27 | B18: KHAZANAH | C18: 0-KHAZ-MYR-200200 | D18: 200200 | E18: BS | F18: 15053701.34 | G18: 0 | H18: 15053701.34 | I18: 200 | J18: 2002 | K18: 2
A19: 2015-08-27 | B19: KHAZANAH | C19: 0-KHAZ-MYR-299010 | D19: 299010 | E19: BS | F19: 4768309.35 | G19: 0 | H19: 4768309.35 | I19: 299 | J19: 2990 | K19: 2
A20: 2015-08-27 | B20: KHAZANAH | C20: 0-KHAZ-MYR-299460 | D20: 299460 | E20: BS | F20: 3109635.66 | G20: 0 | H20: 3109635.66 | I20: 299 | J20: 2994 | K20: 2
A21: 2015-08-27 | B21: KHAZANAH | C21: 0-KHAZ-MYR-300200 | D21: 300200 | E21: BS | F21: -15275302.34 | G21: 0 | H21: -15275302.34 | I21: 300 | J21: 3002 | K21: 3
A22: 2015-08-27 | B22: KHAZANAH | C22: 0-KHAZ-MYR-500000 | D22: 500000 | E22: BS | F22: 1244 | G22: 0 | H22: 1244 | I22: 500 | J22: 5000 | K22: 5
A23: 2015-08-27 | B23: KHAZANAH | C23: 0-KHAZ-MYR-600010 | D23: 600010 | E23: PLR | F23: -46960424.34 | G23: 0 | H23: -46960424.34 | I23: 600 | J23: 6000 | K23: 6
A24: 2015-08-27 | B24: KHAZANAH | C24: 0-KHAZ-MYR-600110 | D24: 600110 | E24: PLR | F24: -20743.69 | G24: 0 | H24: -20743.69 | I24: 600 | J24: 6001 | K24: 6
A25: 2015-08-27 | B25: KHAZANAH | C25: 0-KHAZ-MYR-600140 | D25: 600140 | E25: PLR | F25: -507763.96 | G25: 0 | H25: -507763.96 | I25: 600 | J25: 6001 | K25: 6
A26: 2015-08-27 | B26: KHAZANAH | C26: 0-KHAZ-MYR-600460 | D26: 600460 | E26: PLR | F26: -1388126.55 | G26: 0 | H26: -1388126.55 | I26: 600 | J26: 6004 | K26: 6
A27: 2015-08-27 | B27: KHAZANAH | C27: 0-KHAZ-MYR-610110 | D27: 610110 | E27: PLR | F27: 243.69 | G27: 0 | H27: 243.69 | I27: 610 | J27: 6101 | K27: 6
A28: 2015-08-27 | B28: KHAZANAH | C28: 0-KHAZ-MYR-610140 | D28: 610140 | E28: PLR | F28: 1363.96 | G28: 0 | H28: 1363.96 | I28: 610 | J28: 6101 | K28: 6
A29: 2015-08-27 | B29: KHAZANAH | C29: 0-KHAZ-MYR-619110 | D29: 619110 | E29: PLR | F29: 18841.36 | G29: 0 | H29: 18841.36 | I29: 619 | J29: 6191 | K29: 6
A30: 2015-08-27 | B30: KHAZANAH | C30: 0-KHAZ-MYR-619140 | D30: 619140 | E30: PLR | F30: 9429.9 | G30: 0 | H30: 9429.9 | I30: 619 | J30: 6191 | K30: 6
A31: 2015-08-27 | B31: KHAZANAH | C31: 0-KHAZ-MYR-630110 | D31: 630110 | E31: PLR | F31: -348589.05 | G31: 0 | H31: -348589.05 | I31: 630 | J31: 6301 | K31: 6
A32: 2015-08-27 | B32: KHAZANAH | C32: 0-KHAZ-MYR-630140 | D32: 630140 | E32: PLR | F32: -85030.92 | G32: 0 | H32: -85030.92 | I32: 630 | J32: 6301 | K32: 6
A33: 2015-08-27 | B33: KHAZANAH | C33: 0-KHAZ-MYR-630210 | D33: 630210 | E33: PLR | F33: -25556600 | G33: 0 | H33: -25556600 | I33: 630 | J33: 6302 | K33: 6
A34: 2015-08-27 | B34: KHAZANAH | C34: 0-KHAZ-MYR-635010 | D34: 635010 | E34: PLR | F34: -26483502.7 | G34: 0 | H34: -26483502.7 | I34: 635 | J34: 6350 | K34: 6
A35: 2015-08-27 | B35: KHAZANAH | C35: 0-KHAZ-MYR-635460 | D35: 635460 | E35: PLR | F35: -5886733.36 | G35: 0 | H35: -5886733.36 | I35: 635 | J35: 6354 | K35: 6
A36: 2015-08-27 | B36: KHAZANAH | C36: 0-KHAZ-MYR-636003 | D36: 636003 | E36: PLR | F36: -635.46 | G36: 0 | H36: -635.46 | I36: 636 | J36: 6360 | K36: 6
A37: 2015-08-27 | B37: KHAZANAH | C37: 0-KHAZ-MYR-636010 | D37: 636010 | E37: PLR | F37: -9379124.45 | G37: 0 | H37: -9379124.45 | I37: 636 | J37: 6360 | K37: 6
A38: 2015-08-27 | B38: KHAZANAH | C38: 0-KHAZ-MYR-636460 | D38: 636460 | E38: PLR | F38: -4643005.42 | G38: 0 | H38: -4643005.42 | I38: 636 | J38: 6364 | K38: 6
A39: 2015-08-27 | B39: KHAZANAH | C39: 0-KHAZ-MYR-639110 | D39: 639110 | E39: PLR | F39: -2256906.85 | G39: 0 | H39: -2256906.85 | I39: 639 | J39: 6391 | K39: 6
A40: 2015-08-27 | B40: KHAZANAH | C40: 0-KHAZ-MYR-639140 | D40: 639140 | E40: PLR | F40: -1539376.82 | G40: 0 | H40: -1539376.82 | I40: 639 | J40: 6391 | K40: 6
A41: 2015-08-27 | B41: KHAZANAH | C41: 0-KHAZ-MYR-639210 | D41: 639210 | E41: PLR | F41: -75612.49 | G41: 0 | H41: -75612.49 | I41: 639 | J41: 6392 | K41: 6
A42: 2015-08-27 | B42: KHAZANAH | C42: 0-KHAZ-MYR-689010 | D42: 689010 | E42: PLU | F42: 376101500.9 | G42: 0 | H42: 376101500.9 | I42: 689 | J42: 6890 | K42: 6
A43: 2015-08-27 | B43: KHAZANAH | C43: 0-KHAZ-MYR-689110 | D43: 689110 | E43: PLU | F43: 2619378.64 | G43: 0 | H43: 2619378.64 | I43: 689 | J43: 6891 | K43: 6
A44: 2015-08-27 | B44: KHAZANAH | C44: 0-KHAZ-MYR-689140 | D44: 689140 | E44: PLU | F44: 9530170.1 | G44: 0 | H44: 9530170.1 | I44: 689 | J44: 6891 | K44: 6
A45: 2015-08-27 | B45: KHAZANAH | C45: 0-KHAZ-MYR-689460 | D45: 689460 | E45: PLU | F45: 21258746.51 | G45: 0 | H45: 21258746.51 | I45: 689 | J45: 6894 | K45: 6
A46: 2015-08-27 | B46: KHAZANAH | C46: 0-KHAZ-MYR-710102 | D46: 710102 | E46: PLR | F46: 2579 | G46: 0 | H46: 2579 | I46: 710 | J46: 7101 | K46: 7
A47: 2015-08-27 | B47: KHAZANAH | C47: 0-KHAZ-MYR-710104 | D47: 710104 | E47: PLR | F47: 142195.49 | G47: 0 | H47: 142195.49 | I47: 710 | J47: 7101 | K47: 7
A48: 2015-08-27 | B48: KHAZANAH | C48: 0-KHAZ-MYR-710106 | D48: 710106 | E48: PLR | F48: 6552367.19 | G48: 0 | H48: 6552367.19 | I48: 710 | J48: 7101 | K48: 7
A49: 2015-08-27 | B49: KHAZANAH | C49: 0-KHAZ-MYR-710208 | D49: 710208 | E49: PLR | F49: 14583.21 | G49: 0 | H49: 14583.21 | I49: 710 | J49: 7102 | K49: 7
A50: 2015-08-27 | B50: KHAZANAH | C50: 0-KHAZ-MYR-710876 | D50: 710876 | E50: PLR | F50: 91.92 | G50: 0 | H50: 91.92 | I50: 710 | J50: 7108 | K50: 7
A51: 2015-08-27 | B51: KHAZANAH | C51: 0-KHAZ-MYR-800000 | D51: 800000 | E51: BS | F51: -3000000000 | G51: 0 | H51: -3000000000 | I51: 800 | J51: 8000 | K51: 8
A52: 2015-08-27 | B52: KWAP | C52: 0-KWAP-MYR-100010 | D52: 100010 | E52: BS | F52: 888882609.4 | G52: KWAP | H52: 888882609.4 | I52: 100 | J52: 1000 | K52: 1
A53: 2015-08-27 | B53: KWAP | C53: 0-KWAP-MYR-100210 | D53: 100210 | E53: BS | F53: 63795000 | G53: KWAP | H53: 63795000 | I53: 100 | J53: 1002 | K53: 1
A54: 2015-08-27 | B54: KWAP | C54: 0-KWAP-MYR-100460 | D54: 100460 | E54: BS | F54: 91968598.23 | G54: KWAP | H54: 91968598.23 | I54: 100 | J54: 1004 | K54: 1
A55: 2015-08-27 | B55: KWAP | C55: 0-KWAP-MYR-139210 | D55: 139210 | E55: BS | F55: 8844.01 | G55: KWAP | H55: 8844.01 | I55: 139 | J55: 1392 | K55: 1
A56: 2015-08-27 | B56: KWAP | C56: 0-KWAP-MYR-189010 | D56: 189010 | E56: BS | F56: -148779612.7 | G56: KWAP | H56: -148779612.7 | I56: 189 | J56: 1890 | K56: 1
A57: 2015-08-27 | B57: KWAP | C57: 0-KWAP-MYR-189460 | D57: 189460 | E57: BS | F57: -5020144.73 | G57: KWAP | H57: -5020144.73 | I57: 189 | J57: 1894 | K57: 1
A58: 2015-08-27 | B58: KWAP | C58: 0-KWAP-MYR-200100 | D58: 200100 | E58: BS | F58: 0 | G58: KWAP | H58: 0 | I58: 200 | J58: 2001 | K58: 2
A59: 2015-08-27 | B59: KWAP | C59: 0-KWAP-MYR-200200 | D59: 200200 | E59: BS | F59: 4126083.85 | G59: KWAP | H59: 4126083.85 | I59: 200 | J59: 2002 | K59: 2
A60: 2015-08-27 | B60: KWAP | C60: 0-KWAP-MYR-299010 | D60: 299010 | E60: BS | F60: 1355167.9 | G60: KWAP | H60: 1355167.9 | I60: 299 | J60: 2990 | K60: 2
A61: 2015-08-27 | B61: KWAP | C61: 0-KWAP-MYR-299460 | D61: 299460 | E61: BS | F61: 1011824.9 | G61: KWAP | H61: 1011824.9 | I61: 299 | J61: 2994 | K61: 2
A62: 2015-08-27 | B62: KWAP | C62: 0-KWAP-MYR-500000 | D62: 500000 | E62: BS | F62: 808.44 | G62: KWAP | H62: 808.44 | I62: 500 | J62: 5000 | K62: 5
A63: 2015-08-27 | B63: KWAP | C63: 0-KWAP-MYR-600010 | D63: 600010 | E63: PLR | F63: -25572798.39 | G63: KWAP | H63: -25572798.39 | I63: 600 | J63: 6000 | K63: 6
A64: 2015-08-27 | B64: KWAP | C64: 0-KWAP-MYR-600460 | D64: 600460 | E64: PLR | F64: -307826.44 | G64: KWAP | H64: -307826.44 | I64: 600 | J64: 6004 | K64: 6
A65: 2015-08-27 | B65: KWAP | C65: 0-KWAP-MYR-630210 | D65: 630210 | E65: PLR | F65: -6288675.56 | G65: KWAP | H65: -6288675.56 | I65: 630 | J65: 6302 | K65: 6
A66: 2015-08-27 | B66: KWAP | C66: 0-KWAP-MYR-635010 | D66: 635010 | E66: PLR | F66: -12378035 | G66: KWAP | H66: -12378035 | I66: 635 | J66: 6350 | K66: 6
A67: 2015-08-27 | B67: KWAP | C67: 0-KWAP-MYR-635460 | D67: 635460 | E67: PLR | F67: -3279370.66 | G67: KWAP | H67: -3279370.66 | I67: 635 | J67: 6354 | K67: 6
A68: 2015-08-27 | B68: KWAP | C68: 0-KWAP-MYR-636010 | D68: 636010 | E68: PLR | F68: -3406540.9 | G68: KWAP | H68: -3406540.9 | I68: 636 | J68: 6360 | K68: 6
A69: 2015-08-27 | B69: KWAP | C69: 0-KWAP-MYR-636460 | D69: 636460 | E69: PLR | F69: -202716.64 | G69: KWAP | H69: -202716.64 | I69: 636 | J69: 6364 | K69: 6
A70: 2015-08-27 | B70: KWAP | C70: 0-KWAP-MYR-639210 | D70: 639210 | E70: PLR | F70: -8844.01 | G70: KWAP | H70: -8844.01 | I70: 639 | J70: 6392 | K70: 6
A71: 2015-08-27 | B71: KWAP | C71: 0-KWAP-MYR-689010 | D71: 689010 | E71: PLU | F71: 148779612.7 | G71: KWAP | H71: 148779612.7 | I71: 689 | J71: 6890 | K71: 6
A72: 2015-08-27 | B72: KWAP | C72: 0-KWAP-MYR-689460 | D72: 689460 | E72: PLU | F72: 5020144.73 | G72: KWAP | H72: 5020144.73 | I72: 689 | J72: 6894 | K72: 6
A73: 2015-08-27 | B73: KWAP | C73: 0-KWAP-MYR-799130 | D73: 799130 | E73: PLR | F73: 295870.9 | G73: KWAP | H73: 295870.9 | I73: 799 | J73: 7991 | K73: 7
A74: 2015-08-27 | B74: KWAP | C74: 0-KWAP-MYR-800000 | D74: 800000 | E74: BS | F74: -1000000000 | G74: KWAP | H74: -1000000000 | I74: 800 | J74: 8000 | K74: 8
A75: 2015-08-27 | B75: KWAPFI | C75: 0-KWAPFI-MYR-100110 | D75: 100110 | E75: BS | F75: 156112500 | G75: KWAPFI | H75: 156112500 | I75: 100 | J75: 1001 | K75: 1
A76: 2015-08-27 | B76: KWAPFI | C76: 0-KWAPFI-MYR-100140 | D76: 100140 | E76: BS | F76: 30466400 | G76: KWAPFI | H76: 30466400 | I76: 100 | J76: 1001 | K76: 1
A77: 2015-08-27 | B77: KWAPFI | C77: 0-KWAPFI-MYR-100210 | D77: 100210 | E77: BS | F77: 14183000 | G77: KWAPFI | H77: 14183000 | I77: 100 | J77: 1002 | K77: 1
A78: 2015-08-27 | B78: KWAPFI | C78: 0-KWAPFI-MYR-110110 | D78: 110110 | E78: BS | F78: -32812.27 | G78: KWAPFI | H78: -32812.27 | I78: 110 | J78: 1101 | K78: 1
A79: 2015-08-27 | B79: KWAPFI | C79: 0-KWAPFI-MYR-110140 | D79: 110140 | E79: BS | F79: -3201.49 | G79: KWAPFI | H79: -3201.49 | I79: 110 | J79: 1101 | K79: 1
A80: 2015-08-27 | B80: KWAPFI | C80: 0-KWAPFI-MYR-120110 | D80: 120110 | E80: BS | F80: 18282.95 | G80: KWAPFI | H80: 18282.95 | I80: 120 | J80: 1201 | K80: 1
A81: 2015-08-27 | B81: KWAPFI | C81: 0-KWAPFI-MYR-130110 | D81: 130110 | E81: BS | F81: 179213.69 | G81: KWAPFI | H81: 179213.69 | I81: 130 | J81: 1301 | K81: 1
A82: 2015-08-27 | B82: KWAPFI | C82: 0-KWAPFI-MYR-130140 | D82: 130140 | E82: BS | F82: 73081.76 | G82: KWAPFI | H82: 73081.76 | I82: 130 | J82: 1301 | K82: 1
A83: 2015-08-27 | B83: KWAPFI | C83: 0-KWAPFI-MYR-139110 | D83: 139110 | E83: BS | F83: 1569410.01 | G83: KWAPFI | H83: 1569410.01 | I83: 139 | J83: 1391 | K83: 1
A84: 2015-08-27 | B84: KWAPFI | C84: 0-KWAPFI-MYR-139140 | D84: 139140 | E84: BS | F84: 357097.13 | G84: KWAPFI | H84: 357097.13 | I84: 139 | J84: 1391 | K84: 1
A85: 2015-08-27 | B85: KWAPFI | C85: 0-KWAPFI-MYR-139210 | D85: 139210 | E85: BS | F85: 1476.59 | G85: KWAPFI | H85: 1476.59 | I85: 139 | J85: 1392 | K85: 1
A86: 2015-08-27 | B86: KWAPFI | C86: 0-KWAPFI-MYR-189110 | D86: 189110 | E86: BS | F86: -2589370.68 | G86: KWAPFI | H86: -2589370.68 | I86: 189 | J86: 1891 | K86: 1
A87: 2015-08-27 | B87: KWAPFI | C87: 0-KWAPFI-MYR-189140 | D87: 189140 | E87: BS | F87: -1877598.51 | G87: KWAPFI | H87: -1877598.51 | I87: 189 | J87: 1891 | K87: 1
A88: 2015-08-27 | B88: KWAPFI | C88: 0-KWAPFI-MYR-500000 | D88: 500000 | E88: BS | F88: 1157.19 | G88: KWAPFI | H88: 1157.19 | I88: 500 | J88: 5000 | K88: 5
A89: 2015-08-27 | B89: KWAPFI | C89: 0-KWAPFI-MYR-600110 | D89: 600110 | E89: PLR | F89: -6500 | G89: KWAPFI | H89: -6500 | I89: 600 | J89: 6001 | K89: 6
A90: 2015-08-27 | B90: KWAPFI | C90: 0-KWAPFI-MYR-600140 | D90: 600140 | E90: PLR | F90: -44500 | G90: KWAPFI | H90: -44500 | I90: 600 | J90: 6001 | K90: 6
A91: 2015-08-27 | B91: KWAPFI | C91: 0-KWAPFI-MYR-619110 | D91: 619110 | E91: PLR | F91: 32812.27 | G91: KWAPFI | H91: 32812.27 | I91: 619 | J91: 6191 | K91: 6
A92: 2015-08-27 | B92: KWAPFI | C92: 0-KWAPFI-MYR-619140 | D92: 619140 | E92: PLR | F92: 3201.49 | G92: KWAPFI | H92: 3201.49 | I92: 619 | J92: 6191 | K92: 6
A93: 2015-08-27 | B93: KWAPFI | C93: 0-KWAPFI-MYR-629110 | D93: 629110 | E93: PLR | F93: -18282.95 | G93: KWAPFI | H93: -18282.95 | I93: 629 | J93: 6291 | K93: 6
A94: 2015-08-27 | B94: KWAPFI | C94: 0-KWAPFI-MYR-630110 | D94: 630110 | E94: PLR | F94: -451821.34 | G94: KWAPFI | H94: -451821.34 | I94: 630 | J94: 6301 | K94: 6
A95: 2015-08-27 | B95: KWAPFI | C95: 0-KWAPFI-MYR-630140 | D95: 630140 | E95: PLR | F95: -22878.26 | G95: KWAPFI | H95: -22878.26 | I95: 630 | J95: 6301 | K95: 6
A96: 2015-08-27 | B96: KWAPFI | C96: 0-KWAPFI-MYR-630210 | D96: 630210 | E96: PLR | F96: -489526.74 | G96: KWAPFI | H96: -489526.74 | I96: 630 | J96: 6302 | K96: 6
A97: 2015-08-27 | B97: KWAPFI | C97: 0-KWAPFI-MYR-636003 | D97: 636003 | E97: PLR | F97: -126.3 | G97: KWAPFI | H97: -126.3 | I97: 636 | J97: 6360 | K97: 6
A98: 2015-08-27 | B98: KWAPFI | C98: 0-KWAPFI-MYR-639110 | D98: 639110 | E98: PLR | F98: -1569410.01 | G98: KWAPFI | H98: -1569410.01 | I98: 639 | J98: 6391 | K98: 6
A99: 2015-08-27 | B99: KWAPFI | C99: 0-KWAPFI-MYR-639140 | D99: 639140 | E99: PLR | F99: -357097.13 | G99: KWAPFI | H99: -357097.13 | I99: 639 | J99: 6391 | K99: 6
A100: 2015-08-27 | B100: KWAPFI | C100: 0-KWAPFI-MYR-639210 | D100: 639210 | E100: PLR | F100: -1476.59 | G100: KWAPFI | H100: -1476.59 | I100: 639 | J100: 6392 | K100: 6
A101: 2015-08-27 | B101: KWAPFI | C101: 0-KWAPFI-MYR-689110 | D101: 689110 | E101: PLU | F101: 2589370.68 | G101: KWAPFI | H101: 2589370.68 | I101: 689 | J101: 6891 | K101: 6
A102: 2015-08-27 | B102: KWAPFI | C102: 0-KWAPFI-MYR-689140 | D102: 689140 | E102: PLU | F102: 1877598.51 | G102: KWAPFI | H102: 1877598.51 | I102: 689 | J102: 6891 | K102: 6
A103: 2015-08-27 | B103: KWAPFI | C103: 0-KWAPFI-MYR-800000 | D103: 800000 | E103: BS | F103: -200000000 | G103: KWAPFI | H103: -200000000 | I103: 800 | J103: 8000 | K103: 8
A104: 2015-08-27 | B104: MEQESG | C104: 0-MEQESG-MYR-100010 | D104: 100010 | E104: BS | F104: 5491907.38 | G104: MEQESG | H104: 5491907.38 | I104: 100 | J104: 1000 | K104: 1
A105: 2015-08-27 | B105: MEQESG | C105: 0-MEQESG-MYR-100210 | D105: 100210 | E105: BS | F105: 12321000 | G105: MEQESG | H105: 12321000 | I105: 100 | J105: 1002 | K105: 1
A106: 2015-08-27 | B106: MEQESG | C106: 0-MEQESG-MYR-139210 | D106: 139210 | E106: BS | F106: 1130.83 | G106: MEQESG | H106: 1130.83 | I106: 139 | J106: 1392 | K106: 1
A107: 2015-08-27 | B107: MEQESG | C107: 0-MEQESG-MYR-189010 | D107: 189010 | E107: BS | F107: 172528.62 | G107: MEQESG | H107: 172528.62 | I107: 189 | J107: 1890 | K107: 1
A108: 2015-08-27 | B108: MEQESG | C108: 0-MEQESG-MYR-200200 | D108: 200200 | E108: BS | F108: 701633.17 | G108: MEQESG | H108: 701633.17 | I108: 200 | J108: 2002 | K108: 2
A109: 2015-08-27 | B109: MEQESG | C109: 0-MEQESG-MYR-300200 | D109: 300200 | E109: BS | F109: -2968643.06 | G109: MEQESG | H109: -2968643.06 | I109: 300 | J109: 3002 | K109: 3
A110: 2015-08-27 | B110: MEQESG | C110: 0-MEQESG-MYR-320773 | D110: 320773 | E110: BS | F110: -294.25 | G110: MEQESG | H110: -294.25 | I110: 320 | J110: 3207 | K110: 3
A111: 2015-08-27 | B111: MEQESG | C111: 0-MEQESG-MYR-320780 | D111: 320780 | E111: BS | F111: -1618.72 | G111: MEQESG | H111: -1618.72 | I111: 320 | J111: 3207 | K111: 3
A112: 2015-08-27 | B112: MEQESG | C112: 0-MEQESG-MYR-320781 | D112: 320781 | E112: BS | F112: -347.53 | G112: MEQESG | H112: -347.53 | I112: 320 | J112: 3207 | K112: 3
A113: 2015-08-27 | B113: MEQESG | C113: 0-MEQESG-MYR-320789 | D113: 320789 | E113: BS | F113: -481.51 | G113: MEQESG | H113: -481.51 | I113: 320 | J113: 3207 | K113: 3
A114: 2015-08-27 | B114: MEQESG | C114: 0-MEQESG-MYR-500000 | D114: 500000 | E114: BS | F114: 1245.3 | G114: MEQESG | H114: 1245.3 | I114: 500 | J114: 5000 | K114: 5
A115: 2015-08-27 | B115: MEQESG | C115: 0-MEQESG-MYR-600010 | D115: 600010 | E115: PLR | F115: -50683.08 | G115: MEQESG | H115: -50683.08 | I115: 600 | J115: 6000 | K115: 6
A116: 2015-08-27 | B116: MEQESG | C116: 0-MEQESG-MYR-630210 | D116: 630210 | E116: PLR | F116: -17839.92 | G116: MEQESG | H116: -17839.92 | I116: 630 | J116: 6302 | K116: 6
A117: 2015-08-27 | B117: MEQESG | C117: 0-MEQESG-MYR-639210 | D117: 639210 | E117: PLR | F117: -1130.83 | G117: MEQESG | H117: -1130.83 | I117: 639 | J117: 6392 | K117: 6
A118: 2015-08-27 | B118: MEQESG | C118: 0-MEQESG-MYR-689010 | D118: 689010 | E118: PLU | F118: -172528.62 | G118: MEQESG | H118: -172528.62 | I118: 689 | J118: 6890 | K118: 6
A119: 2015-08-27 | B119: MEQESG | C119: 0-MEQESG-MYR-710102 | D119: 710102 | E119: PLR | F119: 90 | G119: MEQESG | H119: 90 | I119: 710 | J119: 7101 | K119: 7
A120: 2015-08-27 | B120: MEQESG | C120: 0-MEQESG-MYR-710773 | D120: 710773 | E120: PLR | F120: 294.25 | G120: MEQESG | H120: 294.25 | I120: 710 | J120: 7107 | K120: 7
A121: 2015-08-27 | B121: MEQESG | C121: 0-MEQESG-MYR-710780 | D121: 710780 | E121: PLR | F121: 1618.72 | G121: MEQESG | H121: 1618.72 | I121: 710 | J121: 7107 | K121: 7
A122: 2015-08-27 | B122: MEQESG | C122: 0-MEQESG-MYR-710781 | D122: 710781 | E122: PLR | F122: 347.53 | G122: MEQESG | H122: 347.53 | I122: 710 | J122: 7107 | K122: 7
A123: 2015-08-27 | B123: MEQESG | C123: 0-MEQESG-MYR-710789 | D123: 710789 | E123: PLR | F123: 481.51 | G123: MEQESG | H123: 481.51 | I123: 710 | J123: 7107 | K123: 7
A124: 2015-08-27 | B124: MEQESG | C124: 0-MEQESG-MYR-710876 | D124: 710876 | E124: PLR | F124: 5.4 | G124: MEQESG | H124: 5.4 | I124: 710 | J124: 7108 | K124: 7
A125: 2015-08-27 | B125: MEQESG | C125: 0-MEQESG-MYR-799010 | D125: 799010 | E125: PLR | F125: 20259.83 | G125: MEQESG | H125: 20259.83 | I125: 799 | J125: 7990 | K125: 7
A126: 2015-08-27 | B126: MEQESG | C126: 0-MEQESG-MYR-799981 | D126: 799981 | E126: PLR | F126: 1024.98 | G126: MEQESG | H126: 1024.98 | I126: 799 | J126: 7999 | K126: 7
A127: 2015-08-27 | B127: MEQESG | C127: 0-MEQESG-MYR-800000 | D127: 800000 | E127: BS | F127: -15500000 | G127: MEQESG | H127: -15500000 | I127: 800 | J127: 8000 | K127: 8
A128: 2015-08-27 | B128: VCAM | C128: 0-VCAM-MYR-100210 | D128: 100210 | E128: BS | F128: 22977000 | G128: VCAM | H128: 22977000 | I128: 100 | J128: 1002 | K128: 1
A129: 2015-08-27 | B129: VCAM | C129: 0-VCAM-MYR-139210 | D129: 139210 | E129: BS | F129: 36052.38 | G129: VCAM | H129: 36052.38 | I129: 139 | J129: 1392 | K129: 1
A130: 2015-08-27 | B130: VCAM | C130: 0-VCAM-MYR-500000 | D130: 500000 | E130: BS | F130: 1243.67 | G130: VCAM | H130: 1243.67 | I130: 500 | J130: 5000 | K130: 5
A131: 2015-08-27 | B131: VCAM | C131: 0-VCAM-MYR-630210 | D131: 630210 | E131: PLR | F131: -1089497.83 | G131: VCAM | H131: -1089497.83 | I131: 630 | J131: 6302 | K131: 6
A132: 2015-08-27 | B132: VCAM | C132: 0-VCAM-MYR-636004 | D132: 636004 | E132: PLR | F132: -9154317.54 | G132: VCAM | H132: -9154317.54 | I132: 636 | J132: 6360 | K132: 6
A133: 2015-08-27 | B133: VCAM | C133: 0-VCAM-MYR-639210 | D133: 639210 | E133: PLR | F133: -36052.38 | G133: VCAM | H133: -36052.38 | I133: 639 | J133: 6392 | K133: 6
A134: 2015-08-27 | B134: VCAM | C134: 0-VCAM-MYR-710102 | D134: 710102 | E134: PLR | F134: 141 | G134: VCAM | H134: 141 | I134: 710 | J134: 7101 | K134: 7
A135: 2015-08-27 | B135: VCAM | C135: 0-VCAM-MYR-710876 | D135: 710876 | E135: PLR | F135: 2.7 | G135: VCAM | H135: 2.7 | I135: 710 | J135: 7108 | K135: 7
A136: 2015-08-27 | B136: VCAM | C136: 0-VCAM-MYR-800000 | D136: 800000 | E136: BS | F136: 16565000 | G136: VCAM | H136: 16565000 | I136: 800 | J136: 8000 | K136: 8
A137: 2015-08-27 | B137: VCAM | C137: 0-VCAM-MYR-830000 | D137: 830000 | E137: BS | F137: -29299572 | G137: VCAM | H137: -29299572 | I137: 830 | J137: 8300 | K137: 8
A138: 2015-08-27 | B138: VCAMOPR | C138: 0-VCAMOP-MYR-100210 | D138: 100210 | E138: BS | F138: 288000 | G138: VCAMOPR | H138: 288000 | I138: 100 | J138: 1002 | K138: 1
A139: 2015-08-27 | B139: VCAMOPR | C139: 0-VCAMOP-MYR-139210 | D139: 139210 | E139: BS | F139: 23.67 | G139: VCAMOPR | H139: 23.67 | I139: 139 | J139: 1392 | K139: 1
A140: 2015-08-27 | B140: VCAMOPR | C140: 0-VCAMOP-MYR-500000 | D140: 500000 | E140: BS | F140: 5603.52 | G140: VCAMOPR | H140: 5603.52 | I140: 500 | J140: 5000 | K140: 5
A141: 2015-08-27 | B141: VCAMOPR | C141: 0-VCAMOP-MYR-630210 | D141: 630210 | E141: PLR | F141: -12265.1 | G141: VCAMOPR | H141: -12265.1 | I141: 630 | J141: 6302 | K141: 6
A142: 2015-08-27 | B142: VCAMOPR | C142: 0-VCAMOP-MYR-639210 | D142: 639210 | E142: PLR | F142: -23.67 | G142: VCAMOPR | H142: -23.67 | I142: 639 | J142: 6392 | K142: 6
A143: 2015-08-27 | B143: VCAMOPR | C143: 0-VCAMOP-MYR-710102 | D143: 710102 | E143: PLR | F143: 1301.4 | G143: VCAMOPR | H143: 1301.4 | I143: 710 | J143: 7101 | K143: 7
A144: 2015-08-27 | B144: VCAMOPR | C144: 0-VCAMOP-MYR-710104 | D144: 710104 | E144: PLR | F144: 16767866.98 | G144: VCAMOPR | H144: 16767866.98 | I144: 710 | J144: 7101 | K144: 7
A145: 2015-08-27 | B145: VCAMOPR | C145: 0-VCAMOP-MYR-710109 | D145: 710109 | E145: PLR | F145: 15920 | G145: VCAMOPR | H145: 15920 | I145: 710 | J145: 7101 | K145: 7
A146: 2015-08-27 | B146: VCAMOPR | C146: 0-VCAMOP-MYR-710876 | D146: 710876 | E146: PLR | F146: 77.88 | G146: VCAMOPR | H146: 77.88 | I146: 710 | J146: 7108 | K146: 7
A147: 2015-08-27 | B147: VCAMOPR | C147: 0-VCAMOP-MYR-800000 | D147: 800000 | E147: BS | F147: -16565000 | G147: VCAMOPR | H147: -16565000 | I147: 800 | J147: 8000 | K147: 8
A148: 2015-08-27 | B148: VCAMOPR | C148: 0-VCAMOP-MYR-830000 | D148: 830000 | E148: BS | F148: -501504.68 | G148: VCAMOPR | H148: -501504.68 | I148: 830 | J148: 8300 | K148: 8
A149: 2015-08-27 | B149: YAMIR-VCAM | C149: 0-YAMIR-MYR-100210 | D149: 100210 | E149: BS | F149: 82998500 | G149: YAMIR-VCAM | H149: 82998500 | I149: 100 | J149: 1002 | K149: 1
A150: 2015-08-27 | B150: YAMIR-VCAM | C150: 0-YAMIR-MYR-139210 | D150: 139210 | E150: BS | F150: 7958.76 | G150: YAMIR-VCAM | H150: 7958.76 | I150: 139 | J150: 1392 | K150: 1
A151: 2015-08-27 | B151: YAMIR-VCAM | C151: 0-YAMIR-MYR-500000 | D151: 500000 | E151: BS | F151: 1500 | G151: YAMIR-VCAM | H151: 1500 | I151: 500 | J151: 5000 | K151: 5
A152: 2015-08-27 | B152: YAMIR-VCAM | C152: 0-YAMIR-MYR-639210 | D152: 639210 | E152: PLR | F152: -7958.76 | G152: YAMIR-VCAM | H152: -7958.76 | I152: 639 | J152: 6392 | K152: 6
A153: 2015-08-27 | B153: YAMIR-VCAM | C153: 0-YAMIR-MYR-800000 | D153: 800000 | E153: BS | F153: -83000000 | G153: YAMIR-VCAM | H153: -83000000 | I153: 800 | J153: 8000 | K153: 8
A154: 2016-10-26 | B154: VCAM-TABA | C154: 0-TABA-MYR-500000 | D154: 500000 | E154: BS | F154: 5000000 | G154: VCAM-TABA | H154: 5000000 | I154: 500 | J154: 5000 | K154: 5
A155: 2016-10-26 | B155: VCAM-TABA | C155: 0-TABA-MYR-800000 | D155: 800000 | E155: BS | F155: -5000000 | G155: VCAM-TABA | H155: -5000000 | I155: 800 | J155: 8000 | K155: 8
A156: 2017-12-31 | B156: ASEAN5ESG | C156: 0-A5ESG-USD-100010 | D156: 100010 | E156: BS | F156: 1050666.73 | G156: ASEAN5ESG | H156: 1050666.73 | I156: 100 | J156: 1000 | K156: 1
A157: 2017-12-31 | B157: ASEAN5ESG | C157: 0-A5ESG-USD-100015 | D157: 100015 | E157: BS | F157: 1390672.88 | G157: ASEAN5ESG | H157: 1390672.88 | I157: 100 | J157: 1000 | K157: 1
A158: 2017-12-31 | B158: ASEAN5ESG | C158: 0-A5ESG-USD-100210 | D158: 100210 | E158: BS | F158: 328012.48 | G158: ASEAN5ESG | H158: 328012.48 | I158: 100 | J158: 1002 | K158: 1
A159: 2017-12-31 | B159: ASEAN5ESG | C159: 0-A5ESG-USD-139210 | D159: 139210 | E159: BS | F159: 197.13 | G159: ASEAN5ESG | H159: 197.13 | I159: 139 | J159: 1392 | K159: 1
A160: 2017-12-31 | B160: ASEAN5ESG | C160: 0-A5ESG-USD-189010 | D160: 189010 | E160: BS | F160: 47742.64 | G160: ASEAN5ESG | H160: 47742.64 | I160: 189 | J160: 1890 | K160: 1
A161: 2017-12-31 | B161: ASEAN5ESG | C161: 0-A5ESG-USD-189015 | D161: 189015 | E161: BS | F161: 144074.14 | G161: ASEAN5ESG | H161: 144074.14 | I161: 189 | J161: 1890 | K161: 1
A162: 2017-12-31 | B162: ASEAN5ESG | C162: 0-A5ESG-USD-199010 | D162: 199010 | E162: BS | F162: 71885.55 | G162: ASEAN5ESG | H162: 71885.55 | I162: 199 | J162: 1990 | K162: 1
A163: 2017-12-31 | B163: ASEAN5ESG | C163: 0-A5ESG-USD-199015 | D163: 199015 | E163: BS | F163: 36344.74 | G163: ASEAN5ESG | H163: 36344.74 | I163: 199 | J163: 1990 | K163: 1
A164: 2017-12-31 | B164: ASEAN5ESG | C164: 0-A5ESG-USD-199210 | D164: 199210 | E164: BS | F164: 3095.34 | G164: ASEAN5ESG | H164: 3095.34 | I164: 199 | J164: 1992 | K164: 1
A165: 2017-12-31 | B165: ASEAN5ESG | C165: 0-A5ESG-USD-200000 | D165: 200000 | E165: BS | F165: -0.73 | G165: ASEAN5ESG | H165: -0.73 | I165: 200 | J165: 2000 | K165: 2
A166: 2017-12-31 | B166: ASEAN5ESG | C166: 0-A5ESG-MYR-299010 | D166: 299010 | E166: BS | F166: 975.52 | G166: ASEAN5ESG | H166: 975.52 | I166: 299 | J166: 2990 | K166: 2
A167: 2017-12-31 | B167: ASEAN5ESG | C167: 0-A5ESG-SGD-299015 | D167: 299015 | E167: BS | F167: 4987.65 | G167: ASEAN5ESG | H167: 4987.65 | I167: 299 | J167: 2990 | K167: 2
A168: 2017-12-31 | B168: ASEAN5ESG | C168: 0-A5ESG-MYR-300800 | D168: 300800 | E168: BS | F168: -26513.35 | G168: ASEAN5ESG | H168: -26513.35 | I168: 300 | J168: 3008 | K168: 3
A169: 2017-12-31 | B169: ASEAN5ESG | C169: 0-A5ESG-USD-320103 | D169: 320103 | E169: BS | F169: -1656.45 | G169: ASEAN5ESG | H169: -1656.45 | I169: 320 | J169: 3201 | K169: 3
A170: 2017-12-31 | B170: ASEAN5ESG | C170: 0-A5ESG-USD-320104 | D170: 320104 | E170: BS | F170: -750.71 | G170: ASEAN5ESG | H170: -750.71 | I170: 320 | J170: 3201 | K170: 3
A171: 2017-12-31 | B171: ASEAN5ESG | C171: 0-A5ESG-USD-320105 | D171: 320105 | E171: BS | F171: -1258.28 | G171: ASEAN5ESG | H171: -1258.28 | I171: 320 | J171: 3201 | K171: 3
A172: 2017-12-31 | B172: ASEAN5ESG | C172: 0-A5ESG-USD-320107 | D172: 320107 | E172: BS | F172: -1201.72 | G172: ASEAN5ESG | H172: -1201.72 | I172: 320 | J172: 3201 | K172: 3
A173: 2017-12-31 | B173: ASEAN5ESG | C173: 0-A5ESG-USD-320114 | D173: 320114 | E173: BS | F173: -10394.51 | G173: ASEAN5ESG | H173: -10394.51 | I173: 320 | J173: 3201 | K173: 3
A174: 2017-12-31 | B174: ASEAN5ESG | C174: 0-A5ESG-USD-320873 | D174: 320873 | E174: BS | F174: -106.01 | G174: ASEAN5ESG | H174: -106.01 | I174: 320 | J174: 3208 | K174: 3
A175: 2017-12-31 | B175: ASEAN5ESG | C175: 0-A5ESG-USD-320880 | D175: 320880 | E175: BS | F175: -99.36 | G175: ASEAN5ESG | H175: -99.36 | I175: 320 | J175: 3208 | K175: 3
A176: 2017-12-31 | B176: ASEAN5ESG | C176: 0-A5ESG-USD-320884 | D176: 320884 | E176: BS | F176: 948.7 | G176: ASEAN5ESG | H176: 948.7 | I176: 320 | J176: 3208 | K176: 3
A177: 2017-12-31 | B177: ASEAN5ESG | C177: 0-A5ESG-USD-320889 | D177: 320889 | E177: BS | F177: -75.38 | G177: ASEAN5ESG | H177: -75.38 | I177: 320 | J177: 3208 | K177: 3
A178: 2017-12-31 | B178: ASEAN5ESG | C178: 0-A5ESG-MYR-500000 | D178: 500000 | E178: BS | F178: 7729.27 | G178: ASEAN5ESG | H178: 7729.27 | I178: 500 | J178: 5000 | K178: 5
A179: 2017-12-31 | B179: ASEAN5ESG | C179: 0-A5ESG-USD-600010 | D179: 600010 | E179: PLR | F179: -2119.78 | G179: ASEAN5ESG | H179: -2119.78 | I179: 600 | J179: 6000 | K179: 6
A180: 2017-12-31 | B180: ASEAN5ESG | C180: 0-A5ESG-USD-630210 | D180: 630210 | E180: PLR | F180: -6821.46 | G180: ASEAN5ESG | H180: -6821.46 | I180: 630 | J180: 6302 | K180: 6
A181: 2017-12-31 | B181: ASEAN5ESG | C181: 0-A5ESG-USD-635010 | D181: 635010 | E181: PLR | F181: -12995.39 | G181: ASEAN5ESG | H181: -12995.39 | I181: 635 | J181: 6350 | K181: 6
A182: 2017-12-31 | B182: ASEAN5ESG | C182: 0-A5ESG-USD-635015 | D182: 635015 | E182: PLR | F182: -26033.5 | G182: ASEAN5ESG | H182: -26033.5 | I182: 635 | J182: 6350 | K182: 6
A183: 2017-12-31 | B183: ASEAN5ESG | C183: 0-A5ESG-USD-636010 | D183: 636010 | E183: PLR | F183: -2603.37 | G183: ASEAN5ESG | H183: -2603.37 | I183: 636 | J183: 6360 | K183: 6
A184: 2017-12-31 | B184: ASEAN5ESG | C184: 0-A5ESG-USD-639210 | D184: 639210 | E184: PLR | F184: -197.13 | G184: ASEAN5ESG | H184: -197.13 | I184: 639 | J184: 6392 | K184: 6
A185: 2017-12-31 | B185: ASEAN5ESG | C185: 0-A5ESG-USD-650000 | D185: 650000 | E185: PLR | F185: -20620.01 | G185: ASEAN5ESG | H185: -20620.01 | I185: 650 | J185: 6500 | K185: 6
A186: 2017-12-31 | B186: ASEAN5ESG | C186: 0-A5ESG-USD-689010 | D186: 689010 | E186: PLU | F186: -47742.64 | G186: ASEAN5ESG | H186: -47742.64 | I186: 689 | J186: 6890 | K186: 6
A187: 2017-12-31 | B187: ASEAN5ESG | C187: 0-A5ESG-USD-689015 | D187: 689015 | E187: PLU | F187: -144074.14 | G187: ASEAN5ESG | H187: -144074.14 | I187: 689 | J187: 6890 | K187: 6
A188: 2017-12-31 | B188: ASEAN5ESG | C188: 0-A5ESG-USD-699010 | D188: 699010 | E188: PLU | F188: -71885.55 | G188: ASEAN5ESG | H188: -71885.55 | I188: 699 | J188: 6990 | K188: 6
A189: 2017-12-31 | B189: ASEAN5ESG | C189: 0-A5ESG-USD-699015 | D189: 699015 | E189: PLU | F189: -36344.74 | G189: ASEAN5ESG | H189: -36344.74 | I189: 699 | J189: 6990 | K189: 6
A190: 2017-12-31 | B190: ASEAN5ESG | C190: 0-A5ESG-USD-699210 | D190: 699210 | E190: PLU | F190: -3095.34 | G190: ASEAN5ESG | H190: -3095.34 | I190: 699 | J190: 6992 | K190: 6
A191: 2017-12-31 | B191: ASEAN5ESG | C191: 0-A5ESG-USD-700000 | D191: 700000 | E191: PLR | F191: -0.58 | G191: ASEAN5ESG | H191: -0.58 | I191: 700 | J191: 7000 | K191: 7
A192: 2017-12-31 | B192: ASEAN5ESG | C192: 0-A5ESG-USD-700301 | D192: 700301 | E192: PLR | F192: 2060.16 | G192: ASEAN5ESG | H192: 2060.16 | I192: 700 | J192: 7003 | K192: 7
A193: 2017-12-31 | B193: ASEAN5ESG | C193: 0-A5ESG-USD-710101 | D193: 710101 | E193: PLR | F193: 1268.59 | G193: ASEAN5ESG | H193: 1268.59 | I193: 710 | J193: 7101 | K193: 7
A194: 2017-12-31 | B194: ASEAN5ESG | C194: 0-A5ESG-USD-710102 | D194: 710102 | E194: PLR | F194: 166.05 | G194: ASEAN5ESG | H194: 166.05 | I194: 710 | J194: 7101 | K194: 7
A195: 2017-12-31 | B195: ASEAN5ESG | C195: 0-A5ESG-USD-710104 | D195: 710104 | E195: PLR | F195: 122.98 | G195: ASEAN5ESG | H195: 122.98 | I195: 710 | J195: 7101 | K195: 7
A196: 2017-12-31 | B196: ASEAN5ESG | C196: 0-A5ESG-USD-710106 | D196: 710106 | E196: PLR | F196: 9644.44 | G196: ASEAN5ESG | H196: 9644.44 | I196: 710 | J196: 7101 | K196: 7
A197: 2017-12-31 | B197: ASEAN5ESG | C197: 0-A5ESG-USD-710113 | D197: 710113 | E197: PLR | F197: 5514.93 | G197: ASEAN5ESG | H197: 5514.93 | I197: 710 | J197: 7101 | K197: 7
A198: 2017-12-31 | B198: ASEAN5ESG | C198: 0-A5ESG-USD-710115 | D198: 710115 | E198: PLR | F198: 599.21 | G198: ASEAN5ESG | H198: 599.21 | I198: 710 | J198: 7101 | K198: 7
A199: 2017-12-31 | B199: ASEAN5ESG | C199: 0-A5ESG-USD-710126 | D199: 710126 | E199: PLR | F199: 26206.37 | G199: ASEAN5ESG | H199: 26206.37 | I199: 710 | J199: 7101 | K199: 7
A200: 2017-12-31 | B200: ASEAN5ESG | C200: 0-A5ESG-USD-710873 | D200: 710873 | E200: PLR | F200: 35.9 | G200: ASEAN5ESG | H200: 35.9 | I200: 710 | J200: 7108 | K200: 7
... 1233 more rows

Sheet Main (hidden)
A1: \
H11: * Please select sheet(s) to print | K11: Setting
C12: Reports Details | H12: Sheets | I12: YES/NO | K12: Transfer | L12: Transfer Date | M12: Transfer Fund
H13: MEQESG_Distribution | I13: NO | K13: KHAZANAH | L13: 42308 | M13: YH-AUR-VCAM
C14: Company Name: | D14: VCAP ASSET MANAGERS | H14: MEQESG_Internal | I14: NO
H15: YA | I15: NO
C16: Company ID: | D16: VC | H16: KWAP_Client | I16: NO
H17: KWAP_Internal | I17: NO
C18: End of Last Month: | D18: =EOMONTH(ValueDate,-1) -> 2018-11-30 | H18: YH | I18: NO | K18: Checking
H19: KWAP FI (Internal) | I19: NO | K19: FBMT100 | L19: =SUM(IndexBasket!D:D) -> 0.99939261
C20: Value Date | D20: 2018-12-31 | H20: KWAP FI (Client) | I20: NO
H21: A5ESG_Internal | I21: NO
H22: TABA | I22: NO
H23: MEQESG_Distribution (2) | I23: NO
H24: AEQESG_Distribution | I24: NO

Sheet A5ESGNAV (hidden)
B1: NAV - MYR
A2: 42766 | B2: 1.0002
A3: 42768 | B3: 1.000454
A4: 42769 | B4: 1.000318
A5: 42772 | B5: 1.001723
A6: 42773 | B6: 1.001645
A7: 42774 | B7: 1.001028
A8: 42776 | B8: 1.006842
A9: 42779 | B9: 1.009907
A10: 42780 | B10: 1.01031
A11: 42781 | B11: 1.0083
A12: 42782 | B12: 1.0077
A13: 42783 | B13: 1.0157
A14: 42786 | B14: 1.0182
A15: 42787 | B15: 1.0166
A16: 42788 | B16: 1.0204
A17: 42789 | B17: 1.0187
A18: 42790 | B18: 1.0173
A19: 42794 | B19: 1.0139

Sheet InCurrency (hidden)
A2: ExDate | B2: BaseCurrency | C2: QuoteCurrency | D2: FXSource | E2: ExRate
A3: 43465 | B3: USD | C3: NAD | D3: 3 | E3: 14.3806
A4: 43465 | B4: USD | C4: MAD | D4: 3 | E4: 9.5718
A5: 43465 | B5: USD | C5: RUB | D5: 3 | E5: 69.2862
A6: 43465 | B6: USD | C6: BHD | D6: 3 | E6: 0.3767
A7: 43465 | B7: USD | C7: INR | D7: 3 | E7: 69.8075
A8: 42766 | B8: USD | C8: MYR | D8: 1 | E8: 4.428
A9: 43465 | B9: USD | C9: TWD | D9: 3 | E9: 30.736
A10: 43465 | B10: USD | C10: VND | D10: 3 | E10: 23190
A11: 43465 | B11: USD | C11: EGP | D11: 3 | E11: 17.87
A12: 43465 | B12: USD | C12: CZK | D12: 3 | E12: 22.5059
A13: 43465 | B13: USD | C13: THB | D13: 3 | E13: 32.3239
A14: 43465 | B14: USD | C14: HUF | D14: 3 | E14: 280.5213
A15: 43465 | B15: USD | C15: COP | D15: 3 | E15: 3245
A16: 42842 | B16: PHP | C16: USD | D16: 3 | E16: 0.02018570852
A17: 43465 | B17: USD | C17: AED | D17: 3 | E17: 3.6728
A18: 43465 | B18: USD | C18: XOF | D18: 3 | E18: 573.7401
A19: 43465 | B19: USD | C19: GBP | D19: 3 | E19: 0.785299
A20: 42766 | B20: MYR | C20: USD | D20: 1 | E20: 0.2258355917
A21: 42842 | B21: HKD | C21: USD | D21: 3 | E21: 0.1286355626
A22: 43465 | B22: USD | C22: KES | D22: 3 | E22: 101.7
A23: 42842 | B23: SGD | C23: USD | D23: 3 | E23: 0.7169486665
A24: 43465 | B24: USD | C24: NOK | D24: 3 | E24: 8.6564
A25: 43465 | B25: USD | C25: QAR | D25: 3 | E25: 3.6405
A26: 42842 | B26: THB | C26: USD | D26: 3 | E26: 0.02919708029
A27: 43465 | B27: USD | C27: CNH | D27: 3 | E27: 6.8698
A28: 42842 | B28: GBP | C28: USD | D28: 3 | E28: 1.25920003
A29: 43465 | B29: USD | C29: ARS | D29: 3 | E29: 37.65
A30: 43465 | B30: USD | C30: JPY | D30: 3 | E30: 109.7
A31: 43465 | B31: USD | C31: ZMW | D31: 3 | E31: 11.9
A32: 42842 | B32: IDR | C32: USD | D32: 3 | E32: 7.528419785e-05
A33: 43465 | B33: USD | C33: PHP | D33: 3 | E33: 52.58
A34: 43465 | B34: USD | C34: OMR | D34: 3 | E34: 0.3848
A35: 43465 | B35: USD | C35: KWD | D35: 3 | E35: 0.3032
A36: 43465 | B36: USD | C36: UYU | D36: 3 | E36: 32.4
A37: 43465 | B37: USD | C37: EUR | D37: 3 | E37: 0.874891
A38: 43465 | B38: USD | C38: KRW | D38: 3 | E38: 1115.7
A39: 43465 | B39: USD | C39: IDR | D39: 3 | E39: 14375
A40: 43465 | B40: USD | C40: ZAR | D40: 3 | E40: 14.3806
A41: 43465 | B41: USD | C41: SEK | D41: 3 | E41: 8.8625
A42: 43465 | B42: USD | C42: BDT | D42: 3 | E42: 83.84
A43: 43465 | B43: USD | C43: BND | D43: 3 | E43: 1.3627
A44: 43465 | B44: USD | C44: MXN | D44: 3 | E44: 19.6917
A45: 42842 | B45: EUR | C45: USD | D45: 3 | E45: 1.066300428
A46: 43465 | B46: USD | C46: NZD | D46: 3 | E46: 1.491869
A47: 43279 | B47: MYR | C47: USD | D47: 3 | E47: 0.24734
A48: 43465 | B48: USD | C48: PLN | D48: 3 | E48: 3.7555
A49: 43465 | B49: USD | C49: CNY | D49: 3 | E49: 6.8657
A50: 43465 | B50: USD | C50: MUR | D50: 3 | E50: 34.25
A51: 43465 | B51: USD | C51: NGN | D51: 3 | E51: 363
A52: 43465 | B52: USD | C52: CAD | D52: 3 | E52: 1.3656
A53: 43465 | B53: USD | C53: CHF | D53: 3 | E53: 0.9854
A54: 43465 | B54: USD | C54: BWP | D54: 3 | E54: 10.787487
A55: 43465 | B55: USD | C55: UGX | D55: 3 | E55: 3710
A56: 42842 | B56: CNY | C56: USD | D56: 3 | E56: 0.1451926707
A57: 43465 | B57: USD | C57: SGD | D57: 3 | E57: 1.3627
A58: 43465 | B58: USD | C58: BRL | D58: 3 | E58: 3.8753
A59: 43465 | B59: USD | C59: PEN | D59: 3 | E59: 3.377
A60: 43465 | B60: USD | C60: DKK | D60: 3 | E60: 6.5266
A61: 43465 | B61: USD | C61: LKR | D61: 3 | E61: 182.6
A62: 43465 | B62: USD | C62: SAR | D62: 3 | E62: 3.7511
A63: 43465 | B63: USD | C63: AUD | D63: 3 | E63: 1.420858
A64: 43465 | B64: USD | C64: MYR | D64: 3 | E64: 4.13
A65: 43465 | B65: USD | C65: TRY | D65: 3 | E65: 5.3149
A66: 43465 | B66: USD | C66: PKR | D66: 3 | E66: 138.7
A67: 43465 | B67: USD | C67: HKD | D67: 3 | E67: 7.8291
A68: 43465 | B68: USD | C68: UAH | D68: 3 | E68: 27.672

Sheet InTWRR (hidden)
D1: =B1&A1 -> 
A2: ValueDate | B2: qFundCode | C2: TWRRPrice | D2: FundValueDate
A3: 41995 | B3: KHAZANAH | C3: 1 | D3: KHAZANAH41995
A4: 41995 | B4: YH-AUR-VCAM | C4: 1 | D4: YH-AUR-VCAM41995
A5: 42124 | B5: KHAZANAH | C5: 1.020855067 | D5: KHAZANAH42124
A6: 42124 | B6: KWAP | C6: 1.024252288 | D6: KWAP42124
A7: 42124 | B7: KWAPFI | C7: 1 | D7: KWAPFI42124
A8: 42124 | B8: VCAM | C8: 1.212930317 | D8: VCAM42124
A9: 42124 | B9: VCAMOPR | C9: 0.000260232977 | D9: VCAMOPR42124
A10: 42124 | B10: YH-AUR-VCAM | C10: 1.020855067 | D10: YH-AUR-VCAM42124
A11: 42191 | B11: KHAZANAH | C11: 0.9771551147 | D11: KHAZANAH42191
A12: 42191 | B12: KWAP | C12: 0.9593278254 | D12: KWAP42191
A13: 42191 | B13: KWAPFI | C13: 1.007922938 | D13: KWAPFI42191
A14: 42191 | B14: VCAM | C14: 1.221518772 | D14: VCAM42191
A15: 42191 | B15: VCAMOPR | C15: 3.896531853e-05 | D15: VCAMOPR42191
A16: 42191 | B16: YH-AUR-VCAM | C16: 0.9771551147 | D16: YH-AUR-VCAM42191
A17: 42193 | B17: KHAZANAH | C17: 0.9644150727 | D17: KHAZANAH42193
A18: 42193 | B18: KWAP | C18: 0.9458167938 | D18: KWAP42193
A19: 42193 | B19: KWAPFI | C19: 1.006570178 | D19: KWAPFI42193
A20: 42193 | B20: VCAM | C20: 1.221748001 | D20: VCAM42193
A21: 42193 | B21: VCAMOPR | C21: 3.898777426e-05 | D21: VCAMOPR42193
A22: 42193 | B22: YH-AUR-VCAM | C22: 0.9644150727 | D22: YH-AUR-VCAM42193
A23: 42308 | B23: KHAZANAH | C23: 1.05845775 | D23: KHAZANAH42308
A24: 42308 | B24: KWAP | C24: 0.9456907971 | D24: KWAP42308
A25: 42308 | B25: KWAPFI | C25: 1.011247825 | D25: KWAPFI42308
A26: 42308 | B26: MEQESG | C26: 1.0525 | D26: MEQESG42308
A27: 42308 | B27: VCAM | C27: 1.994393575 | D27: VCAM42308
A28: 42308 | B28: VCAMOPR | C28: -1.868336248e-07 | D28: VCAMOPR42308
A29: 42308 | B29: YAMIR-VCAM | C29: 1.027931882 | D29: YAMIR-VCAM42308
A30: 42308 | B30: YH-AUR-VCAM | C30: 0.96472958 | D30: YH-AUR-VCAM42308
A31: 42369 | B31: KWAP | C31: 0.9535555642 | D31: KWAP42369
A32: 42369 | B32: KWAPFI | C32: 1.016594655 | D32: KWAPFI42369
A33: 42369 | B33: MEQESG | C33: 1.0599 | D33: MEQESG42369
A34: 42369 | B34: VCAM | C34: 2.019282884 | D34: VCAM42369
A35: 42369 | B35: VCAMOPR | C35: -5.321106805e-08 | D35: VCAMOPR42369
A36: 42369 | B36: YAMIR-VCAM | C36: 1.036965352 | D36: YAMIR-VCAM42369
A37: 42369 | B37: YH-AUR-VCAM | C37: 0.9589616766 | D37: YH-AUR-VCAM42369
A38: 42669 | B38: KWAP | C38: 1.004684828 | D38: KWAP42669
A39: 42669 | B39: KWAPFI | C39: 1.096558758 | D39: KWAPFI42669
A40: 42669 | B40: MEQESG | C40: 1.1203 | D40: MEQESG42669
A41: 42669 | B41: VCAM | C41: 4.984584041 | D41: VCAM42669
A42: 42669 | B42: VCAMOPR | C42: -2.640135785e-14 | D42: VCAMOPR42669
A43: 42669 | B43: VCAM-TABA | C43: 1 | D43: VCAM-TABA42669
A44: 42669 | B44: YAMIR-VCAM | C44: 1.060211061 | D44: YAMIR-VCAM42669
A45: 42669 | B45: YH-AUR-VCAM | C45: 1.031699159 | D45: YH-AUR-VCAM42669
A46: 42720 | B46: KWAP | C46: 0.9800663726 | D46: KWAP42720
A47: 42720 | B47: KWAPFI | C47: 1.083408315 | D47: KWAPFI42720
A48: 42720 | B48: MEQESG | C48: 1.0915 | D48: MEQESG42720
A49: 42720 | B49: VCAM | C49: 5.99205115 | D49: VCAM42720
A50: 42720 | B50: VCAMOPR | C50: -3.224872984e-15 | D50: VCAMOPR42720
A51: 42720 | B51: VCAM-TABA | C51: 0.999675548 | D51: VCAM-TABA42720
A52: 42720 | B52: YAMIR-VCAM | C52: 1.050515822 | D52: YAMIR-VCAM42720
A53: 42720 | B53: YH-AUR-VCAM | C53: 1.021548792 | D53: YH-AUR-VCAM42720
A54: 42735 | B54: KWAP | C54: 0.9782475978 | D54: KWAP42735
A55: 42735 | B55: KWAPFI | C55: 1.086780988 | D55: KWAPFI42735
A56: 42735 | B56: MEQESG | C56: 1.0976 | D56: MEQESG42735
A57: 42735 | B57: VCAM | C57: 6.000077656 | D57: VCAM42735
A58: 42735 | B58: VCAMOPR | C58: -2.672117597e-15 | D58: VCAMOPR42735
A59: 42735 | B59: VCAM-TABA | C59: 0.995859464 | D59: VCAM-TABA42735
A60: 42735 | B60: YAMIR-VCAM | C60: 1.055624228 | D60: YAMIR-VCAM42735
A61: 42735 | B61: YH-AUR-VCAM | C61: 1.022426547 | D61: YH-AUR-VCAM42735
A62: 43100 | B62: ASEAN5ESG | C62: 1.201704436 | D62: ASEAN5ESG43100
A63: 43100 | B63: KWAP | C63: 1.079833252 | D63: KWAP43100
A64: 43100 | B64: KWAPFI | C64: 1.14693854 | D64: KWAPFI43100
A65: 43100 | B65: MEQESG | C65: 1.349885936 | D65: MEQESG43100
A66: 43100 | B66: VCAM | C66: 24.61889812 | D66: VCAM43100
A67: 43100 | B67: VCAMOPR | C67: -3.263444403e-21 | D67: VCAMOPR43100
A68: 43100 | B68: VCAM-TABA | C68: 1.05553097 | D68: VCAM-TABA43100
A69: 43100 | B69: YAMIR-VCAM | C69: 1.063759125 | D69: YAMIR-VCAM43100
A70: 43100 | B70: YH-AUR-VCAM | C70: 1.088888445 | D70: YH-AUR-VCAM43100
A71: 43281 | B71: ASEAN5ESG | C71: 1.07127287 | D71: ASEAN5ESG43281
A72: 43281 | B72: ASEAN5ESG-MYR | C72: 0.8646382672 | D72: ASEAN5ESG-MYR43281
A73: 43281 | B73: ASEAN5ESG-USD | C73: 1 | D73: ASEAN5ESG-USD43281
A74: 43281 | B74: KWAP | C74: 0.9445852222 | D74: KWAP43281
A75: 43281 | B75: KWAPFI | C75: 1.168825219 | D75: KWAPFI43281
A76: 43281 | B76: MEQESG | C76: 1.134478606 | D76: MEQESG43281
A77: 43281 | B77: VCAM | C77: 37.69709441 | D77: VCAM43281
A78: 43281 | B78: VCAMOPR | C78: -1.302851762e-23 | D78: VCAMOPR43281
A79: 43281 | B79: VCAM-TABA | C79: 0.8868211374 | D79: VCAM-TABA43281
A80: 43281 | B80: YAMIR-VCAM | C80: 1.00128599 | D80: YAMIR-VCAM43281
A81: 43281 | B81: YH-AUR-VCAM | C81: 1.032505942 | D81: YH-AUR-VCAM43281
A82: 43373 | B82: ASEAN5ESG | C82: 1.134124754 | D82: ASEAN5ESG43373
A83: 43373 | B83: ASEAN5ESG-MYR | C83: 0.936290785 | D83: ASEAN5ESG-MYR43373
A84: 43373 | B84: ASEAN5ESG-USD | C84: 1 | D84: ASEAN5ESG-USD43373
A85: 43373 | B85: KWAP | C85: 0.9853437139 | D85: KWAP43373
A86: 43373 | B86: KWAPFI | C86: 1.194914754 | D86: KWAPFI43373
A87: 43373 | B87: MEQESG | C87: 1.200082277 | D87: MEQESG43373
A88: 43373 | B88: VCAM | C88: 55.47838646 | D88: VCAM43373
A89: 43373 | B89: VCAMOPR | C89: -2.21256314e-24 | D89: VCAMOPR43373
A90: 43373 | B90: VCAM-TABA | C90: 0.9726844742 | D90: VCAM-TABA43373
A91: 43373 | B91: YAMIR-VCAM | C91: 0.9786323807 | D91: YAMIR-VCAM43373
A92: 43373 | B92: YH-AUR-VCAM | C92: 1.057451646 | D92: YH-AUR-VCAM43373
A93: 43434 | B93: ASEAN5ESG | C93: 1.010010994 | D93: ASEAN5ESG43434
A94: 43434 | B94: ASEAN5ESG-MYR | C94: 0.8419669973 | D94: ASEAN5ESG-MYR43434
A95: 43434 | B95: ASEAN5ESG-USD | C95: 1 | D95: ASEAN5ESG-USD43434
A96: 43434 | B96: KWAP | C96: 0.9210517816 | D96: KWAP43434
A97: 43434 | B97: KWAPFI | C97: 1.204094402 | D97: KWAPFI43434
A98: 43434 | B98: MEQESG | C98: 1.033472225 | D98: MEQESG43434
A99: 43434 | B99: VCAM | C99: 66.32461083 | D99: VCAM43434
A100: 43434 | B100: VCAMOPR | C100: -9.775229374e-25 | D100: VCAMOPR43434
A101: 43434 | B101: VCAM-TABA | C101: 0.8142117103 | D101: VCAM-TABA43434
A102: 43434 | B102: YAMIR-VCAM | C102: 0.9737827466 | D102: YAMIR-VCAM43434
A103: 43434 | B103: YH-AUR-VCAM | C103: 1.012808112 | D103: YH-AUR-VCAM43434
A104: 43465 | B104: ASEAN5ESG | C104: 1.018950684 | D104: ASEAN5ESG43465
A105: 43465 | B105: ASEAN5ESG-MYR | C105: 0.838386007 | D105: ASEAN5ESG-MYR43465
A106: 43465 | B106: ASEAN5ESG-USD | C106: 1 | D106: ASEAN5ESG-USD43465
A107: 43465 | B107: KWAP | C107: 0.9063854651 | D107: KWAP43465
A108: 43465 | B108: KWAPFI | C108: 1.216095848 | D108: KWAPFI43465
A109: 43465 | B109: MEQESG | C109: 1.020462431 | D109: MEQESG43465
A110: 43465 | B110: VCAM | C110: 66.78177266 | D110: VCAM43465
A111: 43465 | B111: VCAMOPR | C111: -7.066418051e-25 | D111: VCAMOPR43465
A112: 43465 | B112: VCAM-TABA | C112: 0.7755913449 | D112: VCAM-TABA43465
A113: 43465 | B113: YAMIR-VCAM | C113: 0.9790157353 | D113: YAMIR-VCAM43465
A114: 43465 | B114: YH-AUR-VCAM | C114: 1.007552763 | D114: YH-AUR-VCAM43465

Sheet InFund (hidden)
A1: FundData | K1: Key In
A2: qFundCode | B2: FundName | C2: qIndexBenchmark | D2: Benchmark | E2: FundCurrency | F2: UTFlag | G2: FinanceYrStart | H2: FinanceYrEnd | I2: RollEOYFlag | J2: FXSource | K2: TD | L2: TF
A3: ASEAN5ESG | B3: ASEAN 5 ESG OPPORTUNITY FUND | C3: F4GAS | D3: FTSE4GOOD ASEAN5 INDEX | E3: USD | F3: 1 | G3: 2016-12-16 | H3: 2019-06-30 | I3: 1 | J3: 3 | K3: 42308 | L3: YH-AUR-VCAM
A4: ASEAN5ESG-MYR | B4: ASEAN 5 ESG OPPORTUNITY FUND (MYR) | C4: F4GAS | D4: FTSE4GOOD ASEAN5 INDEX | E4: MYR | F4: 1 | G4: 2016-12-16 | H4: 2019-06-30 | I4: 1 | J4: 3
A5: ASEAN5ESG-USD | B5: ASEAN 5 ESG OPPORTUNITY FUND (USD) | C5: F4GAS | D5: FTSE4GOOD ASEAN5 INDEX | E5: USD | F5: 1 | G5: 2016-12-16 | H5: 2019-06-30 | I5: 1 | J5: 3
A6: KHAZANAH | B6: Yayasan Hasanah (AUR VCAM) | C6: FBMKLCI | D6: FBM KLCI | E6: MYR | F6: 0 | G6: 2014-12-22 | H6: 2018-12-31 | I6: 0 | J6: 1
A7: KWAP | B7: KUMPULAN WANG PERSARAAN (DIPERBADANKAN) | C7: FBMT100 | D7: FBM TOP 100 | E7: MYR | F7: 0 | G7: 2014-12-15 | H7: 2018-12-31 | I7: 0 | J7: 1
A8: KWAPFI | B8: KWAP (VCAP Fixed Income Fund) | C8: MGSALL | D8: Quant Shop MGS ALL Index | E8: MYR | F8: 0 | G8: 2015-04-30 | H8: 2018-12-31 | I8: 0 | J8: 1
A9: MEQESG | B9: Malaysian ESG Opportunity Fund | C9: F4GBM | D9: FTSE4GOOD BM INDEX | E9: MYR | F9: 1 | G9: 2015-07-06 | H9: 2019-06-30 | I9: 1 | J9: 1
A10: VCAM | B10: VCAP ASSET MANAGERS SDN BHD (INV) | C10: FBMKLCI | D10: FBM KLCI | E10: MYR | F10: 0 | G10: 2014-04-11 | H10: 2018-12-31 | I10: 0 | J10: 1
A11: VCAMOPR | B11: VCAP ASSET MANAGERS SDN BHD (OPR) | C11: FBMKLCI | D11: FBM KLCI | E11: MYR | F11: 0 | G11: 2014-04-11 | H11: 2018-12-31 | I11: 0 | J11: 1
A12: VCAM-TABA | B12: VCAM-SGOR STATE GOVT -TABA | C12: FBMT100 | D12: FBM TOP 100 | E12: MYR | F12: 0 | G12: 2016-10-26 | H12: 2018-12-31 | I12: 0 | J12: 1
A13: YAMIR-VCAM | B13: YAYASAN AMIR | C13: FBMT100 | D13: FBM TOP 100 | E13: MYR | F13: 0 | G13: 2015-07-08 | H13: 2018-12-31 | I13: 0 | J13: 1
A14: YH-AUR-VCAM | B14: Yayasan Hasanah (AUR-VCAM) | C14: FBMT100 | D14: FBM TOP 100 | E14: MYR | F14: 0 | G14: 2015-10-31 | H14: 2018-12-31 | I14: 0 | J14: 1

Sheet MEQESG_Distribution (hidden)
C2: MALAYSIAN ESG OPPORTUNITY FUND
C4: FUND FACTSHEET | K4: =ValueDate -> 2018-12-31
C5: For Sophisticated Investor use only. Not for distribution to retail investor.
C6: Fund Category / Fund Type | E6: FUND OBJECTIVE
C7: ESG Equity / Growth
C9: Target Investor
C10: Sophisticated Investors
C12: Currency | E12: FUND STRATEGY
C13: Ringgit Malaysia (RM)
C15: Launch Date / IOP
C16: 6 July 2015 / RM1.00
C18: Inception Date
C19: 2015-08-20
C21: Client Investment Outlay
C22: =-SUMIFS(InTB!H:H,InTB!G:G,MEQESG_Internal!FundCode,InTB!D:D,"800000",InTB!A:A,ValueDate) -> 237519929.7
C24: Market Value of Fund
C25: =MEQESG_Internal!B11 -> 215361230.6
E26: FUND PERFORMANCE (since inception)
C27: NAV per Unit
C28: =VLOOKUP(ValueDate,MEQESG_Internal!AL:AM,2,1) -> 0.9491
C30: Min. investment
C31: 250000
C33: Minimum Additional Investment
C34: 100000
C36: Distribution Policy
C37: Incidental
E39: Source: VCAP Asset Managers, Deutsche Trustee
E40: TOP HOLDINGS (% of total) | I40: SECTOR ALLOCATION
E41: =MEQESG_Internal!Y43 -> Tenaga Nasional Bhd | G41: =MEQESG_Internal!Z43 -> 0.1510564644
E42: =MEQESG_Internal!Y44 -> My E.G. Services Berhad | G42: =MEQESG_Internal!Z44 -> 0.1069072278
C43: For information on the Fund, kindly contact us at the address and phone number below: | E43: =MEQESG_Internal!Y45 -> Malaysia Airports Holdings Bhd | G43: =MEQESG_Internal!Z45 -> 0.09096561272
E44: =MEQESG_Internal!Y46 -> Telekom Malaysia Berhad | G44: =MEQESG_Internal!Z46 -> 0.08471781565
E45: =MEQESG_Internal!Y47 -> YTL Corporation Berhad | G45: =MEQESG_Internal!Z47 -> 0.0820379509
E46: =MEQESG_Internal!Y48 -> Sime Darby Property Bhd | G46: =MEQESG_Internal!Z48 -> 0.08069833615
C47: VCAP Asset Managers Sdn. Bhd. | E47: =MEQESG_Internal!Y49 -> Malayan Banking Berhad | G47: =MEQESG_Internal!Z49 -> 0.07263639184
C48: Level 8, Block B, HP Towers | E48: =MEQESG_Internal!Y50 -> Astro Malaysia Holdings Bhd | G48: =MEQESG_Internal!Z50 -> 0.06381225894
C49: No. 12, Jalan Gelenggang | E49: =MEQESG_Internal!Y51 -> UEM Sunrise Bhd | G49: =MEQESG_Internal!Z51 -> 0.05417263049
C50: Bukit Damansara, 50490 KL | E50: =MEQESG_Internal!Y52 -> Public Bank Berhad | G50: =MEQESG_Internal!Z52 -> 0.05182574163
C51: Tel: +603 2788 5100 | E51: Total | G51: =SUM(G41:G50) -> 0.8388304305
C52: Fax: +603 2788 5169 | E52: ="(Based on the Market Value as at "&TEXT(ValueDate,"dd MMM yyyy")&")" -> (Based on the Market Value as at 31 Dec 2018) | I52: ="(Based on the Market Value as at "&TEXT(ValueDate,"dd MMM yyyy")&")" -> (Based on the Market Value as at 31 Dec 2018)
C53: Website: www.vcam.com.my | E53: Source: VCAP Asset Managers, Deutsche Trustee | I53: Source: VCAP Asset Managers, Deutsche Trustee
C55: MALAYSIAN ESG OPPORTUNITY FUND | J55: =+K4 -> 2018-12-31
C56: For Sophisticated Investor use only. Not for distribution to retail investor.
C58: MANAGER'S COMMENTARY
C70: FEES & CHARGES
C71: Annual Management Fee | E71: 0.45% of the NAV per annum
C72: Annual Trustee Fee | E72: 0.0475% of the NAV per annum (subject to a minimum of RM15,000 per annum)
C73: Sales Charge* | E73: Up to 2.00% of the NAV per unit
C74: *Note: The sales charge is negotiable. The Manager reserves the right to waive or reduce the sales charge from time to time at its absolute discretion.
C76: FUND PARTNERS
C77: Trustee | F77: Deutsche Trustees Malaysia Berhad
C78: Fund Accounting & Valuation Agent | F78: Deutsche Bank (Malaysia) Berhad
C79: Auditors | F79: PricewaterhouseCoopers
C80: Tax Adviser | F80: PricewaterhouseCoopers Taxation Services Sdn. Bhd.
C81: Solicitors | F81: Messrs. Naqiz & Partners
C83: KEY RISK OF THE FUND
C87: General Risks of Investing in the Fund | G87: Specific Risks of the Fund
C88: · Market Risk | G88: · Equity Investment Risk
C89: · Liquidity Risk | G89: · ESG Securities Risk
C90: · Non-Compliance Risk | G90: · Turnover Risk
C91: · Operational Risk | G91: · Counterparty Risk
C93: ABOUT THE REFERENCE BENCHMARK
C101: DISCLAIMER

Sheet Login
B2: Riskk . Com
B3: Sdn Bhd (CN 388306K)
H4: Box 389, Lot 7.16, Wisma Central, Jln Ampang, 50450 Kuala Lumpur
B9: VCAP ASSET MANAGERS FACT SHEET
J18: `

Sheet YH (hidden)
U1: Setting | V1: =VLOOKUP(FundCode, InFund!$A:$E,5,0) -> MYR
U2: Fund Code | V2: YH-AUR-VCAM
B3: YAYASAN HASANAH (AUR-VCAM) FUND | U3: UTFlag | V3: =VLOOKUP(FundCode,FundData,MATCH(U3,InFund!2:2,0),0) -> 0 | W3: Note: | X3: 1 = Yes; 0=No;
B4: =ValueDate -> 2018-12-31 | M4: Asset Class - Balanced | U4: RollEOYFlag | V4: =VLOOKUP(FundCode,FundData,MATCH(U4,InFund!2:2,0),0) -> 0
U5: Amort.Flag | V5: 0 | W5: * IF Amort.Flag = 1 --> Exclude amortisation/accreation form Unrealised Gain n Loss
B6: FUND INFORMATION | U6: Clean MV | V6: 1 | W6: * IF Clean MV=1 - Accrued Interest add into Cash
B8: ="Total Cost ("&$V$1&")" -> Total Cost (MYR) | G8: Asset Allocation | K8: Performance | L8: 1 month | M8: YTD | N8: 1 year | O8: 3 year | P8: Inception | U8: Accrued Interest | V8: =SUMIF(InHolding!A:A,FundCode,InHolding!P:P) -> 13233091.47 | W8: Top Holding Denominator | X8: NAV
B9: =SUMIF(InHolding!$A:$A,FundCode,InHolding!$L:$L)+$V$8*$V$6+$V$9 -> 2945606928 | K9: Fund | L9: =IF(ISERROR($AC22/AD22-1),0,$AC22/AD22-1) -> -0.005188889297 | M9: =IF(ISERROR($AC22/AE22-1),0,$AC22/AE22-1) -> -0.07469606521 | N9: =IF(ISERROR($AC22/AF22-1),0,$AC22/AF22-1) -> -0.07469606521 | O9: 0.0506705197 | P9: =IF(ISERROR($AC22/AH22-1),0,$AC22/AH22-1) -> 0.007552763083 | U9: Pre-Acq | V9: =SUMIF(InHolding!A:A,FundCode,InHolding!M:M) -> 0
B10: ="Market Value ("&$V$1&")" -> Market Value (MYR) | K10: Benchmark* | L10: =IF(OR(ISERROR($AC23/AD23-1),ISERROR($AC22/AD22-1)),0,$AC23/AD23-1) -> -0.01335516372 | M10: =IF(OR(ISERROR($AC23/AE23-1),ISERROR($AC22/AE22-1)),0,$AC23/AE23-1) -> -0.09279938482 | N10: -0.09279938482 | O10: =IF(OR(ISERROR($AC23/AG23-1),ISERROR($AC22/AG22-1)),0,$AC23/AG23-1) -> -0.002350362711 | P10: -0.02422551016 | T10: Adj. | U10: FinanceYrStart | V10: 2014-12-22
B11: =SUMIF(InHolding!$A:$A,FundCode,InHolding!$O:$O) -> 2594552220 | K11: Excess Return | L11: =L9-L10 -> 0.008166274426 | M11: =M9-M10 -> 0.01810331961 | N11: 0.01810331961 | O11: 0.05302088241 | P11: 0.03177827324 | T11: 2014 | U11: Income | V11: =EDATE(VLOOKUP(FundCode,FundData,MATCH("FinanceYrEnd",InFund!2:2,0),0),-12) -> 2017-12-31 | W11: =Main!D18 -> 2018-11-30 | X11: =ValueDate -> 2018-12-31 | AB11: Portfolio Analysis
B12: ="Unrealised Gains / (Loss) ("&$V$1&")" -> Unrealised Gains / (Loss) (MYR) | U12: Capital Gains | V12: =-(SUMIFS(InTB!$H:$H,InTB!$G:$G,FundCode,InTB!$A:$A,V$11,InTB!$I:$I,"600")+(SUMIFS(InTB!$H:$H,InTB!$G:$G,FundCode,InTB!$A:$A,V$11,InTB!$I:$I,"610")+SUMIFS(InTB!$H:$H,InTB!$G:$G,FundCode,InTB!$A:$A,V$11,InTB!$I:$I,"620"))*(1-$V$5)) -> 179175915.8 | W12: =-(SUMIFS(InTB!$H:$H,InTB!$G:$G,FundCode,InTB!$A:$A,W$11,InTB!$I:$I,"600")+(SUMIFS(InTB!$H:$H,InTB!$G:$G,FundCode,InTB!$A:$A,W$11,InTB!$I:$I,"610")+SUMIFS(InTB!$H:$H,InTB!$G:$G,FundCode,InTB!$A:$A,W$11,InTB!$I:$I,"620"))*(1-$V$5)) -> 189591680.8 | X12: =-(SUMIFS(InTB!$H:$H,InTB!$G:$G,FundCode,InTB!$A:$A,X$11,InTB!$I:$I,"600")+(SUMIFS(InTB!$H:$H,InTB!$G:$G,FundCode,InTB!$A:$A,X$11,InTB!$I:$I,"610")+SUMIFS(InTB!$H:$H,InTB!$G:$G,FundCode,InTB!$A:$A,X$11,InTB!$I:$I,"620"))*(1-$V$5)) -> 193936060.7 | AB12: EQT | AC12: Equity | AD12: =SUMIFS(InHolding!U:U,InHolding!A:A,FundCode,InHolding!C:C,$AB12) -> 1227501757 | AE12: =IF(AD12=0,NA(),AD12) -> 1227501757 | AF12: =AD12/$AD$15 -> 0.4731073622 | AG12: =SUMIFS(InHolding!AC:AC,InHolding!A:A,FundCode,InHolding!C:C,$AB12) ->  | AH12: =IF(AB12="CSH",AD12-$X$18,SUMIFS(InHolding!L:L,InHolding!A:A,FundCode,InHolding!C:C,$AB12)) -> 1579984365 | AI12: =AG12/AH12 -> 
B13: =B11-B9 -> -351054708 | K13: Income | M13: ="1 month ("&$V$1&")" -> 1 month (MYR) | O13: ="YTD ("&$V$1&")" -> YTD (MYR) | U13: Dividend Income | V13: =-(SUMIFS(InTB!$H:$H,InTB!$G:$G,FundCode,InTB!$A:$A,V$11,InTB!$I:$I,"636")+SUMIFS(InTB!$H:$H,InTB!$G:$G,FundCode,InTB!$A:$A,V$11,InTB!$I:$I,"635"))-V16-V20 -> 208608646.8 | W13: =-(SUMIFS(InTB!$H:$H,InTB!$G:$G,FundCode,InTB!$A:$A,W$11,InTB!$I:$I,"636")+SUMIFS(InTB!$H:$H,InTB!$G:$G,FundCode,InTB!$A:$A,W$11,InTB!$I:$I,"635"))-W16-W20 -> 257872091.2 | X13: =-(SUMIFS(InTB!$H:$H,InTB!$G:$G,FundCode,InTB!$A:$A,X$11,InTB!$I:$I,"636")+SUMIFS(InTB!$H:$H,InTB!$G:$G,FundCode,InTB!$A:$A,X$11,InTB!$I:$I,"635"))-X16-X20 -> 260900929 | AB13: BND | AC13: FI | AD13: =SUMIFS(InHolding!U:U,InHolding!A:A,FundCode,InHolding!C:C,$AB13) -> 1131857100 | AE13: =IF(AD13=0,NA(),AD13) -> 1131857100 | AF13: =AD13/$AD$15 -> 0.4362437154 | AG13: =SUMIFS(InHolding!AC:AC,InHolding!A:A,FundCode,InHolding!C:C,$AB13) -> 55729147.76 | AH13: =IF(AB13="CSH",AD13-$X$18,SUMIFS(InHolding!L:L,InHolding!A:A,FundCode,InHolding!C:C,$AB13)) -> 1130429200 | AI13: =AG13/AH13 -> 0.04929910494
K14: Capital Gains | M14: =$X12-$W12+IF(YEAR($V$11)=$T$11,$T12,0) -> 4344379.91 | O14: =$X12-$V12*(1-$V$4)+IF(YEAR($V$11)=$T$11,$T12,0) -> 14760144.91 | U14: Interest Income | V14: =-(SUMIFS(InTB!$H:$H,InTB!$G:$G,FundCode,InTB!$A:$A,V$11,InTB!$J:$J,"6302")+SUMIFS(InTB!$H:$H,InTB!$G:$G,FundCode,InTB!$A:$A,V$11,InTB!$J:$J,"6392")+SUMIFS(InTB!$H:$H,InTB!$G:$G,FundCode,InTB!$A:$A,V$11,InTB!$J:$J,"9392")) -> 53200538 | W14: =-(SUMIFS(InTB!$H:$H,InTB!$G:$G,FundCode,InTB!$A:$A,W$11,InTB!$J:$J,"6302")+SUMIFS(InTB!$H:$H,InTB!$G:$G,FundCode,InTB!$A:$A,W$11,InTB!$J:$J,"6392")+SUMIFS(InTB!$H:$H,InTB!$G:$G,FundCode,InTB!$A:$A,W$11,InTB!$J:$J,"9392")) -> 61066274.49 | X14: =-(SUMIFS(InTB!$H:$H,InTB!$G:$G,FundCode,InTB!$A:$A,X$11,InTB!$J:$J,"6302")+SUMIFS(InTB!$H:$H,InTB!$G:$G,FundCode,InTB!$A:$A,X$11,InTB!$J:$J,"6392")+SUMIFS(InTB!$H:$H,InTB!$G:$G,FundCode,InTB!$A:$A,X$11,InTB!$J:$J,"9392")) -> 61544194.83 | AB14: CSH | AC14: Cash | AD14: =SUMIFS(InHolding!U:U,InHolding!A:A,FundCode,InHolding!C:C,$AB14) -> 235193362.9 | AE14: 235193362.9 | AF14: 0.09064892242 | AG14: =SUMIFS(InHolding!AC:AC,InHolding!A:A,FundCode,InHolding!C:C,$AB14) -> 8130563 | AH14: =IF(AB14="CSH",AD14-$X$18,SUMIFS(InHolding!L:L,InHolding!A:A,FundCode,InHolding!C:C,$AB14)) -> 214099000 | AI14: =AG14/AH14 -> 0.03797571684
B15: Equity | D15: Fixed Income | F15: Cash | K15: Dividend Income | M15: =$X13-$W13+IF(YEAR($V$11)=$T$11,$T13,0) -> 3028837.86 | O15: =$X13-$V13*(1-$V$4)+IF(YEAR($V$11)=$T$11,$T13,0) -> 52292282.2 | U15: Coupon Income | V15: =-(SUMIFS(InTB!$H:$H,InTB!$G:$G,FundCode,InTB!$A:$A,V$11,InTB!$J:$J,"6301")+SUMIFS(InTB!$H:$H,InTB!$G:$G,FundCode,InTB!$A:$A,V$11,InTB!$J:$J,"6391")+SUMIFS(InTB!$H:$H,InTB!$G:$G,FundCode,InTB!$A:$A,V$11,InTB!$J:$J,"9391")) -> 63768033.46 | W15: =-(SUMIFS(InTB!$H:$H,InTB!$G:$G,FundCode,InTB!$A:$A,W$11,InTB!$J:$J,"6301")+SUMIFS(InTB!$H:$H,InTB!$G:$G,FundCode,InTB!$A:$A,W$11,InTB!$J:$J,"6391")+SUMIFS(InTB!$H:$H,InTB!$G:$G,FundCode,InTB!$A:$A,W$11,InTB!$J:$J,"9391")) -> 115567360.7 | X15: =-(SUMIFS(InTB!$H:$H,InTB!$G:$G,FundCode,InTB!$A:$A,X$11,InTB!$J:$J,"6301")+SUMIFS(InTB!$H:$H,InTB!$G:$G,FundCode,InTB!$A:$A,X$11,InTB!$J:$J,"6391")+SUMIFS(InTB!$H:$H,InTB!$G:$G,FundCode,InTB!$A:$A,X$11,InTB!$J:$J,"9391")) -> 120591470.2 | AB15: Total | AD15: =AD12+AD13+AD14 -> 2594552220 | AH15: =AH12+AH13+AH14 -> 2924512565 | AI15: =SUMPRODUCT(AH12:AH14,AI12:AI14)/AH15 -> 
B16: ="("&$V$1&")" -> (MYR) | D16: ="("&$V$1&")" -> (MYR) | F16: ="("&$V$1&")" -> (MYR) | K16: Coupon Income (FI) | M16: =$X15-$W15+IF(YEAR($V$11)=$T$11,$T15,0) -> 5024109.57 | O16: =$X15-$V15*(1-$V$4)+IF(YEAR($V$11)=$T$11,$T15,0) -> 56823436.79 | U16: Other Income | V16: =-SUMIFS(InTB!$H:$H,InTB!$G:$G,FundCode,InTB!$A:$A,V$11,InTB!$D:$D,"636003",InTB!$E:$E,"PLR") -> 16144.88 | W16: =-SUMIFS(InTB!$H:$H,InTB!$G:$G,FundCode,InTB!$A:$A,W$11,InTB!$D:$D,"636003",InTB!$E:$E,"PLR") -> 25249.16 | X16: =-SUMIFS(InTB!$H:$H,InTB!$G:$G,FundCode,InTB!$A:$A,X$11,InTB!$D:$D,"636003",InTB!$E:$E,"PLR") -> 25730.38
B17: =AD12 -> 1227501757 | D17: =AD13 -> 1131857100 | F17: =AD14 -> 235193362.9 | K17: Interest Income (Cash) | M17: =$X14-$W14+IF(YEAR($V$11)=$T$11,$T14,0) -> 477920.34 | O17: =$X14-$V14*(1-$V$4)+IF(YEAR($V$11)=$T$11,$T14,0) -> 8343656.83 | AB17: Conversion Date: | AC17: 2015-01-16 | AD17: Adj 2015 YTD | AE17: =IF(YEAR(ValueDate)<=2015,0.962495928864072-1,0) -> 0 | AF17: Transfer Date | AG17: 2015-10-31
B18: No of Securities | K18: Total Gross Income | M18: =SUM(M14:N17)+(X16-W16) -> 12875728.9 | N18: =SUM(M14:N17)+(X16-W16) -> 12875728.9 | O18: =SUM(O14:P17)+(X16-V16*(1-$V$4)) -> 132229106.2 | P18: =SUM(O14:P17)+(X16-V16) -> 132229106.2 | T18: Cash + AI | V18: =SUMIFS(InTB!$H:$H,InTB!$G:$G,FundCode,InTB!$A:$A,IF($V$10>V$11,$V$10,V$11),InTB!$K:$K,2)+SUMIFS(InTB!$H:$H,InTB!$G:$G,FundCode,InTB!$A:$A,IF($V$10>V$11,$V$10,V$11),InTB!$K:$K,3)+SUMIFS(InTB!$H:$H,InTB!$G:$G,FundCode,InTB!$A:$A,IF($V$10>V$11,$V$10,V$11),InTB!$K:$K,5)+SUMIFS(InTB!$H:$H,InTB!$G:$G,FundCode,InTB!$A:$A,IF($V$10>V$11,$V$10,V$11),InTB!$J:$J,1392)+SUMIFS(InTB!$H:$H,InTB!$G:$G,FundCode,InTB!$A:$A,IF($V$10>V$11,$V$10,V$11),InTB!$J:$J,1391) -> -302898.32 | W18: =SUMIFS(InTB!$H:$H,InTB!$G:$G,FundCode,InTB!$A:$A,IF($V$10>W$11,$V$10,W$11),InTB!$K:$K,2)+SUMIFS(InTB!$H:$H,InTB!$G:$G,FundCode,InTB!$A:$A,IF($V$10>W$11,$V$10,W$11),InTB!$K:$K,3)+SUMIFS(InTB!$H:$H,InTB!$G:$G,FundCode,InTB!$A:$A,IF($V$10>W$11,$V$10,W$11),InTB!$K:$K,5)+SUMIFS(InTB!$H:$H,InTB!$G:$G,FundCode,InTB!$A:$A,IF($V$10>W$11,$V$10,W$11),InTB!$J:$J,1392)+SUMIFS(InTB!$H:$H,InTB!$G:$G,FundCode,InTB!$A:$A,IF($V$10>W$11,$V$10,W$11),InTB!$J:$J,1391) -> 2420322.86 | X18: =SUMIFS(InTB!$H:$H,InTB!$G:$G,FundCode,InTB!$A:$A,IF($V$10>X$11,$V$10,X$11),InTB!$K:$K,2)+SUMIFS(InTB!$H:$H,InTB!$G:$G,FundCode,InTB!$A:$A,IF($V$10>X$11,$V$10,X$11),InTB!$K:$K,3)+SUMIFS(InTB!$H:$H,InTB!$G:$G,FundCode,InTB!$A:$A,IF($V$10>X$11,$V$10,X$11),InTB!$K:$K,5)+SUMIFS(InTB!$H:$H,InTB!$G:$G,FundCode,InTB!$A:$A,IF($V$10>X$11,$V$10,X$11),InTB!$J:$J,1392)+SUMIFS(InTB!$H:$H,InTB!$G:$G,FundCode,InTB!$A:$A,IF($V$10>X$11,$V$10,X$11),InTB!$J:$J,1391) -> 21094362.87 | AB18: Return | AC18: =ValueDate -> 2018-12-31 | AD18: =_1Month -> 2018-11-30 | AE18: =IF(EDATE(VLOOKUP(FundCode,FundData,MATCH("FinanceYrEnd",InFund!2:2,0),0),-12)<V10,V10,EDATE(VLOOKUP(FundCode,FundData,MATCH("FinanceYrEnd",InFund!2:2,0),0),-12)) -> 2017-12-31 | AF18: =_1Year -> 2017-12-31 | AG18: =_3Year -> 2015-12-31 | AH18: 2014-12-22
B19: Equity | E19: Fixed Income | K19: Total Net Income | M19: =M18-($X19-$W19+IF(YEAR($V$11)=$T$11,$T19,0)) -> 11861593.68 | O19: =O18-($X19-$V19*(1-$V$4)+IF(YEAR($V$11)=$T$11,$T19,0)) -> 119035780.3 | U19: (Expenses) | V19: =V21 -> 42345999.63 | W19: =W21 -> 54525190.29 | X19: =X21 -> 55539325.51 | AB19: FBMKLCI | AC19: =INDEX(InIndex!$C:$C,MATCH($AB19&AC$18,InIndex!$D:$D,0),0) -> 1690.58 | AD19: =INDEX(InIndex!$C:$C,MATCH($AB19&AD$18,InIndex!$D:$D,0),0) -> 1695.78 | AF19: =INDEX(InIndex!$C:$C,MATCH($AB19&AF$18,InIndex!$D:$D,0),0) -> 1796.81 | AG19: =INDEX(InIndex!$C:$C,MATCH($AB19&AG$18,InIndex!$D:$D,0),0) -> 1692.51 | AH19: =INDEX(InIndex!$C:$C,MATCH($AB19&AH$18,InIndex!$D:$D,0),0) -> 1744.05
B20: =COUNTIFS(InHolding!$A:$A,FundCode,InHolding!$C:$C,"EQT") -> 58 | E20: =SUM(IF((FundCode=InHolding!$A$3:$A$5000)*(InHolding!$C$3:$C$5000="BND"), 1/(COUNTIFS(InHolding!$A$3:$A$5000, FundCode, InHolding!$D$3:$D$5000, InHolding!$D$3:$D$5000,InHolding!$C$3:$C$5000,"BND")), 0)) -> 49 | K20: ROI (%) | M20: =(M18)/((X23+W23+W18+X18)/2) -> 0.004373557424 | O20: =(O18)/((X23+V23+V18+X18)/2) -> 0.0448559962 | U20: 799 | V20: =SUMIFS(InTB!$H:$H,InTB!$G:$G,FundCode,InTB!$A:$A,V$11,InTB!$I:$I,$U20) -> 0 | W20: =SUMIFS(InTB!$H:$H,InTB!$G:$G,FundCode,InTB!$A:$A,W$11,InTB!$I:$I,$U20) -> 0 | X20: =SUMIFS(InTB!$H:$H,InTB!$G:$G,FundCode,InTB!$A:$A,X$11,InTB!$I:$I,$U20) -> 0 | AB20: FBMT100 | AC20: =INDEX(InIndex!$C:$C,MATCH($AB20&AC$18,InIndex!$D:$D,0),0) -> 11443.61 | AD20: =INDEX(InIndex!$C:$C,MATCH($AB20&AD$18,InIndex!$D:$D,0),0) -> 11598.51 | AF20: =INDEX(InIndex!$C:$C,MATCH($AB20&AF$18,InIndex!$D:$D,0),0) -> 12614.2 | AG20: =INDEX(InIndex!$C:$C,MATCH($AB20&AG$18,InIndex!$D:$D,0),0) -> 11470.57 | AH20: =INDEX(InIndex!$C:$C,MATCH($AB20&AH$18,InIndex!$D:$D,0),0) -> 11727.72
P21: * Benchmark - 85% of FBM100 Index & 35% of BPAM All Bond Index & 10% of 3-Month Money Market | U21: 7 | V21: =SUMIFS(InTB!$H:$H,InTB!$G:$G,FundCode,InTB!$A:$A,V$11,InTB!$K:$K,$U21) -> 42345999.63 | W21: =SUMIFS(InTB!$H:$H,InTB!$G:$G,FundCode,InTB!$A:$A,W$11,InTB!$K:$K,$U21) -> 54525190.29 | X21: =SUMIFS(InTB!$H:$H,InTB!$G:$G,FundCode,InTB!$A:$A,X$11,InTB!$K:$K,$U21) -> 55539325.51 | AB21: Relative Performance
B22: EQUITY | U22: 299 | V22: =SUMIFS(InTB!$H:$H,InTB!$G:$G,FundCode,InTB!$A:$A,V$11,InTB!$I:$I,$U22) -> 122159.96 | W22: =SUMIFS(InTB!$H:$H,InTB!$G:$G,FundCode,InTB!$A:$A,W$11,InTB!$I:$I,$U22) -> 905869 | X22: =SUMIFS(InTB!$H:$H,InTB!$G:$G,FundCode,InTB!$A:$A,X$11,InTB!$I:$I,$U22) -> 797160.37 | AB22: =FundCode -> YH-AUR-VCAM | AC22: =INDEX(InTWRR!$C:$C,MATCH($AB22&AC$18,InTWRR!$D:$D,0),0) -> 1.007552763 | AD22: =INDEX(InTWRR!$C:$C,MATCH($AB22&AD$18,InTWRR!$D:$D,0),0) -> 1.012808112 | AE22: =INDEX(InTWRR!$C:$C,MATCH($AB22&AE$18,InTWRR!$D:$D,0),0) -> 1.088888445 | AF22: =INDEX(InTWRR!$C:$C,MATCH($AB22&AF$18,InTWRR!$D:$D,0),0) -> 1.088888445 | AG22: =INDEX(InTWRR!$C:$C,MATCH($AB22&AG$18,InTWRR!$D:$D,0),0) -> 0.9589616766 | AH22: 1
B23: Top Holdings (Equity) | J23: Equity Sector Allocation | U23: Cost | V23: =SUMIFS(InTB!$H:$H,InTB!$G:$G,FundCode,InTB!$A:$A,V$11,InTB!$I:$I,100) -> 2950411925 | W23: =SUMIFS(InTB!$H:$H,InTB!$G:$G,FundCode,InTB!$A:$A,W$11,InTB!$I:$I,100) -> 2939961703 | X23: =SUMIFS(InTB!$H:$H,InTB!$G:$G,FundCode,InTB!$A:$A,X$11,InTB!$I:$I,100) -> 2924512565 | AB23: =VLOOKUP(FundCode,FundData,MATCH("qIndexBenchmark",InFund!$2:$2,0),0) -> FBMT100 | AC23: =INDEX(InIndex!$C:$C,MATCH($AB23&AC$18,InIndex!$D:$D,0),0) -> 11443.61 | AD23: =INDEX(InIndex!$C:$C,MATCH($AB23&AD$18,InIndex!$D:$D,0),0) -> 11598.51 | AE23: =INDEX(InIndex!$C:$C,MATCH($AB23&AE$18,InIndex!$D:$D,0),0) -> 12614.2 | AF23: =INDEX(InIndex!$C:$C,MATCH($AB23&AF$18,InIndex!$D:$D,0),0) -> 12614.2 | AG23: =INDEX(InIndex!$C:$C,MATCH($AB23&AG$18,InIndex!$D:$D,0),0) -> 11470.57 | AH23: =INDEX(InIndex!$C:$C,MATCH($AB23&AH$18,InIndex!$D:$D,0),0) -> 11727.72
C24: Largest Holdings | H24: Exposure (%) | U24: 1000 | V24: =SUMIFS(InTB!$H:$H,InTB!$G:$G,FundCode,InTB!$A:$A,V$11,InTB!$J:$J,$U24) -> 1306707367 | W24: =SUMIFS(InTB!$H:$H,InTB!$G:$G,FundCode,InTB!$A:$A,W$11,InTB!$J:$J,$U24) -> 1351300841 | X24: =SUMIFS(InTB!$H:$H,InTB!$G:$G,FundCode,InTB!$A:$A,X$11,InTB!$J:$J,$U24) -> 1332405703 | AD24: 1 month | AE24: YTD | AF24: 1 year | AG24: 3 year | AH24: Inception
B25: 1 | C25: =IF(B25<=$B$20,X43,"") -> MEQESG | H25: =IF(C25="","",Y43*100*IF($X$8="NAV",$B$17/$B$11,1)) -> 7.511277174 | S25: 1 | U25: 1001 | V25: =SUMIFS(InTB!$H:$H,InTB!$G:$G,FundCode,InTB!$A:$A,V$11,InTB!$J:$J,$U25) -> 1073525200 | W25: =SUMIFS(InTB!$H:$H,InTB!$G:$G,FundCode,InTB!$A:$A,W$11,InTB!$J:$J,$U25) -> 1219107200 | X25: =SUMIFS(InTB!$H:$H,InTB!$G:$G,FundCode,InTB!$A:$A,X$11,InTB!$J:$J,$U25) -> 1130429200
B26: 2 | C26: =IF(B26<=$B$20,X44,"") -> MAYBANK | H26: =IF(C26="","",Y44*100*IF($X$8="NAV",$B$17/$B$11,1)) -> 5.961773898 | S26: 2 | U26: 1002 | V26: =SUMIFS(InTB!$H:$H,InTB!$G:$G,FundCode,InTB!$A:$A,V$11,InTB!$J:$J,$U26) -> 334220000 | W26: =SUMIFS(InTB!$H:$H,InTB!$G:$G,FundCode,InTB!$A:$A,W$11,InTB!$J:$J,$U26) -> 121975000 | X26: =SUMIFS(InTB!$H:$H,InTB!$G:$G,FundCode,InTB!$A:$A,X$11,InTB!$J:$J,$U26) -> 214099000
B27: 3 | C27: LCTITAN | H27: 3.841244792 | S27: 3 | U27: 1004 | V27: =SUMIFS(InTB!$H:$H,InTB!$G:$G,FundCode,InTB!$A:$A,V$11,InTB!$J:$J,$U27) -> 235959358 | W27: =SUMIFS(InTB!$H:$H,InTB!$G:$G,FundCode,InTB!$A:$A,W$11,InTB!$J:$J,$U27) -> 247578661.4 | X27: =SUMIFS(InTB!$H:$H,InTB!$G:$G,FundCode,InTB!$A:$A,X$11,InTB!$J:$J,$U27) -> 247578661.4
B28: 4 | C28: IOICORP | H28: 2.730490428 | S28: 4 | U28: Other Cost | V28: =V23-V24-V25-V26-V27 -> 0 | W28: =W23-W24-W25-W26-W27 -> 0 | X28: =X23-X24-X25-X26-X27 -> 0
B29: 5 | C29: AMBANK | H29: 2.472420386 | S29: 5 | U29: Market Cap
B30: 6 | C30: DIGI | H30: 2.163061108 | S30: 6 | U30: Small Cap | V30: =SUMIFS(InHolding!O:O,InHolding!X:X,$U30,InHolding!A:A,FundCode,InHolding!AB:AB,"EQT") -> 97349668.33 | W30: =V30/$V$33 -> 0.09427464181
B31: 7 | C31: MBSB | H31: 1.808404535 | S31: 7 | U31: Mid Cap | V31: =SUMIFS(InHolding!O:O,InHolding!X:X,$U31,InHolding!A:A,FundCode,InHolding!AB:AB,"EQT") -> 131203517.5 | W31: =V31/$V$33 -> 0.1270591347
B32: 8 | C32: PETGAS | H32: 1.788831215 | S32: 8 | U32: Large Cap | V32: =SUMIFS(InHolding!O:O,InHolding!X:X,$U32,InHolding!A:A,FundCode,InHolding!AB:AB,"EQT") -> 804064562.3 | W32: 0.7786662235
B33: 9 | C33: IJM | H33: 1.634034793 | S33: 9 | U33: Total | V33: =V30+V31+V32 -> 1032617748 | W33: =W30+W31+W32 -> 1
B34: 10 | C34: RHBBANK | H34: 1.148933476 | S34: 10
C35: Total | H35: =SUM(H25:H34) -> 31.06047181
B36: FIXED INCOME
B37: Top Holdings (Fixed Income) | J37: Fixed Income Credit Rating
C38: Largest Holdings | H38: Exposure (%) | U38: Sector | X38: Top Holding | AA38: Sector | AF38: Rating
B39: =IF(C39="","",S39) -> 1 | C39: =UPPER(IF(ISNA(VLOOKUP(FundCode&$S39,TopBNDIssuerData,4,0)),"",VLOOKUP(FundCode&$S39,TopBNDIssuerData,4,0))) -> GOVERNMENT OF MALAYSIA | H39: =IF(C39="","",VLOOKUP(FundCode&$S39,TopBNDIssuerData,5,0)*100) -> 30.74017913 | S39: 1 | U39: EQT | X39: EQT | AA39: BND | AF39: BND
B40: 2 | C40: =UPPER(IF(ISNA(VLOOKUP(FundCode&$S40,TopBNDIssuerData,4,0)),"",VLOOKUP(FundCode&$S40,TopBNDIssuerData,4,0))) -> LEBUHRAYA DUKE | H40: =IF(C40="","",VLOOKUP(FundCode&$S40,TopBNDIssuerData,5,0)*100) -> 16.37634557 | S40: 2 | U40: qFundCode | V40: YH-AUR-VCAM | X40: qFundCode | Y40: YH-AUR-VCAM | AB40: qFundCode | AC40: YH-AUR-VCAM | AF40: YH-AUR-VCAM | AG40: (Multiple Items)
B41: 3 | C41: MMC CORPORATION BERHAD | H41: 8.040577737 | S41: 3 | U41: qProductType | V41: EQT | AB41: qProductType | AC41: BND | AF41: qProductType | AG41: BND
B42: 4 | C42: SERBA DINAMIK HOLDINGS | H42: 6.20969732 | S42: 4 | X42: Row Labels | Y42: Sum of Perc_Eqt
B43: 5 | C43: SOUTHERN POWER GENERATION SDN BHD | H43: 6.021431504 | S43: 5 | U43: Row Labels | V43: Sum of MarketValueFC | X43: MEQESG | Y43: 0.1587647493 | AB43: Row Labels | AC43: Sum of CleanMVFC | AF43: Row Labels | AG43: Sum of CleanMVFC
B44: 6 | C44: CIMB GROUP HOLDINGS BHD | H44: 5.786074938 | S44: 6 | U44: FINANCIALS | V44: 608931435.1 | X44: MAYBANK | Y44: 0.1260131288 | AB44: AA1 | AC44: 0.08181112262 | AF44: AA3 | AG44: 0.4289024471
B45: =IF(C45="","",S45) ->  | S45: 7 | U45: INDUSTRIALS | V45: 143051211.3 | X45: LCTITAN | Y45: 0.08119182026 | AB45: AA2 | AC45: 0.05786074938 | AF45: GOVT | AG45: 0.3074017913
S46: 8 | U46: BASIC MATERIALS | V46: 117191375 | X46: IOICORP | Y46: 0.05771397036 | AB46: AA3 | AC46: 0.4289024471 | AF46: AA1 | AG46: 0.08181112262
S47: 9 | U47: CONSUMER GOODS | V47: 113435446 | X47: AMBANK | Y47: 0.05225918224 | AB47: AAA | AC47: 0.07895168038 | AF47: AAA | AG47: 0.07895168038
S48: 10 | U48: UTILITIES | V48: 73706815.76 | X48: DIGI | Y48: 0.04572030117 | AB48: GG | AC48: 0.0450722092 | AF48: AA2 | AG48: 0.05786074938
U49: TELCO | V49: 56121750 | X49: MBSB | Y49: 0.03822397788 | AB49: GOVT | AC49: 0.3074017913 | AF49: GG | AG49: 0.0450722092
C50: Total | H50: =SUM(H39:H49) -> 73.17430619 | U50: CONSUMER SERVICES | V50: 45303272.5 | X50: PETGAS | Y50: 0.03781025953 | AF50: Grand Total | AG50: 1
U51: OIL & GAS | V51: 38163149.5 | X51: IJM | Y51: 0.03453835057
B52: YAYASAN HASANAH (AUR-VCAM) DISCRETIONARY MANDATE FUND | N52: =TEXT(ValueDate,"mmmm yyyy") -> December 2018 | U52: HEALTHCARE | V52: 21091694 | X52: RHBBANK | Y52: 0.02428483612 | AF52: =AF44 -> AA3 | AG52: =GETPIVOTDATA("CleanMVFC",$AF$43,"BndRating","GOVT") -> 0.3074017913
U53: TECHNOLOGY | V53: 7350000 | X53: UMCCA | Y53: 0.02259545117 | AF53: =AF45 -> GOVT | AG53: =GETPIVOTDATA("CleanMVFC",$AF$43,"BndRating","AA3") -> 0.4289024471
B54: COMMENTARY | U54: TRAD/SERV | V54: 3155607.5 | X54: BAUTO | Y54: 0.02255841578 | AF54: =AF46 -> AA1 | AG54: =GETPIVOTDATA("CleanMVFC",$AF$43,"BndRating","AAA") -> 0.07895168038
X55: YTL | Y55: 0.01833546521 | AF55: =AF47 -> AAA | AG55: =GETPIVOTDATA("CleanMVFC",$AF$43,"BndRating","AA1") -> 0.08181112262
B56: Market Performance | X56: MYETFDJ | Y56: 0.01368306066 | AF56: =AF48 -> AA2 | AG56: =GETPIVOTDATA("CleanMVFC",$AF$43,"BndRating","GG") -> 0.0450722092
X57: SIME | Y57: 0.01352679123
X58: Grand Total | Y58: 0.7472197603
B71: Fund Performance
T77: =ValueDate -> 2018-12-31
U78: Sales | W78: Purchases
T79: Equity
T80: Total (RM Mil) | U80: =SUMIFS(TopEqtPS!$D:$D,TopEqtPS!$B:$B,"S",TopEqtPS!$A:$A,YH!FundCode,TopEqtPS!$E:$E,"M")/1000000 -> 31.01877712 | W80: =SUMIFS(TopEqtPS!$D:$D,TopEqtPS!$B:$B,"p",TopEqtPS!$A:$A,YH!FundCode,TopEqtPS!$E:$E,"M")/1000000 -> 10.01225908
T81: Top | V81: RM Mil | X81: RM Mil
T82: 1 | U82: =INDEX(TopEqtPSData,MATCH("MS_"&FundCode&$T82,TopEqtPS!$H:$H,0)-1,3) -> RHBBANK | V82: =INDEX(TopEqtPSData,MATCH("MS_"&FundCode&$T82,TopEqtPS!$H:$H,0)-1,4)/1000000 -> 10.96864868 | W82: =INDEX(TopEqtPSData,MATCH("MP_"&FundCode&$T82,TopEqtPS!$H:$H,0)-1,3) -> PCHEM | X82: =INDEX(TopEqtPSData,MATCH("MP_"&FundCode&$T82,TopEqtPS!$H:$H,0)-1,4)/1000000 -> 6.90586775
T83: 2 | U83: =INDEX(TopEqtPSData,MATCH("MS_"&FundCode&$T83,TopEqtPS!$H:$H,0)-1,3) -> PBBANK | V83: =INDEX(TopEqtPSData,MATCH("MS_"&FundCode&$T83,TopEqtPS!$H:$H,0)-1,4)/1000000 -> 9.07667365 | W83: =INDEX(TopEqtPSData,MATCH("MP_"&FundCode&$T83,TopEqtPS!$H:$H,0)-1,3) -> KOSSAN | X83: =INDEX(TopEqtPSData,MATCH("MP_"&FundCode&$T83,TopEqtPS!$H:$H,0)-1,4)/1000000 -> 3.10639133
T84: 3 | U84: =INDEX(TopEqtPSData,MATCH("MS_"&FundCode&$T84,TopEqtPS!$H:$H,0)-1,3) -> TOPGLOV | V84: =INDEX(TopEqtPSData,MATCH("MS_"&FundCode&$T84,TopEqtPS!$H:$H,0)-1,4)/1000000 -> 7.54766771 | W84: =INDEX(TopEqtPSData,MATCH("MP_"&FundCode&$T84,TopEqtPS!$H:$H,0)-1,3) ->  | X84: =INDEX(TopEqtPSData,MATCH("MP_"&FundCode&$T84,TopEqtPS!$H:$H,0)-1,4)/1000000 -> 
T85: Fixed Income
B86: Fund Strategy | T86: Total (RM Mil) | U86: =SUMIFS(TopBndPS!$D:$D,TopBndPS!$B:$B,"S",TopBndPS!$A:$A,YH!FundCode,TopBndPS!$E:$E,"M")/1000000 -> 91.21012419 | W86: =SUMIFS(TopBndPS!$D:$D,TopBndPS!$B:$B,"p",TopBndPS!$A:$A,YH!FundCode,TopBndPS!$E:$E,"M")/1000000 -> 0
T87: Top | V87: RM Mil | X87: RM Mil
T88: 1 | U88: =INDEX(TopBndPSData,MATCH("MS_"&FundCode&$T88,TopBndPS!$H:$H,0)-1,3) -> SEB IMTN 5.320% 03.12.2032 | V88: =INDEX(TopBndPSData,MATCH("MS_"&FundCode&$T88,TopBndPS!$H:$H,0)-1,4)/1000000 -> 31.33698082 | W88: =INDEX(TopBndPSData,MATCH("Mp_"&FundCode&$T88,TopBndPS!$H:$H,0)-1,3) ->  | X88: =INDEX(TopBndPSData,MATCH("Mp_"&FundCode&$T88,TopBndPS!$H:$H,0)-1,4)/1000000 -> 
T89: 2 | U89: =INDEX(TopBndPSData,MATCH("MS_"&FundCode&$T89,TopBndPS!$H:$H,0)-1,3) -> MGS 4/2018 08.06.2038 | V89: =INDEX(TopBndPSData,MATCH("MS_"&FundCode&$T89,TopBndPS!$H:$H,0)-1,4)/1000000 -> 30.87862115 | W89: =INDEX(TopBndPSData,MATCH("Mp_"&FundCode&$T89,TopBndPS!$H:$H,0)-1,3) ->  | X89: =INDEX(TopBndPSData,MATCH("Mp_"&FundCode&$T89,TopBndPS!$H:$H,0)-1,4)/1000000 -> 
T90: 3 | U90: =INDEX(TopBndPSData,MATCH("MS_"&FundCode&$T90,TopBndPS!$H:$H,0)-1,3) -> MGS 4/2013 3.844% 15.04.2033 | V90: =INDEX(TopBndPSData,MATCH("MS_"&FundCode&$T90,TopBndPS!$H:$H,0)-1,4)/1000000 -> 18.73627692 | W90: =INDEX(TopBndPSData,MATCH("MP_"&FundCode&$T90,TopBndPS!$H:$H,0)-1,3) ->  | X90: =INDEX(TopBndPSData,MATCH("Mp_"&FundCode&$T90,TopBndPS!$H:$H,0)-1,4)/1000000 -> 
B97: Organization Update

Sheet KWAP_Client (hidden)
W1: Setting | X1: =VLOOKUP(FundCode, InFund!$A:$E,5,0) -> MYR | Z1: * set bar chart series
G2: MALAYSIAN EQUITY FUND | W2: Fund Code | X2: KWAP
H3: Monthly Report - | K3: =ValueDate -> 2018-12-31 | W3: UTFlag | X3: =VLOOKUP(FundCode,FundData,MATCH(W3,InFund!2:2,0),0) -> 0 | Y3: Note: 1=Yes; 0=No;
W4: RollEOYFlag | X4: =VLOOKUP(FundCode,FundData,MATCH(W4,InFund!2:2,0),0) -> 0 | Y4: %Hol Denominator | Z4: NAV
W5: Amort.Flag | X5: 0
W6: Clean MV | X6: 1
B7: Portfolio Information | F7: Largest Holdings | H7: Exposure (%) | J7: Portfolio Analysis | L7: 1 month | N7: YTD | O7: Inception | P7: 5 year | W7: Ajd.Amount - Cash | X7: =IF(YEAR(X11)=V11,SUM(V12:V28),0) -> 0
B8: Total Cost (MYR) | F8: 1 | G8: =IF(F8<=$B$17,VLOOKUP(FundCode&F8,TopEqtHolData,3,0),"") -> PBBANK | H8: =IF(F8<=$B$17,VLOOKUP(FundCode&F8,TopEqtHolData,5,0)*IF($Z$4="EAV",1,$AD$12/$AD$15),"") -> 0.1009172059 | J8: Portfolio | L8: =IF(ISERROR($AC22/AD22-1),"n/a",$AC22/AD22-1) -> -0.01592344411 | N8: =IF(ISERROR($AC22/AG22-1),"n/a",$AC22/AG22-1) -> -0.1606246027 | O8: =IF(ISERROR($AC22/AJ22-1),"n/a",$AC22/AJ22-1) -> -0.09361453492 | P8: =IF(ISERROR($AC22/AK22-1),"n/a",$AC22/AK22-1) -> n/a | W8: Accrued Interest | X8: =SUMIF(InHolding!A:A,FundCode,InHolding!P:P) -> 48005.87
B9: =SUMIF(InHolding!$A:$A,FundCode,InHolding!$L:$L)+$X$8*$X$6+$X$9+X7 -> 1015985768 | F9: 2 | G9: MAYBANK | H9: 0.09989141889 | J9: Benchmark | L9: =IF(OR(ISERROR($AC23/AD23-1),L8="n/a"),"n/a",$AC23/AD23-1) -> -0.01335516372 | N9: =IF(OR(ISERROR($AC23/AG23-1),N8="n/a"),"n/a",$AC23/AG23-1) -> -0.09279938482 | O9: =IF(IF(ISERROR($AC23/AJ23-1),O8="n/a"),"n/a",$AC23/AJ23-1) -> 0.007659849497 | P9: =IF(OR(ISERROR($AC23/AK23-1),P8="n/a"),"n/a",$AC23/AK23-1) -> n/a | W9: Pre-Acq | X9: =SUMIF(InHolding!A:A,FundCode,InHolding!M:M) -> 0
B10: Total Market Value (MYR) | F10: 3 | G10: TENAGA | H10: 0.09781958568 | J10: Out/(Under) Performed | L10: =IF(OR(L8="n/a",L9="n/a"),"n/a",L8-L9) -> -0.002568280386 | N10: =IF(OR(N8="n/a",N9="n/a"),"n/a",N8-N9) -> -0.06782521786 | O10: -0.1012743844 | P10: n/a | V10: Adj. | W10: FinanceYrStart | X10: =VLOOKUP(FundCode,FundData,MATCH(W10,InFund!2:2,0),0) -> 2014-12-15
B11: =SUMIF(InHolding!$A:$A,FundCode,InHolding!$O:$O)+X7 -> 834188771.4 | F11: 4 | G11: CIMB | H11: 0.08190352992 | J11: Information Ratio | L11: =IF(L8="n/a","n/a",L10/L12) -> -0.1696042103 | N11: =IF(N8="n/a","n/a",N10/N12) -> -1.305328458 | O11: =IF(O8="n/a","n/a",O10/O12) -> -0.9689121579 | P11: n/a | V11: 2014 | W11: Income | X11: =EDATE(VLOOKUP(FundCode,FundData,MATCH("FinanceYrEnd",InFund!2:2,0),0),-12) -> 2017-12-31 | Y11: =Main!D18 -> 2018-11-30 | Z11: =ValueDate -> 2018-12-31 | AB11: Portfolio Analysis
B12: Unrealised Profit/Loss (MYR) | F12: 5 | G12: LCTITAN | H12: 0.06064454682 | J12: Tracking Error | L12: =IF(L8="n/a","n/a",$AC$25*SQRT($AC$18-AD$18)) -> 0.01514278673 | N12: =IF(N8="n/a","n/a",$AC$25*SQRT($AC$18-AG$18)) -> 0.05196026905 | O12: =IF(O8="n/a","n/a",$AC$25*SQRT($AC$18-AJ$18)) -> 0.1045238039 | P12: n/a | W12: Capital Gains | X12: =-(SUMIFS(InTB!$H:$H,InTB!$G:$G,FundCode,InTB!$A:$A,X$11,InTB!$I:$I,"600")+(SUMIFS(InTB!$H:$H,InTB!$G:$G,FundCode,InTB!$A:$A,X$11,InTB!$I:$I,"610")+SUMIFS(InTB!$H:$H,InTB!$G:$G,FundCode,InTB!$A:$A,X$11,InTB!$I:$I,"620"))*(1-$X$5)) -> 89343873.23 | Y12: =-(SUMIFS(InTB!$H:$H,InTB!$G:$G,FundCode,InTB!$A:$A,Y$11,InTB!$I:$I,"600")+(SUMIFS(InTB!$H:$H,InTB!$G:$G,FundCode,InTB!$A:$A,Y$11,InTB!$I:$I,"610")+SUMIFS(InTB!$H:$H,InTB!$G:$G,FundCode,InTB!$A:$A,Y$11,InTB!$I:$I,"620"))*(1-$X$5)) -> -13992579.47 | Z12: =-(SUMIFS(InTB!$H:$H,InTB!$G:$G,FundCode,InTB!$A:$A,Z$11,InTB!$I:$I,"600")+(SUMIFS(InTB!$H:$H,InTB!$G:$G,FundCode,InTB!$A:$A,Z$11,InTB!$I:$I,"610")+SUMIFS(InTB!$H:$H,InTB!$G:$G,FundCode,InTB!$A:$A,Z$11,InTB!$I:$I,"620"))*(1-$X$5)) -> -21770453.35 | AB12: EQT | AC12: Equity | AD12: =SUMIFS(InHolding!U:U,InHolding!A:A,FundCode,InHolding!C:C,$AB12) -> 749749690.5 | AE12: =IF(AD12=0,NA(),AD12) -> 749749690.5 | AF12: =AD12/$AD$15 -> 0.8987770109
B13: =B11-B9 -> -181796996.7 | F13: 6 | G13: MISC | H13: 0.03855242495 | J13: Annualised Return Since Inception | O13: =(1+O8)^(365/(AC18-AJ18))-1 -> -0.02399720085 | W13: Dividend Income | X13: =-(SUMIFS(InTB!$H:$H,InTB!$G:$G,FundCode,InTB!$A:$A,X$11,InTB!$I:$I,"636")+SUMIFS(InTB!$H:$H,InTB!$G:$G,FundCode,InTB!$A:$A,X$11,InTB!$I:$I,"635"))-X16-X20 -> 84398324.83 | Y13: =-(SUMIFS(InTB!$H:$H,InTB!$G:$G,FundCode,InTB!$A:$A,Y$11,InTB!$I:$I,"636")+SUMIFS(InTB!$H:$H,InTB!$G:$G,FundCode,InTB!$A:$A,Y$11,InTB!$I:$I,"635"))-Y16-Y20 -> 110536317 | Z13: =-(SUMIFS(InTB!$H:$H,InTB!$G:$G,FundCode,InTB!$A:$A,Z$11,InTB!$I:$I,"636")+SUMIFS(InTB!$H:$H,InTB!$G:$G,FundCode,InTB!$A:$A,Z$11,InTB!$I:$I,"635"))-Z16-Z20 -> 111328908.8 | AB13: BND | AC13: FI | AD13: =SUMIFS(InHolding!U:U,InHolding!A:A,FundCode,InHolding!C:C,$AB13) -> 0 | AE13: =IF(AD13=0,NA(),AD13) ->  | AF13: =AD13/$AD$15 -> 0
B14: % of Equity | D14: % of Cash | F14: 7 | G14: PCHEM | H14: 0.03786433129 | J14: Income Report | L14: =TEXT(ValueDate,"MMM-yy") & " (MYR)" -> Dec-18 (MYR) | O14: YTD (MYR) | W14: Interest Income | X14: =-(SUMIFS(InTB!$H:$H,InTB!$G:$G,FundCode,InTB!$A:$A,X$11,InTB!$J:$J,"6302")+SUMIFS(InTB!$H:$H,InTB!$G:$G,FundCode,InTB!$A:$A,X$11,InTB!$J:$J,"6392")+SUMIFS(InTB!$H:$H,InTB!$G:$G,FundCode,InTB!$A:$A,X$11,InTB!$J:$J,"9392")) -> 17811526.57 | Y14: =-(SUMIFS(InTB!$H:$H,InTB!$G:$G,FundCode,InTB!$A:$A,Y$11,InTB!$J:$J,"6302")+SUMIFS(InTB!$H:$H,InTB!$G:$G,FundCode,InTB!$A:$A,Y$11,InTB!$J:$J,"6392")+SUMIFS(InTB!$H:$H,InTB!$G:$G,FundCode,InTB!$A:$A,Y$11,InTB!$J:$J,"9392")) -> 21093455.5 | Z14: =-(SUMIFS(InTB!$H:$H,InTB!$G:$G,FundCode,InTB!$A:$A,Z$11,InTB!$J:$J,"6302")+SUMIFS(InTB!$H:$H,InTB!$G:$G,FundCode,InTB!$A:$A,Z$11,InTB!$J:$J,"6392")+SUMIFS(InTB!$H:$H,InTB!$G:$G,FundCode,InTB!$A:$A,Z$11,InTB!$J:$J,"9392")) -> 21323234.32 | AB14: CSH | AC14: Cash | AD14: =SUMIFS(InHolding!U:U,InHolding!A:A,FundCode,InHolding!C:C,$AB14) -> 84439080.94 | AE14: =IF(AD14=0,NA(),AD14) -> 84439080.94 | AF14: =AD14/$AD$15 -> 0.1012229891
B15: =AF12 -> 0.8987770109 | D15: =AF14 -> 0.1012229891 | F15: 8 | G15: DIALOG | H15: 0.03355355641 | J15: Capital Gain (Losses) | L15: =$Z12-$Y12+IF(YEAR($X$11)=$V$11,V12,0) -> -7777873.88 | O15: =$Z12-$X12*(1-$X$4)+IF(YEAR($X$11)=$V$11,V12,0) -> -111114326.6 | W15: Coupon Income | X15: =-(SUMIFS(InTB!$H:$H,InTB!$G:$G,FundCode,InTB!$A:$A,X$11,InTB!$J:$J,"6301")+SUMIFS(InTB!$H:$H,InTB!$G:$G,FundCode,InTB!$A:$A,X$11,InTB!$J:$J,"6391")+SUMIFS(InTB!$H:$H,InTB!$G:$G,FundCode,InTB!$A:$A,X$11,InTB!$J:$J,"9391")) -> 0 | Y15: =-(SUMIFS(InTB!$H:$H,InTB!$G:$G,FundCode,InTB!$A:$A,Y$11,InTB!$J:$J,"6301")+SUMIFS(InTB!$H:$H,InTB!$G:$G,FundCode,InTB!$A:$A,Y$11,InTB!$J:$J,"6391")+SUMIFS(InTB!$H:$H,InTB!$G:$G,FundCode,InTB!$A:$A,Y$11,InTB!$J:$J,"9391")) -> 0 | Z15: =-(SUMIFS(InTB!$H:$H,InTB!$G:$G,FundCode,InTB!$A:$A,Z$11,InTB!$J:$J,"6301")+SUMIFS(InTB!$H:$H,InTB!$G:$G,FundCode,InTB!$A:$A,Z$11,InTB!$J:$J,"6391")+SUMIFS(InTB!$H:$H,InTB!$G:$G,FundCode,InTB!$A:$A,Z$11,InTB!$J:$J,"9391")) -> 0 | AB15: Total | AD15: =AD14+AD13+AD12 -> 834188771.4
B16: No of Stocks | F16: 9 | G16: RHBBANK | H16: 0.03170745149 | J16: Dividend Income | L16: =$Z13-$Y13+IF(YEAR($X$11)=$V$11,V13,0) -> 792591.8 | O16: =$Z13-$X13*(1-$X$4)+IF(YEAR($X$11)=$V$11,V13,0) -> 26930583.95 | W16: Other Income | X16: =-SUMIFS(InTB!$H:$H,InTB!$G:$G,FundCode,InTB!$A:$A,X$11,InTB!$D:$D,"636003",InTB!$E:$E,"PLR") -> 10566.56 | Y16: =-SUMIFS(InTB!$H:$H,InTB!$G:$G,FundCode,InTB!$A:$A,Y$11,InTB!$D:$D,"636003",InTB!$E:$E,"PLR") -> 14514.31 | Z16: =-SUMIFS(InTB!$H:$H,InTB!$G:$G,FundCode,InTB!$A:$A,Z$11,InTB!$D:$D,"636003",InTB!$E:$E,"PLR") -> 14597.18
B17: =COUNTIFS(InHolding!$A:$A,FundCode,InHolding!$C:$C,"EQT") -> 38 | F17: 10 | G17: AXIATA | H17: 0.02580001523 | J17: Interest Income | L17: =$Z14-$Y14+IF(YEAR($X$11)=$V$11,V14,0)+$Z16-$Y16+IF(YEAR($X$11)=$V$11,V16,0) -> 229861.69 | O17: =$Z14-$X14*(1-$X$4)+IF(YEAR($X$11)=$V$11,V14,0)+$Z16-$X16*(1-$X$4)+IF(YEAR($X$11)=$V$11,V16,0) -> 3515738.37 | AB17: Conversion Date: | AC17: 2015-01-16
F18: Total | H18: =SUM(H8:H17) -> 0.6086540666 | J18: Total income | L18: =SUM(L15:N17) -> -6755420.39 | O18: =SUM(O15:P17) -> -80668004.26 | V18: Cash + AI | X18: =SUMIFS(InTB!$H:$H,InTB!$G:$G,FundCode,InTB!$A:$A,IF($X$10>X$11,$X$10,X$11),InTB!$K:$K,2)+SUMIFS(InTB!$H:$H,InTB!$G:$G,FundCode,InTB!$A:$A,IF($X$10>X$11,$X$10,X$11),InTB!$K:$K,3)+SUMIFS(InTB!$H:$H,InTB!$G:$G,FundCode,InTB!$A:$A,IF($X$10>X$11,$X$10,X$11),InTB!$K:$K,5)+SUMIFS(InTB!$H:$H,InTB!$G:$G,FundCode,InTB!$A:$A,IF($X$10>X$11,$X$10,X$11),InTB!$J:$J,1392)+SUMIFS(InTB!$H:$H,InTB!$G:$G,FundCode,InTB!$A:$A,IF($X$10>X$11,$X$10,X$11),InTB!$J:$J,1391) -> 2637281.15 | Y18: =SUMIFS(InTB!$H:$H,InTB!$G:$G,FundCode,InTB!$A:$A,IF($X$10>Y$11,$X$10,Y$11),InTB!$K:$K,2)+SUMIFS(InTB!$H:$H,InTB!$G:$G,FundCode,InTB!$A:$A,IF($X$10>Y$11,$X$10,Y$11),InTB!$K:$K,3)+SUMIFS(InTB!$H:$H,InTB!$G:$G,FundCode,InTB!$A:$A,IF($X$10>Y$11,$X$10,Y$11),InTB!$K:$K,5)+SUMIFS(InTB!$H:$H,InTB!$G:$G,FundCode,InTB!$A:$A,IF($X$10>Y$11,$X$10,Y$11),InTB!$J:$J,1392)+SUMIFS(InTB!$H:$H,InTB!$G:$G,FundCode,InTB!$A:$A,IF($X$10>Y$11,$X$10,Y$11),InTB!$J:$J,1391) -> -6903200.46 | Z18: =SUMIFS(InTB!$H:$H,InTB!$G:$G,FundCode,InTB!$A:$A,IF($X$10>Z$11,$X$10,Z$11),InTB!$K:$K,2)+SUMIFS(InTB!$H:$H,InTB!$G:$G,FundCode,InTB!$A:$A,IF($X$10>Z$11,$X$10,Z$11),InTB!$K:$K,3)+SUMIFS(InTB!$H:$H,InTB!$G:$G,FundCode,InTB!$A:$A,IF($X$10>Z$11,$X$10,Z$11),InTB!$K:$K,5)+SUMIFS(InTB!$H:$H,InTB!$G:$G,FundCode,InTB!$A:$A,IF($X$10>Z$11,$X$10,Z$11),InTB!$J:$J,1392)+SUMIFS(InTB!$H:$H,InTB!$G:$G,FundCode,InTB!$A:$A,IF($X$10>Z$11,$X$10,Z$11),InTB!$J:$J,1391) -> 352080.94 | AB18: Return | AC18: =ValueDate -> 2018-12-31 | AD18: =_1Month -> 2018-11-30 | AE18: =_3Month -> 2018-09-30 | AF18: =_6Month -> 2018-06-30 | AG18: =EDATE(VLOOKUP(FundCode,FundData,MATCH("FinanceYrEnd",InFund!2:2,0),0),-12) -> 2017-12-31 | AH18: =_1Year -> 2017-12-31 | AI18: =_3Year -> 2015-12-31 | AJ18: =VLOOKUP(FundCode,InFund!A:G,7,0) -> 2014-12-15 | AK18: =_5Year -> 2013-12-31
B19: Rating Breakdown | J19: Top 5 Purchases | N19: Top 5 Sales | W19: (Expenses) | X19: =X21 -> 746092.02 | Y19: =Y21 -> 3895937.4 | Z19: =Z21 -> 4144018.75 | AB19: FBMKLCI | AC19: =INDEX(InIndex!$C:$C,MATCH($AB19&AC$18,InIndex!$D:$D,0),0) -> 1690.58 | AD19: =INDEX(InIndex!$C:$C,MATCH($AB19&AD$18,InIndex!$D:$D,0),0) -> 1695.78 | AE19: =INDEX(InIndex!$C:$C,MATCH($AB19&AE$18,InIndex!$D:$D,0),0) -> 1793.15 | AF19: =INDEX(InIndex!$C:$C,MATCH($AB19&AF$18,InIndex!$D:$D,0),0) -> 1691.5 | AG19: =INDEX(InIndex!$C:$C,MATCH($AB19&AG$18,InIndex!$D:$D,0),0) -> 1796.81 | AH19: =INDEX(InIndex!$C:$C,MATCH($AB19&AH$18,InIndex!$D:$D,0),0) -> 1796.81 | AI19: =INDEX(InIndex!$C:$C,MATCH($AB19&AI$18,InIndex!$D:$D,0),0) -> 1692.51 | AJ19: =INDEX(InIndex!$C:$C,MATCH($AB19&AJ$18,InIndex!$D:$D,0),0) -> 1697.31 | AK19: =INDEX(InIndex!$C:$C,MATCH($AB19&AK$18,InIndex!$D:$D,0),0) -> 1866.96
I20: =IF(J20="","",U20) -> 1 | J20: =IF(ISNA(INDEX(TopEqtPSData,MATCH("YP_"&FundCode&U20,TopEqtPS!$H:$H,0)-1,3)),"",INDEX(TopEqtPSData,MATCH("YP_"&FundCode&U20,TopEqtPS!$H:$H,0)-1,3)) -> PBBANK | K20: =INDEX(TopEqtPSData,MATCH("P_"&FundCode&$E20,TopEqtPS!$H:$H,0)-1,3) ->  | L20: =INDEX(TopEqtPSData,MATCH("P_"&FundCode&$E20,TopEqtPS!$H:$H,0)-1,3) ->  | M20: =IF(N20="","",U20) -> 1 | N20: =IF(ISNA(INDEX(TopEqtPSData,MATCH("YS_"&FundCode&U20,TopEqtPS!$H:$H,0)-1,3)),"",INDEX(TopEqtPSData,MATCH("YS_"&FundCode&U20,TopEqtPS!$H:$H,0)-1,3)) -> CIMB | U20: 1 | W20: 799 | X20: =SUMIFS(InTB!$H:$H,InTB!$G:$G,FundCode,InTB!$A:$A,X$11,InTB!$I:$I,$W20) -> 746092.02 | Y20: =SUMIFS(InTB!$H:$H,InTB!$G:$G,FundCode,InTB!$A:$A,Y$11,InTB!$I:$I,$W20) -> 797774.68 | Z20: =SUMIFS(InTB!$H:$H,InTB!$G:$G,FundCode,InTB!$A:$A,Z$11,InTB!$I:$I,$W20) -> 797774.68 | AB20: FBMT100 | AC20: =INDEX(InIndex!$C:$C,MATCH($AB20&AC$18,InIndex!$D:$D,0),0) -> 11443.61 | AD20: =INDEX(InIndex!$C:$C,MATCH($AB20&AD$18,InIndex!$D:$D,0),0) -> 11598.51 | AE20: =INDEX(InIndex!$C:$C,MATCH($AB20&AE$18,InIndex!$D:$D,0),0) -> 12336.84 | AF20: =INDEX(InIndex!$C:$C,MATCH($AB20&AF$18,InIndex!$D:$D,0),0) -> 11757.93 | AG20: =INDEX(InIndex!$C:$C,MATCH($AB20&AG$18,InIndex!$D:$D,0),0) -> 12614.2 | AH20: =INDEX(InIndex!$C:$C,MATCH($AB20&AH$18,InIndex!$D:$D,0),0) -> 12614.2 | AI20: =INDEX(InIndex!$C:$C,MATCH($AB20&AI$18,InIndex!$D:$D,0),0) -> 11470.57 | AJ20: =INDEX(InIndex!$C:$C,MATCH($AB20&AJ$18,InIndex!$D:$D,0),0) -> 11356.62 | AK20: =INDEX(InIndex!$C:$C,MATCH($AB20&AK$18,InIndex!$D:$D,0),0) -> 12589.38
I21: =IF(J21="","",U21) -> 2 | J21: =IF(ISNA(INDEX(TopEqtPSData,MATCH("YP_"&FundCode&U21,TopEqtPS!$H:$H,0)-1,3)),"",INDEX(TopEqtPSData,MATCH("YP_"&FundCode&U21,TopEqtPS!$H:$H,0)-1,3)) -> MAYBANK | K21: =INDEX(TopEqtPSData,MATCH("P_"&FundCode&$E21,TopEqtPS!$H:$H,0)-1,3) ->  | L21: =INDEX(TopEqtPSData,MATCH("P_"&FundCode&$E21,TopEqtPS!$H:$H,0)-1,3) ->  | M21: =IF(N21="","",U21) -> 2 | N21: =IF(ISNA(INDEX(TopEqtPSData,MATCH("YS_"&FundCode&U21,TopEqtPS!$H:$H,0)-1,3)),"",INDEX(TopEqtPSData,MATCH("YS_"&FundCode&U21,TopEqtPS!$H:$H,0)-1,3)) -> TENAGA | U21: 2 | W21: 7 | X21: =SUMIFS(InTB!$H:$H,InTB!$G:$G,FundCode,InTB!$A:$A,X$11,InTB!$K:$K,$W21) -> 746092.02 | Y21: =SUMIFS(InTB!$H:$H,InTB!$G:$G,FundCode,InTB!$A:$A,Y$11,InTB!$K:$K,$W21) -> 3895937.4 | Z21: =SUMIFS(InTB!$H:$H,InTB!$G:$G,FundCode,InTB!$A:$A,Z$11,InTB!$K:$K,$W21) -> 4144018.75 | AB21: Relative Performance
I22: 3 | J22: =IF(ISNA(INDEX(TopEqtPSData,MATCH("YP_"&FundCode&U22,TopEqtPS!$H:$H,0)-1,3)),"",INDEX(TopEqtPSData,MATCH("YP_"&FundCode&U22,TopEqtPS!$H:$H,0)-1,3)) -> CIMB | K22: =INDEX(TopEqtPSData,MATCH("P_"&FundCode&$E22,TopEqtPS!$H:$H,0)-1,3) ->  | L22: =INDEX(TopEqtPSData,MATCH("P_"&FundCode&$E22,TopEqtPS!$H:$H,0)-1,3) ->  | M22: 3 | N22: =IF(ISNA(INDEX(TopEqtPSData,MATCH("YS_"&FundCode&U22,TopEqtPS!$H:$H,0)-1,3)),"",INDEX(TopEqtPSData,MATCH("YS_"&FundCode&U22,TopEqtPS!$H:$H,0)-1,3)) -> TM | U22: 3 | W22: 299 | X22: =SUMIFS(InTB!$H:$H,InTB!$G:$G,FundCode,InTB!$A:$A,X$11,InTB!$I:$I,$W22) -> 0 | Y22: =SUMIFS(InTB!$H:$H,InTB!$G:$G,FundCode,InTB!$A:$A,Y$11,InTB!$I:$I,$W22) -> 655500 | Z22: =SUMIFS(InTB!$H:$H,InTB!$G:$G,FundCode,InTB!$A:$A,Z$11,InTB!$I:$I,$W22) -> 147091.8 | AB22: =FundCode -> KWAP | AC22: =INDEX(InTWRR!$C:$C,MATCH($AB22&AC$18,InTWRR!$D:$D,0),0) -> 0.9063854651 | AD22: =INDEX(InTWRR!$C:$C,MATCH($AB22&AD$18,InTWRR!$D:$D,0),0) -> 0.9210517816 | AE22: =INDEX(InTWRR!$C:$C,MATCH($AB22&AE$18,InTWRR!$D:$D,0),0) -> 0.9853437139 | AF22: =INDEX(InTWRR!$C:$C,MATCH($AB22&AF$18,InTWRR!$D:$D,0),0) -> 0.9445852222 | AG22: =INDEX(InTWRR!$C:$C,MATCH($AB22&AG$18,InTWRR!$D:$D,0),0) -> 1.079833252 | AH22: =INDEX(InTWRR!$C:$C,MATCH($AB22&AH$18,InTWRR!$D:$D,0),0) -> 1.079833252 | AI22: =INDEX(InTWRR!$C:$C,MATCH($AB22&AI$18,InTWRR!$D:$D,0),0) -> 0.9535555642 | AJ22: 1 | AK22: =INDEX(InTWRR!$C:$C,MATCH($AB22&AK$18,InTWRR!$D:$D,0),0) -> 
I23: 4 | J23: =IF(ISNA(INDEX(TopEqtPSData,MATCH("YP_"&FundCode&U23,TopEqtPS!$H:$H,0)-1,3)),"",INDEX(TopEqtPSData,MATCH("YP_"&FundCode&U23,TopEqtPS!$H:$H,0)-1,3)) -> PCHEM | K23: =INDEX(TopEqtPSData,MATCH("P_"&FundCode&$E23,TopEqtPS!$H:$H,0)-1,3) ->  | L23: =INDEX(TopEqtPSData,MATCH("P_"&FundCode&$E23,TopEqtPS!$H:$H,0)-1,3) ->  | M23: 4 | N23: =IF(ISNA(INDEX(TopEqtPSData,MATCH("YS_"&FundCode&U23,TopEqtPS!$H:$H,0)-1,3)),"",INDEX(TopEqtPSData,MATCH("YS_"&FundCode&U23,TopEqtPS!$H:$H,0)-1,3)) -> DIGI | U23: 4 | W23: Cost | X23: =SUMIFS(InTB!$H:$H,InTB!$G:$G,FundCode,InTB!$A:$A,IF($X$10>$X$11,$X$10,$X$11),InTB!$I:$I,100) -> 1225028333 | Y23: =SUMIFS(InTB!$H:$H,InTB!$G:$G,FundCode,InTB!$A:$A,IF($X$10>$Y$11,$X$10,$Y$11),InTB!$I:$I,100) -> 1029892470 | Z23: =SUMIFS(InTB!$H:$H,InTB!$G:$G,FundCode,InTB!$A:$A,Z$11,InTB!$I:$I,100) -> 1015633687 | AA23: =X23+Z23+X18+Z18 -> 2243651382 | AB23: =VLOOKUP(FundCode,FundData,MATCH("qIndexBenchmark",InFund!$2:$2,0),0) -> FBMT100 | AC23: =INDEX(InIndex!$C:$C,MATCH($AB23&AC$18,InIndex!$D:$D,0),0) -> 11443.61 | AD23: =INDEX(InIndex!$C:$C,MATCH($AB23&AD$18,InIndex!$D:$D,0),0) -> 11598.51 | AE23: =INDEX(InIndex!$C:$C,MATCH($AB23&AE$18,InIndex!$D:$D,0),0) -> 12336.84 | AF23: =INDEX(InIndex!$C:$C,MATCH($AB23&AF$18,InIndex!$D:$D,0),0) -> 11757.93 | AG23: =INDEX(InIndex!$C:$C,MATCH($AB23&AG$18,InIndex!$D:$D,0),0) -> 12614.2 | AH23: =INDEX(InIndex!$C:$C,MATCH($AB23&AH$18,InIndex!$D:$D,0),0) -> 12614.2 | AI23: =INDEX(InIndex!$C:$C,MATCH($AB23&AI$18,InIndex!$D:$D,0),0) -> 11470.57 | AJ23: =INDEX(InIndex!$C:$C,MATCH($AB23&AJ$18,InIndex!$D:$D,0),0) -> 11356.62 | AK23: =INDEX(InIndex!$C:$C,MATCH($AB23&AK$18,InIndex!$D:$D,0),0) -> 12589.38
I24: 5 | J24: =IF(ISNA(INDEX(TopEqtPSData,MATCH("YP_"&FundCode&U24,TopEqtPS!$H:$H,0)-1,3)),"",INDEX(TopEqtPSData,MATCH("YP_"&FundCode&U24,TopEqtPS!$H:$H,0)-1,3)) -> TENAGA | K24: =INDEX(TopEqtPSData,MATCH("P_"&FundCode&$E24,TopEqtPS!$H:$H,0)-1,3) ->  | L24: =INDEX(TopEqtPSData,MATCH("P_"&FundCode&$E24,TopEqtPS!$H:$H,0)-1,3) ->  | M24: 5 | N24: =IF(ISNA(INDEX(TopEqtPSData,MATCH("YS_"&FundCode&U24,TopEqtPS!$H:$H,0)-1,3)),"",INDEX(TopEqtPSData,MATCH("YS_"&FundCode&U24,TopEqtPS!$H:$H,0)-1,3)) -> AXIATA | U24: 5 | W24: 1000 | X24: =SUMIFS(InTB!$H:$H,InTB!$G:$G,FundCode,InTB!$A:$A,IF($X$10>$X$11,$X$10,$X$11),InTB!$J:$J,$W24) -> 1043672427 | Y24: =SUMIFS(InTB!$H:$H,InTB!$G:$G,FundCode,InTB!$A:$A,IF($X$10>$Y$11,$X$10,$Y$11),InTB!$J:$J,$W24) -> 935540564.8 | Z24: =SUMIFS(InTB!$H:$H,InTB!$G:$G,FundCode,InTB!$A:$A,Z$11,InTB!$J:$J,$W24) -> 921342781.7 | AA24: =AA23/2 -> 1121825691 | AD24: 1 Month | AE24: 3 Month | AF24: 6 Month | AG24: YTD | AH24: 1 Year | AI24: 3 Years | AJ24: Inception | AK24: 5 Years
W25: 1001 | X25: =SUMIFS(InTB!$H:$H,InTB!$G:$G,FundCode,InTB!$A:$A,IF($X$10>$X$11,$X$10,$X$11),InTB!$J:$J,$W25) -> 0 | Y25: =SUMIFS(InTB!$H:$H,InTB!$G:$G,FundCode,InTB!$A:$A,IF($X$10>$Y$11,$X$10,$Y$11),InTB!$J:$J,$W25) -> 0 | Z25: =SUMIFS(InTB!$H:$H,InTB!$G:$G,FundCode,InTB!$A:$A,Z$11,InTB!$J:$J,$W25) -> 0 | AB25: Tracking Error | AC25: =VLOOKUP(FundCode,InRisk!$A:$M,MATCH("TrackingError",InRisk!$2:$2,0),0) -> 0.002719724785
W26: 1002 | X26: =SUMIFS(InTB!$H:$H,InTB!$G:$G,FundCode,InTB!$A:$A,IF($X$10>$X$11,$X$10,$X$11),InTB!$J:$J,$W26) -> 171152000 | Y26: =SUMIFS(InTB!$H:$H,InTB!$G:$G,FundCode,InTB!$A:$A,IF($X$10>$Y$11,$X$10,$Y$11),InTB!$J:$J,$W26) -> 84148000 | Z26: =SUMIFS(InTB!$H:$H,InTB!$G:$G,FundCode,InTB!$A:$A,Z$11,InTB!$J:$J,$W26) -> 84087000
C27: Top Gainers | G27: Unrealised Value (MYR) | H27: (%) | J27: Sector Allocation | W27: 1004 | X27: =SUMIFS(InTB!$H:$H,InTB!$G:$G,FundCode,InTB!$A:$A,IF($X$10>$X$11,$X$10,$X$11),InTB!$J:$J,$W27) -> 10203905.46 | Y27: =SUMIFS(InTB!$H:$H,InTB!$G:$G,FundCode,InTB!$A:$A,IF($X$10>$Y$11,$X$10,$Y$11),InTB!$J:$J,$W27) -> 10203905.46 | Z27: =SUMIFS(InTB!$H:$H,InTB!$G:$G,FundCode,InTB!$A:$A,Z$11,InTB!$J:$J,$W27) -> 10203905.46
B28: =IF(C28="","",$U28) -> 1 | C28: =IF(ISNA(VLOOKUP(FundCode&"G_"&$U28,TopEqtUnRData,3,0)),"",VLOOKUP(FundCode&"G_"&$U28,TopEqtUnRData,3,0)) -> PBBANK | G28: =IF(C28="","",VLOOKUP(FundCode&"G_"&$U28,TopEqtUnRData,4,0)) -> 1128391.02 | H28: =IF(C28="","",VLOOKUP(FundCode&"G_"&$U28,TopEqtUnRData,5,0)) -> 0.0135859701 | U28: 1 | W28: Other Cost | X28: =X23-X24-X25-X26-X27 -> 1.564621925e-07 | Y28: =Y23-Y24-Y25-Y26-Y27 -> 3.725290298e-08 | Z28: =Z23-Z24-Z25-Z26-Z27 -> 3.725290298e-08
B29: =IF(C29="","",$U29) -> 2 | C29: PCHEM | G29: 1007782.7 | H29: 0.03295753608 | U29: 2 | W29: Market Cap | AA29: 500893292.8 | AB29: =X23-AA29 -> 724135040.1
B30: 3 | C30: PETGAS | G30: 817316.67 | H30: 0.04446122774 | U30: 3 | W30: Small Cap | X30: =SUMIFS(InHolding!O:O,InHolding!X:X,$W30,InHolding!A:A,FundCode,InHolding!AB:AB,"EQT") -> 27689353.25 | Y30: =X30/$X$33 -> 0.0369314634
B31: 4 | C31: SERBADK | G31: 155980.1 | H31: 0.0430406301 | U31: 4 | W31: Mid Cap | X31: =SUMIFS(InHolding!O:O,InHolding!X:X,$W31,InHolding!A:A,FundCode,InHolding!AB:AB,"EQT") -> 37310571 | Y31: =X31/$X$33 -> 0.04976403655
B32: 5 | C32: PETDAG | G32: 27261.53 | H32: 0.001717506406 | U32: 5 | W32: Large Cap | X32: =SUMIFS(InHolding!O:O,InHolding!X:X,$W32,InHolding!A:A,FundCode,InHolding!AB:AB,"EQT") -> 684749766.2 | Y32: 0.9133045001
U33: 6 | W33: Total | X33: =X30+X31+X32 -> 749749690.5 | Y33: =Y30+Y31+Y32 -> 1
U34: 7
U35: 8
U36: 9
U37: 10
C38: Top Losers | G38: Unrealised Value (MYR) | H38: (%) | J38: Portfolio Weighting vs Benchmark | W38: Sector - Bar Chart | AK38: Rating
B39: =IF(C39="","",$U39) -> 1 | C39: =IF(ISNA(VLOOKUP(FundCode&"L_"&$U39,TopEqtUnRData,3,0)),"",VLOOKUP(FundCode&"L_"&$U39,TopEqtUnRData,3,0)) -> SAPNRG | G39: =IF(C39="","",VLOOKUP(FundCode&"L_"&$U39,TopEqtUnRData,4,0)) -> -31514606.99 | H39: =IF(C39="","",VLOOKUP(FundCode&"L_"&$U39,TopEqtUnRData,5,0)) -> -0.8215785051 | U39: 1 | W39: EQT | AK39: EQT
B40: =IF(C40="","",$U40) -> 2 | C40: IJM | G40: -18794236.4 | H40: -0.5249165543 | U40: 2 | W40: qFundCode | X40: KWAP | AA40: qFundCode | AB40: KWAP | AK40: qFundCode | AL40: KWAP
B41: =IF(C41="","",$U41) -> 3 | C41: LCTITAN | G41: -16941542.56 | H41: -0.2508723004 | U41: 3 | W41: qProductType | X41: EQT | AA41: qProductType | AB41: EQT | AK41: qProductType | AL41: EQT
B42: 4 | C42: AXIATA | G42: -13779725.23 | H42: -0.3903404929 | U42: 4
B43: 5 | C43: VS | G43: -10790392.19 | H43: -0.6438895235 | U43: 5 | W43: Row Labels | X43: Sum of MarketValueFC | AA43: Row Labels | AB43: Average of IndexWeight | AK43: Row Labels | AL43: Sum of MarketValueFC
B44: 6 | C44: MBSB | G44: -8828395.94 | H44: -0.3367509386 | U44: 6 | W44: FINANCIALS | X44: 0.4425861196 | AA44: FINANCIALS | AB44: 0.08748515963 | AK44: Score 4 | AL44: 0.359972704
B45: 7 | C45: TENAGA | G45: -8821704.06 | H45: -0.09756179837 | U45: 7 | W45: UTILITIES | X45: 0.1366589427 | AA45: INDUSTRIALS | AB45: 0.04815495973 | AK45: Score 3 | AL45: 0.5847741722
B46: 8 | C46: ECOWLD | G46: -8179856.04 | H46: -0.453319366 | U46: 8 | W46: INDUSTRIALS | X46: 0.1291512897 | AA46: OIL & GAS | AB46: 0.04361115342 | AK46: Score 2 | AL46: 0.05179307367
B47: 9 | C47: ARMADA | G47: -8157857.34 | H47: -0.7796150949 | U47: 9 | W47: BASIC MATERIALS | X47: 0.1096032463 | AA47: BASIC MATERIALS | AB47: 0.04278839632 | AK47: Score 1 | AL47: 0.003460050156
B48: 10 | C48: CIMB | G48: -8019999.79 | H48: -0.1050521893 | U48: 10 | W48: OIL & GAS | X48: 0.07578542342 | AA48: UTILITIES | AB48: 0.01505659272
W49: TELCO | X49: 0.04369069228 | AA49: TECHNOLOGY | AB49: -0.005727812751
B50: Market Outlook for KWAP Portfolio | W50: HEALTHCARE | X50: 0.02908319173 | AA50: HEALTHCARE | AB50: -0.03190647827
W51: CONSUMER GOODS | X51: 0.02889497692 | AA51: TELCO | AB51: -0.03679322772
W52: TECHNOLOGY | X52: 0.004546117249 | AA52: CONSUMER GOODS | AB52: -0.09568218308

Sheet KWAP_Internal (hidden)
U1: Setting | V1: =VLOOKUP(FundCode, InFund!$A:$E,5,0) -> MYR
U2: Fund Code | V2: KWAP
B3: KWAP - MALAYSIAN ESG EQUITY FUND | U3: UTFlag | V3: =VLOOKUP(FundCode,FundData,MATCH(U3,InFund!2:2,0),0) -> 0 | W3: Note: | X3: 1 = Yes; 0=No;
B4: =ValueDate -> 2018-12-31 | M4: Asset Class - Equity | U4: RollEOYFlag | V4: =VLOOKUP(FundCode,FundData,MATCH(U4,InFund!2:2,0),0) -> 0
U5: Amort.Flag | V5: 0 | W5: * IF Amort.Flag = 1 --> Exclude amortisation/accreation form Unrealised Gain n Loss
B6: FUND INFORMATION | U6: Clean MV | V6: 1 | W6: * IF Clean MV=1 - Accrued Interest add into Cash
B8: ="Total Cost ("&$V$1&")" -> Total Cost (MYR) | G8: Asset Allocation | K8: Performance | L8: 1 month | M8: YTD | N8: 1 year | O8: 3 year | P8: Inception | W8: Top Holding Denominator | X8: NAV
B9: =SUMIF(InHolding!$A:$A,FundCode,InHolding!$L:$L)+$V$8*$V$6+$V$9 -> 1015937762 | K9: Fund | L9: =IF(ISERROR($AC22/AD22-1),0,$AC22/AD22-1) -> -0.01592344411 | M9: =IF(ISERROR($AC22/AE22-1),0,$AC22/AE22-1) -> -0.1606246027 | N9: =IF(ISERROR($AC22/AF22-1),0,$AC22/AF22-1) -> -0.1606246027 | O9: -0.04946759356 | P9: -0.09361453492
B10: ="Market Value ("&$V$1&")" -> Market Value (MYR) | K10: Benchmark* | L10: =IF(OR(ISERROR($AC23/AD23-1),ISERROR($AC22/AD22-1)),0,$AC23/AD23-1) -> -0.01335516372 | M10: =IF(OR(ISERROR($AC23/AE23-1),ISERROR($AC22/AE22-1)),0,$AC23/AE23-1) -> -0.09279938482 | N10: -0.09279938482 | O10: -0.002350362711 | P10: 0.007659849497 | U10: FinanceYrStart | V10: =VLOOKUP(FundCode,FundData,MATCH(U10,InFund!2:2,0),0) -> 2014-12-15
B11: =SUMIF(InHolding!$A:$A,FundCode,InHolding!$O:$O) -> 834188771.4 | K11: Excess Return | L11: =L9-L10 -> -0.002568280386 | M11: =M9-M10 -> -0.06782521786 | N11: -0.06782521786 | O11: -0.04711723084 | P11: -0.1012743844
B12: ="Unrealised Gains / (Loss) ("&$V$1&")" -> Unrealised Gains / (Loss) (MYR) | K12: ="* Benchmark - " & VLOOKUP(FundCode,InFund!A:D,4,0) -> * Benchmark - FBM TOP 100
B13: =B11-B9 -> -181748990.8 | K13: Annualised Return Since Inception | P13: =(1+P9)^(365/(AC18-AH18))-1 -> -0.02399720085
K14: Income | M14: ="1 month ("&$V$1&")" -> 1 month (MYR) | O14: ="YTD ("&$V$1&")" -> YTD (MYR)
B15: Equity | E15: Cash | K15: Capital Gains | M15: =KWAP_Client!L15 -> -7777873.88 | O15: =KWAP_Client!O15 -> -111114326.6
B16: ="("&$V$1&")" -> (MYR) | E16: ="("&$V$1&")" -> (MYR) | K16: Dividend Income | M16: =KWAP_Client!L16 -> 792591.8 | O16: =KWAP_Client!O16 -> 26930583.95 | U16: =O18/U17 -> -0.07082001659
B17: =KWAP_Client!AD12 -> 749749690.5 | E17: =KWAP_Client!AD14 -> 84439080.94 | K17: Interest Income (Cash) | M17: =KWAP_Client!L17 -> 229861.69 | O17: =KWAP_Client!O17 -> 3515738.37 | U17: 1139056557 | AB17: Conversion Date: | AC17: 2015-01-16
B18: No of Securities | K18: Total Income | M18: =SUM(M15:N17) -> -6755420.39 | O18: =SUM(O15:P17) -> -80668004.26 | AB18: Return | AC18: =ValueDate -> 2018-12-31 | AD18: =_1Month -> 2018-11-30 | AE18: =IF(EDATE(VLOOKUP(FundCode,FundData,MATCH("FinanceYrEnd",InFund!2:2,0),0),-12)<V10,V10,EDATE(VLOOKUP(FundCode,FundData,MATCH("FinanceYrEnd",InFund!2:2,0),0),-12)) -> 2017-12-31 | AF18: =_1Year -> 2017-12-31 | AG18: =_3Year -> 2015-12-31 | AH18: =V10 -> 2014-12-15 | AI18: =_5Year -> 2013-12-31
B19: =KWAP_Client!B17 -> 38 | K19: ROI (%) | M19: =(M18)/((KWAP_Client!Y18+KWAP_Client!Z18+KWAP_Client!Y23+KWAP_Client!Z23)/2) -> -0.00662629043 | O19: =(O18)/((KWAP_Client!Z18+KWAP_Client!Z23+KWAP_Client!X18+KWAP_Client!X23)/2) -> -0.07190778826 | AB19: FBMKLCI | AC19: =INDEX(InIndex!$C:$C,MATCH($AB19&AC$18,InIndex!$D:$D,0),0) -> 1690.58 | AD19: =INDEX(InIndex!$C:$C,MATCH($AB19&AD$18,InIndex!$D:$D,0),0) -> 1695.78 | AF19: =INDEX(InIndex!$C:$C,MATCH($AB19&AF$18,InIndex!$D:$D,0),0) -> 1796.81 | AG19: =INDEX(InIndex!$C:$C,MATCH($AB19&AG$18,InIndex!$D:$D,0),0) -> 1692.51 | AH19: =INDEX(InIndex!$C:$C,MATCH($AB19&AH$18,InIndex!$D:$D,0),0) -> 1697.31 | AI19: =INDEX(InIndex!$C:$C,MATCH($AB19&AI$18,InIndex!$D:$D,0),0) -> 1866.96
AB20: FBMT100 | AC20: =INDEX(InIndex!$C:$C,MATCH($AB20&AC$18,InIndex!$D:$D,0),0) -> 11443.61 | AD20: =INDEX(InIndex!$C:$C,MATCH($AB20&AD$18,InIndex!$D:$D,0),0) -> 11598.51 | AF20: =INDEX(InIndex!$C:$C,MATCH($AB20&AF$18,InIndex!$D:$D,0),0) -> 12614.2 | AG20: =INDEX(InIndex!$C:$C,MATCH($AB20&AG$18,InIndex!$D:$D,0),0) -> 11470.57 | AH20: =INDEX(InIndex!$C:$C,MATCH($AB20&AH$18,InIndex!$D:$D,0),0) -> 11356.62 | AI20: =INDEX(InIndex!$C:$C,MATCH($AB20&AI$18,InIndex!$D:$D,0),0) -> 12589.38
B21: Top Holdings | J21: Sector Allocation | AB21: Relative Performance
C22: Largest Holdings | H22: Exposure (%) | AB22: =FundCode -> KWAP | AC22: =INDEX(InTWRR!$C:$C,MATCH($AB22&AC$18,InTWRR!$D:$D,0),0) -> 0.9063854651 | AD22: =INDEX(InTWRR!$C:$C,MATCH($AB22&AD$18,InTWRR!$D:$D,0),0) -> 0.9210517816 | AE22: =INDEX(InTWRR!$C:$C,MATCH($AB22&AE$18,InTWRR!$D:$D,0),0) -> 1.079833252 | AF22: =INDEX(InTWRR!$C:$C,MATCH($AB22&AF$18,InTWRR!$D:$D,0),0) -> 1.079833252 | AG22: =INDEX(InTWRR!$C:$C,MATCH($AB22&AG$18,InTWRR!$D:$D,0),0) -> 0.9535555642 | AH22: 1 | AI22: =INDEX(InTWRR!$C:$C,MATCH($AB22&AI$18,InTWRR!$D:$D,0),0) -> 
B23: 1 | C23: =IF(B23<=$B$19,X43,"") -> PBBANK | H23: =IF(C23="","",Y43*100*IF($X$8="NAV",$B$17/$B$11,1)) -> 10.09172059 | AB23: =VLOOKUP(FundCode,FundData,MATCH("qIndexBenchmark",InFund!$2:$2,0),0) -> FBMT100 | AC23: =INDEX(InIndex!$C:$C,MATCH($AB23&AC$18,InIndex!$D:$D,0),0) -> 11443.61 | AD23: =INDEX(InIndex!$C:$C,MATCH($AB23&AD$18,InIndex!$D:$D,0),0) -> 11598.51 | AE23: =INDEX(InIndex!$C:$C,MATCH($AB23&AE$18,InIndex!$D:$D,0),0) -> 12614.2 | AF23: =INDEX(InIndex!$C:$C,MATCH($AB23&AF$18,InIndex!$D:$D,0),0) -> 12614.2 | AG23: =INDEX(InIndex!$C:$C,MATCH($AB23&AG$18,InIndex!$D:$D,0),0) -> 11470.57 | AH23: =INDEX(InIndex!$C:$C,MATCH($AB23&AH$18,InIndex!$D:$D,0),0) -> 11356.62 | AI23: =INDEX(InIndex!$C:$C,MATCH($AB23&AI$18,InIndex!$D:$D,0),0) -> 12589.38
B24: 2 | C24: MAYBANK | H24: =IF(C24="","",Y44*100*IF($X$8="NAV",$B$17/$B$11,1)) -> 9.989141889 | AD24: 1 month | AE24: YTD | AF24: 1 year | AG24: 3 year | AH24: Inception | AI24: 5year
B25: 3 | C25: TENAGA | H25: 9.781958568
B26: 4 | C26: CIMB | H26: 8.190352992
B27: 5 | C27: LCTITAN | H27: 6.064454682
B28: 6 | C28: MISC | H28: 3.855242495
B29: 7 | C29: PCHEM | H29: 3.786433129
B30: 8 | C30: DIALOG | H30: 3.355355641
B31: 9 | C31: RHBBANK | H31: 3.170745149
B32: 10 | C32: AXIATA | H32: 2.580001523
C33: Total | H33: =SUM(H23:H32) -> 60.86540666
B35: Top Sales & Purchases (YTD) | J35: ESG Rating Breakdown
C36: Top Purchases | G36: Top Sales
B37: =IF(C37="","",$S37) -> 1 | C37: =IF(ISNA(MATCH("YP_"&FundCode&$S37,TopEqtPS!$H:$H,0)),"",INDEX(TopEqtPSData,MATCH("YP_"&FundCode&$S37,TopEqtPS!$H:$H,0)-1,3)) -> PBBANK | F37: =IF(G37="","",$S37) -> 1 | G37: =IF(ISNA(MATCH("Ys_"&FundCode&$S37,TopEqtPS!$H:$H,0)),"",INDEX(TopEqtPSData,MATCH("Ys_"&FundCode&$S37,TopEqtPS!$H:$H,0)-1,3)) -> CIMB | H37: =IF(ISNA(MATCH("Ys_"&FundCode&$S37,TopEqtPS!$H:$H,0)),"",INDEX(TopEqtPSData,MATCH("Ys_"&FundCode&$S37,TopEqtPS!$H:$H,0)-1,3)) -> CIMB | S37: 1
B38: =IF(C38="","",$S38) -> 2 | C38: =IF(ISNA(MATCH("YP_"&FundCode&$S38,TopEqtPS!$H:$H,0)),"",INDEX(TopEqtPSData,MATCH("YP_"&FundCode&$S38,TopEqtPS!$H:$H,0)-1,3)) -> MAYBANK | F38: =IF(G38="","",$S38) -> 2 | G38: =IF(ISNA(MATCH("Ys_"&FundCode&$S38,TopEqtPS!$H:$H,0)),"",INDEX(TopEqtPSData,MATCH("Ys_"&FundCode&$S38,TopEqtPS!$H:$H,0)-1,3)) -> TENAGA | S38: 2 | U38: Sector | X38: Top Holding
B39: 3 | C39: =IF(ISNA(MATCH("YP_"&FundCode&$S39,TopEqtPS!$H:$H,0)),"",INDEX(TopEqtPSData,MATCH("YP_"&FundCode&$S39,TopEqtPS!$H:$H,0)-1,3)) -> CIMB | F39: 3 | G39: =IF(ISNA(MATCH("Ys_"&FundCode&$S39,TopEqtPS!$H:$H,0)),"",INDEX(TopEqtPSData,MATCH("Ys_"&FundCode&$S39,TopEqtPS!$H:$H,0)-1,3)) -> TM | S39: 3 | U39: EQT | X39: EQT
B40: 4 | C40: =IF(ISNA(MATCH("YP_"&FundCode&$S40,TopEqtPS!$H:$H,0)),"",INDEX(TopEqtPSData,MATCH("YP_"&FundCode&$S40,TopEqtPS!$H:$H,0)-1,3)) -> PCHEM | F40: 4 | G40: =IF(ISNA(MATCH("Ys_"&FundCode&$S40,TopEqtPS!$H:$H,0)),"",INDEX(TopEqtPSData,MATCH("Ys_"&FundCode&$S40,TopEqtPS!$H:$H,0)-1,3)) -> DIGI | S40: 4 | U40: qFundCode | V40: KWAP | X40: qFundCode | Y40: KWAP
B41: 5 | C41: =IF(ISNA(MATCH("YP_"&FundCode&$S41,TopEqtPS!$H:$H,0)),"",INDEX(TopEqtPSData,MATCH("YP_"&FundCode&$S41,TopEqtPS!$H:$H,0)-1,3)) -> TENAGA | F41: 5 | G41: =IF(ISNA(MATCH("Ys_"&FundCode&$S41,TopEqtPS!$H:$H,0)),"",INDEX(TopEqtPSData,MATCH("Ys_"&FundCode&$S41,TopEqtPS!$H:$H,0)-1,3)) -> AXIATA | S41: 5 | U41: qProductType | V41: EQT
B42: 6 | C42: =IF(ISNA(MATCH("YP_"&FundCode&$S42,TopEqtPS!$H:$H,0)),"",INDEX(TopEqtPSData,MATCH("YP_"&FundCode&$S42,TopEqtPS!$H:$H,0)-1,3)) -> DIALOG | F42: 6 | G42: =IF(ISNA(MATCH("Ys_"&FundCode&$S42,TopEqtPS!$H:$H,0)),"",INDEX(TopEqtPSData,MATCH("Ys_"&FundCode&$S42,TopEqtPS!$H:$H,0)-1,3)) -> MAYBANK | S42: 6 | X42: Row Labels | Y42: Sum of Perc_Eqt
B43: 7 | C43: =IF(ISNA(MATCH("YP_"&FundCode&$S43,TopEqtPS!$H:$H,0)),"",INDEX(TopEqtPSData,MATCH("YP_"&FundCode&$S43,TopEqtPS!$H:$H,0)-1,3)) -> SIME | F43: 7 | G43: =IF(ISNA(MATCH("Ys_"&FundCode&$S43,TopEqtPS!$H:$H,0)),"",INDEX(TopEqtPSData,MATCH("Ys_"&FundCode&$S43,TopEqtPS!$H:$H,0)-1,3)) -> IHH | S43: 7 | U43: Row Labels | V43: Sum of MarketValueFC | X43: PBBANK | Y43: 0.1122828073
B44: 8 | C44: =IF(ISNA(MATCH("YP_"&FundCode&$S44,TopEqtPS!$H:$H,0)),"",INDEX(TopEqtPSData,MATCH("YP_"&FundCode&$S44,TopEqtPS!$H:$H,0)-1,3)) -> AIRPORT | F44: 8 | G44: =IF(ISNA(MATCH("Ys_"&FundCode&$S44,TopEqtPS!$H:$H,0)),"",INDEX(TopEqtPSData,MATCH("Ys_"&FundCode&$S44,TopEqtPS!$H:$H,0)-1,3)) -> RHBBANK | S44: 8 | U44: FINANCIALS | V44: 331828806.2 | X44: MAYBANK | Y44: 0.111141493
B45: 9 | C45: =IF(ISNA(MATCH("YP_"&FundCode&$S45,TopEqtPS!$H:$H,0)),"",INDEX(TopEqtPSData,MATCH("YP_"&FundCode&$S45,TopEqtPS!$H:$H,0)-1,3)) -> VS | F45: 9 | G45: =IF(ISNA(MATCH("Ys_"&FundCode&$S45,TopEqtPS!$H:$H,0)),"",INDEX(TopEqtPSData,MATCH("Ys_"&FundCode&$S45,TopEqtPS!$H:$H,0)-1,3)) -> PCHEM | S45: 9 | U45: UTILITIES | V45: 102460000 | X45: TENAGA | Y45: 0.1088363237
B46: 10 | C46: =IF(ISNA(MATCH("YP_"&FundCode&$S46,TopEqtPS!$H:$H,0)),"",INDEX(TopEqtPSData,MATCH("YP_"&FundCode&$S46,TopEqtPS!$H:$H,0)-1,3)) -> TM | F46: 10 | G46: =IF(ISNA(MATCH("Ys_"&FundCode&$S46,TopEqtPS!$H:$H,0)),"",INDEX(TopEqtPSData,MATCH("Ys_"&FundCode&$S46,TopEqtPS!$H:$H,0)-1,3)) -> LCTITAN | S46: 10 | U46: INDUSTRIALS | V46: 96831139.5 | X46: CIMB | Y46: 0.09112775353
U47: BASIC MATERIALS | V47: 82175000 | X47: LCTITAN | Y47: 0.06747451936
U48: OIL & GAS | V48: 56820097.75 | X48: MISC | Y48: 0.04289431581
U49: TELCO | V49: 32757083.01 | X49: PCHEM | Y49: 0.04212872696
U50: HEALTHCARE | V50: 21805114 | X50: DIALOG | Y50: 0.03733245956
U51: CONSUMER GOODS | V51: 21664000 | X51: RHBBANK | Y51: 0.03527844071
U52: TECHNOLOGY | V52: 3408450 | X52: AXIATA | Y52: 0.02870569109
X53: SIME | Y53: 0.02784929459
X54: PETGAS | Y54: 0.02560854675
X55: MBSB | Y55: 0.02319174015
X56: IJM | Y56: 0.02268757189
X57: MYETFDJ | Y57: 0.02260754518

Sheet InHolding (hidden)
A1: MasterData | AC1: =IF(C1="EQT",Y1/K1*I1*L1,L1*Y1) -> 0 | AD1: =IF(C1="EQT","",IF(C1="CSH","Cash",VLOOKUP(V1,RatingData,2,0))) -> N/A | AE1: =IF(C1="EQT",SUMIFS(O:O,Z:Z,Z1,A:A,A1,C:C,"EQT")/SUMIFS(O:O,A:A,A1,C:C,"EQT") - SUMIFS(IndexBasket!D:D, IndexBasket!E:E,Z1,IndexBasket!B:B,InHolding!AA1),0) -> 0
A2: qFundCode | B2: HistoryDate | C2: qProductType | D2: qStockCode | E2: StockName | F2: Description | G2: StockCurrency | H2: SectorName | I2: UnitFaceValue | J2: PriceCurr | K2: CostSC | L2: CostFC | M2: LastMarketValue | N2: MarketValueSC | O2: MarketValueFC | P2: AccruedInterest | Q2: UnrealisedGainsStock | R2: UnrealisedGainsExchg | S2: AmortAccreation | T2: CountryName | U2: CleanMVFC | V2: Rating | W2: IssuedSize | X2: MarketCap | Y2: DPS | Z2: qKLSESector | AA2: qIndexBenchmark | AB2: qAssetClass | AC2: wYield | AD2: BndRating | AE2: IndexWeight
A3: ASEAN5ESG | B3: 2018-12-31 | C3: EQT | D3: 5014 | E3: AIRPORT | F3: Malaysia Airports Holdings Bhd | G3: MYR | H3: INDUSTRIALS | I3: 37400 | J3: 8.38 | K3: 326739.44 | L3: 78914.96 | M3: 0 | N3: 313412 | O3: 75886.68 | P3: 0 | Q3: -3226.98 | R3: 198.71 | S3: 0 | T3: Malaysia | U3: 75886.68 | V3: Score 3 | W3: 1659191828 | X3: LARGE CAP | Y3: 0.02 | Z3: 68 | AA3: F4GAS | AB3: EQT | AC3: 180.6589069 | AE3: 0.1816469544
A4: ASEAN5ESG | B4: 2018-12-31 | C4: EQT | D4: 5347 | E4: TENAGA | F4: Tenaga Nasional Bhd | G4: MYR | H4: UTILITIES | I4: 72000 | J4: 13.6 | K4: 965107.2 | L4: 230892.19 | M4: 0 | N4: 979200 | O4: 237094.43 | P4: 0 | Q4: 3412.3 | R4: 2789.94 | S4: 0 | T4: Malaysia | U4: 237094.43 | V4: Score 3 | W4: 5686888771 | X4: LARGE CAP | Y4: 0.35 | Z4: 20 | AA4: F4GAS | AB4: EQT | AC4: 6028.846524 | AE4: 0.1197107381
A5: ASEAN5ESG | B5: 2018-12-31 | C5: EQT | D5: ID1000058407 | E5: UNITTRACTORS | F5: United Tractors | G5: IDR | H5: INDUSTRIALS | I5: 51000 | J5: 27350 | K5: 1333133688 | L5: 100061.98 | M5: 0 | N5: 1394850000 | O5: 97033.04 | P5: 0 | Q5: 4293.31 | R5: -7322.25 | S5: 0 | T5: Indonesia | U5: 97033.04 | V5: Score 3 | W5: 0 | X5: SMALL CAP | Y5: 0 | Z5: 68 | AA5: F4GAS | AB5: EQT | AC5: 0 | AE5: 0.1816469544
A6: ASEAN5ESG | B6: 2018-12-31 | C6: EQT | D6: ID1000109309 | E6: VALEINDO | F6: Vale Indonesia | G6: IDR | H6: BASIC MATERIALS | I6: 530000 | J6: 3260 | K6: 1692630000 | L6: 113981.81 | M6: 0 | N6: 1727800000 | O6: 120194.78 | P6: 0 | Q6: 2446.61 | R6: 3766.36 | S6: 0 | T6: Indonesia | U6: 120194.78 | V6: Score 4 | W6: 0 | X6: SMALL CAP | Y6: 0 | Z6: 40 | AA6: F4GAS | AB6: EQT | AC6: 0 | AE6: 0.06068723687
A7: ASEAN5ESG | B7: 2018-12-31 | C7: EQT | D7: SG1L01001701 | E7: DBS GROUP HLDGS | F7: DBS Group Holdings | G7: SGD | H7: FINANCIALS | I7: 12000 | J7: 23.69 | K7: 318322.2 | L7: 239036.56 | M7: 0 | N7: 284280 | O7: 208615.25 | P7: 0 | Q7: -24981.43 | R7: -5439.88 | S7: 0 | T7: Singapore | U7: 208615.25 | V7: Score 4 | W7: 0 | X7: SMALL CAP | Y7: 0 | Z7: 3 | AA7: F4GAS | AB7: EQT | AC7: 0 | AE7: 0.3479646467
A8: ASEAN5ESG | B8: 2018-12-31 | C8: EQT | D8: TH0015010R16 | E8: SIAMCOMMBANKNVDR | F8: Siam Commercial Bank (NVDR) | G8: THB | H8: FINANCIALS | I8: 37000 | J8: 133.5 | K8: 5464600 | L8: 172853.37 | M8: 0 | N8: 4939500 | O8: 152812.62 | P8: 0 | Q8: -16244.95 | R8: -3795.8 | S8: 0 | T8: Thailand | U8: 152812.62 | V8: Score 3 | W8: 0 | X8: SMALL CAP | Y8: 0 | Z8: 3 | AA8: F4GAS | AB8: EQT | AC8: 0 | AE8: 0.3479646467
A9: ASEAN5ESG | B9: 2018-12-31 | C9: EQT | D9: TH0016010R14 | E9: KASIKORNNVDR | F9: Kasikornbank (NVDR) | G9: THB | H9: FINANCIALS | I9: 31000 | J9: 185 | K9: 6272500.8 | L9: 191287.43 | M9: 0 | N9: 5735000 | O9: 177422.9 | P9: 0 | Q9: -16628.59 | R9: 2764.06 | S9: 0 | T9: Thailand | U9: 177422.9 | V9: Score 4 | W9: 0 | X9: SMALL CAP | Y9: 0 | Z9: 3 | AA9: F4GAS | AB9: EQT | AC9: 0 | AE9: 0.3479646467
A10: ASEAN5ESG | B10: 2018-12-31 | C10: EQT | D10: TH0221010R10 | E10: BTSGROUP-NVDR | F10: BTS Group Holdings Plc | G10: THB | H10: CONSUMER SERVICES | I10: 972778 | J10: 9.55 | K10: 8353526 | L10: 261054.56 | M10: 0 | N10: 9290029.9 | O10: 287404.36 | P10: 0 | Q10: 28972.49 | R10: -2622.69 | S10: 0 | T10: Thailand | U10: 287404.36 | V10: Score 2 | W10: 0 | X10: SMALL CAP | Y10: 0 | Z10: 7 | AA10: F4GAS | AB10: EQT | AC10: 0 | AE10: 0.1451125953
A11: ASEAN5ESG | B11: 2018-12-31 | C11: EQT | D11: TH0355010R16 | E11: PTTEPNVDR | F11: PTT Exploration & Production | G11: THB | H11: OIL & GAS | I11: 42000 | J11: 113.5 | K11: 5082000 | L11: 162884.61 | M11: 0 | N11: 4767000 | O11: 147476.02 | P11: 0 | Q11: -9745.11 | R11: -5663.48 | S11: 0 | T11: Thailand | U11: 147476.02 | V11: Score 4 | W11: 0 | X11: SMALL CAP | Y11: 0 | Z11: 17 | AA11: F4GAS | AB11: EQT | AC11: 0 | AE11: 0.1448778285
A12: ASEAN5ESG | B12: 2018-12-31 | C12: EQT | D12: TH0481010R10 | E12: CENTPATTANA-NVDR | F12: Central Pattana | G12: THB | H12: FINANCIALS | I12: 65000 | J12: 74.75 | K12: 5061875 | L12: 158426.19 | M12: 0 | N12: 4858750 | O12: 150314.47 | P12: 0 | Q12: -6284.05 | R12: -1827.67 | S12: 0 | T12: Thailand | U12: 150314.47 | V12: Score 3 | W12: 0 | X12: SMALL CAP | Y12: 0 | Z12: 3 | AA12: F4GAS | AB12: EQT | AC12: 0 | AE12: 0.3479646467
A13: ASEAN5ESG | B13: 2018-12-31 | C13: EQT | D13: TH0646010R18 | E13: PTTNVDR | F13: PTT PCL | G13: THB | H13: OIL & GAS | I13: 98000 | J13: 46 | K13: 4066300 | L13: 122610.56 | M13: 0 | N13: 4508000 | O13: 139463.37 | P13: 0 | Q13: 13664.81 | R13: 3188 | S13: 0 | T13: Thailand | U13: 139463.37 | V13: Score 4 | W13: 0 | X13: SMALL CAP | Y13: 0 | Z13: 17 | AA13: F4GAS | AB13: EQT | AC13: 0 | AE13: 0.1448778285
A14: ASEAN5ESG | B14: 2018-12-31 | C14: EQT | D14: TH0765010R16 | E14: AIRPORTHAINVDR | F14: AIRPORTS OF THAILAND | G14: THB | H14: INDUSTRIALS | I14: 94000 | J14: 64.25 | K14: 5858750 | L14: 176834.04 | M14: 0 | N14: 6039500 | O14: 186843.17 | P14: 0 | Q14: 5591.84 | R14: 4417.29 | S14: 0 | T14: Thailand | U14: 186843.17 | V14: Score 3 | W14: 0 | X14: SMALL CAP | Y14: 0 | Z14: 68 | AA14: F4GAS | AB14: EQT | AC14: 0 | AE14: 0.1816469544
A15: KWAP | B15: 2018-12-31 | C15: CSH | D15: RDC*MYR*KAF | E15: KAF INVESTMENT BANK BERHAD | F15: Using KAF invest in Short Term MM Conventional | G15: MYR | H15: CASH | I15: 84087000 | J15: 0 | K15: 84087000 | L15: 84087000 | M15: 0 | N15: 84135005.87 | O15: 84135005.87 | P15: 48005.87 | Q15: 0 | R15: 0 | S15: 0 | T15: Malaysia | U15: 84087000 | V15: Cash | W15: 0 | X15: SMALL CAP | Y15: 0.038 | Z15: 0 | AA15: FBMT100 | AB15: CSH | AC15: 3195306 | AD15: Cash | AE15: 0
A16: KWAP | B16: 2018-12-31 | C16: EQT | D16: 138 | E16: MYEG | F16: My E.G. Services Berhad | G16: MYR | H16: INDUSTRIALS | I16: 5000000 | J16: 0.975 | K16: 5640834 | L16: 5640834 | M16: 0 | N16: 4875000 | O16: 4875000 | P16: 0 | Q16: -765834 | R16: 0 | S16: 0 | T16: Malaysia | U16: 4875000 | V16: Score 2 | W16: 3606305993 | X16: LARGE CAP | Y16: 0.01 | Z16: 68 | AA16: FBMT100 | AB16: EQT | AC16: 50000 | AE16: 0.04815495973
A17: KWAP | B17: 2018-12-31 | C17: EQT | D17: 166 | E17: INARI | F17: Inari Amertron Bhd | G17: MYR | H17: TECHNOLOGY | I17: 2272300 | J17: 1.5 | K17: 5025106.75 | L17: 5025106.75 | M17: 0 | N17: 3408450 | O17: 3408450 | P17: 0 | Q17: -1616656.75 | R17: 0 | S17: 0 | T17: Malaysia | U17: 3408450 | V17: Score 3 | W17: 3166687453 | X17: LARGE CAP | Y17: 0.1 | Z17: 2 | AA17: FBMT100 | AB17: EQT | AC17: 227230 | AE17: -0.005727812751
A18: KWAP | B18: 2018-12-31 | C18: EQT | D18: 0821EA | E18: MYETFDJ | F18: MYETF DOW JONES ISLAMIC MARKET MALAYSIA | G18: MYR | H18: FINANCIALS | I18: 15000000 | J18: 1.13 | K18: 17850000 | L18: 17850000 | M18: 0 | N18: 16950000 | O18: 16950000 | P18: 0 | Q18: -900000 | R18: 0 | S18: 0 | T18: Malaysia | U18: 16950000 | V18: Score | W18: 275900000 | X18: SMALL CAP | Y18: 0 | Z18: 3 | AA18: FBMT100 | AB18: EQT | AC18: 0 | AE18: 0.08748515963
A19: KWAP | B19: 2018-12-31 | C19: EQT | D19: 1023 | E19: CIMB | F19: CIMB Group Holdings Bhd | G19: MYR | H19: FINANCIALS | I19: 11965500 | J19: 5.71 | K19: 76343004.79 | L19: 76343004.79 | M19: 0 | N19: 68323005 | O19: 68323005 | P19: 0 | Q19: -8019999.79 | R19: 0 | S19: 0 | T19: Malaysia | U19: 68323005 | V19: Score 3 | W19: 9564459418 | X19: LARGE CAP | Y19: 0.17 | Z19: 3 | AA19: FBMT100 | AB19: EQT | AC19: 2034135 | AE19: 0.08748515963
A20: KWAP | B20: 2018-12-31 | C20: EQT | D20: 1066 | E20: RHBBANK | F20: RHB BANK BERHAD | G20: MYR | H20: FINANCIALS | I20: 5000000 | J20: 5.29 | K20: 26452358.03 | L20: 26452358.03 | M20: 0 | N20: 26450000 | O20: 26450000 | P20: 0 | Q20: -2358.03 | R20: 0 | S20: 0 | T20: Malaysia | U20: 26450000 | V20: Score 4 | W20: 4010045621 | X20: LARGE CAP | Y20: 0.15 | Z20: 3 | AA20: FBMT100 | AB20: EQT | AC20: 750000 | AE20: 0.08748515963
A21: KWAP | B21: 2018-12-31 | C21: EQT | D21: 1155 | E21: MAYBANK | F21: Malayan Banking Berhad | G21: MYR | H21: FINANCIALS | I21: 8771400 | J21: 9.5 | K21: 87893172.85 | L21: 87893172.85 | M21: 0 | N21: 83328300 | O21: 83328300 | P21: 0 | Q21: -4564872.85 | R21: 0 | S21: 0 | T21: Malaysia | U21: 83328300 | V21: Score 4 | W21: 11049682979 | X21: LARGE CAP | Y21: 0.47 | Z21: 3 | AA21: FBMT100 | AB21: EQT | AC21: 4122558 | AE21: 0.08748515963
A22: KWAP | B22: 2018-12-31 | C22: EQT | D22: 1171 | E22: MBSB | F22: Malaysia Building Society Bhd | G22: MYR | H22: FINANCIALS | I22: 18900000 | J22: 0.92 | K22: 26216395.94 | L22: 26216395.94 | M22: 0 | N22: 17388000 | O22: 17388000 | P22: 0 | Q22: -8828395.94 | R22: 0 | S22: 0 | T22: Malaysia | U22: 17388000 | V22: Score 4 | W22: 6389101298 | X22: LARGE CAP | Y22: 0.02 | Z22: 3 | AA22: FBMT100 | AB22: EQT | AC22: 378000 | AE22: 0.08748515963
A23: KWAP | B23: 2018-12-31 | C23: EQT | D23: 1295 | E23: PBBANK | F23: Public Bank Berhad | G23: MYR | H23: FINANCIALS | I23: 3400000 | J23: 24.76 | K23: 83055608.98 | L23: 83055608.98 | M23: 0 | N23: 84184000 | O23: 84184000 | P23: 0 | Q23: 1128391.02 | R23: 0 | S23: 0 | T23: Malaysia | U23: 84184000 | V23: Score 3 | W23: 3882138347 | X23: LARGE CAP | Y23: 0.59 | Z23: 3 | AA23: FBMT100 | AB23: EQT | AC23: 2006000 | AE23: 0.08748515963
A24: KWAP | B24: 2018-12-31 | C24: EQT | D24: 2194 | E24: MMCCORP | F24: MMC Corporation Berhad | G24: MYR | H24: UTILITIES | I24: 2000000 | J24: 0.83 | K24: 3549672.91 | L24: 3549672.91 | M24: 0 | N24: 1660000 | O24: 1660000 | P24: 0 | Q24: -1889672.91 | R24: 0 | S24: 0 | T24: Malaysia | U24: 1660000 | V24: Score 3 | W24: 3045058552 | X24: MID CAP | Y24: 0.03 | Z24: 20 | AA24: FBMT100 | AB24: EQT | AC24: 60000 | AE24: 0.01505659272
A25: KWAP | B25: 2018-12-31 | C25: EQT | D25: 3336 | E25: IJM | F25: IJM Corporation Bhd | G25: MYR | H25: INDUSTRIALS | I25: 10500000 | J25: 1.62 | K25: 35804236.4 | L25: 35804236.4 | M25: 0 | N25: 17010000 | O25: 17010000 | P25: 0 | Q25: -18794236.4 | R25: 0 | S25: 0 | T25: Malaysia | U25: 17010000 | V25: Score 3 | W25: 3635687820 | X25: LARGE CAP | Y25: 0.11 | Z25: 68 | AA25: FBMT100 | AB25: EQT | AC25: 1155000 | AE25: 0.04815495973
A26: KWAP | B26: 2018-12-31 | C26: EQT | D26: 3689 | E26: F&N | F26: Fraser & Neave Holdings Berhad | G26: MYR | H26: CONSUMER GOODS | I26: 170000 | J26: 33.5 | K26: 6384908.1 | L26: 6384908.1 | M26: 0 | N26: 5695000 | O26: 5695000 | P26: 0 | Q26: -689908.1 | R26: 0 | S26: 0 | T26: Malaysia | U26: 5695000 | V26: Score 3 | W26: 366778501 | X26: LARGE CAP | Y26: 0.69 | Z26: 39 | AA26: FBMT100 | AB26: EQT | AC26: 117300 | AE26: -0.09568218308
A27: KWAP | B27: 2018-12-31 | C27: EQT | D27: 3816 | E27: MISC | F27: MISC Bhd | G27: MYR | H27: INDUSTRIALS | I27: 4800000 | J27: 6.7 | K27: 35631905.8 | L27: 35631905.8 | M27: 0 | N27: 32160000 | O27: 32160000 | P27: 0 | Q27: -3471905.8 | R27: 0 | S27: 0 | T27: Malaysia | U27: 32160000 | V27: Score 4 | W27: 4463793103 | X27: LARGE CAP | Y27: 0.13 | Z27: 68 | AA27: FBMT100 | AB27: EQT | AC27: 624000 | AE27: 0.04815495973
A28: KWAP | B28: 2018-12-31 | C28: EQT | D28: 4197 | E28: SIME | F28: Sime Darby Berhad | G28: MYR | H28: INDUSTRIALS | I28: 8700000 | J28: 2.4 | K28: 22569329.12 | L28: 22569329.12 | M28: 0 | N28: 20880000 | O28: 20880000 | P28: 0 | Q28: -1689329.12 | R28: 0 | S28: 0 | T28: Malaysia | U28: 20880000 | V28: Score 4 | W28: 6800839377 | X28: LARGE CAP | Y28: 0.25 | Z28: 68 | AA28: FBMT100 | AB28: EQT | AC28: 2175000 | AE28: 0.04815495973
A29: KWAP | B29: 2018-12-31 | C29: EQT | D29: 4707 | E29: NESTLE | F29: Nestle (Malaysia) Berhad | G29: MYR | H29: CONSUMER GOODS | I29: 75000 | J29: 147.4 | K29: 11094345.1 | L29: 11094345.1 | M29: 0 | N29: 11055000 | O29: 11055000 | P29: 0 | Q29: -39345.1 | R29: 0 | S29: 0 | T29: Malaysia | U29: 11055000 | V29: Score | W29: 234500000 | X29: LARGE CAP | Y29: 2.84 | Z29: 39 | AA29: FBMT100 | AB29: EQT | AC29: 213000 | AE29: -0.09568218308
A30: KWAP | B30: 2018-12-31 | C30: EQT | D30: 5148 | E30: UEMS | F30: UEM Sunrise Bhd | G30: MYR | H30: FINANCIALS | I30: 9222100 | J30: 0.665 | K30: 12175113.9 | L30: 12175113.9 | M30: 0 | N30: 6132696.5 | O30: 6132696.5 | P30: 0 | Q30: -6042417.4 | R30: 0 | S30: 0 | T30: Malaysia | U30: 6132696.5 | V30: Score 3 | W30: 4537436037 | X30: LARGE CAP | Y30: 0.02 | Z30: 3 | AA30: FBMT100 | AB30: EQT | AC30: 184442 | AE30: 0.08748515963
A31: KWAP | B31: 2018-12-31 | C31: EQT | D31: 5180 | E31: CMMT | F31: CapitaMalls Malaysia Trust | G31: MYR | H31: FINANCIALS | I31: 7022100 | J31: 1.01 | K31: 10203905.46 | L31: 10203905.46 | M31: 0 | N31: 7092321 | O31: 7092321 | P31: 0 | Q31: -3111584.46 | R31: 0 | S31: 0 | T31: Malaysia | U31: 7092321 | V31: Score | W31: 2044176200 | X31: MID CAP | Y31: 0.08 | Z31: 3 | AA31: FBMT100 | AB31: EQT | AC31: 561768 | AE31: 0.08748515963
A32: KWAP | B32: 2018-12-31 | C32: EQT | D32: 5183 | E32: PCHEM | F32: Petronas Chemicals Group Bhd | G32: MYR | H32: BASIC MATERIALS | I32: 3400000 | J32: 9.29 | K32: 30578217.3 | L32: 30578217.3 | M32: 0 | N32: 31586000 | O32: 31586000 | P32: 0 | Q32: 1007782.7 | R32: 0 | S32: 0 | T32: Malaysia | U32: 31586000 | V32: Score 3 | W32: 8000000000 | X32: LARGE CAP | Y32: 0.18 | Z32: 40 | AA32: FBMT100 | AB32: EQT | AC32: 612000 | AE32: 0.04278839632
A33: KWAP | B33: 2018-12-31 | C33: EQT | D33: 5210 | E33: ARMADA | F33: Bumi Armada Bhd | G33: MYR | H33: OIL & GAS | I33: 14878050 | J33: 0.155 | K33: 10463955.09 | L33: 10463955.09 | M33: 0 | N33: 2306097.75 | O33: 2306097.75 | P33: 0 | Q33: -8157857.34 | R33: 0 | S33: 0 | T33: Malaysia | U33: 2306097.75 | V33: Score 3 | W33: 5870937544 | X33: SMALL CAP | Y33: 0.02 | Z33: 17 | AA33: FBMT100 | AB33: EQT | AC33: 297561 | AE33: 0.04361115342
A34: KWAP | B34: 2018-12-31 | C34: EQT | D34: 5218 | E34: SAPNRG | F34: Sapura Energy Berhad | G34: MYR | H34: OIL & GAS | I34: 23600000 | J34: 0.29 | K34: 38358606.99 | L34: 38358606.99 | M34: 0 | N34: 6844000 | O34: 6844000 | P34: 0 | Q34: -31514606.99 | R34: 0 | S34: 0 | T34: Malaysia | U34: 6844000 | V34: Score 2 | W34: 15979080232 | X34: LARGE CAP | Y34: 0.03 | Z34: 17 | AA34: FBMT100 | AB34: EQT | AC34: 708000 | AE34: 0.04361115342
A35: KWAP | B35: 2018-12-31 | C35: EQT | D35: 5218OR | E35: SAPNRG-OR | F35: SAPNRG-Renounceable rights issue | G35: MYR | H35: OIL & GAS | I35: 39333333 | J35: 0 | K35: 0 | L35: 0 | M35: 0 | N35: 0 | O35: 0 | P35: 0 | Q35: 0 | R35: 0 | S35: 0 | T35: Malaysia | U35: 0 | V35: Score 2 | W35: 0 | X35: SMALL CAP | Y35: 0.03 | Z35: 17 | AA35: FBMT100 | AB35: EQT | AE35: 0.04361115342
A36: KWAP | B36: 2018-12-31 | C36: EQT | D36: 5218PR | E36: SAPNRG-PR | F36: SAPNRG-Rights Issue (Islamic Preference Shares) | G36: MYR | H36: OIL & GAS | I36: 9440000 | J36: 0 | K36: 0 | L36: 0 | M36: 0 | N36: 0 | O36: 0 | P36: 0 | Q36: 0 | R36: 0 | S36: 0 | T36: Malaysia | U36: 0 | V36: Score 2 | W36: 0 | X36: SMALL CAP | Y36: 0.03 | Z36: 17 | AA36: FBMT100 | AB36: EQT | AE36: 0.04361115342
A37: KWAP | B37: 2018-12-31 | C37: EQT | D37: 5225 | E37: IHH | F37: IHH Healthcare Bhd | G37: MYR | H37: HEALTHCARE | I37: 2903200 | J37: 5.39 | K37: 17730945.84 | L37: 17730945.84 | M37: 0 | N37: 15648248 | O37: 15648248 | P37: 0 | Q37: -2082697.84 | R37: 0 | S37: 0 | T37: Malaysia | U37: 15648248 | V37: Score 3 | W37: 8769296463 | X37: LARGE CAP | Y37: 0.03 | Z37: 30 | AA37: FBMT100 | AB37: EQT | AC37: 87096 | AE37: -0.03190647827
A38: KWAP | B38: 2018-12-31 | C38: EQT | D38: 5253 | E38: ECONBHD | F38: ECONPILE HOLDINGS BHD | G38: MYR | H38: INDUSTRIALS | I38: 5912700 | J38: 0.385 | K38: 5656458.76 | L38: 5656458.76 | M38: 0 | N38: 2276389.5 | O38: 2276389.5 | P38: 0 | Q38: -3380069.26 | R38: 0 | S38: 0 | T38: Malaysia | U38: 2276389.5 | V38: Score 1 | W38: 1337500025 | X38: SMALL CAP | Y38: 0 | Z38: 68 | AA38: FBMT100 | AB38: EQT | AC38: 0 | AE38: 0.04815495973
A39: KWAP | B39: 2018-12-31 | C39: EQT | D39: 5279 | E39: SERBADK | F39: Serba Dinamik Holdings Berhad | G39: MYR | H39: OIL & GAS | I39: 1000000 | J39: 3.78 | K39: 3624019.9 | L39: 3624019.9 | M39: 0 | N39: 3780000 | O39: 3780000 | P39: 0 | Q39: 155980.1 | R39: 0 | S39: 0 | T39: Malaysia | U39: 3780000 | V39: Score 2 | W39: 1468500000 | X39: LARGE CAP | Y39: 0 | Z39: 17 | AA39: FBMT100 | AB39: EQT | AC39: 0 | AE39: 0.04361115342
A40: KWAP | B40: 2018-12-31 | C40: EQT | D40: 5284 | E40: LCTITAN | F40: LOTTE CHEMICAL TITAN HOLDING BERHAD | G40: MYR | H40: BASIC MATERIALS | I40: 10950000 | J40: 4.62 | K40: 67530542.56 | L40: 67530542.56 | M40: 0 | N40: 50589000 | O40: 50589000 | P40: 0 | Q40: -16941542.56 | R40: 0 | S40: 0 | T40: Malaysia | U40: 50589000 | V40: Score | W40: 2307791500 | X40: LARGE CAP | Y40: 0 | Z40: 40 | AA40: FBMT100 | AB40: EQT | AC40: 0 | AE40: 0.04278839632
A41: KWAP | B41: 2018-12-31 | C41: EQT | D41: 5347 | E41: TENAGA | F41: Tenaga Nasional Bhd | G41: MYR | H41: UTILITIES | I41: 6000000 | J41: 13.6 | K41: 90421704.06 | L41: 90421704.06 | M41: 0 | N41: 81600000 | O41: 81600000 | P41: 0 | Q41: -8821704.06 | R41: 0 | S41: 0 | T41: Malaysia | U41: 81600000 | V41: Score 3 | W41: 5686888771 | X41: LARGE CAP | Y41: 0.35 | Z41: 20 | AA41: FBMT100 | AB41: EQT | AC41: 2100000 | AE41: 0.01505659272
A42: KWAP | B42: 2018-12-31 | C42: EQT | D42: 5398 | E42: GAMUDA | F42: Gamuda Berhad | G42: MYR | H42: INDUSTRIALS | I42: 2500000 | J42: 2.34 | K42: 8302102.05 | L42: 8302102.05 | M42: 0 | N42: 5850000 | O42: 5850000 | P42: 0 | Q42: -2452102.05 | R42: 0 | S42: 0 | T42: Malaysia | U42: 5850000 | V42: Score 2 | W42: 2468048951 | X42: LARGE CAP | Y42: 0.12 | Z42: 68 | AA42: FBMT100 | AB42: EQT | AC42: 300000 | AE42: 0.04815495973
A43: KWAP | B43: 2018-12-31 | C43: EQT | D43: 5681 | E43: PETDAG | F43: Petronas Dagangan Berhad | G43: MYR | H43: OIL & GAS | I43: 600000 | J43: 26.5 | K43: 15872738.47 | L43: 15872738.47 | M43: 0 | N43: 15900000 | O43: 15900000 | P43: 0 | Q43: 27261.53 | R43: 0 | S43: 0 | T43: Malaysia | U43: 15900000 | V43: Score 4 | W43: 993454000 | X43: LARGE CAP | Y43: 0.56 | Z43: 17 | AA43: FBMT100 | AB43: EQT | AC43: 336000 | AE43: 0.04361115342
A44: KWAP | B44: 2018-12-31 | C44: EQT | D44: 5703 | E44: MUHIBAH | F44: Muhibbah Engineering M Bhd | G44: MYR | H44: INDUSTRIALS | I44: 2800000 | J44: 2.79 | K44: 8353199.02 | L44: 8353199.02 | M44: 0 | N44: 7812000 | O44: 7812000 | P44: 0 | Q44: -541199.02 | R44: 0 | S44: 0 | T44: Malaysia | U44: 7812000 | V44: Score 2 | W44: 483454250 | X44: MID CAP | Y44: 0.05 | Z44: 68 | AA44: FBMT100 | AB44: EQT | AC44: 140000 | AE44: 0.04815495973
A45: KWAP | B45: 2018-12-31 | C45: EQT | D45: 6012 | E45: MAXIS | F45: Maxis Bhd | G45: MYR | H45: TELCO | I45: 2100000 | J45: 5.35 | K45: 13869093.53 | L45: 13869093.53 | M45: 0 | N45: 11235000 | O45: 11235000 | P45: 0 | Q45: -2634093.53 | R45: 0 | S45: 0 | T45: Malaysia | U45: 11235000 | V45: Score 3 | W45: 7816650600 | X45: LARGE CAP | Y45: 0.2 | Z45: 49 | AA45: FBMT100 | AB45: EQT | AC45: 420000 | AE45: -0.03679322772
A46: KWAP | B46: 2018-12-31 | C46: EQT | D46: 6033 | E46: PETGAS | F46: Petronas Gas Berhad | G46: MYR | H46: UTILITIES | I46: 1000000 | J46: 19.2 | K46: 18382683.33 | L46: 18382683.33 | M46: 0 | N46: 19200000 | O46: 19200000 | P46: 0 | Q46: 817316.67 | R46: 0 | S46: 0 | T46: Malaysia | U46: 19200000 | V46: Score 4 | W46: 1978731915 | X46: LARGE CAP | Y46: 0.62 | Z46: 20 | AA46: FBMT100 | AB46: EQT | AC46: 620000 | AE46: 0.01505659272
A47: KWAP | B47: 2018-12-31 | C47: EQT | D47: 6888 | E47: AXIATA | F47: Axiata Group Bhd | G47: MYR | H47: TELCO | I47: 5476357 | J47: 3.93 | K47: 35301808.24 | L47: 35301808.24 | M47: 0 | N47: 21522083.01 | O47: 21522083.01 | P47: 0 | Q47: -13779725.23 | R47: 0 | S47: 0 | T47: Malaysia | U47: 21522083.01 | V47: Score 4 | W47: 9071017693 | X47: LARGE CAP | Y47: 0.18 | Z47: 49 | AA47: FBMT100 | AB47: EQT | AC47: 985744.26 | AE47: -0.03679322772
A48: KWAP | B48: 2018-12-31 | C48: EQT | D48: 6963 | E48: VS | F48: V.S INDUSTRY BHD | G48: MYR | H48: INDUSTRIALS | I48: 8175000 | J48: 0.73 | K48: 16758142.19 | L48: 16758142.19 | M48: 0 | N48: 5967750 | O48: 5967750 | P48: 0 | Q48: -10790392.19 | R48: 0 | S48: 0 | T48: Malaysia | U48: 5967750 | V48: Score 3 | W48: 1812875041 | X48: MID CAP | Y48: 0 | Z48: 68 | AA48: FBMT100 | AB48: EQT | AC48: 0 | AE48: 0.04815495973
A49: KWAP | B49: 2018-12-31 | C49: EQT | D49: 7052 | E49: PADINI | F49: Padini Holdings Berhad | G49: MYR | H49: CONSUMER GOODS | I49: 1400000 | J49: 3.51 | K49: 8356028.41 | L49: 8356028.41 | M49: 0 | N49: 4914000 | O49: 4914000 | P49: 0 | Q49: -3442028.41 | R49: 0 | S49: 0 | T49: Malaysia | U49: 4914000 | V49: Score 2 | W49: 657909500 | X49: MID CAP | Y49: 0.11 | Z49: 39 | AA49: FBMT100 | AB49: EQT | AC49: 154000 | AE49: -0.09568218308
A50: KWAP | B50: 2018-12-31 | C50: EQT | D50: 7081 | E50: PHARMA | F50: Pharmaniaga Berhad | G50: MYR | H50: HEALTHCARE | I50: 2214700 | J50: 2.78 | K50: 12493698.82 | L50: 12493698.82 | M50: 0 | N50: 6156866 | O50: 6156866 | P50: 0 | Q50: -6336832.82 | R50: 0 | S50: 0 | T50: Malaysia | U50: 6156866 | V50: Score | W50: 260505032 | X50: SMALL CAP | Y50: 0.2 | Z50: 30 | AA50: FBMT100 | AB50: EQT | AC50: 442940 | AE50: -0.03190647827
A51: KWAP | B51: 2018-12-31 | C51: EQT | D51: 7277 | E51: DIALOG | F51: Dialog Group Berhad | G51: MYR | H51: OIL & GAS | I51: 9000000 | J51: 3.11 | K51: 29762142.84 | L51: 29762142.84 | M51: 0 | N51: 27990000 | O51: 27990000 | P51: 0 | Q51: -1772142.84 | R51: 0 | S51: 0 | T51: Malaysia | U51: 27990000 | V51: Score 3 | W51: 5641642303 | X51: LARGE CAP | Y51: 0.02 | Z51: 17 | AA51: FBMT100 | AB51: EQT | AC51: 180000 | AE51: 0.04361115342
A52: KWAP | B52: 2018-12-31 | C52: EQT | D52: 8206 | E52: ECOWLD | F52: Eco World Development Group Bhd | G52: MYR | H52: FINANCIALS | I52: 10900000 | J52: 0.905 | K52: 18044356.04 | L52: 18044356.04 | M52: 0 | N52: 9864500 | O52: 9864500 | P52: 0 | Q52: -8179856.04 | R52: 0 | S52: 0 | T52: Malaysia | U52: 9864500 | V52: Score 3 | W52: 2944368381 | X52: MID CAP | Y52: 0 | Z52: 3 | AA52: FBMT100 | AB52: EQT | AC52: 0 | AE52: 0.08748515963
A53: KWAP | B53: 2018-12-31 | C53: EQT | D53: 8664 | E53: SPSETIA | F53: S P Setia Berhad | G53: MYR | H53: FINANCIALS | I53: 5199993 | J53: 2.33 | K53: 15796345.58 | L53: 15796345.58 | M53: 0 | N53: 12115983.69 | O53: 12115983.69 | P53: 0 | Q53: -3680361.89 | R53: 0 | S53: 0 | T53: Malaysia | U53: 12115983.69 | V53: Score 3 | W53: 3958563502 | X53: LARGE CAP | Y53: 0.14 | Z53: 3 | AA53: FBMT100 | AB53: EQT | AC53: 727999.02 | AE53: 0.08748515963
A54: KWAPFI | B54: 2018-12-31 | C54: BND | D54: MT180003 | E54: MGS 3/2018 4.642% 07.11.2033 | F54: MGS 3/2018 4.642% 07.11.2033 | G54: MYR | H54: GOV | I54: 20000000 | J54: 102.1 | K54: 20322000 | L54: 20322000 | M54: 0 | N54: 20561055.25 | O54: 20561055.25 | P54: 141055.25 | Q54: 102729.1 | R54: 0 | S54: -4729.1 | T54: Malaysia | U54: 20420000 | V54: 10 | W54: 999999990000 | X54: LARGE CAP | Y54: 0.04493946 | Z54: 21 | AA54: MGSALL | AB54: BND | AC54: 913259.7061 | AD54: GOVT | AE54: 0
A55: KWAPFI | B55: 2018-12-31 | C55: BND | D55: MT180003 | E55: MGS 3/2018 4.642% 07.11.2033 | F55: MGS 3/2018 4.642% 07.11.2033 | G55: MYR | H55: GOV | I55: 20000000 | J55: 102.1 | K55: 20312000 | L55: 20312000 | M55: 0 | N55: 20561055.25 | O55: 20561055.25 | P55: 141055.25 | Q55: 113272.09 | R55: 0 | S55: -5272.09 | T55: Malaysia | U55: 20420000 | V55: 10 | W55: 999999990000 | X55: LARGE CAP | Y55: 0.04498802 | Z55: 21 | AA55: MGSALL | AB55: BND | AC55: 913796.6622 | AD55: GOVT | AE55: 0
A56: KWAPFI | B56: 2018-12-31 | C56: BND | D56: MT180003 | E56: MGS 3/2018 4.642% 07.11.2033 | F56: MGS 3/2018 4.642% 07.11.2033 | G56: MYR | H56: GOV | I56: 30000000 | J56: 102.1 | K56: 30378000 | L56: 30378000 | M56: 0 | N56: 30841582.87 | O56: 30841582.87 | P56: 211582.87 | Q56: 257482.87 | R56: 0 | S56: -5482.87 | T56: Malaysia | U56: 30630000 | V56: 10 | W56: 999999990000 | X56: LARGE CAP | Y56: 0.0452575 | Z56: 21 | AA56: MGSALL | AB56: BND | AC56: 1374832.335 | AD56: GOVT | AE56: 0
A57: KWAPFI | B57: 2018-12-31 | C57: BND | D57: MX180004 | E57: MGS 4/2018 08.06.2038 | F57: MGS 4/2018 08.06.2038 | G57: MYR | H57: GOV | I57: 10000000 | J57: 103.253 | K57: 10281000 | L57: 10281000 | M57: 0 | N57: 10357561.54 | O57: 10357561.54 | P57: 32261.54 | Q57: 47019.74 | R57: 0 | S57: -2719.74 | T57: Malaysia | U57: 10325300 | V57: 10 | W57: 999999990000 | X57: LARGE CAP | Y57: 0.0467329 | Z57: 21 | AA57: MGSALL | AB57: BND | AC57: 480460.9449 | AD57: GOVT | AE57: 0
A58: KWAPFI | B58: 2018-12-31 | C58: BND | D58: MX180004 | E58: MGS 4/2018 08.06.2038 | F58: MGS 4/2018 08.06.2038 | G58: MYR | H58: GOV | I58: 10000000 | J58: 103.253 | K58: 10166000 | L58: 10166000 | M58: 0 | N58: 10357561.54 | O58: 10357561.54 | P58: 32261.54 | Q58: 159961.74 | R58: 0 | S58: -661.74 | T58: Malaysia | U58: 10325300 | V58: 10 | W58: 999999990000 | X58: LARGE CAP | Y58: 0.04761395 | Z58: 21 | AA58: MGSALL | AB58: BND | AC58: 484043.4157 | AD58: GOVT | AE58: 0
A59: KWAPFI | B59: 2018-12-31 | C59: BND | D59: MX180004 | E59: MGS 4/2018 08.06.2038 | F59: MGS 4/2018 08.06.2038 | G59: MYR | H59: GOV | I59: 20000000 | J59: 103.253 | K59: 20322000 | L59: 20322000 | M59: 0 | N59: 20715123.08 | O59: 20715123.08 | P59: 64523.08 | Q59: 329881.87 | R59: 0 | S59: -1281.87 | T59: Malaysia | U59: 20650600 | V59: 10 | W59: 999999990000 | X59: LARGE CAP | Y59: 0.04765309 | Z59: 21 | AA59: MGSALL | AB59: BND | AC59: 968406.095 | AD59: GOVT | AE59: 0
A60: KWAPFI | B60: 2018-12-31 | C60: BND | D60: MX180004 | E60: MGS 4/2018 08.06.2038 | F60: MGS 4/2018 08.06.2038 | G60: MYR | H60: GOV | I60: 10000000 | J60: 103.253 | K60: 10106000 | L60: 10106000 | M60: 0 | N60: 10357561.54 | O60: 10357561.54 | P60: 32261.54 | Q60: 219693.91 | R60: 0 | S60: -393.91 | T60: Malaysia | U60: 10325300 | V60: 10 | W60: 999999990000 | X60: LARGE CAP | Y60: 0.04808517 | Z60: 21 | AA60: MGSALL | AB60: BND | AC60: 485948.728 | AD60: GOVT | AE60: 0
A61: KWAPFI | B61: 2018-12-31 | C61: BND | D61: MZ160002 | E61: MGS 2/2016 4.736% 15.3.2046 | F61: MGS 2/2016 4.736% 15.3.2046 | G61: MYR | H61: GOV | I61: 20000000 | J61: 98.294 | K61: 21002000 | L61: 21002000 | M61: 0 | N61: 19941390.06 | O61: 19941390.06 | P61: 282590.06 | Q61: -1301714.65 | R61: 0 | S61: -41485.35 | T61: Malaysia | U61: 19658800 | V61: 10 | W61: 999999990000 | X61: LARGE CAP | Y61: 0.04430087 | Z61: 21 | AA61: MGSALL | AB61: BND | AC61: 930406.8717 | AD61: GOVT | AE61: 0
A62: KWAPFI | B62: 2018-12-31 | C62: BND | D62: MZ160002 | E62: MGS 2/2016 4.736% 15.3.2046 | F62: MGS 2/2016 4.736% 15.3.2046 | G62: MYR | H62: GOV | I62: 10000000 | J62: 98.294 | K62: 10073400 | L62: 10073400 | M62: 0 | N62: 9970695.03 | O62: 9970695.03 | P62: 141295.03 | Q62: -241225.19 | R62: 0 | S62: -2774.81 | T62: Malaysia | U62: 9829400 | V62: 10 | W62: 999999990000 | X62: LARGE CAP | Y62: 0.04689351 | Z62: 21 | AA62: MGSALL | AB62: BND | AC62: 472377.0836 | AD62: GOVT | AE62: 0
A63: KWAPFI | B63: 2018-12-31 | C63: BND | D63: PP110035 | E63: BESRAYA 4.960% 28.07.2023 | F63: BESRAYA 4.960% 28.07.2023 | G63: MYR | H63: INDUSTRIALS | I63: 10000000 | J63: 100.622 | K63: 10221000 | L63: 10221000 | M63: 0 | N63: 10273408.79 | O63: 10273408.79 | P63: 211208.79 | Q63: -71213.66 | R63: 0 | S63: -87586.34 | T63: Malaysia | U63: 10062200 | V63: 128 | W63: 700000000 | X63: LARGE CAP | Y63: 0.04632213 | Z63: 68 | AA63: MGSALL | AB63: BND | AC63: 473458.4907 | AD63: AA3 | AE63: 0
A64: KWAPFI | B64: 2018-12-31 | C64: BND | D64: UN150040 | E64: RHBBANK MTN 3653D 15/0040 4.75% 08.05.2025 | F64: RHBBANK MTN 3653D 15/0040 4.75% 08.05.2025 | G64: MYR | H64: FINANCIALS | I64: 15000000 | J64: 100.562 | K64: 15000000 | L64: 15000000 | M64: 0 | N64: 15189710.96 | O64: 15189710.96 | P64: 105410.96 | Q64: 84300 | R64: 0 | S64: 0 | T64: Malaysia | U64: 15084300 | V64: 128 | W64: 5000000000 | X64: LARGE CAP | Y64: 0.0475 | Z64: 3 | AA64: MGSALL | AB64: BND | AC64: 712500 | AD64: AA3 | AE64: 0
A65: KWAPFI | B65: 2018-12-31 | C65: BND | D65: VH180121 | E65: ASIANFIN IMTN 4.700% 10.12.2021 | F65: ASIANFIN IMTN 4.700% 10.12.2021 | G65: MYR | H65: FINANCIALS | I65: 5000000 | J65: 100.242 | K65: 4956000 | L65: 4956000 | M65: 0 | N65: 5026264.38 | O65: 5026264.38 | P65: 14164.38 | Q65: 33487.31 | R65: 0 | S65: 22612.69 | T65: Malaysia | U65: 5012100 | V65: 122 | W65: 2295000000 | X65: LARGE CAP | Y65: 0.04856704 | Z65: 3 | AA65: MGSALL | AB65: BND | AC65: 240698.2502 | AD65: AA1 | AE65: 0
A66: KWAPFI | B66: 2018-12-31 | C66: BND | D66: VJ180117 | E66: ASIANFIN IMTN 4.900% 08.12.2023 | F66: ASIANFIN IMTN 4.900% 08.12.2023 | G66: MYR | H66: FINANCIALS | I66: 5000000 | J66: 100.755 | K66: 4952500 | L66: 4952500 | M66: 0 | N66: 5052517.12 | O66: 5052517.12 | P66: 14767.12 | Q66: 67514.07 | R66: 0 | S66: 17735.93 | T66: Malaysia | U66: 5037750 | V66: 122 | W66: 2295000000 | X66: LARGE CAP | Y66: 0.05036919 | Z66: 3 | AA66: MGSALL | AB66: BND | AC66: 249453.4135 | AD66: AA1 | AE66: 0
A67: KWAPFI | B67: 2018-12-31 | C67: BND | D67: VN130387 | E67: BGSM MGMT IMTN 5.600% 27.12.2023 - Issue No 9 | F67: BGSM MGMT IMTN 5.600% 27.12.2023 - Issue No 9 | G67: MYR | H67: DIVERSIFIED | I67: 5000000 | J67: 104.752 | K67: 5185000 | L67: 5185000 | M67: 0 | N67: 5240668.49 | O67: 5240668.49 | P67: 3068.49 | Q67: 96513.8 | R67: 0 | S67: -43913.8 | T67: Malaysia | U67: 5237600 | V67: 128 | W67: 373000000 | X67: LARGE CAP | Y67: 0.04954876 | Z67: 22 | AA67: MGSALL | AB67: BND | AC67: 256910.3206 | AD67: AA3 | AE67: 0
A68: KWAPFI | B68: 2018-12-31 | C68: BND | D68: VN140164 | E68: BGSM MGMT IMTN 5.450% 28.06.2024 - Issue No 10 | F68: BGSM MGMT IMTN 5.450% 28.06.2024 - Issue No 10 | G68: MYR | H68: DIVERSIFIED | I68: 10000000 | J68: 104.267 | K68: 10256000 | L68: 10256000 | M68: 0 | N68: 10432672.6 | O68: 10432672.6 | P68: 5972.6 | Q68: 226431.25 | R68: 0 | S68: -55731.25 | T68: Malaysia | U68: 10426700 | V68: 128 | W68: 330000000 | X68: LARGE CAP | Y68: 0.05028017 | Z68: 22 | AA68: MGSALL | AB68: BND | AC68: 515673.4235 | AD68: AA3 | AE68: 0
A69: KWAPFI | B69: 2018-12-31 | C69: BND | D69: VN180095 | E69: MMC CORP IMTN 5.700% 24.03.2028 | F69: MMC CORP IMTN 5.700% 24.03.2028 | G69: MYR | H69: DIVERSIFIED | I69: 5000000 | J69: 100.94 | K69: 5032500 | L69: 5032500 | M69: 54657.53 | N69: 5122739.73 | O69: 5122739.73 | P69: 21082.2 | Q69: 14713.11 | R69: 0 | S69: -213.11 | T69: Malaysia | U69: 5047000 | V69: 128 | W69: 2500000000 | X69: LARGE CAP | Y69: 0.05608059 | Z69: 22 | AA69: MGSALL | AB69: BND | AC69: 282225.5692 | AD69: AA3 | AE69: 0
A70: KWAPFI | B70: 2018-12-31 | C70: BND | D70: VN180095 | E70: MMC CORP IMTN 5.700% 24.03.2028 | F70: MMC CORP IMTN 5.700% 24.03.2028 | G70: MYR | H70: DIVERSIFIED | I70: 30000000 | J70: 100.94 | K70: 30000000 | L70: 30000000 | M70: 0 | N70: 30736438.36 | O70: 30736438.36 | P70: 454438.36 | Q70: 282000 | R70: 0 | S70: 0 | T70: Malaysia | U70: 30282000 | V70: 128 | W70: 2500000000 | X70: LARGE CAP | Y70: 0.05699943 | Z70: 22 | AA70: MGSALL | AB70: BND | AC70: 1709982.9 | AD70: AA3 | AE70: 0
A71: KWAPFI | B71: 2018-12-31 | C71: BND | D71: VN180276 | E71: SDHB IMTN 5.300% 02.10.2028 | F71: SDHB IMTN 5.300% 02.10.2028 | G71: MYR | H71: CONSTRUCTION | I71: 50000000 | J71: 100.407 | K71: 50000000 | L71: 50000000 | M71: 0 | N71: 50864184.93 | O71: 50864184.93 | P71: 660684.93 | Q71: 203500 | R71: 0 | S71: 0 | T71: Malaysia | U71: 50203500 | V71: 128 | W71: 700000000 | X71: LARGE CAP | Y71: 0.053 | Z71: 8 | AA71: MGSALL | AB71: BND | AC71: 2650000 | AD71: AA3 | AE71: 0
A72: KWAPFI | B72: 2018-12-31 | C72: BND | D72: VO140417 | E72: K-PROHAWK IMTN 5.200% 22.12.2025 | F72: K-PROHAWK IMTN 5.200% 22.12.2025 | G72: MYR | H72: INDUSTRIALS | I72: 5000000 | J72: 103.518 | K72: 5195500 | L72: 5195500 | M72: 0 | N72: 5181598.63 | O72: 5181598.63 | P72: 5698.63 | Q72: 34678.15 | R72: 0 | S72: -54278.15 | T72: Malaysia | U72: 5175900 | V72: 125 | W72: 900000000 | X72: LARGE CAP | Y72: 0.0471982 | Z72: 68 | AA72: MGSALL | AB72: BND | AC72: 245218.2481 | AD72: AA2 | AE72: 0
A73: KWAPFI | B73: 2018-12-31 | C73: BND | D73: VP150259 | E73: MMC CORP IMTN 5.950% 12.11.2027 | F73: MMC CORP IMTN 5.950% 12.11.2027 | G73: MYR | H73: DIVERSIFIED | I73: 10000000 | J73: 102.762 | K73: 10432000 | L73: 10432000 | M73: 0 | N73: 10357706.85 | O73: 10357706.85 | P73: 81506.85 | Q73: -114856.4 | R73: 0 | S73: -40943.6 | T73: Malaysia | U73: 10276200 | V73: 128 | W73: 600000000 | X73: LARGE CAP | Y73: 0.05388284 | Z73: 22 | AA73: MGSALL | AB73: BND | AC73: 562105.7869 | AD73: AA3 | AE73: 0
A74: KWAPFI | B74: 2018-12-31 | C74: BND | D74: VP150349 | E74: SAMALAJU IMTN 5.45% 28.12.2027 - Issue No.5 | F74: SAMALAJU IMTN 5.45% 28.12.2027 - Issue No.5 | G74: MYR | H74: TRANSPORTATION & LOGISTIC | I74: 5000000 | J74: 104.922 | K74: 5329000 | L74: 5329000 | M74: 0 | N74: 5249086.3 | O74: 5249086.3 | P74: 2986.3 | Q74: -28075.84 | R74: 0 | S74: -54824.16 | T74: Malaysia | U74: 5246100 | V74: 122 | W74: 950000000 | X74: LARGE CAP | Y74: 0.04695301 | Z74: 67 | AA74: MGSALL | AB74: BND | AC74: 250212.5903 | AD74: AA1 | AE74: 0
A75: KWAPFI | B75: 2018-12-31 | C75: BND | D75: VR160244 | E75: SARAWAKHIDRO IMTN 4.61% 09.08.2030 | F75: SARAWAKHIDRO IMTN 4.61% 09.08.2030 | G75: MYR | H75: POWER | I75: 15000000 | J75: 100.156 | K75: 15076500 | L75: 15076500 | M75: 0 | N75: 15290527.4 | O75: 15290527.4 | P75: 267127.4 | Q75: -42593.96 | R75: 0 | S75: -10506.04 | T75: Malaysia | U75: 15023400 | V75: 115 | W75: 5540000000 | X75: LARGE CAP | Y75: 0.04560272 | Z75: 50 | AA75: MGSALL | AB75: BND | AC75: 687529.4081 | AD75: AAA | AE75: 0
A76: KWAPFI | B76: 2018-12-31 | C76: BND | D76: VS130118 | E76: WESTPORTS IMTN 4.580% 31.03.2028 | F76: WESTPORTS IMTN 4.580% 31.03.2028 | G76: MYR | H76: TRANSPORTATION & LOGISTIC | I76: 5000000 | J76: 99.102 | K76: 5025000 | L76: 5025000 | M76: 0 | N76: 5012979.12 | O76: 5012979.12 | P76: 57879.12 | Q76: -65687.64 | R76: 0 | S76: -4212.36 | T76: Malaysia | U76: 4955100 | V76: 122 | W76: 2000000000 | X76: LARGE CAP | Y76: 0.04523629 | Z76: 67 | AA76: MGSALL | AB76: BND | AC76: 227312.3573 | AD76: AA1 | AE76: 0
A77: KWAPFI | B77: 2018-12-31 | C77: BND | D77: VS150073 | E77: AMAN IMTN 4.700% 08.05.2030 | F77: AMAN IMTN 4.700% 08.05.2030 - Tranche No 42 | G77: MYR | H77: CONSTRUCTION | I77: 5000000 | J77: 100.493 | K77: 5009500 | L77: 5009500 | M77: 0 | N77: 5059417.12 | O77: 5059417.12 | P77: 34767.12 | Q77: 15480.39 | R77: 0 | S77: -330.39 | T77: Malaysia | U77: 5024650 | V77: 115 | W77: 10000000000 | X77: LARGE CAP | Y77: 0.04678357 | Z77: 8 | AA77: MGSALL | AB77: BND | AC77: 234362.2939 | AD77: AAA | AE77: 0
A78: KWAPFI | B78: 2018-12-31 | C78: BND | D78: VS150073 | E78: AMAN IMTN 4.700% 08.05.2030 | F78: AMAN IMTN 4.700% 08.05.2030 - Tranche No 42 | G78: MYR | H78: CONSTRUCTION | I78: 5000000 | J78: 100.493 | K78: 5000000 | L78: 5000000 | M78: 0 | N78: 5059417.12 | O78: 5059417.12 | P78: 34767.12 | Q78: 24650 | R78: 0 | S78: 0 | T78: Malaysia | U78: 5024650 | V78: 115 | W78: 10000000000 | X78: LARGE CAP | Y78: 0.047 | Z78: 8 | AA78: MGSALL | AB78: BND | AC78: 235000 | AD78: AAA | AE78: 0
A79: KWAPFI | B79: 2018-12-31 | C79: BND | D79: VS160243 | E79: SARAWAKHIDRO IMTN 4.67% 11.08.2031 | F79: SARAWAKHIDRO IMTN 4.67% 11.08.2031 | G79: MYR | H79: POWER | I79: 10000000 | J79: 100.517 | K79: 10075000 | L79: 10075000 | M79: 0 | N79: 10232102.74 | O79: 10232102.74 | P79: 180402.74 | Q79: -14040.72 | R79: 0 | S79: -9259.28 | T79: Malaysia | U79: 10051700 | V79: 115 | W79: 5540000000 | X79: LARGE CAP | Y79: 0.0460023 | Z79: 50 | AA79: MGSALL | AB79: BND | AC79: 463473.1725 | AD79: AAA | AE79: 0
A80: KWAPFI | B80: 2018-12-31 | C80: BND | D80: VV130177 | E80: K-PROHAWK IMTN 5.240% 27.12.2030 | F80: K-PROHAWK IMTN 5.240% 27.12.2030 | G80: MYR | H80: INDUSTRIALS | I80: 5000000 | J80: 103.798 | K80: 5035000 | L80: 5035000 | M80: 0 | N80: 5192771.23 | O80: 5192771.23 | P80: 2871.23 | Q80: 158249.02 | R80: 0 | S80: -3349.02 | T80: Malaysia | U80: 5189900 | V80: 125 | W80: 900000000 | X80: LARGE CAP | Y80: 0.05168424 | Z80: 68 | AA80: MGSALL | AB80: BND | AC80: 260230.1484 | AD80: AA2 | AE80: 0
A81: KWAPFI | B81: 2018-12-31 | C81: BND | D81: VX160267 | E81: LDF3 IMTN 6.130% 22.08.2036 | F81: LDF3 IMTN 6.130% 22.08.2036 | G81: MYR | H81: INDUSTRIALS | I81: 5000000 | J81: 108.801 | K81: 5438000 | L81: 5438000 | M81: 0 | N81: 5550054.11 | O81: 5550054.11 | P81: 110004.11 | Q81: 27749 | R81: 0 | S81: -25699 | T81: Malaysia | U81: 5440050 | V81: 128 | W81: 3640000000000 | X81: LARGE CAP | Y81: 0.05398608 | Z81: 68 | AA81: MGSALL | AB81: BND | AC81: 293576.303 | AD81: AA3 | AE81: 0
A82: KWAPFI | B82: 2018-12-31 | C82: BND | D82: VX160267 | E82: LDF3 IMTN 6.130% 22.08.2036 | F82: LDF3 IMTN 6.130% 22.08.2036 | G82: MYR | H82: INDUSTRIALS | I82: 5000000 | J82: 108.801 | K82: 5429500 | L82: 5429500 | M82: 0 | N82: 5550054.11 | O82: 5550054.11 | P82: 110004.11 | Q82: 34546.87 | R82: 0 | S82: -23996.87 | T82: Malaysia | U82: 5440050 | V82: 128 | W82: 3640000000000 | X82: LARGE CAP | Y82: 0.05410036 | Z82: 68 | AA82: MGSALL | AB82: BND | AC82: 293737.9046 | AD82: AA3 | AE82: 0
A83: KWAPFI | B83: 2018-12-31 | C83: BND | D83: VX160267 | E83: LDF3 IMTN 6.130% 22.08.2036 | F83: LDF3 IMTN 6.130% 22.08.2036 | G83: MYR | H83: INDUSTRIALS | I83: 10000000 | J83: 108.801 | K83: 10802000 | L83: 10802000 | M83: 0 | N83: 11100108.22 | O83: 11100108.22 | P83: 220008.22 | Q83: 89970.7 | R83: 0 | S83: -11870.7 | T83: Malaysia | U83: 10880100 | V83: 128 | W83: 3640000000000 | X83: LARGE CAP | Y83: 0.05427622 | Z83: 68 | AA83: MGSALL | AB83: BND | AC83: 586291.7284 | AD83: AA3 | AE83: 0
A84: KWAPFI | B84: 2018-12-31 | C84: BND | D84: VY160268 | E84: LDF3 IMTN 6.230% 21.08.2037 | F84: LDF3 IMTN 6.230% 21.08.2037 | G84: MYR | H84: INDUSTRIALS | I84: 10000000 | J84: 109.295 | K84: 10882000 | L84: 10882000 | M84: 0 | N84: 11153097.26 | O84: 11153097.26 | P84: 223597.26 | Q84: 59440.8 | R84: 0 | S84: -11940.8 | T84: Malaysia | U84: 10929500 | V84: 128 | W84: 3640000000 | X84: LARGE CAP | Y84: 0.05478416 | Z84: 68 | AA84: MGSALL | AB84: BND | AC84: 596161.2291 | AD84: AA3 | AE84: 0
A85: KWAPFI | B85: 2018-12-31 | C85: BND | D85: VY160268 | E85: LDF3 IMTN 6.230% 21.08.2037 | F85: LDF3 IMTN 6.230% 21.08.2037 | G85: MYR | H85: INDUSTRIALS | I85: 5000000 | J85: 109.295 | K85: 5451000 | L85: 5451000 | M85: 0 | N85: 5576548.63 | O85: 5576548.63 | P85: 111798.63 | Q85: 36782.21 | R85: 0 | S85: -23032.21 | T85: Malaysia | U85: 5464750 | V85: 128 | W85: 3640000000 | X85: LARGE CAP | Y85: 0.05489937 | Z85: 68 | AA85: MGSALL | AB85: BND | AC85: 299256.4659 | AD85: AA3 | AE85: 0
A86: KWAPFI | B86: 2018-12-31 | C86: BND | D86: VY160268 | E86: LDF3 IMTN 6.230% 21.08.2037 | F86: LDF3 IMTN 6.230% 21.08.2037 | G86: MYR | H86: INDUSTRIALS | I86: 5000000 | J86: 109.295 | K86: 5118000 | L86: 5118000 | M86: 0 | N86: 5576548.63 | O86: 5576548.63 | P86: 111798.63 | Q86: 354336.83 | R86: 0 | S86: -7586.83 | T86: Malaysia | U86: 5464750 | V86: 128 | W86: 3640000000 | X86: LARGE CAP | Y86: 0.06030281 | Z86: 68 | AA86: MGSALL | AB86: BND | AC86: 308629.7816 | AD86: AA3 | AE86: 0
A87: KWAPFI | B87: 2018-12-31 | C87: BND | D87: VZ160270 | E87: LDF3 IMTN 6.430% 23.08.2039 | F87: LDF3 IMTN 6.430% 23.08.2039 | G87: MYR | H87: INDUSTRIALS | I87: 10000000 | J87: 110.436 | K87: 11047000 | L87: 11047000 | M87: 0 | N87: 11274375.34 | O87: 11274375.34 | P87: 230775.34 | Q87: 8494.76 | R87: 0 | S87: -11894.76 | T87: Malaysia | U87: 11043600 | V87: 128 | W87: 3640000000 | X87: LARGE CAP | Y87: 0.05578639 | Z87: 68 | AA87: MGSALL | AB87: BND | AC87: 616272.2503 | AD87: AA3 | AE87: 0
A88: KWAPFI | B88: 2018-12-31 | C88: BND | D88: VZ160270 | E88: LDF3 IMTN 6.430% 23.08.2039 | F88: LDF3 IMTN 6.430% 23.08.2039 | G88: MYR | H88: INDUSTRIALS | I88: 5000000 | J88: 110.436 | K88: 5121500 | L88: 5121500 | M88: 0 | N88: 5637187.67 | O88: 5637187.67 | P88: 115387.67 | Q88: 406901.49 | R88: 0 | S88: -6601.49 | T88: Malaysia | U88: 5521800 | V88: 128 | W88: 3640000000 | X88: LARGE CAP | Y88: 0.06229783 | Z88: 68 | AA88: MGSALL | AB88: BND | AC88: 319058.3363 | AD88: AA3 | AE88: 0
A89: KWAPFI | B89: 2018-12-31 | C89: CSH | D89: RDC*MYR*KAF | E89: KAF INVESTMENT BANK BERHAD | F89: Using KAF invest in Short Term MM Conventional | G89: MYR | H89: CASH | I89: 11337000 | J89: 0 | K89: 11337000 | L89: 11337000 | M89: 0 | N89: 11342901.45 | O89: 11342901.45 | P89: 5901.45 | Q89: 0 | R89: 0 | S89: 0 | T89: Malaysia | U89: 11337000 | V89: Cash | W89: 0 | X89: SMALL CAP | Y89: 0.038 | Z89: 0 | AA89: MGSALL | AB89: CSH | AC89: 430806 | AD89: Cash | AE89: 0
A90: KWAPFI | B90: 2018-12-31 | C90: CSH | D90: RDC*MYR*PIVB | E90: PUBLIC INVESTMENT BANK BERHAD | F90: Using PIVB invest in Short Term MM Conventional | G90: MYR | H90: CASH | I90: 682000 | J90: 0 | K90: 682000 | L90: 682000 | M90: 0 | N90: 682060.73 | O90: 682060.73 | P90: 60.73 | Q90: 0 | R90: 0 | S90: 0 | T90: Malaysia | U90: 682000 | V90: Cash | W90: 0 | X90: SMALL CAP | Y90: 0.0325 | Z90: 0 | AA90: MGSALL | AB90: CSH | AC90: 22165 | AD90: Cash | AE90: 0
A91: MEQESG | B91: 2018-12-31 | C91: CSH | D91: RDC*MYR*HLB | E91: HONG LEONG BANK BERHAD | F91: Using HLB invest in Short Term MM Conventional | G91: MYR | H91: CASH | I91: 5802000 | J91: 0 | K91: 5802000 | L91: 5802000 | M91: 0 | N91: 5805020.22 | O91: 5805020.22 | P91: 3020.22 | Q91: 0 | R91: 0 | S91: 0 | T91: Malaysia | U91: 5802000 | V91: Cash | W91: 0 | X91: SMALL CAP | Y91: 0.038 | Z91: 0 | AA91: F4GBM | AB91: CSH | AC91: 220476 | AD91: Cash | AE91: 0
A92: MEQESG | B92: 2018-12-31 | C92: CSH | D92: RDC*MYR*KAF | E92: KAF INVESTMENT BANK BERHAD | F92: Using KAF invest in Short Term MM Conventional | G92: MYR | H92: CASH | I92: 15651000 | J92: 0 | K92: 15651000 | L92: 15651000 | M92: 0 | N92: 15659875.13 | O92: 15659875.13 | P92: 8875.13 | Q92: 0 | R92: 0 | S92: 0 | T92: Malaysia | U92: 15651000 | V92: Cash | W92: 0 | X92: SMALL CAP | Y92: 0.038 | Z92: 0 | AA92: F4GBM | AB92: CSH | AC92: 594738 | AD92: Cash | AE92: 0
A93: MEQESG | B93: 2018-12-31 | C93: EQT | D93: 78 | E93: GDEX | F93: GD Express Carrier Berhad | G93: MYR | H93: INDUSTRIALS | I93: 2065500 | J93: 0.265 | K93: 907199.04 | L93: 907199.04 | M93: 0 | N93: 547357.5 | O93: 547357.5 | P93: 0 | Q93: -359841.54 | R93: 0 | S93: 0 | T93: Malaysia | U93: 547357.5 | V93: Score 3 | W93: 5602624193 | X93: MID CAP | Y93: 0.01 | Z93: 68 | AA93: F4GBM | AB93: EQT | AC93: 20655 | AE93: 0.2185671036
A94: MEQESG | B94: 2018-12-31 | C94: EQT | D94: 138 | E94: MYEG | F94: My E.G. Services Berhad | G94: MYR | H94: INDUSTRIALS | I94: 21058800 | J94: 0.975 | K94: 22827143.77 | L94: 22827143.77 | M94: 0 | N94: 20532330 | O94: 20532330 | P94: 0 | Q94: -2294813.77 | R94: 0 | S94: 0 | T94: Malaysia | U94: 20532330 | V94: Score 2 | W94: 3606305993 | X94: LARGE CAP | Y94: 0.01 | Z94: 68 | AA94: F4GBM | AB94: EQT | AC94: 210588 | AE94: 0.2185671036
A95: MEQESG | B95: 2018-12-31 | C95: EQT | D95: 1023 | E95: CIMB | F95: CIMB Group Holdings Bhd | G95: MYR | H95: FINANCIALS | I95: 1233182 | J95: 5.71 | K95: 7262979.22 | L95: 7262979.22 | M95: 0 | N95: 7041469.22 | O95: 7041469.22 | P95: 0 | Q95: -221510 | R95: 0 | S95: 0 | T95: Malaysia | U95: 7041469.22 | V95: Score 3 | W95: 9564459418 | X95: LARGE CAP | Y95: 0.17 | Z95: 3 | AA95: F4GBM | AB95: EQT | AC95: 209640.94 | AE95: 0.3389389883
A96: MEQESG | B96: 2018-12-31 | C96: EQT | D96: 1155 | E96: MAYBANK | F96: Malayan Banking Berhad | G96: MYR | H96: FINANCIALS | I96: 1468459 | J96: 9.5 | K96: 12086679.23 | L96: 12086679.23 | M96: 0 | N96: 13950360.5 | O96: 13950360.5 | P96: 0 | Q96: 1863681.27 | R96: 0 | S96: 0 | T96: Malaysia | U96: 13950360.5 | V96: Score 4 | W96: 11049682979 | X96: LARGE CAP | Y96: 0.47 | Z96: 3 | AA96: F4GBM | AB96: EQT | AC96: 690175.73 | AE96: 0.3389389883
A97: MEQESG | B97: 2018-12-31 | C97: EQT | D97: 1295 | E97: PBBANK | F97: Public Bank Berhad | G97: MYR | H97: FINANCIALS | I97: 402000 | J97: 24.76 | K97: 7310590.1 | L97: 7310590.1 | M97: 0 | N97: 9953520 | O97: 9953520 | P97: 0 | Q97: 2642929.9 | R97: 0 | S97: 0 | T97: Malaysia | U97: 9953520 | V97: Score 3 | W97: 3882138347 | X97: LARGE CAP | Y97: 0.59 | Z97: 3 | AA97: F4GBM | AB97: EQT | AC97: 237180 | AE97: 0.3389389883
A98: MEQESG | B98: 2018-12-31 | C98: EQT | D98: 2852 | E98: CMSB | F98: Cahya Mata Sarawak Bhd | G98: MYR | H98: INDUSTRIALS | I98: 700000 | J98: 2.69 | K98: 2095590 | L98: 2095590 | M98: 0 | N98: 1883000 | O98: 1883000 | P98: 0 | Q98: -212590 | R98: 0 | S98: 0 | T98: Malaysia | U98: 1883000 | V98: Score 3 | W98: 1074375720 | X98: MID CAP | Y98: 0.11 | Z98: 68 | AA98: F4GBM | AB98: EQT | AC98: 77000 | AE98: 0.2185671036
A99: MEQESG | B99: 2018-12-31 | C99: EQT | D99: 4677 | E99: YTL | F99: YTL Corporation Berhad | G99: MYR | H99: UTILITIES | I99: 15600000 | J99: 1.01 | K99: 17865992.53 | L99: 17865992.53 | M99: 0 | N99: 15756000 | O99: 15756000 | P99: 0 | Q99: -2109992.53 | R99: 0 | S99: 0 | T99: Malaysia | U99: 15756000 | V99: Score 3 | W99: 10910559429 | X99: LARGE CAP | Y99: 0.1 | Z99: 20 | AA99: F4GBM | AB99: EQT | AC99: 1560000 | AE99: 0.2582341633
A100: MEQESG | B100: 2018-12-31 | C100: EQT | D100: 4863 | E100: TM | F100: Telekom Malaysia Berhad | G100: MYR | H100: TELCO | I100: 6116800 | J100: 2.66 | K100: 15330900.19 | L100: 15330900.19 | M100: 0 | N100: 16270688 | O100: 16270688 | P100: 0 | Q100: 939787.81 | R100: 0 | S100: 0 | T100: Malaysia | U100: 16270688 | V100: Score 4 | W100: 3757934823 | X100: LARGE CAP | Y100: 0.16 | Z100: 49 | AA100: F4GBM | AB100: EQT | AC100: 978688 | AE100: 0.08471781565
A101: MEQESG | B101: 2018-12-31 | C101: EQT | D101: 5014 | E101: AIRPORT | F101: Malaysia Airports Holdings Bhd | G101: MYR | H101: INDUSTRIALS | I101: 2084800 | J101: 8.38 | K101: 18474072.67 | L101: 18474072.67 | M101: 0 | N101: 17470624 | O101: 17470624 | P101: 0 | Q101: -1003448.67 | R101: 0 | S101: 0 | T101: Malaysia | U101: 17470624 | V101: Score 3 | W101: 1659191828 | X101: LARGE CAP | Y101: 0.02 | Z101: 68 | AA101: F4GBM | AB101: EQT | AC101: 41696 | AE101: 0.2185671036
A102: MEQESG | B102: 2018-12-31 | C102: EQT | D102: 5148 | E102: UEMS | F102: UEM Sunrise Bhd | G102: MYR | H102: FINANCIALS | I102: 15645500 | J102: 0.665 | K102: 15983353.89 | L102: 15983353.89 | M102: 0 | N102: 10404257.5 | O102: 10404257.5 | P102: 0 | Q102: -5579096.39 | R102: 0 | S102: 0 | T102: Malaysia | U102: 10404257.5 | V102: Score 3 | W102: 4537436037 | X102: LARGE CAP | Y102: 0.02 | Z102: 3 | AA102: F4GBM | AB102: EQT | AC102: 312910 | AE102: 0.3389389883
A103: MEQESG | B103: 2018-12-31 | C103: EQT | D103: 5186 | E103: MHB | F103: Msia M&H Eng Hldg Bhd | G103: MYR | H103: OIL & GAS | I103: 12591100 | J103: 0.545 | K103: 9554550.8 | L103: 9554550.8 | M103: 0 | N103: 6862149.5 | O103: 6862149.5 | P103: 0 | Q103: -2692401.3 | R103: 0 | S103: 0 | T103: Malaysia | U103: 6862149.5 | V103: Score 3 | W103: 1600000000 | X103: SMALL CAP | Y103: 0.04 | Z103: 17 | AA103: F4GBM | AB103: EQT | AC103: 503644 | AE103: 0.03572967021
A104: MEQESG | B104: 2018-12-31 | C104: EQT | D104: 5211 | E104: SUNWAY | F104: Sunway Bhd | G104: MYR | H104: FINANCIALS | I104: 5610500 | J104: 1.47 | K104: 8471831.17 | L104: 8471831.17 | M104: 0 | N104: 8247435 | O104: 8247435 | P104: 0 | Q104: -224396.17 | R104: 0 | S104: 0 | T104: Malaysia | U104: 8247435 | V104: Score 3 | W104: 4924402189 | X104: LARGE CAP | Y104: 0.08 | Z104: 3 | AA104: F4GBM | AB104: EQT | AC104: 448840 | AE104: 0.3389389883
A105: MEQESG | B105: 2018-12-31 | C105: EQT | D105: 5263 | E105: SUNCON | F105: SUNWAY CONSTRUCTION GROUP BERHAD | G105: MYR | H105: INDUSTRIALS | I105: 1161000 | J105: 1.33 | K105: 1830283.96 | L105: 1830283.96 | M105: 0 | N105: 1544130 | O105: 1544130 | P105: 0 | Q105: -286153.96 | R105: 0 | S105: 0 | T105: Malaysia | U105: 1544130 | V105: Score 4 | W105: 1292900010 | X105: MID CAP | Y105: 0.04 | Z105: 68 | AA105: F4GBM | AB105: EQT | AC105: 46440 | AE105: 0.2185671036
A106: MEQESG | B106: 2018-12-31 | C106: EQT | D106: 5288 | E106: SIMEPROP | F106: Sime Darby Property Bhd | G106: MYR | H106: FINANCIALS | I106: 15576600 | J106: 0.995 | K106: 20781608.97 | L106: 20781608.97 | M106: 0 | N106: 15498717 | O106: 15498717 | P106: 0 | Q106: -5282891.97 | R106: 0 | S106: 0 | T106: Malaysia | U106: 15498717 | V106: Score 4 | W106: 6800839377 | X106: LARGE CAP | Y106: 0.25 | Z106: 3 | AA106: F4GBM | AB106: EQT | AC106: 3894150 | AE106: 0.3389389883
A107: MEQESG | B107: 2018-12-31 | C107: EQT | D107: 5347 | E107: TENAGA | F107: Tenaga Nasional Bhd | G107: MYR | H107: UTILITIES | I107: 2133200 | J107: 13.6 | K107: 29358646.47 | L107: 29358646.47 | M107: 0 | N107: 29011520 | O107: 29011520 | P107: 0 | Q107: -347126.47 | R107: 0 | S107: 0 | T107: Malaysia | U107: 29011520 | V107: Score 3 | W107: 5686888771 | X107: LARGE CAP | Y107: 0.35 | Z107: 20 | AA107: F4GBM | AB107: EQT | AC107: 746620 | AE107: 0.2582341633
A108: MEQESG | B108: 2018-12-31 | C108: EQT | D108: 6399 | E108: ASTRO | F108: Astro Malaysia Holdings Bhd | G108: MYR | H108: CONSUMER SERVICES | I108: 9427400 | J108: 1.3 | K108: 11387728.18 | L108: 11387728.18 | M108: 0 | N108: 12255620 | O108: 12255620 | P108: 0 | Q108: 867891.82 | R108: 0 | S108: 0 | T108: Malaysia | U108: 12255620 | V108: Score 3 | W108: 5214314500 | X108: LARGE CAP | Y108: 0.13 | Z108: 7 | AA108: F4GBM | AB108: EQT | AC108: 1225562 | AE108: 0.06381225894
A109: MEQESG | B109: 2018-12-31 | C109: EQT | D109: 6742 | E109: YTLPOWR | F109: YTL Power International Berhad | G109: MYR | H109: UTILITIES | I109: 5817200 | J109: 0.83 | K109: 6078153.36 | L109: 6078153.36 | M109: 0 | N109: 4828276 | O109: 4828276 | P109: 0 | Q109: -1249877.36 | R109: 0 | S109: 0 | T109: Malaysia | U109: 4828276 | V109: Score 3 | W109: 8158208738 | X109: LARGE CAP | Y109: 0.05 | Z109: 20 | AA109: F4GBM | AB109: EQT | AC109: 290860 | AE109: 0.2582341633
A110: VCAM | B110: 2018-12-31 | C110: CSH | D110: RDC*MYR*AFFINB | E110: AFFIN BANK BERHAD | F110: Using AFFINB invest in Short Term MM Conventional | G110: MYR | H110: CASH | I110: 10336000 | J110: 0 | K110: 10336000 | L110: 10336000 | M110: 0 | N110: 10344608.61 | O110: 10344608.61 | P110: 8608.61 | Q110: 0 | R110: 0 | S110: 0 | T110: Malaysia | U110: 10336000 | V110: Cash | W110: 0 | X110: SMALL CAP | Y110: 0.038 | Z110: 0 | AA110: FBMKLCI | AB110: CSH | AC110: 392768 | AD110: Cash | AE110: 0
A111: VCAM | B111: 2018-12-31 | C111: CSH | D111: RDC*MYR*AFFINB | E111: AFFIN BANK BERHAD | F111: Using AFFINB invest in Short Term MM Conventional | G111: MYR | H111: CASH | I111: 15195000 | J111: 0 | K111: 15195000 | L111: 15195000 | M111: 0 | N111: 15239960.55 | O111: 15239960.55 | P111: 44960.55 | Q111: 0 | R111: 0 | S111: 0 | T111: Malaysia | U111: 15195000 | V111: Cash | W111: 0 | X111: SMALL CAP | Y111: 0.04 | Z111: 0 | AA111: FBMKLCI | AB111: CSH | AC111: 607800 | AD111: Cash | AE111: 0
A112: VCAMOPR | B112: 2018-12-31 | C112: CSH | D112: RDC*MYR*MBB | E112: MALAYAN BANKING BERHAD | F112: Using MBB invest in Short Term MM Conventional | G112: MYR | H112: CASH | I112: 1898000 | J112: 0 | K112: 1898000 | L112: 1898000 | M112: 0 | N112: 1898839.8 | O112: 1898839.8 | P112: 839.8 | Q112: 0 | R112: 0 | S112: 0 | T112: Malaysia | U112: 1898000 | V112: Cash | W112: 0 | X112: SMALL CAP | Y112: 0.0323 | Z112: 0 | AA112: FBMKLCI | AB112: CSH | AC112: 61305.4 | AD112: Cash | AE112: 0
A113: VCAM-TABA | B113: 2018-12-31 | C113: BND | D113: VS170042 | E113: BPMB IMTN 4.98% 02.03.2032 - Issue No 12 | F113: BPMB IMTN 4.98% 02.03.2032 - Issue No 12 | G113: MYR | H113: FINANCIALS | I113: 1000000 | J113: 101.238 | K113: 1000000 | L113: 1000000 | M113: 0 | N113: 1028797.58 | O113: 1028797.58 | P113: 16417.58 | Q113: 12380 | R113: 0 | S113: 0 | T113: Malaysia | U113: 1012380 | V113: 115 | W113: 7000000000 | X113: LARGE CAP | Y113: 0.0498 | Z113: 3 | AA113: FBMT100 | AB113: BND | AC113: 49800 | AD113: AAA | AE113: 0
A114: VCAM-TABA | B114: 2018-12-31 | C114: BND | D114: VV160265 | E114: LDF3 IMTN 5.950% 23.08.2034 | F114: LDF3 IMTN 5.950% 23.08.2034 | G114: MYR | H114: INDUSTRIALS | I114: 2000000 | J114: 107.641 | K114: 2153800 | L114: 2153800 | M114: 0 | N114: 2195529.59 | O114: 2195529.59 | P114: 42709.59 | Q114: 8984.6 | R114: 0 | S114: -9964.6 | T114: Malaysia | U114: 2152820 | V114: 128 | W114: 3640000000 | X114: LARGE CAP | Y114: 0.05268637 | Z114: 68 | AA114: FBMT100 | AB114: BND | AC114: 113475.9037 | AD114: AA3 | AE114: 0
A115: VCAM-TABA | B115: 2018-12-31 | C115: EQT | D115: 138 | E115: MYEG | F115: My E.G. Services Berhad | G115: MYR | H115: INDUSTRIALS | I115: 885000 | J115: 0.975 | K115: 1001022.41 | L115: 1001022.41 | M115: 0 | N115: 862875 | O115: 862875 | P115: 0 | Q115: -138147.41 | R115: 0 | S115: 0 | T115: Malaysia | U115: 862875 | V115: Score 2 | W115: 3606305993 | X115: LARGE CAP | Y115: 0.01 | Z115: 68 | AA115: FBMT100 | AB115: EQT | AC115: 8850 | AE115: 0.2165924954
A116: VCAM-TABA | B116: 2018-12-31 | C116: EQT | D116: 4863 | E116: TM | F116: Telekom Malaysia Berhad | G116: MYR | H116: TELCO | I116: 135000 | J116: 2.66 | K116: 356200.12 | L116: 356200.12 | M116: 0 | N116: 359100 | O116: 359100 | P116: 0 | Q116: 2899.88 | R116: 0 | S116: 0 | T116: Malaysia | U116: 359100 | V116: Score 4 | W116: 3757934823 | X116: LARGE CAP | Y116: 0.16 | Z116: 49 | AA116: FBMT100 | AB116: EQT | AC116: 21600 | AE116: 0.01591384039
A117: VCAM-TABA | B117: 2018-12-31 | C117: EQT | D117: 5243 | E117: VELESTO | F117: Velesto Energy Berhad | G117: MYR | H117: OIL & GAS | I117: 2109700 | J117: 0.18 | K117: 645075.12 | L117: 645075.12 | M117: 0 | N117: 379746 | O117: 379746 | P117: 0 | Q117: -265329.12 | R117: 0 | S117: 0 | T117: Malaysia | U117: 379746 | V117: Score 3 | W117: 8215600000 | X117: MID CAP | Y117: 0.02 | Z117: 17 | AA117: FBMT100 | AB117: EQT | AC117: 42194 | AE117: 0.06976575761
A118: VCAM-TABA | B118: 2018-12-31 | C118: EQT | D118: 5347 | E118: TENAGA | F118: Tenaga Nasional Bhd | G118: MYR | H118: UTILITIES | I118: 48000 | J118: 13.6 | K118: 649488.57 | L118: 649488.57 | M118: 0 | N118: 652800 | O118: 652800 | P118: 0 | Q118: 3311.43 | R118: 0 | S118: 0 | T118: Malaysia | U118: 652800 | V118: Score 3 | W118: 5686888771 | X118: LARGE CAP | Y118: 0.35 | Z118: 20 | AA118: FBMT100 | AB118: EQT | AC118: 16800 | AE118: 0.05363702059
A119: VCAM-TABA | B119: 2018-12-31 | C119: EQT | D119: 5398 | E119: GAMUDA | F119: Gamuda Berhad | G119: MYR | H119: INDUSTRIALS | I119: 105000 | J119: 2.34 | K119: 343544.68 | L119: 343544.68 | M119: 0 | N119: 245700 | O119: 245700 | P119: 0 | Q119: -97844.68 | R119: 0 | S119: 0 | T119: Malaysia | U119: 245700 | V119: Score 2 | W119: 2468048951 | X119: LARGE CAP | Y119: 0.12 | Z119: 68 | AA119: FBMT100 | AB119: EQT | AC119: 12600 | AE119: 0.2165924954
A120: VCAM-TABA | B120: 2018-12-31 | C120: EQT | D120: 7155 | E120: SKPRES | F120: SKP RESOURCES BHD | G120: MYR | H120: BASIC MATERIALS | I120: 500000 | J120: 1.05 | K120: 624237.25 | L120: 624237.25 | M120: 0 | N120: 525000 | O120: 525000 | P120: 0 | Q120: -99237.25 | R120: 0 | S120: 0 | T120: Malaysia | U120: 525000 | V120: Score 2 | W120: 1250188549 | X120: MID CAP | Y120: 0 | Z120: 40 | AA120: FBMT100 | AB120: EQT | AC120: 0 | AE120: 0.07411754822
A121: VCAM-TABA | B121: 2018-12-31 | C121: EQT | D121: 8664 | E121: SPSETIA | F121: S P Setia Berhad | G121: MYR | H121: FINANCIALS | I121: 300416 | J121: 2.33 | K121: 740145.9 | L121: 740145.9 | M121: 0 | N121: 699969.28 | O121: 699969.28 | P121: 0 | Q121: -40176.62 | R121: 0 | S121: 0 | T121: Malaysia | U121: 699969.28 | V121: Score 3 | W121: 3958563502 | X121: LARGE CAP | Y121: 0.14 | Z121: 3 | AA121: FBMT100 | AB121: EQT | AC121: 42058.24 | AE121: -0.1671993423
A122: YAMIR-VCAM | B122: 2018-12-31 | C122: BND | D122: MS130005 | E122: MGS 5/2013 3.733% 15.06.2028 | F122: MGS 5/2013 3.733% 15.06.2028 | G122: MYR | H122: GOV | I122: 10000000 | J122: 97.38 | K122: 9731000 | L122: 9731000 | M122: 6153.3 | N122: 9755434.34 | O122: 9755434.34 | P122: 11281.04 | Q122: 6450.57 | R122: 0 | S122: 549.43 | T122: Malaysia | U122: 9738000 | V122: 10 | W122: 999999990000 | X122: LARGE CAP | Y122: 0.04077792 | Z122: 21 | AA122: FBMT100 | AB122: BND | AC122: 396809.9395 | AD122: GOVT | AE122: 0
A123: YAMIR-VCAM | B123: 2018-12-31 | C123: CSH | D123: RDC*MYR*PIVB | E123: PUBLIC INVESTMENT BANK BERHAD | F123: Using PIVB invest in Short Term MM Conventional | G123: MYR | H123: CASH | I123: 3474000 | J123: 0 | K123: 3474000 | L123: 3474000 | M123: 0 | N123: 3477978.44 | O123: 3477978.44 | P123: 3978.44 | Q123: 0 | R123: 0 | S123: 0 | T123: Malaysia | U123: 3474000 | V123: Cash | W123: 0 | X123: SMALL CAP | Y123: 0.038 | Z123: 0 | AA123: FBMT100 | AB123: CSH | AC123: 132012 | AD123: Cash | AE123: 0
A124: YAMIR-VCAM | B124: 2018-12-31 | C124: EQT | D124: 3336 | E124: IJM | F124: IJM Corporation Bhd | G124: MYR | H124: INDUSTRIALS | I124: 700000 | J124: 1.62 | K124: 1716566.95 | L124: 1716566.95 | M124: 0 | N124: 1134000 | O124: 1134000 | P124: 0 | Q124: -582566.95 | R124: 0 | S124: 0 | T124: Malaysia | U124: 1134000 | V124: Score 3 | W124: 3635687820 | X124: LARGE CAP | Y124: 0.11 | Z124: 68 | AA124: FBMT100 | AB124: EQT | AC124: 77000 | AE124: 0.7465488651
A125: YAMIR-VCAM | B125: 2018-12-31 | C125: EQT | D125: 3816 | E125: MISC | F125: MISC Bhd | G125: MYR | H125: INDUSTRIALS | I125: 350000 | J125: 6.7 | K125: 2789234.13 | L125: 2789234.13 | M125: 0 | N125: 2345000 | O125: 2345000 | P125: 0 | Q125: -444234.13 | R125: 0 | S125: 0 | T125: Malaysia | U125: 2345000 | V125: Score 4 | W125: 4463793103 | X125: LARGE CAP | Y125: 0.13 | Z125: 68 | AA125: FBMT100 | AB125: EQT | AC125: 45500 | AE125: 0.7465488651
A126: YAMIR-VCAM | B126: 2018-12-31 | C126: EQT | D126: 5218 | E126: SAPNRG | F126: Sapura Energy Berhad | G126: MYR | H126: OIL & GAS | I126: 2500000 | J126: 0.29 | K126: 3018161.55 | L126: 3018161.55 | M126: 0 | N126: 725000 | O126: 725000 | P126: 0 | Q126: -2293161.55 | R126: 0 | S126: 0 | T126: Malaysia | U126: 725000 | V126: Score 2 | W126: 15979080232 | X126: LARGE CAP | Y126: 0.03 | Z126: 17 | AA126: FBMT100 | AB126: EQT | AC126: 75000 | AE126: 0.1402805349
A127: YAMIR-VCAM | B127: 2018-12-31 | C127: EQT | D127: 5218OR | E127: SAPNRG-OR | F127: SAPNRG-Renounceable rights issue | G127: MYR | H127: OIL & GAS | I127: 4166666 | J127: 0 | K127: 0 | L127: 0 | M127: 0 | N127: 0 | O127: 0 | P127: 0 | Q127: 0 | R127: 0 | S127: 0 | T127: Malaysia | U127: 0 | V127: Score 2 | W127: 0 | X127: SMALL CAP | Y127: 0.03 | Z127: 17 | AA127: FBMT100 | AB127: EQT | AE127: 0.1402805349
A128: YAMIR-VCAM | B128: 2018-12-31 | C128: EQT | D128: 5218PR | E128: SAPNRG-PR | F128: SAPNRG-Rights Issue (Islamic Preference Shares) | G128: MYR | H128: OIL & GAS | I128: 1000000 | J128: 0 | K128: 0 | L128: 0 | M128: 0 | N128: 0 | O128: 0 | P128: 0 | Q128: 0 | R128: 0 | S128: 0 | T128: Malaysia | U128: 0 | V128: Score 2 | W128: 0 | X128: SMALL CAP | Y128: 0.03 | Z128: 17 | AA128: FBMT100 | AB128: EQT | AE128: 0.1402805349
A129: YH-AUR-VCAM | B129: 2018-12-31 | C129: BND | D129: GZ170004 | E129: GII MURABAHAH 4/2017 4.895% 08.05.2047 | F129: GII MURABAHAH 4/2017 4.895% 08.05.2047 | G129: MYR | H129: GOV | I129: 100000000 | J129: 99.78 | K129: 100172000 | L129: 100172000 | M129: 0 | N129: 100510193.4 | O129: 100510193.4 | P129: 730193.37 | Q129: -381524.6 | R129: 0 | S129: -10475.4 | T129: Malaysia | U129: 99780000 | V129: 10 | W129: 999999999999 | X129: LARGE CAP | Y129: 0.04884017 | Z129: 21 | AA129: FBMT100 | AB129: BND | AC129: 4892417.509 | AD129: GOVT | AE129: 0
A130: YH-AUR-VCAM | B130: 2018-12-31 | C130: BND | D130: GZ170004 | E130: GII MURABAHAH 4/2017 4.895% 08.05.2047 | F130: GII MURABAHAH 4/2017 4.895% 08.05.2047 | G130: MYR | H130: GOV | I130: 100000000 | J130: 99.78 | K130: 100094000 | L130: 100094000 | M130: 0 | N130: 100510193.4 | O130: 100510193.4 | P130: 730193.37 | Q130: -305659.29 | R130: 0 | S130: -8340.71 | T130: Malaysia | U130: 99780000 | V130: 10 | W130: 999999999999 | X130: LARGE CAP | Y130: 0.04888984 | Z130: 21 | AA130: FBMT100 | AB130: BND | AC130: 4893579.645 | AD130: GOVT | AE130: 0
A131: YH-AUR-VCAM | B131: 2018-12-31 | C131: BND | D131: MO160003 | E131: MGS 3/2016 3.9% 30.11.2026 | F131: MGS 3/2016 3.9% 30.11.2026 | G131: MYR | H131: GOV | I131: 10000000 | J131: 98.524 | K131: 10294000 | L131: 10294000 | M131: 0 | N131: 9886685.71 | O131: 9886685.71 | P131: 34285.71 | Q131: -383713.9 | R131: 0 | S131: -57886.1 | T131: Malaysia | U131: 9852400 | V131: 10 | W131: 999999990000 | X131: LARGE CAP | Y131: 0.0355477 | Z131: 21 | AA131: FBMT100 | AB131: BND | AC131: 365928.0238 | AD131: GOVT | AE131: 0
A132: YH-AUR-VCAM | B132: 2018-12-31 | C132: BND | D132: MO160003 | E132: MGS 3/2016 3.9% 30.11.2026 | F132: MGS 3/2016 3.9% 30.11.2026 | G132: MYR | H132: GOV | I132: 50000000 | J132: 98.524 | K132: 51372500 | L132: 51372500 | M132: 0 | N132: 49433428.57 | O132: 49433428.57 | P132: 171428.57 | Q132: -1839581.46 | R132: 0 | S132: -270918.54 | T132: Malaysia | U132: 49262000 | V132: 10 | W132: 999999990000 | X132: LARGE CAP | Y132: 0.03577552 | Z132: 21 | AA132: FBMT100 | AB132: BND | AC132: 1837877.901 | AD132: GOVT | AE132: 0
A133: YH-AUR-VCAM | B133: 2018-12-31 | C133: BND | D133: MX110004 | E133: MGS 4/2011 4.232% 30.06.2031 | F133: MGS 4/2011 4.232% 30.06.2031 | G133: MYR | H133: GOV | I133: 30000000 | J133: 98.127 | K133: 31203000 | L133: 31203000 | M133: 0 | N133: 29441607.18 | O133: 29441607.18 | P133: 3507.18 | Q133: -1619087.24 | R133: 0 | S133: -145812.76 | T133: Malaysia | U133: 29438100 | V133: 10 | W133: 999999990000 | X133: LARGE CAP | Y133: 0.03873674 | Z133: 21 | AA133: FBMT100 | AB133: BND | AC133: 1208702.498 | AD133: GOVT | AE133: 0
A134: YH-AUR-VCAM | B134: 2018-12-31 | C134: BND | D134: MX170003 | E134: MGS 3/2017 4.762% 07.04.2037 | F134: MGS 3/2017 4.762% 07.04.2037 | G134: MYR | H134: GOV | I134: 10000000 | J134: 101.795 | K134: 10231000 | L134: 10231000 | M134: 0 | N134: 10292008.79 | O134: 10292008.79 | P134: 112508.79 | Q134: -43855.89 | R134: 0 | S134: -7644.11 | T134: Malaysia | U134: 10179500 | V134: 10 | W134: 999999990000 | X134: LARGE CAP | Y134: 0.04579667 | Z134: 21 | AA134: FBMT100 | AB134: BND | AC134: 468545.7308 | AD134: GOVT | AE134: 0
A135: YH-AUR-VCAM | B135: 2018-12-31 | C135: BND | D135: MX180004 | E135: MGS 4/2018 08.06.2038 | F135: MGS 4/2018 08.06.2038 | G135: MYR | H135: GOV | I135: 10000000 | J135: 103.253 | K135: 10107000 | L135: 10107000 | M135: 0 | N135: 10357561.54 | O135: 10357561.54 | P135: 32261.54 | Q135: 218698.86 | R135: 0 | S135: -398.86 | T135: Malaysia | U135: 10325300 | V135: 10 | W135: 999999990000 | X135: LARGE CAP | Y135: 0.04807729 | Z135: 21 | AA135: FBMT100 | AB135: BND | AC135: 485917.17 | AD135: GOVT | AE135: 0
A136: YH-AUR-VCAM | B136: 2018-12-31 | C136: BND | D136: MZ160002 | E136: MGS 2/2016 4.736% 15.3.2046 | F136: MGS 2/2016 4.736% 15.3.2046 | G136: MYR | H136: GOV | I136: 40000000 | J136: 98.294 | K136: 41484000 | L136: 41484000 | M136: 0 | N136: 39882780.11 | O136: 39882780.11 | P136: 565180.11 | Q136: -2104199.64 | R136: 0 | S136: -62200.36 | T136: Malaysia | U136: 39317600 | V136: 10 | W136: 999999990000 | X136: LARGE CAP | Y136: 0.04507547 | Z136: 21 | AA136: FBMT100 | AB136: BND | AC136: 1869910.797 | AD136: GOVT | AE136: 0
A137: YH-AUR-VCAM | B137: 2018-12-31 | C137: BND | D137: PO180006 | E137: CIMB 4.880% 13.09.2029 - Tranche 4 | F137: CIMB 4.880% 13.09.2029 - Tranche 4 | G137: MYR | H137: OTHERS | I137: 65000000 | J137: 100.754 | K137: 65000000 | L137: 65000000 | M137: 0 | N137: 66446045.21 | O137: 66446045.21 | P137: 955945.21 | Q137: 490100 | R137: 0 | S137: 0 | T137: Malaysia | U137: 65490100 | V137: 125 | W137: 10000000000 | X137: LARGE CAP | Y137: 0.0488 | Z137: 0 | AA137: FBMT100 | AB137: BND | AC137: 3172000 | AD137: AA2 | AE137: 0
A138: YH-AUR-VCAM | B138: 2018-12-31 | C138: BND | D138: UG160121 | E138: CAGAMAS MTN 3.750% 18.10.2019 | F138: CAGAMAS MTN 3.750% 18.10.2019 | G138: MYR | H138: FINANCIALS | I138: 10000000 | J138: 99.903 | K138: 10000000 | L138: 10000000 | M138: 0 | N138: 10063245.21 | O138: 10063245.21 | P138: 72945.21 | Q138: -9700 | R138: 0 | S138: 0 | T138: Malaysia | U138: 9990300 | V138: 115 | W138: 20000000000 | X138: LARGE CAP | Y138: 0.03749933 | Z138: 3 | AA138: FBMT100 | AB138: BND | AC138: 374993.3 | AD138: AAA | AE138: 0
A139: YH-AUR-VCAM | B139: 2018-12-31 | C139: BND | D139: UN150035 | E139: RHBINVB MTN 3653D 16.4.2025 | F139: RHBINVB MTN 3653D 16.4.2025 | G139: MYR | H139: FINANCIALS | I139: 30000000 | J139: 100.728 | K139: 30000000 | L139: 30000000 | M139: 0 | N139: 30531673.97 | O139: 30531673.97 | P139: 313273.97 | Q139: 218400 | R139: 0 | S139: 0 | T139: Malaysia | U139: 30218400 | V139: 128 | W139: 1000000000 | X139: LARGE CAP | Y139: 0.0495 | Z139: 3 | AA139: FBMT100 | AB139: BND | AC139: 1485000 | AD139: AA3 | AE139: 0
A140: YH-AUR-VCAM | B140: 2018-12-31 | C140: BND | D140: UN150040 | E140: RHBBANK MTN 3653D 15/0040 4.75% 08.05.2025 | F140: RHBBANK MTN 3653D 15/0040 4.75% 08.05.2025 | G140: MYR | H140: FINANCIALS | I140: 35000000 | J140: 100.562 | K140: 35000000 | L140: 35000000 | M140: 0 | N140: 35442658.9 | O140: 35442658.9 | P140: 245958.9 | Q140: 196700 | R140: 0 | S140: 0 | T140: Malaysia | U140: 35196700 | V140: 128 | W140: 5000000000 | X140: LARGE CAP | Y140: 0.0475 | Z140: 3 | AA140: FBMT100 | AB140: BND | AC140: 1662500 | AD140: AA3 | AE140: 0
A141: YH-AUR-VCAM | B141: 2018-12-31 | C141: BND | D141: VK150137 | E141: IHSAN IMTN 4.300% 17.06.2022 - 7 Years | F141: IHSAN IMTN 4.300% 17.06.2022 - First Sukuk Ihsan | G141: MYR | H141: FINANCIALS | I141: 17000000 | J141: 99.494 | K141: 17000000 | L141: 17000000 | M141: 0 | N141: 17308519.73 | O141: 17308519.73 | P141: 394539.73 | Q141: -86020 | R141: 0 | S141: 0 | T141: Malaysia | U141: 16913980 | V141: 115 | W141: 1000000000 | X141: LARGE CAP | Y141: 0.04299959 | Z141: 3 | AA141: FBMT100 | AB141: BND | AC141: 730993.03 | AD141: AAA | AE141: 0
A142: YH-AUR-VCAM | B142: 2018-12-31 | C142: BND | D142: VK170233 | E142: IHSAN IMTN 4.600% 08.08.2024 - Second Sukuk Ihsan | F142: IHSAN IMTN 4.600% 08.08.2024 - Second Sukuk Ihsan | G142: MYR | H142: FINANCIALS | I142: 13000000 | J142: 100.159 | K142: 13000000 | L142: 13000000 | M142: 0 | N142: 13259870 | O142: 13259870 | P142: 239200 | Q142: 20670 | R142: 0 | S142: 0 | T142: Malaysia | U142: 13020670 | V142: 115 | W142: 1000000000 | X142: LARGE CAP | Y142: 0.046 | Z142: 3 | AA142: FBMT100 | AB142: BND | AC142: 598000 | AD142: AAA | AE142: 0
A143: YH-AUR-VCAM | B143: 2018-12-31 | C143: BND | D143: VM150346 | E143: SAMALAJU IMTN 5.15% 27.12.2024 - Issue No. 2 | F143: SAMALAJU IMTN 5.15% 27.12.2024 - Issue No. 2 | G143: MYR | H143: TRANSPORTATION & LOGISTIC | I143: 5000000 | J143: 103.09 | K143: 5000000 | L143: 5000000 | M143: 0 | N143: 5157321.92 | O143: 5157321.92 | P143: 2821.92 | Q143: 154500 | R143: 0 | S143: 0 | T143: Malaysia | U143: 5154500 | V143: 122 | W143: 950000000 | X143: LARGE CAP | Y143: 0.05149975 | Z143: 67 | AA143: FBMT100 | AB143: BND | AC143: 257498.75 | AD143: AA1 | AE143: 0
A144: YH-AUR-VCAM | B144: 2018-12-31 | C144: BND | D144: VN130387 | E144: BGSM MGMT IMTN 5.600% 27.12.2023 - Issue No 9 | F144: BGSM MGMT IMTN 5.600% 27.12.2023 - Issue No 9 | G144: MYR | H144: DIVERSIFIED | I144: 5000000 | J144: 104.752 | K144: 5185000 | L144: 5185000 | M144: 0 | N144: 5240668.49 | O144: 5240668.49 | P144: 3068.49 | Q144: 96513.8 | R144: 0 | S144: -43913.8 | T144: Malaysia | U144: 5237600 | V144: 128 | W144: 373000000 | X144: LARGE CAP | Y144: 0.04954876 | Z144: 22 | AA144: FBMT100 | AB144: BND | AC144: 256910.3206 | AD144: AA3 | AE144: 0
A145: YH-AUR-VCAM | B145: 2018-12-31 | C145: BND | D145: VN150260 | E145: MMC CORP IMTN 5.800% 12.11.2025 | F145: MMC CORP IMTN 5.800% 12.11.2025 | G145: MYR | H145: DIVERSIFIED | I145: 15000000 | J145: 102.019 | K145: 15000000 | L145: 15000000 | M145: 0 | N145: 15422028.08 | O145: 15422028.08 | P145: 119178.08 | Q145: 302850 | R145: 0 | S145: 0 | T145: Malaysia | U145: 15302850 | V145: 128 | W145: 1500000000 | X145: LARGE CAP | Y145: 0.058 | Z145: 22 | AA145: FBMT100 | AB145: BND | AC145: 870000 | AD145: AA3 | AE145: 0
A146: YH-AUR-VCAM | B146: 2018-12-31 | C146: BND | D146: VN150347 | E146: SAMALAJU IMTN 5.25% 26.12.2025 - Issue No. 3 | F146: SAMALAJU IMTN 5.25% 26.12.2025 - Issue No. 3 | G146: MYR | H146: TRANSPORTATION & LOGISTIC | I146: 5000000 | J146: 103.559 | K146: 5000000 | L146: 5000000 | M146: 0 | N146: 5180826.71 | O146: 5180826.71 | P146: 2876.71 | Q146: 177950 | R146: 0 | S146: 0 | T146: Malaysia | U146: 5177950 | V146: 122 | W146: 950000000 | X146: LARGE CAP | Y146: 0.05249952 | Z146: 67 | AA146: FBMT100 | AB146: BND | AC146: 262497.6 | AD146: AA1 | AE146: 0
